Workbook

Sheet Inicio
J4: EstadisticAMIS Informe
D6: Con la finalidad de atender la solicitud de información, presentamos esta publicación comparando los datosprimas del periodo actual vs el mismo periodo del año anterior.
I10: Periodo: | J10: 2021-Q4
I11: Fecha de actualización: | J11: 2022-06-01
B15: ANÁLISIS DE PRIMAS DIRECTAS | G15: ANÁLISIS DE SINIESTROS
B21: DEFINICIÓN DE TÉRMINOS
B23: Participación de mercado
B24: Porcentaje que representa la participación de las compañías sobre el total del ramo o subramo que se está consultando.
B26: Participación por operación
B27: Porcentaje que representa la participación del subramo sobre el ramo de la compañía.
B29: Participación por cartera
B30: Porcentaje que representa la participación del ramo o subramos sobre el total general sin pensiones de la compañía.
B32: Participación por sector
B33: Porcentaje que representa la participación de la compañía del ramo o subramo(s) sobre la suma del total general sin pensiones.

Sheet TDPrimas (hidden)
A3: periodo | B3: 2021-Q4
A4: Ramo_ | B4: 10 Total General
A6: Jerarquia 2 | B6: nombre_compania | C6: Suma de Prima_DirectaAct | D6: Suma de Prima_DirectaAnt | E6: Suma de %CARTERA | F6: Suma de %SECTOR
A7: 1 | B7: G.N.P. | C7: 78894165.13 | D7: 72967613.44 | E7: 100 | F7: 12.45572036
A8: 2 | B8: Metlife México | C8: 62441035.43 | D8: 56879236.02 | E8: 100 | F8: 9.858119102
A9: 3 | B9: BBVA Bancomer | C9: 46683566.47 | D9: 46288255.62 | E9: 100 | F9: 7.370347965
A10: 4 | B10: AXA Seguros | C10: 44680995.32 | D10: 40205013.74 | E10: 100 | F10: 7.054184327
A11: 5 | B11: Quálitas | C11: 34984952.3 | D11: 33301760.54 | E11: 100 | F11: 5.523384168
A12: 5.1 | B12: TOTAL GRANDES | C12: 267684714.7 | D12: 249641879.4 | E12: 100 | F12: 42.26175592
A13: 6 | B13: Monterrey New York Life | C13: 34531456 | D13: 32811416.16 | E13: 100 | F13: 5.451786693
A14: 7 | B14: Mapfre México | C14: 30973171.78 | D14: 18274883.24 | E14: 100 | F14: 4.890008858
A15: 8 | B15: Banorte | C15: 27787128.92 | D15: 26911499.02 | E15: 100 | F15: 4.387000064
A16: 9 | B16: Citibanamex Seguros | C16: 24304859.37 | D16: 30598341.66 | E16: 100 | F16: 3.837223338
A17: 10 | B17: Pensiones Banorte | C17: 22649462.82 | D17: 14334303.77 | E17: 0 | F17: 3.575871228
A18: 11 | B18: Inbursa | C18: 20715913.72 | D18: 18776064.98 | E18: 100 | F18: 3.270604712
A19: 12 | B19: Chubb Seguros México | C19: 18644615.73 | D19: 17701457.06 | E19: 100 | F19: 2.94359056
A20: 13 | B20: Allianz México | C20: 16560897.79 | D20: 18006767.26 | E20: 100 | F20: 2.614615561
A21: 14 | B21: Atlas | C21: 16033506.83 | D21: 14853772.68 | E21: 100 | F21: 2.531351681
A22: 15 | B22: ProFuturo G.N.P. | C22: 14908494.75 | D22: 8114855.82 | E22: 0 | F22: 2.353736062
A23: 15.1 | B23: TOTAL MEDIANAS | C23: 227109507.7 | D23: 200383361.7 | E23: 119.8141126 | F23: 35.85578876
A24: 16 | B24: Zurich Santander | C24: 14742608.48 | D24: 11574946.9 | E24: 100 | F24: 2.327546128
A25: 17 | B25: GMX Seguros | C25: 10840674.32 | D25: 8753510.988 | E25: 100 | F25: 1.711513235
A26: 18 | B26: Afirme | C26: 10199279.55 | D26: 11016215.79 | E26: 100 | F26: 1.610250564
A27: 19 | B27: Pensiones BBVA Bancomer | C27: 9822830.802 | D27: 6702330.223 | E27: 0 | F27: 1.550817268
A28: 20 | B28: HDI Seguros | C28: 8680810.987 | D28: 8085709.615 | E28: 100 | F28: 1.370516488
A29: 21 | B29: Zurich Daños | C29: 7183909.404 | D29: 6804824.972 | E29: 100 | F29: 1.134187382
A30: 22 | B30: HSBC Seguros | C30: 6468384.206 | D30: 3606695.856 | E30: 100 | F30: 1.021221084
A31: 23 | B31: Seguros SURA | C31: 5900062.749 | D31: 5305012.668 | E31: 100 | F31: 0.931495144
A32: 24 | B32: AIG Seguros | C32: 5289324.872 | D32: 5420683.504 | E32: 100 | F32: 0.835072548
A33: 25 | B33: Seguros Azteca | C33: 4983077.594 | D33: 4739992.016 | E33: 100 | F33: 0.7867225788
A34: 26 | B34: BUPA México | C34: 3594202.45 | D34: 3379847.706 | E34: 100 | F34: 0.5674485631
A35: 27 | B35: FM Global | C35: 3154604.317 | D35: 3307629.023 | E35: 100 | F35: 0.4980453136
A36: 28 | B36: Ve Por Más | C36: 3138973.143 | D36: 2864221.832 | E36: 100 | F36: 0.4955774818
A37: 29 | B37: Seguros Argos | C37: 3067143.767 | D37: 2998917.062 | E37: 100 | F37: 0.4842371423
A38: 30 | B38: ANA | C38: 2846225.986 | D38: 2437409.107 | E38: 100 | F38: 0.4493588963
A39: 31 | B39: Cardif Vida | C39: 2829394.621 | D39: 2603859.012 | E39: 100 | F39: 0.4467015796
A40: 32 | B40: Plan Seguro | C40: 2596168.489 | D40: 2272678.217 | E40: 100 | F40: 0.4098801053
A41: 33 | B41: General de Seguros | C41: 2516090.615 | D41: 2067951.068 | E41: 100 | F41: 0.3972375023
A42: 34 | B42: Hir Seguros | C42: 1949854.184 | D42: 1480074.885 | E42: 100 | F42: 0.3078407437
A43: 35 | B43: El Potosí | C43: 1937993.953 | D43: 1758597.98 | E43: 100 | F43: 0.3059682639
A44: 36 | B44: Seguros Azteca Daños | C44: 1844295.095 | D44: 2489084.816 | E44: 100 | F44: 0.2911751956
A45: 37 | B45: Zurich Vida | C45: 1834835.984 | D45: 1834121.97 | E45: 100 | F45: 0.289681802
A46: 38 | B46: Insignia Life | C46: 1738938.033 | D46: 1790168.38 | E46: 100 | F46: 0.2745415434
A47: 39 | B47: Cardif Seguros Generales | C47: 1560679.237 | D47: 1527612.939 | E47: 100 | F47: 0.2463982491
A48: 40 | B48: Patrimonial Vida | C48: 1454885.501 | D48: 3004860.865 | E48: 100 | F48: 0.2296956553
A49: 41 | B49: Tokio Marine | C49: 1374423.954 | D49: 1221609.505 | E49: 100 | F49: 0.2169924785
A50: 42 | B50: La Latinoamericana | C50: 1322115.807 | D50: 1034777.912 | E50: 100 | F50: 0.2087341282
A51: 43 | B51: El Águila | C51: 1250683.778 | D51: 1118711.14 | E51: 100 | F51: 0.1974565213
A52: 44 | B52: BBVA Bancomer Salud | C52: 1191065.811 | D52: 383549.723 | E52: 100 | F52: 0.1880441051
A53: 45 | B53: Prudential | C53: 1176956.401 | D53: 950354.3703 | E53: 100 | F53: 0.1858165275
A54: 46 | B54: HDI Global Seguros | C54: 1043388.72 | D54: 798982.6142 | E54: 100 | F54: 0.1647290151
A55: 47 | B55: Assurant Vida | C55: 1024603.929 | D55: 1108142.217 | E55: 100 | F55: 0.1617632938
A56: 48 | B56: SIS NOVA | C56: 939149.0756 | D56: 866593.7051 | E56: 100 | F56: 0.1482717796
A57: 49 | B57: Pan-American México | C57: 769483.4333 | D57: 1219145.66 | E57: 100 | F57: 0.1214851624
A58: 50 | B58: Primero Seguros | C58: 752773.3141 | D58: 806848.1385 | E58: 100 | F58: 0.118846988
A59: 51 | B59: Patrimonial Inbursa | C59: 633205.9417 | D59: 749761.7194 | E59: 100 | F59: 0.09996982828
A60: 52 | B60: Atradius | C60: 621840.9362 | D60: 579261.4112 | E60: 100 | F60: 0.09817553424
A61: 53 | B61: Sompo Japan | C61: 605863.712 | D61: 607438.3528 | E61: 100 | F61: 0.09565306839
A62: 54 | B62: Solunion Crédito | C62: 539056.7947 | D62: 512666.6823 | E62: 100 | F62: 0.08510566887
A63: 55 | B63: General de Salud | C63: 513902.8165 | D63: 466606.4007 | E63: 100 | F63: 0.08113438763
A64: 56 | B64: PREVEM Seguros | C64: 495857.3322 | D64: 427838.6913 | E64: 100 | F64: 0.07828538725
A65: 57 | B65: Berkley Seguros | C65: 465002.4395 | D65: 352853.8234 | E65: 100 | F65: 0.07341405214
A66: 58 | B66: Dentegra | C66: 449909.7433 | D66: 432140.631 | E66: 100 | F66: 0.07103123458
A67: 59 | B67: Skandia Life | C67: 426948.5898 | D67: 558075.8231 | E67: 100 | F67: 0.06740615398
A68: 60 | B68: SHF Cred Vivienda | C68: 419514.9486 | D68: 450455.368 | E68: 100 | F68: 0.06623253922
A69: 61 | B69: Coface | C69: 330415.1544 | D69: 306787.2333 | E69: 100 | F69: 0.05216556584
A70: 62 | B70: Swiss Re Corporate Solutions | C70: 317503.7349 | D70: 157038.6157 | E70: 100 | F70: 0.05012712573
A71: 63 | B71: Zurich Aseguradora Mexicana | C71: 257596.1868 | D71: 121625.6849 | E71: 100 | F71: 0.04066899071
A72: 64 | B72: MediAccess | C72: 222274.3503 | D72: 236904.0442 | E72: 100 | F72: 0.03509241964
A73: 65 | B73: Assurant Daños | C73: 175769.7389 | D73: 155898.3906 | E73: 100 | F73: 0.0277503249
A74: 66 | B74: Patrimonial Daños | C74: 172814.1554 | D74: 133543.8542 | E74: 100 | F74: 0.02728370077
A75: 67 | B75: Aserta Seguros de Vida | C75: 172554.4396 | D75: 526402.7176 | E75: 100 | F75: 0.02724269714
A76: 68 | B76: AXA Salud | C76: 163768.7374 | D76: 473531.8306 | E76: 100 | F76: 0.02585562055
A77: 69 | B77: Centauro | C77: 161859.45 | D77: 145132.9218 | E77: 100 | F77: 0.02555418444
A78: 70 | B78: Tláloc Seguros | C78: 122691.3088 | D78: 223736.212 | E78: 100 | F78: 0.01937036321
A79: 71 | B79: Odontoprev | C79: 76993.93244 | D79: 47514.83956 | E79: 100 | F79: 0.0121557138
A80: 72 | B80: Virginia Surety | C80: 71210.53291 | D80: 23146.93078 | E80: 100 | F80: 0.01124263731
A81: 73 | B81: Genworth Seg. de Crédito | C81: 65916.11533 | D81: 67949.2039 | E81: 100 | F81: 0.01040676073
A82: 74 | B82: Crabi | C82: 40543.6393 | D82: 28166.7246 | E82: 100 | F82: 0.0064009833
A83: 75 | B83: Metlife Más | C83: 31095.04911 | D83: 35403.6928 | E83: 100 | F83: 0.004909250712
A84: 76 | B84: Metlife Pensiones | C84: 15995.85067 | D84: 7040.35645 | E84: 0 | F84: 0.002525406569
A85: 77 | B85: Citibanamex Pensiones | C85: 12102.12455 | D85: 10434.71648 | E85: 0 | F85: 0.001910669552
A86: 78 | B86: Pensiones Inbursa | C86: 533.28378 | D86: 3565.23812 | E86: 0 | F86: 8.419423192e-05
A87: 79 | B87: Principal México | C87: 192.54227 | D87: 212.01304 | E87: 100 | F87: 3.039835289e-05
A88: 80 | B88: HSBC Pensiones | C88: 0 | D88: 10310.62031 | E88: 0 | F88: 0
A89: 150.1 | B89: TOTAL RESTO | C89: 138602826.1 | D89: 125187117.1 | E89: 107.65154 | F89: 21.88245532
A90: 151.1 | B90: TOTAL | C90: 633397048.5 | D90: 575212358.1 | E90: 108.0905154 | F90: 100

Sheet TDPrimas Vida (hidden)
A2: periodo | B2: 2021-Q4
A3: Ramo_ | B3: 12 Vida Total
A4: subramo | B4: (Varios elementos)
A6: Jerarquia 2 | B6: nombre_compania | C6: Suma de Prima_DirectaAct | D6: Suma de Prima_DirectaAnt | E6: Suma de %CARTERA | F6: Suma de Prima_Directa_Act1anio | G6: Suma de Prima_Directa_Ant1anio | H6: Suma de %CARTERA_1anio | I6: Suma de PrimaDirectaAct_Renov | J6: Suma de PrimaDirectaAnt_Renov | K6: Suma de %CARTERA_Renov | L6: Suma de PrimaDirectaAct_Unica | M6: Suma de PrimaDirectaAnt_Unica | N6: Suma de %CARTERA_uni
A7: 1 | B7: Metlife México | C7: 45847773.85 | D7: 42125139.99 | E7: 73.4257104 | F7: 8748784.907 | G7: 9896163.294 | H7: 14.01127455 | I7: 30911024.16 | J7: 27196141.22 | K7: 49.50434268 | L7: 6187964.785 | M7: 5032835.477 | N7: 9.910093166
A8: 2 | B8: BBVA Bancomer | C8: 37325851.61 | D8: 37957892.4 | E8: 79.95501292 | F8: 31939704.63 | G8: 32611842.77 | H8: 68.41744759 | I8: 4119155.011 | J8: 4049234.939 | K8: 8.823565383 | L8: 1266991.97 | M8: 1296814.694 | N8: 2.713999947
A9: 3 | B9: G.N.P. | C9: 32138338.2 | D9: 29629963.6 | E9: 40.73601406 | F9: 7791578.782 | G9: 7686617.805 | H9: 9.875988635 | I9: 17995644.97 | J9: 17191708.19 | K9: 22.80985537 | L9: 6351114.456 | M9: 4751637.598 | N9: 8.050170054
A10: 4 | B10: Monterrey New York Life | C10: 23548993.2 | D10: 22788854.28 | E10: 68.19577256 | F10: 2200084.573 | G10: 2123174.935 | H10: 6.371247632 | I10: 15411250.56 | J10: 14790867.16 | K10: 44.62959964 | L10: 5937658.061 | M10: 5874812.179 | N10: 17.19492529
A11: 5 | B11: Citibanamex Seguros | C11: 23397154.32 | D11: 29537600.09 | E11: 96.26533514 | F11: 14333370.96 | G11: 19659624.06 | H11: 58.97327258 | I11: 9063783.361 | J11: 9877976.031 | K11: 37.29206256 | L11: 0 | M11: 0 | N11: 0
A12: 5.1 | B12: TOTAL GRANDES | C12: 162258111.2 | D12: 162039450.4 | E12: 65.73010756 | F12: 65013523.85 | G12: 71977422.86 | H12: 26.33671676 | I12: 77500858.06 | J12: 73105927.55 | K12: 31.39528557 | L12: 19743729.27 | M12: 16956099.95 | N12: 7.998105236
A13: 6 | B13: Banorte | C13: 15171410.45 | D13: 14550597.4 | E13: 54.59869744 | F13: 3838669.01 | G13: 3071975.018 | H13: 13.81455789 | I13: 7476991.336 | J13: 7756025.757 | K13: 26.90811043 | L13: 3855750.103 | M13: 3722596.625 | N13: 13.87602912
A14: 7 | B14: Zurich Santander | C14: 10872638.54 | D14: 7850148.34 | E14: 73.74976117 | F14: 6128239.404 | G14: 3786931.6 | H14: 41.56821646 | I14: 1224789.944 | J14: 1060535.328 | K14: 8.307823857 | L14: 3519609.193 | M14: 3002681.411 | N14: 23.87372085
A15: 8 | B15: Allianz México | C15: 9080227.052 | D15: 9673129.512 | E15: 54.82931642 | F15: 4859120.954 | G15: 5402828.017 | H15: 29.34092714 | I15: 4221106.098 | J15: 4270301.495 | K15: 25.48838929 | L15: 0 | M15: 0 | N15: 0
A16: 9 | B16: HSBC Seguros | C16: 6118480.682 | D16: 3267798.644 | E16: 94.59055751 | F16: 4219031.923 | G16: 1477453.913 | H16: 65.2254379 | I16: 1899448.759 | J16: 1790344.731 | K16: 29.36511961 | L16: 0 | M16: 0 | N16: 0
A17: 10 | B17: AXA Seguros | C17: 5769071.136 | D17: 6089813.345 | E17: 12.91168895 | F17: 1329927.921 | G17: 1527484.181 | H17: 2.976495737 | I17: 4433822.948 | J17: 4556204.977 | K17: 9.923285988 | L17: 5320.26688 | M17: 6124.18692 | N17: 0.01190722553
A18: 11 | B18: Mapfre México | C18: 5405617.678 | D18: 5882561.114 | E18: 17.45258031 | F18: 4596064.591 | G18: 5105986.086 | H18: 14.83885675 | I18: 808465.8015 | J18: 775034.1894 | K18: 2.610213146 | L18: 1087.28627 | M18: 1540.8388 | N18: 0.003510413069
A19: 12 | B19: Inbursa | C19: 5013331.068 | D19: 4819998.348 | E19: 24.20038593 | F19: 2847270.967 | G19: 2629116.425 | H19: 13.74436583 | I19: 2166060.101 | J19: 2190881.923 | K19: 10.45602009 | L19: 0 | M19: 0 | N19: 0
A20: 13 | B20: Seguros Azteca | C20: 4867012.418 | D20: 4542185.712 | E20: 97.67081339 | F20: 4782784.052 | G20: 4300296.644 | H20: 95.98052534 | I20: 9354.4844 | J20: 3741.27278 | K20: 0.1877250399 | L20: 74873.88082 | M20: 238147.7949 | N20: 1.502563013
A21: 14 | B21: Seguros Argos | C21: 3067143.767 | D21: 2998917.062 | E21: 100 | F21: 745728.4944 | G21: 581435.5194 | H21: 24.31345092 | I21: 1910456.997 | J21: 2067203.064 | K21: 62.28782027 | L21: 410958.2757 | M21: 350278.4783 | N21: 13.39872882
A22: 15 | B22: Afirme | C22: 2880992.41 | D22: 2211964.454 | E22: 28.24701879 | F22: 2880992.41 | G22: 2211964.454 | H22: 28.24701879 | I22: 0 | J22: 0 | K22: 0 | L22: 0 | M22: 0 | N22: 0
A23: 15.1 | B23: TOTAL MEDIANAS | C23: 68245925.2 | D23: 61887113.93 | E23: 37.87682043 | F23: 36227829.73 | G23: 30095471.86 | H23: 20.10662171 | I23: 24150496.47 | J23: 24470272.74 | K23: 13.40364301 | L23: 7867599.005 | M23: 7321369.335 | N23: 4.366555715
A24: 16 | B24: Cardif Vida | C24: 2596506.437 | D24: 2564174.646 | E24: 91.76897482 | F24: 149862.9352 | G24: 1228936.157 | H24: 5.29664311 | I24: 1893173.154 | J24: 1045071.387 | K24: 66.91089113 | L24: 553470.3474 | M24: 290167.1024 | N24: 19.56144057
A25: 17 | B25: Atlas | C25: 2388659.077 | D25: 2074821.583 | E25: 14.89792035 | F25: 1602285.869 | G25: 1345268.586 | H25: 9.993358819 | I25: 646101.1058 | J25: 641386.6989 | K25: 4.029693021 | L25: 140272.1024 | M25: 88166.29804 | N25: 0.8748685104
A26: 18 | B26: Hir Seguros | C26: 1927562.535 | D26: 1462704.422 | E26: 98.856753 | F26: 547658.7619 | G26: 113275.9307 | H26: 28.08716499 | I26: 1379903.773 | J26: 1349428.491 | K26: 70.76958801 | L26: 0 | M26: 0 | N26: 0
A27: 19 | B27: Insignia Life | C27: 1738938.033 | D27: 1790168.38 | E27: 100 | F27: 489251.2496 | G27: 749554.9894 | H27: 28.13505947 | I27: 1255059.761 | J27: 1039560.211 | K27: 72.17392096 | L27: -5372.97824 | M27: 1053.17923 | N27: -0.3089804317
A28: 20 | B28: Seguros SURA | C28: 1457579.496 | D28: 1244239.693 | E28: 24.70447448 | F28: 1190642.442 | G28: 876387.5867 | H28: 20.18016576 | I28: 261495.0305 | J28: 338922.2201 | K28: 4.432072025 | L28: 5442.02343 | M28: 28929.88617 | N28: 0.09223670428
A29: 21 | B29: Patrimonial Vida | C29: 1454885.501 | D29: 3004860.865 | E29: 100 | F29: 1454885.501 | G29: 3004860.865 | H29: 100 | I29: 0 | J29: 0 | K29: 0 | L29: 0 | M29: 0 | N29: 0
A30: 22 | B30: Prudential | C30: 1176956.401 | D30: 950354.3703 | E30: 100 | F30: 445529.6856 | G30: 307806.6479 | H30: 37.85439166 | I30: 695859.7244 | J30: 480839.1472 | K30: 59.123662 | L30: 35566.99092 | M30: 161708.5752 | N30: 3.021946343
A31: 23 | B31: Chubb Seguros México | C31: 1024740.448 | D31: 1092111.716 | E31: 5.496173606 | F31: 1024740.448 | G31: 1092111.716 | H31: 5.496173606 | I31: 0 | J31: 0 | K31: 0 | L31: 0 | M31: 0 | N31: 0
A32: 24 | B32: Assurant Vida | C32: 1024603.929 | D32: 1108142.217 | E32: 100 | F32: 1013361.026 | G32: 1095420.962 | H32: 98.90270749 | I32: 11242.90221 | J32: 12721.25538 | K32: 1.097292514 | L32: 0 | M32: 0 | N32: 0
A33: 25 | B33: General de Seguros | C33: 706075.5755 | D33: 323194.9632 | E33: 28.06240647 | F33: 445757.1978 | G33: 149186.8039 | H33: 17.71626169 | I33: 260318.3777 | J33: 174008.1593 | K33: 10.34614478 | L33: 0 | M33: 0 | N33: 0
A34: 26 | B34: Ve Por Más | C34: 674385.0961 | D34: 652683.2622 | E34: 21.48425824 | F34: 89826.77494 | G34: 132025.3632 | H34: 2.86166115 | I34: 430576.45 | J34: 354794.9863 | K34: 13.71711163 | L34: 153981.8712 | M34: 165862.9127 | N34: 4.905485462
A35: 27 | B35: Zurich Vida | C35: 502882.7278 | D35: 630223.7471 | E35: 27.40750303 | F35: 97260.81148 | G35: 54579.04222 | H35: 5.300790498 | I35: 239483.3476 | J35: 334931.2864 | K35: 13.05203025 | L35: 166138.5687 | M35: 240713.4185 | N35: 9.054682283
A36: 28 | B36: Patrimonial Inbursa | C36: 455803.1574 | D36: 523955.4007 | E36: 71.98339867 | F36: 455803.1574 | G36: 523955.4007 | H36: 71.98339867 | I36: 0 | J36: 0 | K36: 0 | L36: 0 | M36: 0 | N36: 0
A37: 29 | B37: Skandia Life | C37: 426948.5898 | D37: 558075.8231 | E37: 100 | F37: 215625.4647 | G37: 363619.332 | H37: 50.50384749 | I37: 211323.1252 | J37: 194456.4912 | K37: 49.49615251 | L37: 0 | M37: 0 | N37: 0
A38: 30 | B38: Pan-American México | C38: 343072.039 | D38: 800503.997 | E38: 44.58472062 | F38: 59914.64648 | G38: 177676.5399 | H38: 7.786346514 | I38: 195470.3371 | J38: 409616.8003 | K38: 25.40279993 | L38: 87687.05542 | M38: 213210.6567 | N38: 11.39557418
A39: 31 | B39: La Latinoamericana | C39: 289231.4033 | D39: 222547.2184 | E39: 21.8764046 | F39: 105684.6005 | G39: 66060.3883 | H39: 7.993596316 | I39: 183546.8028 | J39: 156486.8301 | K39: 13.88280828 | L39: 0 | M39: 0 | N39: 0
A40: 32 | B40: Zurich Aseguradora Mexicana | C40: 251614.9732 | D40: 111306.8638 | E40: 97.67806595 | F40: 251614.9732 | G40: 111306.8638 | H40: 97.67806595 | I40: 0 | J40: 0 | K40: 0 | L40: 0 | M40: 0 | N40: 0
A41: 33 | B41: El Potosí | C41: 238010.4584 | D41: 180182.5215 | E41: 12.28127973 | F41: 75680.6013 | G41: 46912.42327 | H41: 3.905099972 | I41: 162329.8571 | J41: 132662.286 | K41: 8.376179755 | L41: 0 | M41: 607.81222 | N41: 0
A42: 34 | B42: Aserta Seguros de Vida | C42: 172610.6998 | D42: 525161.1363 | E42: 100.0326043 | F42: 93975.27466 | G42: 333729.4722 | H42: 54.46123256 | I42: 30422.09108 | J42: 143062.4072 | K42: 17.6304308 | L42: 48213.33406 | M42: 48369.25692 | N42: 27.94094093
A43: 35 | B43: Tokio Marine | C43: 64153.74575 | D43: 77705.03731 | E43: 4.667682453 | F43: 40967.13837 | G43: 28655.49694 | H43: 2.980676977 | I43: 23186.60738 | J43: 49049.54037 | K43: 1.687005476 | L43: 0 | M43: 0 | N43: 0
A44: 36 | B44: HDI Seguros | C44: 19418.20989 | D44: 8572.83425 | E44: 0.2236911957 | F44: 0 | G44: 0 | H44: 0 | I44: 19418.20989 | J44: 8572.83425 | K44: 0.2236911957 | L44: 0 | M44: 0 | N44: 0
A45: 37 | B45: Principal México | C45: 192.54227 | D45: 212.01304 | E45: 100 | F45: 189.79227 | G45: 208.11304 | H45: 98.57174219 | I45: 0 | J45: 0 | K45: 0 | L45: 2.75 | M45: 3.9 | N45: 1.428257805
A46: 150.1 | B46: TOTAL RESTO | C46: 18934831.08 | D46: 19905902.71 | E46: 25.65068128 | F46: 9850518.353 | G46: 11801538.68 | H46: 13.34432326 | I46: 7898910.657 | J46: 6865571.032 | K46: 10.70051478 | L46: 1185402.065 | M46: 1238792.998 | N46: 1.605843244
A47: 151.1 | B47: TOTAL | C47: 249438867.5 | D47: 243832467 | E47: 49.80293647 | F47: 111091871.9 | G47: 113874433.4 | H47: 22.18059077 | I47: 109550265.2 | J47: 104441771.3 | K47: 21.87279374 | L47: 28796730.34 | M47: 25516262.28 | N47: 5.74955197

Sheet TD Siniestros (hidden)
A3: periodo | B3: 2021-Q4
A4: Ramo_ | B4: 10 Total General
A6: Jerarquia 2 | B6: nombre_compania | C6: Suma de CostoSin_Act | D6: Suma de IncSin | E6: Suma de IncResvDivAct | F6: Suma de %SinvsPrm_Act | G6: Suma de %SinvsPrm_Ant | H6: Suma de Costo_Sin_RetAct | I6: Suma de IncSin_Ret | J6: Suma de Prima_DevengadaAct | K6: Suma de IncSin_PDev | L6: Suma de %SinvsPDev_Act | M6: Suma de %SinvsPDev_Ant
A7: 1 | B7: G.N.P. | C7: 54196824.78 | D7: 18.31993531 | E7: -39024.72558 | F7: 68.69560593 | G7: 62.77486362 | H7: 51704654.58 | I7: 18.03270504 | J7: 64633239.04 | K7: 4.812068797 | L7: 79.99700363 | M7: 71.03667958
A8: 2 | B8: Metlife México | C8: 51171404.81 | D8: 14.75304561 | E8: 32233.61516 | F8: 81.95156351 | G8: 78.39879084 | H8: 49202382.65 | I8: 13.57648485 | J8: 57917932.5 | K8: 9.088152427 | L8: 84.9518975 | M8: 81.59475577
A9: 3 | B9: BBVA Bancomer | C9: 27242302.51 | D9: 15.68161141 | E9: 0 | F9: 58.35522983 | G9: 50.87549724 | H9: 26813052.96 | I9: 18.5687269 | J9: 29680178.63 | K9: 7.584480084 | L9: 90.33993124 | M9: 81.97080957
A10: 4 | B10: AXA Seguros | C10: 31487642.28 | D10: 8.920513006 | E10: 320836.8324 | F10: 70.47211473 | G10: 71.9035363 | H10: 29475204.09 | I10: 13.14739913 | J10: 38020529.86 | K10: 5.970970819 | L10: 77.52444324 | M10: 72.60741807
A11: 5 | B11: Quálitas | C11: 21146831.76 | D11: 18.31540333 | E11: 215157.3132 | F11: 60.44550693 | G11: 53.67064666 | H11: 21146793.96 | I11: 18.08665719 | J11: 33387882.97 | K11: -3.629438472 | L11: 63.33673201 | M11: 51.68912877
A12: 5.1 | B12: TOTAL GRANDES | C12: 185245006.1 | D12: 15.25269885 | E12: 529203.0351 | F12: 69.2026836 | G12: 64.38400103 | H12: 178342088.2 | I12: 16.03383267 | J12: 223639763 | K12: 5.059330423 | L12: 79.74525007 | M12: 72.20292895
A13: 6 | B13: Monterrey New York Life | C13: 25152594.87 | D13: 6.562849351 | E13: -15022.28688 | F13: 72.8396592 | G13: 71.93694595 | H13: 23715804.73 | I13: 4.248612054 | J13: 27853936.39 | K13: 2.490628879 | L13: 85.14345835 | M13: 83.7076525
A14: 7 | B14: Mapfre México | C14: 17482395.02 | D14: 68.75815431 | E14: 306528.0967 | F14: 56.44367049 | G14: 56.68674906 | H14: 10498122.88 | I14: 42.53703083 | J14: 14111837.3 | K14: 22.71559728 | L14: 74.39231795 | M14: 64.04720007
A15: 8 | B15: Banorte | C15: 19646394.99 | D15: 22.48344576 | E15: 9592.22948 | F15: 70.70322035 | G15: 59.6029268 | H15: 15761850.37 | I15: 13.5580566 | J15: 19475588.13 | K15: -2.338768827 | L15: 80.93131908 | M15: 69.60186268
A16: 9 | B16: Citibanamex Seguros | C16: 24172371.4 | D16: 8.40569428 | E16: 0 | F16: 99.45489104 | G16: 72.87344045 | H16: 24152132.5 | I16: 9.069374394 | J16: 17720735.16 | K16: 24.15263444 | L16: 136.2930617 | M16: 155.1410995
A17: 10 | B17: Pensiones Banorte | C17: 9941017.319 | D17: 23.65545834 | E17: 0 | F17: 43.89074213 | G17: 56.08425238 | H17: 9941017.319 | I17: 23.65545834 | J17: -6332235.358 | K17: 3737.48617 | L17: -156.990648 | M17: -4872.000383
A18: 11 | B18: Inbursa | C18: 10778448.47 | D18: -10.82271769 | E18: 93973.83314 | F18: 52.02979998 | G18: 64.37206439 | H18: 10442309.14 | I18: 5.371894527 | J18: 13666981.35 | K18: 0.4110446337 | L18: 76.40538077 | M18: 72.80825816
A19: 12 | B19: Chubb Seguros México | C19: 10399013.64 | D19: 20.99944696 | E19: 58332.11807 | F19: 55.77488857 | G19: 48.55117521 | H19: 4853014.79 | I19: 9.575568382 | J19: 8491731.139 | K19: -3.339159084 | L19: 57.14988747 | M19: 50.41412299
A20: 13 | B20: Allianz México | C20: 9667149.555 | D20: -9.409597418 | E20: 15790.18429 | F20: 58.3733423 | G20: 59.26257206 | H20: 8288603.581 | I20: 1.599383221 | J20: 5641073.893 | K20: -21.05595087 | L20: 146.9330794 | M20: 114.1689238
A21: 14 | B21: Atlas | C21: 9459950.649 | D21: 31.69939327 | E21: 18868.60054 | F21: 59.00113274 | G21: 48.35799913 | H21: 6815049.452 | I21: 36.47890284 | J21: 9165123.348 | K21: 11.77727556 | L21: 74.35851317 | M21: 60.90019662
A22: 15 | B22: ProFuturo G.N.P. | C22: 4046920.218 | D22: 22.37490923 | E22: 0 | F22: 27.14506251 | G22: 40.75223688 | H22: 4046920.218 | I22: 22.37490923 | J22: -2958903.404 | K22: 1286.085786 | L22: -136.7709474 | M22: -1549.143262
A23: 15.1 | B23: TOTAL MEDIANAS | C23: 140746256.1 | D23: 15.19354822 | E23: 488062.7754 | F23: 61.97285951 | G23: 60.9743301 | H23: 118514825 | I23: 12.89809872 | J23: 106835867.9 | K23: -3.100901121 | L23: 110.9316817 | M23: 95.21134649
A24: 16 | B24: Zurich Santander | C24: 3867497.09 | D24: 69.44316794 | E24: 0 | F24: 26.23346538 | G24: 19.71909258 | H24: 3296107.654 | I24: 76.6829308 | J24: 8679520.844 | K24: 7.653803051 | L24: 37.97568683 | M24: 23.13877799
A25: 17 | B25: GMX Seguros | C25: 5005367.125 | D25: 77.39943513 | E25: 0 | F25: 46.17210127 | G25: 32.23305156 | H25: 859910.957 | I25: 17.49930769 | J25: 2109582.19 | K25: -4.425432192 | L25: 40.76214528 | M25: 33.15614785
A26: 18 | B26: Afirme | C26: 5364726.368 | D26: 32.99093797 | E26: 10644.20622 | F26: 52.59907175 | G26: 36.61787112 | H26: 3226676.955 | I26: 62.82251105 | J26: 4749334.493 | K26: 21.51387052 | L26: 67.93955994 | M26: 50.70305597
A27: 19 | B27: Pensiones BBVA Bancomer | C27: 6719990.966 | D27: 9.743548169 | E27: 0 | F27: 68.41195885 | G27: 91.36163648 | H27: 6719990.966 | I27: 9.743548169 | J27: -4575494.446 | K27: -14477.91667 | L27: -146.8691755 | M27: 19241.8853
A28: 20 | B28: HDI Seguros | C28: 5401246.25 | D28: -0.7005488001 | E28: 0 | F28: 62.22052592 | G28: 67.27117125 | H28: 5078476.031 | I28: 3.212941367 | J28: 8056264.02 | K28: 2.062595051 | L28: 63.03760674 | M28: 62.33502936
A29: 21 | B29: Zurich Daños | C29: 4736871.427 | D29: -9.548045919 | E29: 20081.16806 | F29: 65.93723781 | G29: 76.95851592 | H29: 2071320.686 | I29: 39.60573747 | J29: 4250072.615 | K29: 49.54953796 | L29: 48.73612462 | M29: 52.2074884
A30: 22 | B30: HSBC Seguros | C30: 2270564.2 | D30: 6.395670639 | E30: 0 | F30: 35.10249434 | G30: 59.16982825 | H30: 2253863.067 | I30: 5.831122473 | J30: 3496671.471 | K30: 15.07554151 | L30: 64.45738713 | M30: 70.08778282
A31: 23 | B31: Seguros SURA | C31: 3509289.612 | D31: 24.98724095 | E31: -11145.66388 | F31: 59.47885237 | G31: 52.92576015 | H31: 2400787.06 | I31: 2.709015703 | J31: 4143167.848 | K31: 4.601451301 | L31: 57.94568669 | M31: 59.01334837
A32: 24 | B32: AIG Seguros | C32: 924188.5786 | D32: -46.24157231 | E32: 3691.70912 | F32: 17.47271346 | G32: 31.71465475 | H32: 363568.2905 | I32: -7.585378996 | J32: 1142184.116 | K32: 3.305033928 | L32: 31.83097063 | M32: 35.58202658
A33: 25 | B33: Seguros Azteca | C33: 4493918.4 | D33: 65.11899258 | E33: 0 | F33: 90.18359267 | G33: 57.41832801 | H33: 2504989.5 | I33: 84.57195117 | J33: 4111897.846 | K33: 28.06952031 | L33: 60.9205188 | M33: 42.271112
A34: 26 | B34: BUPA México | C34: 2552497.556 | D34: 33.31952503 | E34: 0 | F34: 71.01707795 | G34: 56.64667793 | H34: 839283.0297 | I34: 352.0222557 | J34: 1771996.922 | K34: 552.9951101 | L34: 47.36368438 | M34: 68.42197239
A35: 27 | B35: FM Global | C35: 221258.0665 | D35: -65.04777514 | E35: 0 | F35: 7.013813598 | G35: 19.13848223 | H35: 2343.24162 | I35: -124.7874127 | J35: -8711.09237 | K35: -54.16827679 | L35: -26.89951524 | M35: 49.73698357
A36: 28 | B36: Ve Por Más | C36: 2198329.795 | D36: 58.38974708 | E36: 6977.52865 | F36: 70.03340567 | G36: 48.45729085 | H36: 1470474.918 | I36: 36.23948218 | J36: 2223107.427 | K36: 9.429896409 | L36: 66.14502298 | M36: 53.12882064
A37: 29 | B37: Seguros Argos | C37: 3269306.226 | D37: 32.9086437 | E37: -7835.62359 | F37: 106.5912286 | G37: 82.02342884 | H37: 2730832.271 | I37: 43.14886606 | J37: 2715942.355 | K37: 13.6146919 | L37: 100.5482412 | M37: 79.80333874
A38: 30 | B38: ANA | C38: 1471671.364 | D38: 40.71411924 | E38: 26770.93025 | F38: 51.70606169 | G38: 42.90863838 | H38: 1137619.446 | I38: 31.0520859 | J38: 2131560.004 | K38: 21.01633785 | L38: 53.37027544 | M38: 49.28326962
A39: 31 | B39: Cardif Vida | C39: 1757023.221 | D39: 9.454080225 | E39: -10761.83165 | F39: 62.09891007 | G39: 61.64929011 | H39: 1292502.631 | I39: -12.32412589 | J39: 1931920.183 | K39: 12.78080028 | L39: 66.90248605 | M39: 86.05920379
A40: 32 | B40: Plan Seguro | C40: 1743118.786 | D40: 31.13103558 | E40: 0 | F40: 67.14197453 | G40: 58.49025881 | H40: 1587105.79 | I40: 99.68794155 | J40: 2116252.742 | K40: 46.43658898 | L40: 74.99604175 | M40: 54.99663352
A41: 33 | B41: General de Seguros | C41: 1485506.776 | D41: 11.30229471 | E41: 5953.53232 | F41: 59.0402733 | G41: 64.54019313 | H41: 1313829.446 | I41: 14.7788027 | J41: 1848357.072 | K41: 11.32953614 | L41: 71.08093268 | M41: 68.94484937
A42: 34 | B42: Hir Seguros | C42: 1708961.996 | D42: -22.07053782 | E42: 6030.10851 | F42: 87.64563062 | G42: 148.1654815 | H42: 1114499.829 | I42: -46.63183589 | J42: 1317946.173 | K42: -40.81946539 | L42: 84.56337988 | M42: 93.7732469
A43: 35 | B43: El Potosí | C43: 1054462.122 | D43: -3.259699015 | E43: -3495.99692 | F43: 54.40998001 | G43: 61.98077178 | H43: 860478.5193 | I43: 25.76628324 | J43: 1345937.823 | K43: 7.847448919 | L43: 63.93152081 | M43: 54.82273347
A44: 36 | B44: Seguros Azteca Daños | C44: 789448.7934 | D44: 42.21205385 | E44: 33532.37215 | F44: 42.80490663 | G44: 22.30220796 | H44: 183018.6084 | I44: 174.3702564 | J44: 466621.5599 | K44: 17.10782093 | L44: 39.22206433 | M44: 16.7409199
A45: 37 | B45: Zurich Vida | C45: 1863960.206 | D45: -10.0597742 | E45: -13950.43408 | F45: 101.587293 | G45: 112.9937572 | H45: 1563495.93 | I45: -14.0497243 | J45: 1832043.731 | K45: -7.69557014 | L45: 85.34162715 | M45: 91.65078499
A46: 38 | B46: Insignia Life | C46: 1287631.01 | D46: 38.85010831 | E46: 6147.40293 | F46: 74.04697497 | G46: 51.80257194 | H46: 1130801.507 | I46: 37.26840364 | J46: 1361397.328 | K46: 3.279031044 | L46: 83.06182798 | M46: 62.4946811
A47: 39 | B47: Cardif Seguros Generales | C47: 229604.2634 | D47: -33.0176731 | E47: 15473.35862 | F47: 14.71181637 | G47: 22.43914936 | H47: 291987.251 | I47: -21.18685547 | J47: 1346087.209 | K47: 0.1158991024 | L47: 21.69155527 | M47: 27.554662
A48: 40 | B48: Patrimonial Vida | C48: 1593988.23 | D48: 161.8373863 | E48: -744.55477 | F48: 109.5610774 | G48: 20.25951692 | H48: 723785.832 | I48: 109.9636411 | J48: 779820.7756 | K48: 0.3159309006 | L48: 92.8143818 | M48: 44.3446354
A49: 41 | B49: Tokio Marine | C49: 757072.7153 | D49: 35.96216681 | E49: 197.43156 | F49: 55.0829104 | G49: 45.5813427 | H49: 131183.7534 | I49: -10.85456391 | J49: 234260.9775 | K49: -14.35485169 | L49: 55.99897804 | M49: 53.80018305
A50: 42 | B50: La Latinoamericana | C50: 797331.4195 | D50: 22.3469638 | E50: 3038.57587 | F50: 60.3072299 | G50: 62.97940191 | H50: 443380.462 | I50: 19.9167904 | J50: 727275.3293 | K50: 18.94375705 | L50: 60.9645954 | M50: 60.46991418
A51: 43 | B51: El Águila | C51: 651828.9812 | D51: 59.31726102 | E51: 0 | F51: 52.1178089 | G51: 36.57235035 | H51: 412467.409 | I51: 13.84925271 | J51: 929846.5828 | K51: 9.326903305 | L51: 44.35865192 | M51: 42.59662609
A52: 44 | B52: BBVA Bancomer Salud | C52: 725328.5516 | D52: 101.0613538 | E52: 0 | F52: 60.89743696 | G52: 94.05556517 | H52: 614621.3686 | I52: 85.45988061 | J52: 599749.8872 | K52: 61.62714321 | L52: 102.4796139 | M52: 89.31035204
A53: 45 | B53: Prudential | C53: 172324.1722 | D53: 105.396699 | E53: 0 | F53: 14.64150856 | G53: 8.828098398 | H53: 433618.4389 | I53: -29.91154813 | J53: 1789567.727 | K53: 1.765555523 | L53: 24.23034526 | M53: 35.18146685
A54: 46 | B54: HDI Global Seguros | C54: 244685.7703 | D54: -23.69006059 | E54: 0 | F54: 23.45106532 | G54: 40.13195122 | H54: -7595.18814 | I54: -169.6033511 | J54: -1653.29169 | K54: 17.52224375 | L54: 459.3979505 | M54: -775.6735431
A55: 47 | B55: Assurant Vida | C55: 504145.2594 | D55: 1.9419478 | E55: 5083.11568 | F55: 49.2039163 | G55: 44.62798307 | H55: 34540.90993 | I55: 46.90522334 | J55: 108885.8921 | K55: 118.2860307 | L55: 31.72211686 | M55: 47.13579828
A56: 48 | B56: SIS NOVA | C56: 853768.253 | D56: 12.5668656 | E56: 0 | F56: 90.90870398 | G56: 87.5213279 | H56: 811903.7293 | I56: 31.39249623 | J56: 771227.2013 | K56: 11.48037531 | L56: 105.27426 | M56: 89.32027593
A57: 49 | B57: Pan-American México | C57: 605510.1346 | D57: -2.008915227 | E57: 4159.20988 | F57: 78.69047057 | G57: 50.68497702 | H57: 492656.409 | I57: -9.673741602 | J57: 615172.8873 | K57: -23.72621424 | L57: 80.08422009 | M57: 67.6251486
A58: 50 | B58: Primero Seguros | C58: 525951.2039 | D58: 4.680109077 | E58: 0 | F58: 69.86847091 | G58: 62.27152273 | H58: 459552.0291 | I58: 13.33451573 | J58: 596980.8739 | K58: -4.399285565 | L58: 76.97935548 | M58: 64.93415826
A59: 51 | B59: Patrimonial Inbursa | C59: 193172.9891 | D59: 19.46751521 | E59: 0 | F59: 30.50713462 | G59: 21.566184 | H59: 193011.0645 | I59: 21.64488649 | J59: 633610.1013 | K59: -15.68965875 | L59: 30.46211923 | M59: 21.11286172
A60: 52 | B60: Atradius | C60: 11534.61589 | D60: -96.02688995 | E60: 6947.97733 | F60: 1.85491421 | G60: 50.11848613 | H60: 5315.83034 | I60: -92.63171618 | J60: 163648.3059 | K60: 4.224172646 | L60: 3.248325922 | M60: 45.94748113
A61: 53 | B61: Sompo Japan | C61: 223020.7767 | D61: 70.75853816 | E61: 0 | F61: 36.81038693 | G61: 21.50110037 | H61: 18364.8645 | I61: 10.15872606 | J61: 122743.908 | K61: 370.4766268 | L61: 14.96193562 | M61: 63.90089331
A62: 54 | B62: Solunion Crédito | C62: 233431.5432 | D62: -25.45136496 | E62: 1751.41485 | F62: 43.30370111 | G62: 61.07799206 | H62: 25409.97716 | I62: 19.61408714 | J62: 29095.56607 | K62: 14.41306572 | L62: 87.33281593 | M62: 83.53543841
A63: 55 | B63: General de Salud | C63: 405203.9273 | D63: 62.69158847 | E63: 0 | F63: 78.84835697 | G63: 53.37745394 | H63: 376862.1984 | I63: 57.56618111 | J63: 488698.8119 | K63: 21.9258679 | L63: 77.11543169 | M63: 59.67248727
A64: 56 | B64: PREVEM Seguros | C64: 254508.8604 | D64: 13.93949261 | E64: 0 | F64: 51.32703378 | G64: 52.20938387 | H64: 214059.8348 | I64: 19.17218767 | J64: 453177.7313 | K64: 11.82434647 | L64: 47.23529423 | M64: 44.3228912
A65: 57 | B65: Berkley Seguros | C65: 167514.9464 | D65: 12.97778041 | E65: 2157.20326 | F65: 36.02453067 | G65: 42.02093358 | H65: 9009.84546 | I65: -10.58511628 | J65: 19072.34178 | K65: 42.5109613 | L65: 47.24037333 | M65: 75.29250988
A66: 58 | B66: Dentegra | C66: 138353.5453 | D66: 20.03703935 | E66: 22.52233 | F66: 30.75140012 | G66: 26.67165197 | H66: 138353.5453 | I66: 20.03703935 | J66: 418132.1669 | K66: -2.556075606 | L66: 33.08847209 | M66: 26.86063061
A67: 59 | B67: Skandia Life | C67: 66600.80313 | D67: 87.33473756 | E67: 0 | F67: 15.59925591 | G67: 6.370418172 | H67: 45769.54322 | I67: 91.1669757 | J67: 286546.3316 | K67: 40.31302804 | L67: 15.9728247 | M67: 11.7237582
A68: 60 | B68: SHF Cred Vivienda | C68: -108937.2457 | D68: -142.2135225 | E68: 0 | F68: -25.96742882 | G68: 57.28923597 | H68: -119105.5249 | I68: -154.4635578 | J68: 330443.3787 | K68: -8.783486896 | L68: -36.04415538 | M68: 60.36737788
A69: 61 | B69: Coface | C69: 13594.28188 | D69: -94.08217749 | E69: 7795.72307 | F69: 4.114303385 | G69: 74.87848569 | H69: 9490.98124 | I69: -83.68438395 | J69: 58651.40404 | K69: -1.70770026 | L69: 16.18201882 | M69: 97.48745249
A70: 62 | B70: Swiss Re Corporate Solutions | C70: -23468.35254 | D70: -120.2127707 | E70: 18.61229 | F70: -7.39152015 | G70: 73.93503714 | H70: 1709.01394 | I70: -33.05882059 | J70: 558.11043 | K70: -110.3557912 | L70: 306.2142988 | M70: -47.37130965
A71: 63 | B71: Zurich Aseguradora Mexicana | C71: 235872.112 | D71: -390.8584056 | E71: 0 | F71: 91.56661632 | G71: -66.67602148 | H71: 224737.7773 | I71: -1930.485254 | J71: 221529.0341 | K71: 141.7692596 | L71: 101.4484526 | M71: -13.3992433
A72: 64 | B72: MediAccess | C72: 136748.4083 | D72: 15.94704504 | E72: 0 | F72: 61.52235207 | G72: 49.78403813 | H72: 124415.1991 | I72: 9.579219039 | J72: 245588.2795 | K72: 6.839987073 | L72: 50.66007196 | M72: 49.39368505
A73: 65 | B73: Assurant Daños | C73: 55641.10117 | D73: 0.7318691504 | E73: 226.48005 | F73: 31.65567721 | G73: 35.43130853 | H73: 12452.77247 | I73: 81.93395208 | J73: 43004.67115 | K73: 13.700238 | L73: 28.95679036 | M73: 18.09664396
A74: 66 | B74: Patrimonial Daños | C74: 52142.59519 | D74: 19.09450815 | E74: 0 | F74: 30.17264129 | G74: 32.78513688 | H74: 37501.73391 | I74: -5.177074457 | J74: 181005.8034 | K74: 30.03764534 | L74: 20.7185257 | M74: 28.41283668
A75: 67 | B75: Aserta Seguros de Vida | C75: 393587.931 | D75: -24.0512139 | E75: -1e-05 | F75: 228.0949316 | G75: 98.44707411 | H75: 215291.9635 | I75: -26.84205086 | J75: 197761.9213 | K75: -62.15736188 | L75: 108.8642151 | M75: 56.31252853
A76: 68 | B76: AXA Salud | C76: 455507.683 | D76: -12.24440458 | E76: 0 | F76: 278.140804 | G76: 109.6154351 | H76: 49227.56511 | I76: -1.512863627 | J76: 71102.20327 | K76: 34.34396491 | L76: 69.23493626 | M76: 94.44173309
A77: 69 | B77: Centauro | C77: 74949.21509 | D77: 29.26186583 | E77: 117.65355 | F77: 46.30512156 | G77: 39.95128292 | H77: 74949.21509 | I77: 29.26186583 | J77: 145615.0477 | K77: 3.489221611 | L77: 51.47078979 | M77: 41.20837911
A78: 70 | B78: Tláloc Seguros | C78: 94894.93844 | D78: -44.81282519 | E78: 0 | F78: 77.34446665 | G78: 76.85437686 | H78: 13627.18467 | I78: -83.03356611 | J78: 19747.65426 | K78: -84.58653412 | L78: 69.00659942 | M78: 62.69030209
A79: 71 | B79: Odontoprev | C79: 17887.8551 | D79: 75.22916378 | E79: 0 | F79: 23.23281138 | G79: 21.48436948 | H79: 17407.8551 | I79: 79.54083512 | J79: 81480.47058 | K79: 23.318954 | L79: 21.36445086 | M79: 14.6743315
A80: 72 | B80: Virginia Surety | C80: 14185.59391 | D80: 23.0447287 | E80: 0 | F80: 19.92064001 | G80: 49.80708181 | H80: 10927.05559 | I80: -4.304811151 | J80: 27581.46715 | K80: 15.78125277 | L80: 39.61738341 | M80: 47.93292471
A81: 73 | B81: Genworth Seg. de Crédito | C81: -8196.23868 | D81: -124.7187981 | E81: 0 | F81: -12.43434726 | G81: 48.79809566 | H81: 15366.86749 | I81: -76.74899658 | J81: 134148.4246 | K81: 8.288077151 | L81: 11.45512333 | M81: 53.35052673
A82: 74 | B82: Crabi | C82: 41995.45934 | D82: 233.5450141 | E82: 0 | F82: 103.5808824 | G82: 44.70041295 | H82: 11470.50834 | I82: 424.9221291 | J82: 6926.15991 | K82: 319.4078983 | L82: 165.6113704 | M82: 132.3219444
A83: 75 | B83: Metlife Más | C83: 853.53335 | D83: 4.239805202 | E83: 0 | F83: 2.744917196 | G83: 2.312801392 | H83: 825.10681 | I83: 5.05480165 | J83: 32309.37359 | K83: -11.27047749 | L83: 2.553769134 | M83: 2.156919172
A84: 76 | B84: Metlife Pensiones | C84: 331956.7475 | D84: 0.8813847579 | E84: 0 | F84: 2075.267857 | G84: 4673.861274 | H84: 331956.7475 | I84: 0.8813847579 | J84: -89737.89509 | K84: -217.5858201 | L84: -369.9181345 | M84: 431.1709967
A85: 77 | B85: Citibanamex Pensiones | C85: 729128.1577 | D85: 1.443205872 | E85: 0 | F85: 6024.794693 | G85: 6888.112811 | H85: 729128.1577 | I85: 1.443205872 | J85: -267396.2783 | K85: -350.2566421 | L85: -272.6770029 | M85: 672.684095
A86: 78 | B86: Pensiones Inbursa | C86: 23224.3796 | D86: -0.2948210854 | E86: 0 | F86: 4354.975807 | G86: 653.3379159 | H86: 23224.3796 | I86: -0.2948210854 | J86: -13752.1052 | K86: -7252.351887 | L86: -168.8787227 | M86: 12114.51666
A87: 79 | B87: Principal México | C87: 124118.3905 | D87: -11.15778183 | E87: 0 | F87: 64462.93093 | G87: 65895.25892 | H87: 124058.9644 | I87: -11.20031825 | J87: 86271.7411 | K87: 45.8368328 | L87: 143.8002326 | M87: 236.1649284
A88: 80 | B88: HSBC Pensiones | C88: 0 | D88: -100 | E88: 0 | F88: 0 | G88: 5811.835816 | H88: 0 | I88: -100 | J88: 0 | K88: -100 | L88: 0 | M88: 809.0990897
A89: 150.1 | B89: TOTAL RESTO | C89: 75707403.44 | D89: 16.24255907 | E89: 118884.1316 | F89: 54.62183244 | G89: 52.0251751 | H89: 51778898.97 | I89: 17.55725544 | J89: 69842359.41 | K89: 3.331399012 | L89: 74.13681239 | M89: 65.16535721
A90: 151.1 | B90: TOTAL | C90: 401698665.7 | D90: 15.41716601 | E90: 1136149.942 | F90: 63.41972491 | G90: 60.50646419 | H90: 348635812.2 | I90: 15.16810065 | J90: 400317990.3 | K90: 2.457701633 | L90: 87.08971882 | M90: 77.47815911
A91: 200 | B91: Patria | C91: 0 | D91: 0 | E91: 0 | F91: 0 | G91: 0 | H91: 3368701.923 | I91: 18.6179669 | J91: 6463668.3 | K91: 21.15153263 | L91: 52.11749375 | M91: 53.23067332

Sheet TD Operación (hidden)
B4: periodo | C4: 2021-Q4
B6: nombre_compania | C6: Ramo_ | D6: Suma de Prima_DirectaAct
A7: =B7&"|"&C7 -> Afirme|10 Total General | B7: Afirme | C7: 10 Total General | D7: 10199279.55
A8: =B8&"|"&C8 -> Afirme|11 Total General Sin Pensiones | B8: Afirme | C8: 11 Total General Sin Pensiones | D8: 10199279.55
A9: Afirme|12 Vida Total | B9: Afirme | C9: 12 Vida Total | D9: 2880992.41
A10: Afirme|13 Vida Individual | B10: Afirme | C10: 13 Vida Individual | D10: 2161975.016
A11: Afirme|14 Vida Gpo y Col | B11: Afirme | C11: 14 Vida Gpo y Col | D11: 719017.3943
A12: Afirme|28 Daños Total | B12: Afirme | C12: 28 Daños Total | D12: 7318287.138
A13: Afirme|29 Automoviles Total | B13: Afirme | C13: 29 Automoviles Total | D13: 2376117.282
A14: Afirme|30 Automoviles Residentes | B14: Afirme | C14: 30 Automoviles Residentes | D14: 1812571.291
A15: Afirme|31 Camiones | B15: Afirme | C15: 31 Camiones | D15: 537343.6445
A16: Afirme|33 Otros Automoviles y Obligatorios | B16: Afirme | C16: 33 Otros Automoviles y Obligatorios | D16: 26202.3462
A17: Afirme|34 Daños Sin Autos Total | B17: Afirme | C17: 34 Daños Sin Autos Total | D17: 4942169.857
A18: Afirme|35 Responsabilidad Civil y Riesgos Profesionales | B18: Afirme | C18: 35 Responsabilidad Civil y Riesgos Profesionales | D18: 1455094.422
A19: Afirme|36 RC General | B19: Afirme | C19: 36 RC General | D19: 877544.3076
A20: Afirme|37 RC Aviones y Barcos | B20: Afirme | C20: 37 RC Aviones y Barcos | D20: 128504.042
A21: Afirme|38 RC Viajero | B21: Afirme | C21: 38 RC Viajero | D21: 3703.02151
A22: Afirme|39 RC Otros | B22: Afirme | C22: 39 RC Otros | D22: 445343.0509
A23: Afirme|40 Maritimo y Transportes | B23: Afirme | C23: 40 Maritimo y Transportes | D23: 809948.1014
A24: Afirme|41 MyT Carga | B24: Afirme | C24: 41 MyT Carga | D24: 303352.6721
A25: Afirme|42 MyT Cascos | B25: Afirme | C25: 42 MyT Cascos | D25: 506595.4292
A26: Afirme|43 Incendio | B26: Afirme | C26: 43 Incendio | D26: 1173107.458
A27: Afirme|44 Riesgos Catastroficos | B27: Afirme | C27: 44 Riesgos Catastroficos | D27: 737949.5077
A28: Afirme|45 Terremoto y Erupcion Volcanica | B28: Afirme | C28: 45 Terremoto y Erupcion Volcanica | D28: 333393.3911
A29: Afirme|46 Huracan y Otros Riesgos Hidrometeorologicos | B29: Afirme | C29: 46 Huracan y Otros Riesgos Hidrometeorologicos | D29: 404556.1166
A30: Afirme|52 Diversos | B30: Afirme | C30: 52 Diversos | D30: 766070.3678
A31: Afirme|53 Miscelaneos | B31: Afirme | C31: 53 Miscelaneos | D31: 338665.0034
A32: Afirme|54 Tecnicos | B32: Afirme | C32: 54 Tecnicos | D32: 427405.3644
A33: AIG Seguros|10 Total General | B33: AIG Seguros | C33: 10 Total General | D33: 5289324.872
A34: AIG Seguros|11 Total General Sin Pensiones | B34: AIG Seguros | C34: 11 Total General Sin Pensiones | D34: 5289324.872
A35: AIG Seguros|18 Accidentes y Enfermedades Total | B35: AIG Seguros | C35: 18 Accidentes y Enfermedades Total | D35: 195149.3048
A36: AIG Seguros|19 Accidentes Personales | B36: AIG Seguros | C36: 19 Accidentes Personales | D36: 195149.3048
A37: AIG Seguros|20 AP Individual | B37: AIG Seguros | C37: 20 AP Individual | D37: 57621.3136
A38: AIG Seguros|21 AP Gpo y Col | B38: AIG Seguros | C38: 21 AP Gpo y Col | D38: 137527.9912
A39: AIG Seguros|28 Daños Total | B39: AIG Seguros | C39: 28 Daños Total | D39: 5094175.567
A40: AIG Seguros|29 Automoviles Total | B40: AIG Seguros | C40: 29 Automoviles Total | D40: 426984.1118
A41: AIG Seguros|30 Automoviles Residentes | B41: AIG Seguros | C41: 30 Automoviles Residentes | D41: 275868.3009
A42: AIG Seguros|31 Camiones | B42: AIG Seguros | C42: 31 Camiones | D42: 43577.57558
A43: AIG Seguros|32 Automoviles Turistas | B43: AIG Seguros | C43: 32 Automoviles Turistas | D43: 92883.11702
A44: AIG Seguros|33 Otros Automoviles y Obligatorios | B44: AIG Seguros | C44: 33 Otros Automoviles y Obligatorios | D44: 14655.11828
A45: AIG Seguros|34 Daños Sin Autos Total | B45: AIG Seguros | C45: 34 Daños Sin Autos Total | D45: 4667191.455
A46: AIG Seguros|35 Responsabilidad Civil y Riesgos Profesionales | B46: AIG Seguros | C46: 35 Responsabilidad Civil y Riesgos Profesionales | D46: 1339142.787
A47: AIG Seguros|36 RC General | B47: AIG Seguros | C47: 36 RC General | D47: 1337483.053
A48: AIG Seguros|37 RC Aviones y Barcos | B48: AIG Seguros | C48: 37 RC Aviones y Barcos | D48: 1659.73417
A49: AIG Seguros|40 Maritimo y Transportes | B49: AIG Seguros | C49: 40 Maritimo y Transportes | D49: 950023.6521
A50: AIG Seguros|41 MyT Carga | B50: AIG Seguros | C50: 41 MyT Carga | D50: 948685.6767
A51: AIG Seguros|42 MyT Cascos | B51: AIG Seguros | C51: 42 MyT Cascos | D51: 1337.97543
A52: AIG Seguros|43 Incendio | B52: AIG Seguros | C52: 43 Incendio | D52: 1546882.12
A53: AIG Seguros|44 Riesgos Catastroficos | B53: AIG Seguros | C53: 44 Riesgos Catastroficos | D53: 530723.0656
A54: AIG Seguros|45 Terremoto y Erupcion Volcanica | B54: AIG Seguros | C54: 45 Terremoto y Erupcion Volcanica | D54: 269029.8062
A55: AIG Seguros|46 Huracan y Otros Riesgos Hidrometeorologicos | B55: AIG Seguros | C55: 46 Huracan y Otros Riesgos Hidrometeorologicos | D55: 261693.2594
A56: AIG Seguros|52 Diversos | B56: AIG Seguros | C56: 52 Diversos | D56: 282898.9322
A57: AIG Seguros|53 Miscelaneos | B57: AIG Seguros | C57: 53 Miscelaneos | D57: 196432.8171
A58: AIG Seguros|54 Tecnicos | B58: AIG Seguros | C58: 54 Tecnicos | D58: 86466.11509
A59: AIG Seguros|55 Credito | B59: AIG Seguros | C59: 55 Credito | D59: 17520.89867
A60: Allianz México|10 Total General | B60: Allianz México | C60: 10 Total General | D60: 16560897.79
A61: Allianz México|11 Total General Sin Pensiones | B61: Allianz México | C61: 11 Total General Sin Pensiones | D61: 16560897.79
A62: Allianz México|12 Vida Total | B62: Allianz México | C62: 12 Vida Total | D62: 9080227.052
A63: Allianz México|13 Vida Individual | B63: Allianz México | C63: 13 Vida Individual | D63: 8864681.656
A64: Allianz México|14 Vida Gpo y Col | B64: Allianz México | C64: 14 Vida Gpo y Col | D64: 215545.3956
A65: Allianz México|18 Accidentes y Enfermedades Total | B65: Allianz México | C65: 18 Accidentes y Enfermedades Total | D65: 2416773.92
A66: Allianz México|19 Accidentes Personales | B66: Allianz México | C66: 19 Accidentes Personales | D66: 530.42092
A67: Allianz México|20 AP Individual | B67: Allianz México | C67: 20 AP Individual | D67: -0.28322
A68: Allianz México|21 AP Gpo y Col | B68: Allianz México | C68: 21 AP Gpo y Col | D68: 530.70414
A69: Allianz México|22 Gastos Medicos | B69: Allianz México | C69: 22 Gastos Medicos | D69: 2416243.499
A70: Allianz México|23 GMM. Individual | B70: Allianz México | C70: 23 GMM. Individual | D70: 1279445.608
A71: Allianz México|24 GMM. Gpo y Col | B71: Allianz México | C71: 24 GMM. Gpo y Col | D71: 1136797.89
A72: =B72&"|"&C72 -> Allianz México|28 Daños Total | B72: Allianz México | C72: 28 Daños Total | D72: 5063896.819
A73: Allianz México|29 Automoviles Total | B73: Allianz México | C73: 29 Automoviles Total | D73: 84184.81819
A74: Allianz México|30 Automoviles Residentes | B74: Allianz México | C74: 30 Automoviles Residentes | D74: 84184.81819
A75: Allianz México|31 Camiones | B75: Allianz México | C75: 31 Camiones | D75: 0
A76: Allianz México|34 Daños Sin Autos Total | B76: Allianz México | C76: 34 Daños Sin Autos Total | D76: 4979712.001
A77: Allianz México|35 Responsabilidad Civil y Riesgos Profesionales | B77: Allianz México | C77: 35 Responsabilidad Civil y Riesgos Profesionales | D77: 312913.0597
A78: Allianz México|36 RC General | B78: Allianz México | C78: 36 RC General | D78: 289439.3148
A79: Allianz México|37 RC Aviones y Barcos | B79: Allianz México | C79: 37 RC Aviones y Barcos | D79: 23473.74498
A80: Allianz México|39 RC Otros | B80: Allianz México | C80: 39 RC Otros | D80: 0
A81: Allianz México|40 Maritimo y Transportes | B81: Allianz México | C81: 40 Maritimo y Transportes | D81: 326877.12
A82: Allianz México|41 MyT Carga | B82: Allianz México | C82: 41 MyT Carga | D82: 273591.6032
A83: Allianz México|42 MyT Cascos | B83: Allianz México | C83: 42 MyT Cascos | D83: 53285.51677
A84: Allianz México|43 Incendio | B84: Allianz México | C84: 43 Incendio | D84: 849489.6078
A85: Allianz México|44 Riesgos Catastroficos | B85: Allianz México | C85: 44 Riesgos Catastroficos | D85: 472651.852
A86: Allianz México|45 Terremoto y Erupcion Volcanica | B86: Allianz México | C86: 45 Terremoto y Erupcion Volcanica | D86: 226186.2709
A87: Allianz México|46 Huracan y Otros Riesgos Hidrometeorologicos | B87: Allianz México | C87: 46 Huracan y Otros Riesgos Hidrometeorologicos | D87: 246465.5811
A88: Allianz México|52 Diversos | B88: Allianz México | C88: 52 Diversos | D88: 3017780.361
A89: Allianz México|53 Miscelaneos | B89: Allianz México | C89: 53 Miscelaneos | D89: 80173.49713
A90: Allianz México|54 Tecnicos | B90: Allianz México | C90: 54 Tecnicos | D90: 2937606.864
A91: ANA|10 Total General | B91: ANA | C91: 10 Total General | D91: 2846225.986
A92: ANA|11 Total General Sin Pensiones | B92: ANA | C92: 11 Total General Sin Pensiones | D92: 2846225.986
A93: ANA|28 Daños Total | B93: ANA | C93: 28 Daños Total | D93: 2846225.986
A94: ANA|29 Automoviles Total | B94: ANA | C94: 29 Automoviles Total | D94: 2846225.986
A95: ANA|30 Automoviles Residentes | B95: ANA | C95: 30 Automoviles Residentes | D95: 1652935.344
A96: ANA|31 Camiones | B96: ANA | C96: 31 Camiones | D96: 1004151.667
A97: ANA|32 Automoviles Turistas | B97: ANA | C97: 32 Automoviles Turistas | D97: 125094.9545
A98: ANA|33 Otros Automoviles y Obligatorios | B98: ANA | C98: 33 Otros Automoviles y Obligatorios | D98: 64044.02119
A99: Aserta Seguros de Vida|10 Total General | B99: Aserta Seguros de Vida | C99: 10 Total General | D99: 172554.4396
A100: Aserta Seguros de Vida|11 Total General Sin Pensiones | B100: Aserta Seguros de Vida | C100: 11 Total General Sin Pensiones | D100: 172554.4396
A101: Aserta Seguros de Vida|12 Vida Total | B101: Aserta Seguros de Vida | C101: 12 Vida Total | D101: 172610.6998
A102: Aserta Seguros de Vida|13 Vida Individual | B102: Aserta Seguros de Vida | C102: 13 Vida Individual | D102: 127.06595
A103: Aserta Seguros de Vida|14 Vida Gpo y Col | B103: Aserta Seguros de Vida | C103: 14 Vida Gpo y Col | D103: 172483.6339
A104: Aserta Seguros de Vida|18 Accidentes y Enfermedades Total | B104: Aserta Seguros de Vida | C104: 18 Accidentes y Enfermedades Total | D104: -56.26016
A105: Aserta Seguros de Vida|19 Accidentes Personales | B105: Aserta Seguros de Vida | C105: 19 Accidentes Personales | D105: -56.26016
A106: Aserta Seguros de Vida|20 AP Individual | B106: Aserta Seguros de Vida | C106: 20 AP Individual | D106: 0
A107: Aserta Seguros de Vida|21 AP Gpo y Col | B107: Aserta Seguros de Vida | C107: 21 AP Gpo y Col | D107: -56.26016
A108: Aserta Seguros de Vida|22 Gastos Medicos | B108: Aserta Seguros de Vida | C108: 22 Gastos Medicos | D108: 0
A109: Aserta Seguros de Vida|23 GMM. Individual | B109: Aserta Seguros de Vida | C109: 23 GMM. Individual | D109: 0
A110: Assurant Daños|10 Total General | B110: Assurant Daños | C110: 10 Total General | D110: 175769.7389
A111: Assurant Daños|11 Total General Sin Pensiones | B111: Assurant Daños | C111: 11 Total General Sin Pensiones | D111: 175769.7389
A112: Assurant Daños|28 Daños Total | B112: Assurant Daños | C112: 28 Daños Total | D112: 175769.7389
A113: Assurant Daños|29 Automoviles Total | B113: Assurant Daños | C113: 29 Automoviles Total | D113: 8471.4958
A114: Assurant Daños|30 Automoviles Residentes | B114: Assurant Daños | C114: 30 Automoviles Residentes | D114: 8471.4958
A115: Assurant Daños|34 Daños Sin Autos Total | B115: Assurant Daños | C115: 34 Daños Sin Autos Total | D115: 167298.2431
A116: Assurant Daños|35 Responsabilidad Civil y Riesgos Profesionales | B116: Assurant Daños | C116: 35 Responsabilidad Civil y Riesgos Profesionales | D116: 0
A117: Assurant Daños|36 RC General | B117: Assurant Daños | C117: 36 RC General | D117: 0
A118: Assurant Daños|43 Incendio | B118: Assurant Daños | C118: 43 Incendio | D118: 0
A119: Assurant Daños|44 Riesgos Catastroficos | B119: Assurant Daños | C119: 44 Riesgos Catastroficos | D119: 0
A120: Assurant Daños|45 Terremoto y Erupcion Volcanica | B120: Assurant Daños | C120: 45 Terremoto y Erupcion Volcanica | D120: 0
A121: Assurant Daños|46 Huracan y Otros Riesgos Hidrometeorologicos | B121: Assurant Daños | C121: 46 Huracan y Otros Riesgos Hidrometeorologicos | D121: 0
A122: Assurant Daños|52 Diversos | B122: Assurant Daños | C122: 52 Diversos | D122: 167298.2431
A123: Assurant Daños|53 Miscelaneos | B123: Assurant Daños | C123: 53 Miscelaneos | D123: 146412.1971
A124: Assurant Daños|54 Tecnicos | B124: Assurant Daños | C124: 54 Tecnicos | D124: 20886.04594
A125: Assurant Vida|10 Total General | B125: Assurant Vida | C125: 10 Total General | D125: 1024603.929
A126: Assurant Vida|11 Total General Sin Pensiones | B126: Assurant Vida | C126: 11 Total General Sin Pensiones | D126: 1024603.929
A127: Assurant Vida|12 Vida Total | B127: Assurant Vida | C127: 12 Vida Total | D127: 1024603.929
A128: Assurant Vida|14 Vida Gpo y Col | B128: Assurant Vida | C128: 14 Vida Gpo y Col | D128: 1024603.929
A129: Assurant Vida|18 Accidentes y Enfermedades Total | B129: Assurant Vida | C129: 18 Accidentes y Enfermedades Total | D129: 0
A130: Assurant Vida|19 Accidentes Personales | B130: Assurant Vida | C130: 19 Accidentes Personales | D130: 0
A131: Assurant Vida|20 AP Individual | B131: Assurant Vida | C131: 20 AP Individual | D131: 0
A132: Assurant Vida|21 AP Gpo y Col | B132: Assurant Vida | C132: 21 AP Gpo y Col | D132: 0
A133: Assurant Vida|22 Gastos Medicos | B133: Assurant Vida | C133: 22 Gastos Medicos | D133: 0
A134: Assurant Vida|23 GMM. Individual | B134: Assurant Vida | C134: 23 GMM. Individual | D134: 0
A135: Atlas|10 Total General | B135: Atlas | C135: 10 Total General | D135: 16033506.83
A136: =B136&"|"&C136 -> Atlas|11 Total General Sin Pensiones | B136: Atlas | C136: 11 Total General Sin Pensiones | D136: 16033506.83
A137: Atlas|12 Vida Total | B137: Atlas | C137: 12 Vida Total | D137: 2388659.077
A138: Atlas|13 Vida Individual | B138: Atlas | C138: 13 Vida Individual | D138: 913105.9343
A139: Atlas|14 Vida Gpo y Col | B139: Atlas | C139: 14 Vida Gpo y Col | D139: 1475553.143
A140: Atlas|18 Accidentes y Enfermedades Total | B140: Atlas | C140: 18 Accidentes y Enfermedades Total | D140: 4306285.757
A141: Atlas|19 Accidentes Personales | B141: Atlas | C141: 19 Accidentes Personales | D141: 98151.17668
A142: Atlas|20 AP Individual | B142: Atlas | C142: 20 AP Individual | D142: 5129.47281
A143: Atlas|21 AP Gpo y Col | B143: Atlas | C143: 21 AP Gpo y Col | D143: 93021.70387
A144: Atlas|22 Gastos Medicos | B144: Atlas | C144: 22 Gastos Medicos | D144: 4208134.581
A145: Atlas|23 GMM. Individual | B145: Atlas | C145: 23 GMM. Individual | D145: 1153587
A146: Atlas|24 GMM. Gpo y Col | B146: Atlas | C146: 24 GMM. Gpo y Col | D146: 3054547.581
A147: Atlas|28 Daños Total | B147: Atlas | C147: 28 Daños Total | D147: 9338561.997
A148: Atlas|29 Automoviles Total | B148: Atlas | C148: 29 Automoviles Total | D148: 3013187.819
A149: Atlas|30 Automoviles Residentes | B149: Atlas | C149: 30 Automoviles Residentes | D149: 1880552.846
A150: Atlas|31 Camiones | B150: Atlas | C150: 31 Camiones | D150: 1061653.54
A151: Atlas|32 Automoviles Turistas | B151: Atlas | C151: 32 Automoviles Turistas | D151: 6031.83713
A152: Atlas|33 Otros Automoviles y Obligatorios | B152: Atlas | C152: 33 Otros Automoviles y Obligatorios | D152: 64949.59578
A153: Atlas|34 Daños Sin Autos Total | B153: Atlas | C153: 34 Daños Sin Autos Total | D153: 6325374.179
A154: Atlas|35 Responsabilidad Civil y Riesgos Profesionales | B154: Atlas | C154: 35 Responsabilidad Civil y Riesgos Profesionales | D154: 777969.9823
A155: Atlas|36 RC General | B155: Atlas | C155: 36 RC General | D155: 455246.68
A156: Atlas|37 RC Aviones y Barcos | B156: Atlas | C156: 37 RC Aviones y Barcos | D156: 310288.4165
A157: Atlas|38 RC Viajero | B157: Atlas | C157: 38 RC Viajero | D157: 12434.88581
A158: Atlas|40 Maritimo y Transportes | B158: Atlas | C158: 40 Maritimo y Transportes | D158: 1728431.35
A159: Atlas|41 MyT Carga | B159: Atlas | C159: 41 MyT Carga | D159: 645781.9337
A160: Atlas|42 MyT Cascos | B160: Atlas | C160: 42 MyT Cascos | D160: 1082649.417
A161: Atlas|43 Incendio | B161: Atlas | C161: 43 Incendio | D161: 747600.9268
A162: Atlas|44 Riesgos Catastroficos | B162: Atlas | C162: 44 Riesgos Catastroficos | D162: 1279586.22
A163: Atlas|45 Terremoto y Erupcion Volcanica | B163: Atlas | C163: 45 Terremoto y Erupcion Volcanica | D163: 459512.3027
A164: Atlas|46 Huracan y Otros Riesgos Hidrometeorologicos | B164: Atlas | C164: 46 Huracan y Otros Riesgos Hidrometeorologicos | D164: 820073.9169
A165: Atlas|52 Diversos | B165: Atlas | C165: 52 Diversos | D165: 1791785.7
A166: Atlas|53 Miscelaneos | B166: Atlas | C166: 53 Miscelaneos | D166: 648002.2763
A167: Atlas|54 Tecnicos | B167: Atlas | C167: 54 Tecnicos | D167: 1143783.423
A168: Atradius|10 Total General | B168: Atradius | C168: 10 Total General | D168: 621840.9362
A169: Atradius|11 Total General Sin Pensiones | B169: Atradius | C169: 11 Total General Sin Pensiones | D169: 621840.9362
A170: Atradius|28 Daños Total | B170: Atradius | C170: 28 Daños Total | D170: 621840.9362
A171: Atradius|34 Daños Sin Autos Total | B171: Atradius | C171: 34 Daños Sin Autos Total | D171: 621840.9362
A172: Atradius|55 Credito | B172: Atradius | C172: 55 Credito | D172: 621840.9362
A173: AXA Salud|10 Total General | B173: AXA Salud | C173: 10 Total General | D173: 163768.7374
A174: AXA Salud|11 Total General Sin Pensiones | B174: AXA Salud | C174: 11 Total General Sin Pensiones | D174: 163768.7374
A175: AXA Salud|18 Accidentes y Enfermedades Total | B175: AXA Salud | C175: 18 Accidentes y Enfermedades Total | D175: 163768.7374
A176: AXA Salud|25 Salud | B176: AXA Salud | C176: 25 Salud | D176: 163768.7374
A177: AXA Salud|26 Salud Individual | B177: AXA Salud | C177: 26 Salud Individual | D177: 23527.83273
A178: AXA Salud|27 Salud Gpo y Col | B178: AXA Salud | C178: 27 Salud Gpo y Col | D178: 140240.9047
A179: AXA Seguros|10 Total General | B179: AXA Seguros | C179: 10 Total General | D179: 44680995.32
A180: AXA Seguros|11 Total General Sin Pensiones | B180: AXA Seguros | C180: 11 Total General Sin Pensiones | D180: 44680995.32
A181: AXA Seguros|12 Vida Total | B181: AXA Seguros | C181: 12 Vida Total | D181: 5769071.136
A182: AXA Seguros|13 Vida Individual | B182: AXA Seguros | C182: 13 Vida Individual | D182: 3894868.482
A183: AXA Seguros|14 Vida Gpo y Col | B183: AXA Seguros | C183: 14 Vida Gpo y Col | D183: 1874202.654
A184: AXA Seguros|18 Accidentes y Enfermedades Total | B184: AXA Seguros | C184: 18 Accidentes y Enfermedades Total | D184: 20780377.11
A185: AXA Seguros|19 Accidentes Personales | B185: AXA Seguros | C185: 19 Accidentes Personales | D185: 224334.3491
A186: AXA Seguros|20 AP Individual | B186: AXA Seguros | C186: 20 AP Individual | D186: 142664.7407
A187: AXA Seguros|21 AP Gpo y Col | B187: AXA Seguros | C187: 21 AP Gpo y Col | D187: 81669.60834
A188: AXA Seguros|22 Gastos Medicos | B188: AXA Seguros | C188: 22 Gastos Medicos | D188: 20556042.76
A189: AXA Seguros|23 GMM. Individual | B189: AXA Seguros | C189: 23 GMM. Individual | D189: 12686947.85
A190: AXA Seguros|24 GMM. Gpo y Col | B190: AXA Seguros | C190: 24 GMM. Gpo y Col | D190: 7869094.909
A191: AXA Seguros|28 Daños Total | B191: AXA Seguros | C191: 28 Daños Total | D191: 18131547.08
A192: AXA Seguros|29 Automoviles Total | B192: AXA Seguros | C192: 29 Automoviles Total | D192: 9217277.071
A193: AXA Seguros|30 Automoviles Residentes | B193: AXA Seguros | C193: 30 Automoviles Residentes | D193: 6214277.534
A194: AXA Seguros|31 Camiones | B194: AXA Seguros | C194: 31 Camiones | D194: 2962232.205
A195: AXA Seguros|32 Automoviles Turistas | B195: AXA Seguros | C195: 32 Automoviles Turistas | D195: 34253.12622
A196: AXA Seguros|33 Otros Automoviles y Obligatorios | B196: AXA Seguros | C196: 33 Otros Automoviles y Obligatorios | D196: 6514.20595
A197: AXA Seguros|34 Daños Sin Autos Total | B197: AXA Seguros | C197: 34 Daños Sin Autos Total | D197: 8914270.009
A198: AXA Seguros|35 Responsabilidad Civil y Riesgos Profesionales | B198: AXA Seguros | C198: 35 Responsabilidad Civil y Riesgos Profesionales | D198: 1020899.527
A199: AXA Seguros|36 RC General | B199: AXA Seguros | C199: 36 RC General | D199: 645849.893
A200: =B200&"|"&C200 -> AXA Seguros|37 RC Aviones y Barcos | B200: AXA Seguros | C200: 37 RC Aviones y Barcos | D200: 67736.55075
A201: AXA Seguros|38 RC Viajero | B201: AXA Seguros | C201: 38 RC Viajero | D201: 111532.5617
A202: AXA Seguros|39 RC Otros | B202: AXA Seguros | C202: 39 RC Otros | D202: 195780.5211
A203: AXA Seguros|40 Maritimo y Transportes | B203: AXA Seguros | C203: 40 Maritimo y Transportes | D203: 953071.6188
A204: AXA Seguros|41 MyT Carga | B204: AXA Seguros | C204: 41 MyT Carga | D204: 776901.3201
... 1412 more rows

Sheet TD Siniestros Daños (hidden)
A1: periodo | B1: 2021-Q4
A2: Ramo_ | B2: 28 Daños Total
A3: operacion | B3: (Varios elementos)
A4: ramo_complemento | B4: (Varios elementos)
A6: Jerarquia 2 | B6: nombre_compania | C6: Suma de CostoSin_Act | D6: Suma de IncSin | E6: Suma de IncResvDivAct | F6: Suma de %SinvsPrm_Act | G6: Suma de %SinvsPrm_Ant | H6: Suma de Costo_Sin_RetAct | I6: Suma de IncSin_Ret | J6: Suma de Prima_DevengadaAct | K6: Suma de IncSin_PDev | L6: Suma de %SinvsPDev_Act | M6: Suma de %SinvsPDev_Ant
A7: 1 | B7: Quálitas | C7: 21146831.76 | D7: 18.31540333 | E7: 215157.3132 | F7: 60.44550693 | G7: 53.67064666 | H7: 21146793.96 | I7: 18.08665719 | J7: 33387882.97 | K7: -3.629438472 | L7: 63.33673201 | M7: 51.68912877
A8: 2 | B8: Mapfre México | C8: 9826169.555 | D8: 85.77348431 | E8: 289946.819 | F8: 45.27850022 | G8: 57.57763815 | H8: 2879861.37 | I8: 25.26740033 | J8: 4712477.353 | K8: -3.251725492 | L8: 61.1114103 | M8: 47.198421
A9: 3 | B9: G.N.P. | C9: 11521443.64 | D9: 12.6740677 | E9: 38149.94405 | F9: 60.94110488 | G9: 52.6106416 | H9: 10305350.56 | I9: 13.54496051 | J9: 15927549.97 | K9: -0.7259862115 | L9: 64.70141723 | M9: 56.56939205
A10: 4 | B10: AXA Seguros | C10: 8104329.896 | D10: -17.92260816 | E10: 371137.9276 | F10: 44.69739874 | G10: 62.49961774 | H10: 7141238.416 | I10: -5.510717428 | J10: 12649829.8 | K10: -3.660585291 | L10: 56.45323717 | M10: 57.55861066
A11: 5 | B11: Chubb Seguros México | C11: 9161335.456 | D11: 18.65276597 | E11: 32689.54279 | F11: 56.55704759 | G11: 50.64602129 | H11: 3822525.882 | I11: 2.130922123 | J11: 6733303.54 | K11: -4.954807349 | L11: 56.77043756 | M11: 52.83176792
A12: 5.1 | B12: TOTAL GRANDES | C12: 59760110.31 | D12: 17.21529608 | E12: 947081.5466 | F12: 54.36573232 | G12: 54.83945895 | H12: 45295770.19 | I12: 11.61175212 | J12: 73411043.63 | K12: -3.119711695 | L12: 61.70157506 | M12: 53.5576789
A13: 6 | B13: Inbursa | C13: 3244067.177 | D13: -31.04984827 | E13: 8634.3978 | F13: 28.59951836 | G13: 46.59587312 | H13: 3016873.884 | I13: 14.17495712 | J13: 5141858.879 | K13: 2.907216985 | L13: 58.67282543 | M13: 52.88250007
A14: 7 | B14: GMX Seguros | C14: 5005367.125 | D14: 77.39943513 | E14: 0 | F14: 46.17210127 | G14: 32.23305156 | H14: 859910.957 | I14: 17.49930769 | J14: 2109582.19 | K14: -4.425432192 | L14: 40.76214528 | M14: 33.15614785
A15: 8 | B15: Atlas | C15: 3715753.348 | D15: 12.18454121 | E15: 24171.88492 | F15: 39.78935246 | G15: 35.91632438 | H15: 2177119.167 | I15: 11.56475667 | J15: 4002390.026 | K15: 0.8804485261 | L15: 54.39547753 | M15: 49.18614385
A16: 9 | B16: Banorte | C16: 2910084.202 | D16: -7.859897203 | E16: 3529.77696 | F16: 32.64655954 | G16: 35.90030009 | H16: 2537279.631 | I16: -14.8101848 | J16: 6595129.411 | K16: -8.421125523 | L16: 38.47202189 | M16: 41.35734367
A17: 10 | B17: BBVA Bancomer | C17: 4502628.02 | D17: 22.7358835 | E17: 0 | F17: 51.13341039 | G17: 46.98371748 | H17: 4468273.231 | I17: 22.61509811 | J17: 7969469.279 | K17: 10.48867858 | L17: 56.06738761 | M17: 50.52242068
A18: 11 | B18: HDI Seguros | C18: 5381410.399 | D18: -0.4172179245 | E18: 0 | F18: 62.29142458 | G18: 67.01093778 | H18: 5058640.18 | I18: 3.554728072 | J18: 8020152.361 | K18: 1.995312431 | L18: 63.0741157 | M18: 62.12429173
A19: 12 | B19: Afirme | C19: 3598969.648 | D19: 7.026666328 | E19: 5947.36558 | F19: 49.17775949 | G19: 38.19387777 | H19: 1875386.743 | I19: 20.11449866 | J19: 3346932.266 | K19: 8.631937094 | L19: 56.03300556 | M19: 50.6764296
A20: 13 | B20: Zurich Daños | C20: 4736871.427 | D20: -9.548045919 | E20: 20081.16806 | F20: 65.93723781 | G20: 76.95851592 | H20: 2071320.686 | I20: 39.60573747 | J20: 4250072.615 | K20: 49.54953796 | L20: 48.73612462 | M20: 52.2074884
A21: 14 | B21: AIG Seguros | C21: 880871.8561 | D21: -47.14507248 | E21: 3142.29447 | F21: 17.29174514 | G21: 31.78465483 | H21: 323742.5434 | I21: -9.095311216 | J21: 1002138.712 | K21: 3.921489461 | L21: 32.30516289 | M21: 36.93099542
A22: 15 | B22: Allianz México | C22: 1478129.876 | D22: -44.92628117 | E22: 15473.3303 | F22: 29.18957335 | G22: 46.66395824 | H22: 290515.1234 | I22: -1.214732107 | J22: 632411.971 | K22: -3.638216286 | L22: 45.93763823 | M22: 44.81065704
A23: 15.1 | B23: TOTAL MEDIANAS | C23: 35454153.08 | D23: -1.569706762 | E23: 80980.21809 | F23: 42.95326422 | G23: 45.39514504 | H23: 22679062.15 | I23: 10.47664118 | J23: 43070137.71 | K23: 5.068083029 | L23: 52.65611709 | M23: 50.07825386
A24: 16 | B24: Seguros SURA | C24: 1714348.616 | D24: 13.3454393 | E24: 7173.83827 | F24: 46.7631209 | G24: 43.94333315 | H24: 950326.1839 | I24: -25.60751397 | J24: 2295143.181 | K24: -3.227991591 | L24: 41.40596507 | M24: 53.86213869
A25: 17 | B25: FM Global | C25: 221258.0665 | D25: -65.04777514 | E25: 0 | F25: 7.013813598 | G25: 19.13848223 | H25: 2343.24162 | I25: -124.7874127 | J25: -8711.09237 | K25: -54.16827679 | L25: -26.89951524 | M25: 49.73698357
A26: 18 | B26: Zurich Santander | C26: 216073.1437 | D26: -13.9897469 | E26: 0 | F26: 7.335446542 | G26: 9.048121108 | H26: 175658.539 | I26: -8.286543227 | J26: 2325325.709 | K26: 0.8852923637 | L26: 7.554147719 | M26: 8.309602843
A27: 19 | B27: ANA | C27: 1471671.364 | D27: 40.71411924 | E27: 26770.93025 | F27: 51.70606169 | G27: 42.90863838 | H27: 1137619.446 | I27: 31.0520859 | J27: 2131560.004 | K27: 21.01633785 | L27: 53.37027544 | M27: 49.28326962
A28: 20 | B28: Seguros Azteca Daños | C28: 789448.7934 | D28: 42.21205385 | E28: 33532.37215 | F28: 42.80490663 | G28: 22.30220796 | H28: 183018.6084 | I28: 174.3702564 | J28: 466621.5599 | K28: 17.10782093 | L28: 39.22206433 | M28: 16.7409199
A29: 21 | B29: General de Seguros | C29: 1069863.381 | D29: 0.08726161335 | E29: 5786.13439 | F29: 60.4667569 | G29: 63.29587546 | H29: 938345.4633 | I29: 2.995983622 | J29: 1346900.281 | K29: 0.1948015409 | L29: 69.66703303 | M29: 67.77229852
A30: 22 | B30: El Potosí | C30: 812018.199 | D30: 25.52086903 | E30: 0 | F30: 49.02919848 | G30: 41.87504037 | H30: 708661.3744 | I30: 23.98444834 | J30: 1158967.251 | K30: 9.96217613 | L30: 61.14593606 | M30: 54.23051263
A31: 23 | B31: Cardif Seguros Generales | C31: 229604.2634 | D31: -33.0176731 | E31: 15473.35862 | F31: 14.71181637 | G31: 22.43914936 | H31: 291987.251 | I31: -21.18685547 | J31: 1346087.209 | K31: 0.1158991024 | L31: 21.69155527 | M31: 27.554662
A32: 24 | B32: Tokio Marine | C32: 689011.9409 | D32: 42.79437303 | E32: 39.33872 | F32: 52.58548476 | G32: 42.18187675 | H32: 75088.97753 | I32: -9.144566574 | J32: 171476.2401 | K32: -12.77993482 | L32: 43.78972708 | M32: 42.03758329
A33: 25 | B33: El Águila | C33: 651828.9812 | D33: 59.31726102 | E33: 0 | F33: 52.1178089 | G33: 36.57235035 | H33: 412467.409 | I33: 13.84925271 | J33: 929846.5828 | K33: 9.326903305 | L33: 44.35865192 | M33: 42.59662609
A34: 26 | B34: HDI Global Seguros | C34: 244685.7703 | D34: -23.69006059 | E34: 0 | F34: 23.45106532 | G34: 40.13195122 | H34: -7595.18814 | I34: -169.6033511 | J34: -1653.29169 | K34: 17.52224375 | L34: 459.3979505 | M34: -775.6735431
A35: 27 | B35: Primero Seguros | C35: 525951.2039 | D35: 4.680109077 | E35: 0 | F35: 69.86847091 | G35: 62.27152273 | H35: 459552.0291 | I35: 13.33451573 | J35: 596980.8739 | K35: -4.399285565 | L35: 76.97935548 | M35: 64.93415826
A36: 28 | B36: Ve Por Más | C36: 236678.8168 | D36: 65.3456853 | E36: 0 | F36: 34.37240887 | G36: 23.24598402 | H36: 130642.1441 | I36: -3.703057137 | J36: 249210.7754 | K36: -14.54482986 | L36: 52.42234965 | M36: 46.52028066
A37: 29 | B37: Atradius | C37: 11534.61589 | D37: -96.02688995 | E37: 6947.97733 | F37: 1.85491421 | G37: 50.11848613 | H37: 5315.83034 | I37: -92.63171618 | J37: 163648.3059 | K37: 4.224172646 | L37: 3.248325922 | M37: 45.94748113
A38: 30 | B38: Sompo Japan | C38: 223020.7767 | D38: 70.75853816 | E38: 0 | F38: 36.81038693 | G38: 21.50110037 | H38: 18364.8645 | I38: 10.15872606 | J38: 122743.908 | K38: 370.4766268 | L38: 14.96193562 | M38: 63.90089331
A39: 31 | B39: Solunion Crédito | C39: 233431.5432 | D39: -25.45136496 | E39: 1751.41485 | F39: 43.30370111 | G39: 61.07799206 | H39: 25409.97716 | I39: 19.61408714 | J39: 29095.56607 | K39: 14.41306572 | L39: 87.33281593 | M39: 83.53543841
A40: 32 | B40: La Latinoamericana | C40: 275002.0103 | D40: -4.807147547 | E40: 1894.00122 | F40: 53.96859095 | G40: 74.12448557 | H40: 117492.2653 | I40: -1.111605042 | J40: 227611.3572 | K40: 19.78107607 | L40: 51.61968487 | M40: 62.5256523
A41: 33 | B41: Berkley Seguros | C41: 167514.9464 | D41: 12.97778041 | E41: 2157.20326 | F41: 36.02453067 | G41: 42.02093358 | H41: 9009.84546 | I41: -10.58511628 | J41: 19072.34178 | K41: 42.5109613 | L41: 47.24037333 | M41: 75.29250988
A42: 34 | B42: SHF Cred Vivienda | C42: -108937.2457 | D42: -142.2135225 | E42: 0 | F42: -25.96742882 | G42: 57.28923597 | H42: -119105.5249 | I42: -154.4635578 | J42: 330443.3787 | K42: -8.783486896 | L42: -36.04415538 | M42: 60.36737788
A43: 35 | B43: Coface | C43: 13594.28188 | D43: -94.08217749 | E43: 7795.72307 | F43: 4.114303385 | G43: 74.87848569 | H43: 9490.98124 | I43: -83.68438395 | J43: 58651.40404 | K43: -1.70770026 | L43: 16.18201882 | M43: 97.48745249
A44: 36 | B44: Swiss Re Corporate Solutions | C44: -23468.35254 | D44: -120.2127707 | E44: 18.61229 | F44: -7.39152015 | G44: 73.93503714 | H44: 1709.01394 | I44: -33.05882059 | J44: 558.11043 | K44: -110.3557912 | L44: 306.2142988 | M44: -47.37130965
A45: 37 | B45: Assurant Daños | C45: 55641.10117 | D45: 0.7318691504 | E45: 226.48005 | F45: 31.65567721 | G45: 35.43130853 | H45: 12452.77247 | I45: 81.93395208 | J45: 43004.67115 | K45: 13.700238 | L45: 28.95679036 | M45: 18.09664396
A46: 38 | B46: Patrimonial Daños | C46: 52142.59519 | D46: 19.09450815 | E46: 0 | F46: 30.17264129 | G46: 32.78513688 | H46: 37501.73391 | I46: -5.177074457 | J46: 181005.8034 | K46: 30.03764534 | L46: 20.7185257 | M46: 28.41283668
A47: 39 | B47: Citibanamex Seguros | C47: 43913.53385 | D47: 226.0358746 | E47: 0 | F47: 28.22724192 | G47: 6.800033345 | H47: 7734.47672 | I47: -257.2451166 | J47: 15438.57064 | K47: 17.93247126 | L47: 50.09839901 | M47: -37.57336398
A48: 40 | B48: Patrimonial Inbursa | C48: 314.46817 | D48: -96.20485153 | E48: 0 | F48: 0.207291258 | G48: 4.289888141 | H48: 284.44679 | I48: -96.57471687 | J48: 153116.7559 | K48: -21.50091282 | L48: 0.1857711708 | M48: 4.257419539
A49: 41 | B49: Tláloc Seguros | C49: 94894.93844 | D49: -44.81282519 | E49: 0 | F49: 77.34446665 | G49: 76.85437686 | H49: 13627.18467 | I49: -83.03356611 | J49: 19747.65426 | K49: -84.58653412 | L49: 69.00659942 | M49: 62.69030209
A50: 42 | B50: Virginia Surety | C50: 14185.59391 | D50: 23.0447287 | E50: 0 | F50: 19.92064001 | G50: 49.80708181 | H50: 10927.05559 | I50: -4.304811151 | J50: 27581.46715 | K50: 15.78125277 | L50: 39.61738341 | M50: 47.93292471
A51: 43 | B51: Genworth Seg. de Crédito | C51: -8196.23868 | D51: -124.7187981 | E51: 0 | F51: -12.43434726 | G51: 48.79809566 | H51: 15366.86749 | I51: -76.74899658 | J51: 134148.4246 | K51: 8.288077151 | L51: 11.45512333 | M51: 53.35052673
A52: 44 | B52: Crabi | C52: 41995.45934 | D52: 233.5450141 | E52: 0 | F52: 103.5808824 | G52: 44.70041295 | H52: 11470.50834 | I52: 424.9221291 | J52: 6926.15991 | K52: 319.4078983 | L52: 165.6113704 | M52: 132.3219444
A53: 45 | B53: Zurich Aseguradora Mexicana | C53: -29333.67113 | D53: -80.99364936 | E53: 0 | F53: -1362.040884 | G53: -9605.219318 | H53: -26844.22631 | I53: -64.69617243 | J53: 2638.56064 | K53: -28.84023221 | L53: -1017.381443 | M53: -2050.673601
A54: 145 | B54: HSBC Seguros | C54: 0 | D54: -100 | E54: 0 | F54: 0 | G54: 0 | H54: 0 | I54: 0 | J54: 0 | K54: 0 | L54: 0 | M54: 0
A55: 150.1 | B55: TOTAL RESTO | C55: 9929692.897 | D55: 0.4520338127 | E55: 109567.3845 | F55: 33.94095108 | G55: 35.20362558 | H55: 5608323.551 | I55: -4.887530883 | J55: 14543187.72 | K55: 3.754985568 | L55: 38.56323427 | M55: 42.06733199
A56: 151.1 | B56: TOTAL | C56: 105143956.3 | D56: 8.525956042 | E56: 1137629.149 | F56: 47.42208099 | G56: 48.34652552 | H56: 73583155.89 | I56: 9.812117941 | J56: 131024369.1 | K56: 0.1834378375 | L56: 56.15990095 | M56: 51.23562
A57: 200 | B57: Patria | C57: 0 | D57: 0 | E57: 0 | F57: 0 | G57: 0 | H57: 2555382.748 | I57: 8.936860377 | J57: 5959827.153 | K57: 37.20619556 | L57: 42.87679294 | M57: 54.00340727

Sheet Primas Directas
B1: PRIMAS DIRECTAS | L1: =VLOOKUP(RIGHT(TDPrimas!B3,2),Cat!$N$2:$O$5,2,0)&" "&LEFT(TDPrimas!B3,4) -> Cuarto Trimestre 2021
B2: =UPPER(RIGHT(TDPrimas!$B$4,LEN(TDPrimas!$B$4)-3)) -> TOTAL GENERAL
L3: Cifras en miles
D4: 2 | E4: 3 | F4: 4 | G4: 5 | H4: 6 | I4: 7 | J4: 8 | K4: 9 | L4: 10
D5: Primas Directas | F5: % Part. en Merc. | H5: Incremento | J5: % de Cartera
B6: Compañías | D6: =LEFT(TDPrimas!B3,4) -> 2021 | E6: =D6-1 -> 2020 | F6: =D6 -> 2021 | G6: =E6 -> 2020 | H6: Importe | I6: % | J6: Por | K6: Total | L6: Total
D7: Importe | E7: Importe | F7: =RIGHT(TDPrimas!B3,2) -> Q4 | G7: =RIGHT(TDPrimas!B3,2) -> Q4 | J7: Operación | K7: Cartera | L7: Sector
C8: TOTAL | D8: =VLOOKUP($C$8,$C$9:$L$125,D$4,0) -> 633397048.5 | E8: =VLOOKUP($C$8,$C$9:$L$125,E$4,0) -> 575212358.1 | F8: 100 | G8: 100 | H8: 58184690.36 | I8: 10.1153408 | J8: 100 | K8: 108.0905154 | L8: 100
B9: =IF(TDPrimas!A7="","",TDPrimas!A7) -> 1 | C9: =IF(TDPrimas!B7="","",TDPrimas!B7) -> G.N.P. | D9: =IF(TDPrimas!C7="","",TDPrimas!C7) -> 78894165.13 | E9: =IF(TDPrimas!D7="","",TDPrimas!D7) -> 72967613.44 | F9: =IFERROR(D9/VLOOKUP("TOTAL",$C$9:$D$125,2,0)*100,"") -> 12.45572036 | G9: =IFERROR(E9/VLOOKUP("TOTAL",$C$9:$E$125,3,0)*100,"") -> 12.6853348 | H9: =IFERROR(D9-E9,"") -> 5926551.69 | I9: =IFERROR((D9/E9-1)*100,"") -> 8.12216737 | J9: =IF(D9="","",IFERROR((D9/VLOOKUP(C9&"|"&VLOOKUP(TDPrimas!$B$4,Cat!R:T,2,0),'TD Operación'!A:D,4,0))*100,"ND")) -> 100 | K9: =IF(TDPrimas!E7="","",TDPrimas!E7) -> 100 | L9: =IF(TDPrimas!F7="","",TDPrimas!F7) -> 12.45572036
B10: =IF(TDPrimas!A8="","",TDPrimas!A8) -> 2 | C10: =IF(TDPrimas!B8="","",TDPrimas!B8) -> Metlife México | D10: =IF(TDPrimas!C8="","",TDPrimas!C8) -> 62441035.43 | E10: =IF(TDPrimas!D8="","",TDPrimas!D8) -> 56879236.02 | F10: =IFERROR(D10/VLOOKUP("TOTAL",$C$9:$D$125,2,0)*100,"") -> 9.858119102 | G10: =IFERROR(E10/VLOOKUP("TOTAL",$C$9:$E$125,3,0)*100,"") -> 9.888389082 | H10: =IFERROR(D10-E10,"") -> 5561799.409 | I10: =IFERROR((D10/E10-1)*100,"") -> 9.778259691 | J10: =IF(D10="","",IFERROR((D10/VLOOKUP(C10&"|"&VLOOKUP(TDPrimas!$B$4,Cat!R:T,2,0),'TD Operación'!A:D,4,0))*100,"ND")) -> 100 | K10: =IF(TDPrimas!E8="","",TDPrimas!E8) -> 100 | L10: =IF(TDPrimas!F8="","",TDPrimas!F8) -> 9.858119102
B11: =IF(TDPrimas!A9="","",TDPrimas!A9) -> 3 | C11: =IF(TDPrimas!B9="","",TDPrimas!B9) -> BBVA Bancomer | D11: =IF(TDPrimas!C9="","",TDPrimas!C9) -> 46683566.47 | E11: =IF(TDPrimas!D9="","",TDPrimas!D9) -> 46288255.62 | F11: 7.370347965 | G11: 8.047159448 | H11: 395310.853 | I11: 0.8540197674 | J11: =IF(D11="","",IFERROR((D11/VLOOKUP(C11&"|"&VLOOKUP(TDPrimas!$B$4,Cat!R:T,2,0),'TD Operación'!A:D,4,0))*100,"ND")) -> 100 | K11: =IF(TDPrimas!E9="","",TDPrimas!E9) -> 100 | L11: =IF(TDPrimas!F9="","",TDPrimas!F9) -> 7.370347965
B12: =IF(TDPrimas!A10="","",TDPrimas!A10) -> 4 | C12: =IF(TDPrimas!B10="","",TDPrimas!B10) -> AXA Seguros | D12: =IF(TDPrimas!C10="","",TDPrimas!C10) -> 44680995.32 | E12: =IF(TDPrimas!D10="","",TDPrimas!D10) -> 40205013.74 | F12: 7.054184327 | G12: 6.989594915 | H12: 4475981.588 | I12: 11.13289407 | J12: =IF(D12="","",IFERROR((D12/VLOOKUP(C12&"|"&VLOOKUP(TDPrimas!$B$4,Cat!R:T,2,0),'TD Operación'!A:D,4,0))*100,"ND")) -> 100 | K12: =IF(TDPrimas!E10="","",TDPrimas!E10) -> 100 | L12: =IF(TDPrimas!F10="","",TDPrimas!F10) -> 7.054184327
B13: =IF(TDPrimas!A11="","",TDPrimas!A11) -> 5 | C13: =IF(TDPrimas!B11="","",TDPrimas!B11) -> Quálitas | D13: =IF(TDPrimas!C11="","",TDPrimas!C11) -> 34984952.3 | E13: =IF(TDPrimas!D11="","",TDPrimas!D11) -> 33301760.54 | F13: 5.523384168 | G13: 5.78947237 | H13: 1683191.757 | I13: 5.054362681 | J13: =IF(D13="","",IFERROR((D13/VLOOKUP(C13&"|"&VLOOKUP(TDPrimas!$B$4,Cat!R:T,2,0),'TD Operación'!A:D,4,0))*100,"ND")) -> 100 | K13: =IF(TDPrimas!E11="","",TDPrimas!E11) -> 100 | L13: =IF(TDPrimas!F11="","",TDPrimas!F11) -> 5.523384168
B14: =IF(TDPrimas!A12="","",TDPrimas!A12) -> 5.1 | C14: =IF(TDPrimas!B12="","",TDPrimas!B12) -> TOTAL GRANDES | D14: =IF(TDPrimas!C12="","",TDPrimas!C12) -> 267684714.7 | E14: =IF(TDPrimas!D12="","",TDPrimas!D12) -> 249641879.4 | F14: 42.26175592 | G14: 43.39995061 | H14: 18042835.3 | I14: 7.227487368 | J14: =IF(D14="","",IFERROR((D14/VLOOKUP(C14&"|"&VLOOKUP(TDPrimas!$B$4,Cat!R:T,2,0),'TD Operación'!A:D,4,0))*100,"ND")) -> 100 | K14: =IF(TDPrimas!E12="","",TDPrimas!E12) -> 100 | L14: =IF(TDPrimas!F12="","",TDPrimas!F12) -> 42.26175592
B15: =IF(TDPrimas!A13="","",TDPrimas!A13) -> 6 | C15: =IF(TDPrimas!B13="","",TDPrimas!B13) -> Monterrey New York Life | D15: =IF(TDPrimas!C13="","",TDPrimas!C13) -> 34531456 | E15: =IF(TDPrimas!D13="","",TDPrimas!D13) -> 32811416.16 | F15: 5.451786693 | G15: 5.704226568 | H15: 1720039.847 | I15: 5.242199359 | J15: =IF(D15="","",IFERROR((D15/VLOOKUP(C15&"|"&VLOOKUP(TDPrimas!$B$4,Cat!R:T,2,0),'TD Operación'!A:D,4,0))*100,"ND")) -> 100 | K15: =IF(TDPrimas!E13="","",TDPrimas!E13) -> 100 | L15: =IF(TDPrimas!F13="","",TDPrimas!F13) -> 5.451786693
B16: =IF(TDPrimas!A14="","",TDPrimas!A14) -> 7 | C16: =IF(TDPrimas!B14="","",TDPrimas!B14) -> Mapfre México | D16: =IF(TDPrimas!C14="","",TDPrimas!C14) -> 30973171.78 | E16: =IF(TDPrimas!D14="","",TDPrimas!D14) -> 18274883.24 | F16: 4.890008858 | G16: 3.177067213 | H16: 12698288.54 | I16: 69.48492298 | J16: =IF(D16="","",IFERROR((D16/VLOOKUP(C16&"|"&VLOOKUP(TDPrimas!$B$4,Cat!R:T,2,0),'TD Operación'!A:D,4,0))*100,"ND")) -> 100 | K16: =IF(TDPrimas!E14="","",TDPrimas!E14) -> 100 | L16: =IF(TDPrimas!F14="","",TDPrimas!F14) -> 4.890008858
B17: =IF(TDPrimas!A15="","",TDPrimas!A15) -> 8 | C17: =IF(TDPrimas!B15="","",TDPrimas!B15) -> Banorte | D17: =IF(TDPrimas!C15="","",TDPrimas!C15) -> 27787128.92 | E17: =IF(TDPrimas!D15="","",TDPrimas!D15) -> 26911499.02 | F17: 4.387000064 | G17: 4.67853283 | H17: 875629.9081 | I17: 3.253738885 | J17: =IF(D17="","",IFERROR((D17/VLOOKUP(C17&"|"&VLOOKUP(TDPrimas!$B$4,Cat!R:T,2,0),'TD Operación'!A:D,4,0))*100,"ND")) -> 100 | K17: =IF(TDPrimas!E15="","",TDPrimas!E15) -> 100 | L17: =IF(TDPrimas!F15="","",TDPrimas!F15) -> 4.387000064
B18: =IF(TDPrimas!A16="","",TDPrimas!A16) -> 9 | C18: =IF(TDPrimas!B16="","",TDPrimas!B16) -> Citibanamex Seguros | D18: =IF(TDPrimas!C16="","",TDPrimas!C16) -> 24304859.37 | E18: =IF(TDPrimas!D16="","",TDPrimas!D16) -> 30598341.66 | F18: 3.837223338 | G18: 5.319486138 | H18: -6293482.29 | I18: -20.56805026 | J18: =IF(D18="","",IFERROR((D18/VLOOKUP(C18&"|"&VLOOKUP(TDPrimas!$B$4,Cat!R:T,2,0),'TD Operación'!A:D,4,0))*100,"ND")) -> 100 | K18: =IF(TDPrimas!E16="","",TDPrimas!E16) -> 100 | L18: =IF(TDPrimas!F16="","",TDPrimas!F16) -> 3.837223338
B19: =IF(TDPrimas!A17="","",TDPrimas!A17) -> 10 | C19: =IF(TDPrimas!B17="","",TDPrimas!B17) -> Pensiones Banorte | D19: =IF(TDPrimas!C17="","",TDPrimas!C17) -> 22649462.82 | E19: =IF(TDPrimas!D17="","",TDPrimas!D17) -> 14334303.77 | F19: 3.575871228 | G19: 2.492002053 | H19: 8315159.044 | I19: 58.00881002 | J19: =IF(D19="","",IFERROR((D19/VLOOKUP(C19&"|"&VLOOKUP(TDPrimas!$B$4,Cat!R:T,2,0),'TD Operación'!A:D,4,0))*100,"ND")) -> 100 | K19: =IF(TDPrimas!E17="","",TDPrimas!E17) -> 0 | L19: =IF(TDPrimas!F17="","",TDPrimas!F17) -> 3.575871228
B20: =IF(TDPrimas!A18="","",TDPrimas!A18) -> 11 | C20: =IF(TDPrimas!B18="","",TDPrimas!B18) -> Inbursa | D20: =IF(TDPrimas!C18="","",TDPrimas!C18) -> 20715913.72 | E20: =IF(TDPrimas!D18="","",TDPrimas!D18) -> 18776064.98 | F20: 3.270604712 | G20: 3.264197078 | H20: 1939848.732 | I20: 10.33149775 | J20: =IF(D20="","",IFERROR((D20/VLOOKUP(C20&"|"&VLOOKUP(TDPrimas!$B$4,Cat!R:T,2,0),'TD Operación'!A:D,4,0))*100,"ND")) -> 100 | K20: =IF(TDPrimas!E18="","",TDPrimas!E18) -> 100 | L20: =IF(TDPrimas!F18="","",TDPrimas!F18) -> 3.270604712
B21: =IF(TDPrimas!A19="","",TDPrimas!A19) -> 12 | C21: =IF(TDPrimas!B19="","",TDPrimas!B19) -> Chubb Seguros México | D21: =IF(TDPrimas!C19="","",TDPrimas!C19) -> 18644615.73 | E21: =IF(TDPrimas!D19="","",TDPrimas!D19) -> 17701457.06 | F21: 2.94359056 | G21: 3.077377739 | H21: 943158.6609 | I21: 5.328141393 | J21: =IF(D21="","",IFERROR((D21/VLOOKUP(C21&"|"&VLOOKUP(TDPrimas!$B$4,Cat!R:T,2,0),'TD Operación'!A:D,4,0))*100,"ND")) -> 100 | K21: =IF(TDPrimas!E19="","",TDPrimas!E19) -> 100 | L21: =IF(TDPrimas!F19="","",TDPrimas!F19) -> 2.94359056
B22: =IF(TDPrimas!A20="","",TDPrimas!A20) -> 13 | C22: =IF(TDPrimas!B20="","",TDPrimas!B20) -> Allianz México | D22: =IF(TDPrimas!C20="","",TDPrimas!C20) -> 16560897.79 | E22: =IF(TDPrimas!D20="","",TDPrimas!D20) -> 18006767.26 | F22: 2.614615561 | G22: 3.130455562 | H22: -1445869.471 | I22: -8.029589374 | J22: =IF(D22="","",IFERROR((D22/VLOOKUP(C22&"|"&VLOOKUP(TDPrimas!$B$4,Cat!R:T,2,0),'TD Operación'!A:D,4,0))*100,"ND")) -> 100 | K22: =IF(TDPrimas!E20="","",TDPrimas!E20) -> 100 | L22: =IF(TDPrimas!F20="","",TDPrimas!F20) -> 2.614615561
B23: =IF(TDPrimas!A21="","",TDPrimas!A21) -> 14 | C23: =IF(TDPrimas!B21="","",TDPrimas!B21) -> Atlas | D23: =IF(TDPrimas!C21="","",TDPrimas!C21) -> 16033506.83 | E23: =IF(TDPrimas!D21="","",TDPrimas!D21) -> 14853772.68 | F23: 2.531351681 | G23: 2.582311119 | H23: 1179734.147 | I23: 7.942319922 | J23: =IF(D23="","",IFERROR((D23/VLOOKUP(C23&"|"&VLOOKUP(TDPrimas!$B$4,Cat!R:T,2,0),'TD Operación'!A:D,4,0))*100,"ND")) -> 100 | K23: =IF(TDPrimas!E21="","",TDPrimas!E21) -> 100 | L23: =IF(TDPrimas!F21="","",TDPrimas!F21) -> 2.531351681
B24: =IF(TDPrimas!A22="","",TDPrimas!A22) -> 15 | C24: =IF(TDPrimas!B22="","",TDPrimas!B22) -> ProFuturo G.N.P. | D24: =IF(TDPrimas!C22="","",TDPrimas!C22) -> 14908494.75 | E24: =IF(TDPrimas!D22="","",TDPrimas!D22) -> 8114855.82 | F24: 2.353736062 | G24: 1.410758254 | H24: 6793638.926 | I24: 83.71854136 | J24: =IF(D24="","",IFERROR((D24/VLOOKUP(C24&"|"&VLOOKUP(TDPrimas!$B$4,Cat!R:T,2,0),'TD Operación'!A:D,4,0))*100,"ND")) -> 100 | K24: =IF(TDPrimas!E22="","",TDPrimas!E22) -> 0 | L24: =IF(TDPrimas!F22="","",TDPrimas!F22) -> 2.353736062
B25: =IF(TDPrimas!A23="","",TDPrimas!A23) -> 15.1 | C25: =IF(TDPrimas!B23="","",TDPrimas!B23) -> TOTAL MEDIANAS | D25: =IF(TDPrimas!C23="","",TDPrimas!C23) -> 227109507.7 | E25: =IF(TDPrimas!D23="","",TDPrimas!D23) -> 200383361.7 | F25: 35.85578876 | G25: 34.83641456 | H25: 26726146.05 | I25: 13.33750758 | J25: =IF(D25="","",IFERROR((D25/VLOOKUP(C25&"|"&VLOOKUP(TDPrimas!$B$4,Cat!R:T,2,0),'TD Operación'!A:D,4,0))*100,"ND")) -> 100 | K25: =IF(TDPrimas!E23="","",TDPrimas!E23) -> 119.8141126 | L25: =IF(TDPrimas!F23="","",TDPrimas!F23) -> 35.85578876
B26: =IF(TDPrimas!A24="","",TDPrimas!A24) -> 16 | C26: =IF(TDPrimas!B24="","",TDPrimas!B24) -> Zurich Santander | D26: =IF(TDPrimas!C24="","",TDPrimas!C24) -> 14742608.48 | E26: =IF(TDPrimas!D24="","",TDPrimas!D24) -> 11574946.9 | F26: 2.327546128 | G26: 2.012291067 | H26: 3167661.579 | I26: 27.36653228 | J26: =IF(D26="","",IFERROR((D26/VLOOKUP(C26&"|"&VLOOKUP(TDPrimas!$B$4,Cat!R:T,2,0),'TD Operación'!A:D,4,0))*100,"ND")) -> 100 | K26: =IF(TDPrimas!E24="","",TDPrimas!E24) -> 100 | L26: =IF(TDPrimas!F24="","",TDPrimas!F24) -> 2.327546128
B27: =IF(TDPrimas!A25="","",TDPrimas!A25) -> 17 | C27: =IF(TDPrimas!B25="","",TDPrimas!B25) -> GMX Seguros | D27: =IF(TDPrimas!C25="","",TDPrimas!C25) -> 10840674.32 | E27: =IF(TDPrimas!D25="","",TDPrimas!D25) -> 8753510.988 | F27: 1.711513235 | G27: 1.521787713 | H27: 2087163.329 | I27: 23.84372776 | J27: =IF(D27="","",IFERROR((D27/VLOOKUP(C27&"|"&VLOOKUP(TDPrimas!$B$4,Cat!R:T,2,0),'TD Operación'!A:D,4,0))*100,"ND")) -> 100 | K27: =IF(TDPrimas!E25="","",TDPrimas!E25) -> 100 | L27: =IF(TDPrimas!F25="","",TDPrimas!F25) -> 1.711513235
B28: =IF(TDPrimas!A26="","",TDPrimas!A26) -> 18 | C28: =IF(TDPrimas!B26="","",TDPrimas!B26) -> Afirme | D28: =IF(TDPrimas!C26="","",TDPrimas!C26) -> 10199279.55 | E28: =IF(TDPrimas!D26="","",TDPrimas!D26) -> 11016215.79 | F28: 1.610250564 | G28: 1.915156313 | H28: -816936.241 | I28: -7.415761062 | J28: =IF(D28="","",IFERROR((D28/VLOOKUP(C28&"|"&VLOOKUP(TDPrimas!$B$4,Cat!R:T,2,0),'TD Operación'!A:D,4,0))*100,"ND")) -> 100 | K28: =IF(TDPrimas!E26="","",TDPrimas!E26) -> 100 | L28: =IF(TDPrimas!F26="","",TDPrimas!F26) -> 1.610250564
B29: =IF(TDPrimas!A27="","",TDPrimas!A27) -> 19 | C29: =IF(TDPrimas!B27="","",TDPrimas!B27) -> Pensiones BBVA Bancomer | D29: =IF(TDPrimas!C27="","",TDPrimas!C27) -> 9822830.802 | E29: =IF(TDPrimas!D27="","",TDPrimas!D27) -> 6702330.223 | F29: 1.550817268 | G29: 1.16519232 | H29: 3120500.58 | I29: 46.55844275 | J29: =IF(D29="","",IFERROR((D29/VLOOKUP(C29&"|"&VLOOKUP(TDPrimas!$B$4,Cat!R:T,2,0),'TD Operación'!A:D,4,0))*100,"ND")) -> 100 | K29: =IF(TDPrimas!E27="","",TDPrimas!E27) -> 0 | L29: =IF(TDPrimas!F27="","",TDPrimas!F27) -> 1.550817268
B30: =IF(TDPrimas!A28="","",TDPrimas!A28) -> 20 | C30: =IF(TDPrimas!B28="","",TDPrimas!B28) -> HDI Seguros | D30: =IF(TDPrimas!C28="","",TDPrimas!C28) -> 8680810.987 | E30: =IF(TDPrimas!D28="","",TDPrimas!D28) -> 8085709.615 | F30: 1.370516488 | G30: 1.40569122 | H30: 595101.3716 | I30: 7.359915207 | J30: =IF(D30="","",IFERROR((D30/VLOOKUP(C30&"|"&VLOOKUP(TDPrimas!$B$4,Cat!R:T,2,0),'TD Operación'!A:D,4,0))*100,"ND")) -> 100 | K30: =IF(TDPrimas!E28="","",TDPrimas!E28) -> 100 | L30: =IF(TDPrimas!F28="","",TDPrimas!F28) -> 1.370516488
B31: =IF(TDPrimas!A29="","",TDPrimas!A29) -> 21 | C31: =IF(TDPrimas!B29="","",TDPrimas!B29) -> Zurich Daños | D31: =IF(TDPrimas!C29="","",TDPrimas!C29) -> 7183909.404 | E31: =IF(TDPrimas!D29="","",TDPrimas!D29) -> 6804824.972 | F31: 1.134187382 | G31: 1.183010913 | H31: 379084.4312 | I31: 5.570818247 | J31: =IF(D31="","",IFERROR((D31/VLOOKUP(C31&"|"&VLOOKUP(TDPrimas!$B$4,Cat!R:T,2,0),'TD Operación'!A:D,4,0))*100,"ND")) -> 100 | K31: =IF(TDPrimas!E29="","",TDPrimas!E29) -> 100 | L31: =IF(TDPrimas!F29="","",TDPrimas!F29) -> 1.134187382
B32: =IF(TDPrimas!A30="","",TDPrimas!A30) -> 22 | C32: =IF(TDPrimas!B30="","",TDPrimas!B30) -> HSBC Seguros | D32: =IF(TDPrimas!C30="","",TDPrimas!C30) -> 6468384.206 | E32: =IF(TDPrimas!D30="","",TDPrimas!D30) -> 3606695.856 | F32: 1.021221084 | G32: 0.6270198833 | H32: 2861688.35 | I32: 79.3437668 | J32: =IF(D32="","",IFERROR((D32/VLOOKUP(C32&"|"&VLOOKUP(TDPrimas!$B$4,Cat!R:T,2,0),'TD Operación'!A:D,4,0))*100,"ND")) -> 100 | K32: =IF(TDPrimas!E30="","",TDPrimas!E30) -> 100 | L32: =IF(TDPrimas!F30="","",TDPrimas!F30) -> 1.021221084
B33: =IF(TDPrimas!A31="","",TDPrimas!A31) -> 23 | C33: =IF(TDPrimas!B31="","",TDPrimas!B31) -> Seguros SURA | D33: =IF(TDPrimas!C31="","",TDPrimas!C31) -> 5900062.749 | E33: =IF(TDPrimas!D31="","",TDPrimas!D31) -> 5305012.668 | F33: 0.931495144 | G33: 0.9222702873 | H33: 595050.0811 | I33: 11.21675137 | J33: =IF(D33="","",IFERROR((D33/VLOOKUP(C33&"|"&VLOOKUP(TDPrimas!$B$4,Cat!R:T,2,0),'TD Operación'!A:D,4,0))*100,"ND")) -> 100 | K33: =IF(TDPrimas!E31="","",TDPrimas!E31) -> 100 | L33: =IF(TDPrimas!F31="","",TDPrimas!F31) -> 0.931495144
B34: =IF(TDPrimas!A32="","",TDPrimas!A32) -> 24 | C34: =IF(TDPrimas!B32="","",TDPrimas!B32) -> AIG Seguros | D34: =IF(TDPrimas!C32="","",TDPrimas!C32) -> 5289324.872 | E34: =IF(TDPrimas!D32="","",TDPrimas!D32) -> 5420683.504 | F34: 0.835072548 | G34: 0.9423795276 | H34: -131358.6317 | I34: -2.423285396 | J34: =IF(D34="","",IFERROR((D34/VLOOKUP(C34&"|"&VLOOKUP(TDPrimas!$B$4,Cat!R:T,2,0),'TD Operación'!A:D,4,0))*100,"ND")) -> 100 | K34: =IF(TDPrimas!E32="","",TDPrimas!E32) -> 100 | L34: =IF(TDPrimas!F32="","",TDPrimas!F32) -> 0.835072548
B35: =IF(TDPrimas!A33="","",TDPrimas!A33) -> 25 | C35: =IF(TDPrimas!B33="","",TDPrimas!B33) -> Seguros Azteca | D35: =IF(TDPrimas!C33="","",TDPrimas!C33) -> 4983077.594 | E35: =IF(TDPrimas!D33="","",TDPrimas!D33) -> 4739992.016 | F35: 0.7867225788 | G35: 0.8240421035 | H35: 243085.5781 | I35: 5.128396361 | J35: =IF(D35="","",IFERROR((D35/VLOOKUP(C35&"|"&VLOOKUP(TDPrimas!$B$4,Cat!R:T,2,0),'TD Operación'!A:D,4,0))*100,"ND")) -> 100 | K35: =IF(TDPrimas!E33="","",TDPrimas!E33) -> 100 | L35: =IF(TDPrimas!F33="","",TDPrimas!F33) -> 0.7867225788
B36: =IF(TDPrimas!A34="","",TDPrimas!A34) -> 26 | C36: =IF(TDPrimas!B34="","",TDPrimas!B34) -> BUPA México | D36: =IF(TDPrimas!C34="","",TDPrimas!C34) -> 3594202.45 | E36: =IF(TDPrimas!D34="","",TDPrimas!D34) -> 3379847.706 | F36: 0.5674485631 | G36: 0.5875825959 | H36: 214354.7448 | I36: 6.342142116 | J36: =IF(D36="","",IFERROR((D36/VLOOKUP(C36&"|"&VLOOKUP(TDPrimas!$B$4,Cat!R:T,2,0),'TD Operación'!A:D,4,0))*100,"ND")) -> 100 | K36: =IF(TDPrimas!E34="","",TDPrimas!E34) -> 100 | L36: =IF(TDPrimas!F34="","",TDPrimas!F34) -> 0.5674485631
B37: =IF(TDPrimas!A35="","",TDPrimas!A35) -> 27 | C37: =IF(TDPrimas!B35="","",TDPrimas!B35) -> FM Global | D37: =IF(TDPrimas!C35="","",TDPrimas!C35) -> 3154604.317 | E37: =IF(TDPrimas!D35="","",TDPrimas!D35) -> 3307629.023 | F37: 0.4980453136 | G37: 0.5750274618 | H37: -153024.7063 | I37: -4.626416846 | J37: =IF(D37="","",IFERROR((D37/VLOOKUP(C37&"|"&VLOOKUP(TDPrimas!$B$4,Cat!R:T,2,0),'TD Operación'!A:D,4,0))*100,"ND")) -> 100 | K37: =IF(TDPrimas!E35="","",TDPrimas!E35) -> 100 | L37: =IF(TDPrimas!F35="","",TDPrimas!F35) -> 0.4980453136
B38: =IF(TDPrimas!A36="","",TDPrimas!A36) -> 28 | C38: =IF(TDPrimas!B36="","",TDPrimas!B36) -> Ve Por Más | D38: =IF(TDPrimas!C36="","",TDPrimas!C36) -> 3138973.143 | E38: =IF(TDPrimas!D36="","",TDPrimas!D36) -> 2864221.832 | F38: 0.4955774818 | G38: 0.497941637 | H38: 274751.3104 | I38: 9.592529019 | J38: =IF(D38="","",IFERROR((D38/VLOOKUP(C38&"|"&VLOOKUP(TDPrimas!$B$4,Cat!R:T,2,0),'TD Operación'!A:D,4,0))*100,"ND")) -> 100 | K38: =IF(TDPrimas!E36="","",TDPrimas!E36) -> 100 | L38: =IF(TDPrimas!F36="","",TDPrimas!F36) -> 0.4955774818
B39: =IF(TDPrimas!A37="","",TDPrimas!A37) -> 29 | C39: =IF(TDPrimas!B37="","",TDPrimas!B37) -> Seguros Argos | D39: =IF(TDPrimas!C37="","",TDPrimas!C37) -> 3067143.767 | E39: =IF(TDPrimas!D37="","",TDPrimas!D37) -> 2998917.062 | F39: 0.4842371423 | G39: 0.5213582462 | H39: 68226.70506 | I39: 2.275044746 | J39: =IF(D39="","",IFERROR((D39/VLOOKUP(C39&"|"&VLOOKUP(TDPrimas!$B$4,Cat!R:T,2,0),'TD Operación'!A:D,4,0))*100,"ND")) -> 100 | K39: =IF(TDPrimas!E37="","",TDPrimas!E37) -> 100 | L39: =IF(TDPrimas!F37="","",TDPrimas!F37) -> 0.4842371423
B40: =IF(TDPrimas!A38="","",TDPrimas!A38) -> 30 | C40: =IF(TDPrimas!B38="","",TDPrimas!B38) -> ANA | D40: =IF(TDPrimas!C38="","",TDPrimas!C38) -> 2846225.986 | E40: =IF(TDPrimas!D38="","",TDPrimas!D38) -> 2437409.107 | F40: 0.4493588963 | G40: 0.4237407408 | H40: 408816.8789 | I40: 16.77259996 | J40: =IF(D40="","",IFERROR((D40/VLOOKUP(C40&"|"&VLOOKUP(TDPrimas!$B$4,Cat!R:T,2,0),'TD Operación'!A:D,4,0))*100,"ND")) -> 100 | K40: =IF(TDPrimas!E38="","",TDPrimas!E38) -> 100 | L40: =IF(TDPrimas!F38="","",TDPrimas!F38) -> 0.4493588963
B41: =IF(TDPrimas!A39="","",TDPrimas!A39) -> 31 | C41: =IF(TDPrimas!B39="","",TDPrimas!B39) -> Cardif Vida | D41: =IF(TDPrimas!C39="","",TDPrimas!C39) -> 2829394.621 | E41: =IF(TDPrimas!D39="","",TDPrimas!D39) -> 2603859.012 | F41: 0.4467015796 | G41: 0.4526778633 | H41: 225535.6086 | I41: 8.661590644 | J41: =IF(D41="","",IFERROR((D41/VLOOKUP(C41&"|"&VLOOKUP(TDPrimas!$B$4,Cat!R:T,2,0),'TD Operación'!A:D,4,0))*100,"ND")) -> 100 | K41: =IF(TDPrimas!E39="","",TDPrimas!E39) -> 100 | L41: =IF(TDPrimas!F39="","",TDPrimas!F39) -> 0.4467015796
B42: =IF(TDPrimas!A40="","",TDPrimas!A40) -> 32 | C42: =IF(TDPrimas!B40="","",TDPrimas!B40) -> Plan Seguro | D42: =IF(TDPrimas!C40="","",TDPrimas!C40) -> 2596168.489 | E42: =IF(TDPrimas!D40="","",TDPrimas!D40) -> 2272678.217 | F42: 0.4098801053 | G42: 0.3951024668 | H42: 323490.2726 | I42: 14.23387923 | J42: =IF(D42="","",IFERROR((D42/VLOOKUP(C42&"|"&VLOOKUP(TDPrimas!$B$4,Cat!R:T,2,0),'TD Operación'!A:D,4,0))*100,"ND")) -> 100 | K42: =IF(TDPrimas!E40="","",TDPrimas!E40) -> 100 | L42: =IF(TDPrimas!F40="","",TDPrimas!F40) -> 0.4098801053
B43: =IF(TDPrimas!A41="","",TDPrimas!A41) -> 33 | C43: =IF(TDPrimas!B41="","",TDPrimas!B41) -> General de Seguros | D43: =IF(TDPrimas!C41="","",TDPrimas!C41) -> 2516090.615 | E43: =IF(TDPrimas!D41="","",TDPrimas!D41) -> 2067951.068 | F43: 0.3972375023 | G43: 0.3595108899 | H43: 448139.5475 | I43: 21.67070365 | J43: =IF(D43="","",IFERROR((D43/VLOOKUP(C43&"|"&VLOOKUP(TDPrimas!$B$4,Cat!R:T,2,0),'TD Operación'!A:D,4,0))*100,"ND")) -> 100 | K43: =IF(TDPrimas!E41="","",TDPrimas!E41) -> 100 | L43: =IF(TDPrimas!F41="","",TDPrimas!F41) -> 0.3972375023
B44: =IF(TDPrimas!A42="","",TDPrimas!A42) -> 34 | C44: =IF(TDPrimas!B42="","",TDPrimas!B42) -> Hir Seguros | D44: =IF(TDPrimas!C42="","",TDPrimas!C42) -> 1949854.184 | E44: =IF(TDPrimas!D42="","",TDPrimas!D42) -> 1480074.885 | F44: 0.3078407437 | G44: 0.2573092987 | H44: 469779.2998 | I44: 31.7402386 | J44: =IF(D44="","",IFERROR((D44/VLOOKUP(C44&"|"&VLOOKUP(TDPrimas!$B$4,Cat!R:T,2,0),'TD Operación'!A:D,4,0))*100,"ND")) -> 100 | K44: =IF(TDPrimas!E42="","",TDPrimas!E42) -> 100 | L44: =IF(TDPrimas!F42="","",TDPrimas!F42) -> 0.3078407437
B45: =IF(TDPrimas!A43="","",TDPrimas!A43) -> 35 | C45: =IF(TDPrimas!B43="","",TDPrimas!B43) -> El Potosí | D45: =IF(TDPrimas!C43="","",TDPrimas!C43) -> 1937993.953 | E45: =IF(TDPrimas!D43="","",TDPrimas!D43) -> 1758597.98 | F45: 0.3059682639 | G45: 0.3057302151 | H45: 179395.9728 | I45: 10.2010792 | J45: =IF(D45="","",IFERROR((D45/VLOOKUP(C45&"|"&VLOOKUP(TDPrimas!$B$4,Cat!R:T,2,0),'TD Operación'!A:D,4,0))*100,"ND")) -> 100 | K45: =IF(TDPrimas!E43="","",TDPrimas!E43) -> 100 | L45: =IF(TDPrimas!F43="","",TDPrimas!F43) -> 0.3059682639
B46: =IF(TDPrimas!A44="","",TDPrimas!A44) -> 36 | C46: =IF(TDPrimas!B44="","",TDPrimas!B44) -> Seguros Azteca Daños | D46: =IF(TDPrimas!C44="","",TDPrimas!C44) -> 1844295.095 | E46: =IF(TDPrimas!D44="","",TDPrimas!D44) -> 2489084.816 | F46: 0.2911751956 | G46: 0.4327245026 | H46: -644789.7207 | I46: -25.90469062 | J46: =IF(D46="","",IFERROR((D46/VLOOKUP(C46&"|"&VLOOKUP(TDPrimas!$B$4,Cat!R:T,2,0),'TD Operación'!A:D,4,0))*100,"ND")) -> 100 | K46: =IF(TDPrimas!E44="","",TDPrimas!E44) -> 100 | L46: =IF(TDPrimas!F44="","",TDPrimas!F44) -> 0.2911751956
B47: =IF(TDPrimas!A45="","",TDPrimas!A45) -> 37 | C47: =IF(TDPrimas!B45="","",TDPrimas!B45) -> Zurich Vida | D47: =IF(TDPrimas!C45="","",TDPrimas!C45) -> 1834835.984 | E47: =IF(TDPrimas!D45="","",TDPrimas!D45) -> 1834121.97 | F47: 0.289681802 | G47: 0.318859973 | H47: 714.01384 | I47: 0.03892946335 | J47: =IF(D47="","",IFERROR((D47/VLOOKUP(C47&"|"&VLOOKUP(TDPrimas!$B$4,Cat!R:T,2,0),'TD Operación'!A:D,4,0))*100,"ND")) -> 100 | K47: =IF(TDPrimas!E45="","",TDPrimas!E45) -> 100 | L47: =IF(TDPrimas!F45="","",TDPrimas!F45) -> 0.289681802
B48: =IF(TDPrimas!A46="","",TDPrimas!A46) -> 38 | C48: =IF(TDPrimas!B46="","",TDPrimas!B46) -> Insignia Life | D48: =IF(TDPrimas!C46="","",TDPrimas!C46) -> 1738938.033 | E48: =IF(TDPrimas!D46="","",TDPrimas!D46) -> 1790168.38 | F48: 0.2745415434 | G48: 0.3112186924 | H48: -51230.34717 | I48: -2.861761371 | J48: =IF(D48="","",IFERROR((D48/VLOOKUP(C48&"|"&VLOOKUP(TDPrimas!$B$4,Cat!R:T,2,0),'TD Operación'!A:D,4,0))*100,"ND")) -> 100 | K48: =IF(TDPrimas!E46="","",TDPrimas!E46) -> 100 | L48: =IF(TDPrimas!F46="","",TDPrimas!F46) -> 0.2745415434
B49: =IF(TDPrimas!A47="","",TDPrimas!A47) -> 39 | C49: =IF(TDPrimas!B47="","",TDPrimas!B47) -> Cardif Seguros Generales | D49: =IF(TDPrimas!C47="","",TDPrimas!C47) -> 1560679.237 | E49: =IF(TDPrimas!D47="","",TDPrimas!D47) -> 1527612.939 | F49: 0.2463982491 | G49: 0.2655737343 | H49: 33066.29795 | I49: 2.164573047 | J49: =IF(D49="","",IFERROR((D49/VLOOKUP(C49&"|"&VLOOKUP(TDPrimas!$B$4,Cat!R:T,2,0),'TD Operación'!A:D,4,0))*100,"ND")) -> 100 | K49: =IF(TDPrimas!E47="","",TDPrimas!E47) -> 100 | L49: =IF(TDPrimas!F47="","",TDPrimas!F47) -> 0.2463982491
B50: =IF(TDPrimas!A48="","",TDPrimas!A48) -> 40 | C50: =IF(TDPrimas!B48="","",TDPrimas!B48) -> Patrimonial Vida | D50: =IF(TDPrimas!C48="","",TDPrimas!C48) -> 1454885.501 | E50: =IF(TDPrimas!D48="","",TDPrimas!D48) -> 3004860.865 | F50: 0.2296956553 | G50: 0.5223915694 | H50: -1549975.364 | I50: -51.58226732 | J50: =IF(D50="","",IFERROR((D50/VLOOKUP(C50&"|"&VLOOKUP(TDPrimas!$B$4,Cat!R:T,2,0),'TD Operación'!A:D,4,0))*100,"ND")) -> 100 | K50: =IF(TDPrimas!E48="","",TDPrimas!E48) -> 100 | L50: =IF(TDPrimas!F48="","",TDPrimas!F48) -> 0.2296956553
B51: =IF(TDPrimas!A49="","",TDPrimas!A49) -> 41 | C51: =IF(TDPrimas!B49="","",TDPrimas!B49) -> Tokio Marine | D51: =IF(TDPrimas!C49="","",TDPrimas!C49) -> 1374423.954 | E51: =IF(TDPrimas!D49="","",TDPrimas!D49) -> 1221609.505 | F51: 0.2169924785 | G51: 0.2123753928 | H51: 152814.4493 | I51: 12.50927148 | J51: =IF(D51="","",IFERROR((D51/VLOOKUP(C51&"|"&VLOOKUP(TDPrimas!$B$4,Cat!R:T,2,0),'TD Operación'!A:D,4,0))*100,"ND")) -> 100 | K51: =IF(TDPrimas!E49="","",TDPrimas!E49) -> 100 | L51: =IF(TDPrimas!F49="","",TDPrimas!F49) -> 0.2169924785
B52: =IF(TDPrimas!A50="","",TDPrimas!A50) -> 42 | C52: =IF(TDPrimas!B50="","",TDPrimas!B50) -> La Latinoamericana | D52: =IF(TDPrimas!C50="","",TDPrimas!C50) -> 1322115.807 | E52: =IF(TDPrimas!D50="","",TDPrimas!D50) -> 1034777.912 | F52: 0.2087341282 | G52: 0.1798949375 | H52: 287337.8952 | I52: 27.76807389 | J52: =IF(D52="","",IFERROR((D52/VLOOKUP(C52&"|"&VLOOKUP(TDPrimas!$B$4,Cat!R:T,2,0),'TD Operación'!A:D,4,0))*100,"ND")) -> 100 | K52: =IF(TDPrimas!E50="","",TDPrimas!E50) -> 100 | L52: =IF(TDPrimas!F50="","",TDPrimas!F50) -> 0.2087341282
B53: =IF(TDPrimas!A51="","",TDPrimas!A51) -> 43 | C53: =IF(TDPrimas!B51="","",TDPrimas!B51) -> El Águila | D53: =IF(TDPrimas!C51="","",TDPrimas!C51) -> 1250683.778 | E53: =IF(TDPrimas!D51="","",TDPrimas!D51) -> 1118711.14 | F53: 0.1974565213 | G53: 0.1944866317 | H53: 131972.6373 | I53: 11.79684662 | J53: =IF(D53="","",IFERROR((D53/VLOOKUP(C53&"|"&VLOOKUP(TDPrimas!$B$4,Cat!R:T,2,0),'TD Operación'!A:D,4,0))*100,"ND")) -> 100 | K53: =IF(TDPrimas!E51="","",TDPrimas!E51) -> 100 | L53: =IF(TDPrimas!F51="","",TDPrimas!F51) -> 0.1974565213
B54: =IF(TDPrimas!A52="","",TDPrimas!A52) -> 44 | C54: =IF(TDPrimas!B52="","",TDPrimas!B52) -> BBVA Bancomer Salud | D54: =IF(TDPrimas!C52="","",TDPrimas!C52) -> 1191065.811 | E54: =IF(TDPrimas!D52="","",TDPrimas!D52) -> 383549.723 | F54: 0.1880441051 | G54: 0.06667967361 | H54: 807516.0884 | I54: 210.5375236 | J54: =IF(D54="","",IFERROR((D54/VLOOKUP(C54&"|"&VLOOKUP(TDPrimas!$B$4,Cat!R:T,2,0),'TD Operación'!A:D,4,0))*100,"ND")) -> 100 | K54: =IF(TDPrimas!E52="","",TDPrimas!E52) -> 100 | L54: =IF(TDPrimas!F52="","",TDPrimas!F52) -> 0.1880441051
B55: =IF(TDPrimas!A53="","",TDPrimas!A53) -> 45 | C55: =IF(TDPrimas!B53="","",TDPrimas!B53) -> Prudential | D55: =IF(TDPrimas!C53="","",TDPrimas!C53) -> 1176956.401 | E55: =IF(TDPrimas!D53="","",TDPrimas!D53) -> 950354.3703 | F55: 0.1858165275 | G55: 0.1652180029 | H55: 226602.0306 | I55: 23.84395103 | J55: =IF(D55="","",IFERROR((D55/VLOOKUP(C55&"|"&VLOOKUP(TDPrimas!$B$4,Cat!R:T,2,0),'TD Operación'!A:D,4,0))*100,"ND")) -> 100 | K55: =IF(TDPrimas!E53="","",TDPrimas!E53) -> 100 | L55: =IF(TDPrimas!F53="","",TDPrimas!F53) -> 0.1858165275
B56: =IF(TDPrimas!A54="","",TDPrimas!A54) -> 46 | C56: =IF(TDPrimas!B54="","",TDPrimas!B54) -> HDI Global Seguros | D56: =IF(TDPrimas!C54="","",TDPrimas!C54) -> 1043388.72 | E56: =IF(TDPrimas!D54="","",TDPrimas!D54) -> 798982.6142 | F56: 0.1647290151 | G56: 0.138902199 | H56: 244406.1057 | I56: 30.58966508 | J56: =IF(D56="","",IFERROR((D56/VLOOKUP(C56&"|"&VLOOKUP(TDPrimas!$B$4,Cat!R:T,2,0),'TD Operación'!A:D,4,0))*100,"ND")) -> 100 | K56: =IF(TDPrimas!E54="","",TDPrimas!E54) -> 100 | L56: =IF(TDPrimas!F54="","",TDPrimas!F54) -> 0.1647290151
B57: =IF(TDPrimas!A55="","",TDPrimas!A55) -> 47 | C57: =IF(TDPrimas!B55="","",TDPrimas!B55) -> Assurant Vida | D57: =IF(TDPrimas!C55="","",TDPrimas!C55) -> 1024603.929 | E57: =IF(TDPrimas!D55="","",TDPrimas!D55) -> 1108142.217 | F57: 0.1617632938 | G57: 0.1926492367 | H57: -83538.28882 | I57: -7.538589136 | J57: =IF(D57="","",IFERROR((D57/VLOOKUP(C57&"|"&VLOOKUP(TDPrimas!$B$4,Cat!R:T,2,0),'TD Operación'!A:D,4,0))*100,"ND")) -> 100 | K57: =IF(TDPrimas!E55="","",TDPrimas!E55) -> 100 | L57: =IF(TDPrimas!F55="","",TDPrimas!F55) -> 0.1617632938
B58: =IF(TDPrimas!A56="","",TDPrimas!A56) -> 48 | C58: =IF(TDPrimas!B56="","",TDPrimas!B56) -> SIS NOVA | D58: =IF(TDPrimas!C56="","",TDPrimas!C56) -> 939149.0756 | E58: =IF(TDPrimas!D56="","",TDPrimas!D56) -> 866593.7051 | F58: 0.1482717796 | G58: 0.1506563086 | H58: 72555.37046 | I58: 8.372478364 | J58: =IF(D58="","",IFERROR((D58/VLOOKUP(C58&"|"&VLOOKUP(TDPrimas!$B$4,Cat!R:T,2,0),'TD Operación'!A:D,4,0))*100,"ND")) -> 100 | K58: =IF(TDPrimas!E56="","",TDPrimas!E56) -> 100 | L58: =IF(TDPrimas!F56="","",TDPrimas!F56) -> 0.1482717796
B59: =IF(TDPrimas!A57="","",TDPrimas!A57) -> 49 | C59: =IF(TDPrimas!B57="","",TDPrimas!B57) -> Pan-American México | D59: =IF(TDPrimas!C57="","",TDPrimas!C57) -> 769483.4333 | E59: =IF(TDPrimas!D57="","",TDPrimas!D57) -> 1219145.66 | F59: 0.1214851624 | G59: 0.2119470563 | H59: -449662.2272 | I59: -36.88338824 | J59: =IF(D59="","",IFERROR((D59/VLOOKUP(C59&"|"&VLOOKUP(TDPrimas!$B$4,Cat!R:T,2,0),'TD Operación'!A:D,4,0))*100,"ND")) -> 100 | K59: =IF(TDPrimas!E57="","",TDPrimas!E57) -> 100 | L59: =IF(TDPrimas!F57="","",TDPrimas!F57) -> 0.1214851624
B60: =IF(TDPrimas!A58="","",TDPrimas!A58) -> 50 | C60: =IF(TDPrimas!B58="","",TDPrimas!B58) -> Primero Seguros | D60: =IF(TDPrimas!C58="","",TDPrimas!C58) -> 752773.3141 | E60: =IF(TDPrimas!D58="","",TDPrimas!D58) -> 806848.1385 | F60: 0.118846988 | G60: 0.1402696112 | H60: -54074.82446 | I60: -6.701982923 | J60: =IF(D60="","",IFERROR((D60/VLOOKUP(C60&"|"&VLOOKUP(TDPrimas!$B$4,Cat!R:T,2,0),'TD Operación'!A:D,4,0))*100,"ND")) -> 100 | K60: =IF(TDPrimas!E58="","",TDPrimas!E58) -> 100 | L60: =IF(TDPrimas!F58="","",TDPrimas!F58) -> 0.118846988
B61: =IF(TDPrimas!A59="","",TDPrimas!A59) -> 51 | C61: =IF(TDPrimas!B59="","",TDPrimas!B59) -> Patrimonial Inbursa | D61: =IF(TDPrimas!C59="","",TDPrimas!C59) -> 633205.9417 | E61: =IF(TDPrimas!D59="","",TDPrimas!D59) -> 749761.7194 | F61: 0.09996982828 | G61: 0.1303452036 | H61: -116555.7777 | I61: -15.54570934 | J61: =IF(D61="","",IFERROR((D61/VLOOKUP(C61&"|"&VLOOKUP(TDPrimas!$B$4,Cat!R:T,2,0),'TD Operación'!A:D,4,0))*100,"ND")) -> 100 | K61: =IF(TDPrimas!E59="","",TDPrimas!E59) -> 100 | L61: =IF(TDPrimas!F59="","",TDPrimas!F59) -> 0.09996982828
B62: =IF(TDPrimas!A60="","",TDPrimas!A60) -> 52 | C62: =IF(TDPrimas!B60="","",TDPrimas!B60) -> Atradius | D62: =IF(TDPrimas!C60="","",TDPrimas!C60) -> 621840.9362 | E62: =IF(TDPrimas!D60="","",TDPrimas!D60) -> 579261.4112 | F62: 0.09817553424 | G62: 0.1007039232 | H62: 42579.52498 | I62: 7.350657951 | J62: =IF(D62="","",IFERROR((D62/VLOOKUP(C62&"|"&VLOOKUP(TDPrimas!$B$4,Cat!R:T,2,0),'TD Operación'!A:D,4,0))*100,"ND")) -> 100 | K62: =IF(TDPrimas!E60="","",TDPrimas!E60) -> 100 | L62: =IF(TDPrimas!F60="","",TDPrimas!F60) -> 0.09817553424
B63: =IF(TDPrimas!A61="","",TDPrimas!A61) -> 53 | C63: =IF(TDPrimas!B61="","",TDPrimas!B61) -> Sompo Japan | D63: =IF(TDPrimas!C61="","",TDPrimas!C61) -> 605863.712 | E63: =IF(TDPrimas!D61="","",TDPrimas!D61) -> 607438.3528 | F63: 0.09565306839 | G63: 0.1056024517 | H63: -1574.64081 | I63: -0.2592264388 | J63: =IF(D63="","",IFERROR((D63/VLOOKUP(C63&"|"&VLOOKUP(TDPrimas!$B$4,Cat!R:T,2,0),'TD Operación'!A:D,4,0))*100,"ND")) -> 100 | K63: =IF(TDPrimas!E61="","",TDPrimas!E61) -> 100 | L63: =IF(TDPrimas!F61="","",TDPrimas!F61) -> 0.09565306839
B64: =IF(TDPrimas!A62="","",TDPrimas!A62) -> 54 | C64: =IF(TDPrimas!B62="","",TDPrimas!B62) -> Solunion Crédito | D64: =IF(TDPrimas!C62="","",TDPrimas!C62) -> 539056.7947 | E64: =IF(TDPrimas!D62="","",TDPrimas!D62) -> 512666.6823 | F64: 0.08510566887 | G64: 0.08912650693 | H64: 26390.11248 | I64: 5.147616062 | J64: =IF(D64="","",IFERROR((D64/VLOOKUP(C64&"|"&VLOOKUP(TDPrimas!$B$4,Cat!R:T,2,0),'TD Operación'!A:D,4,0))*100,"ND")) -> 100 | K64: =IF(TDPrimas!E62="","",TDPrimas!E62) -> 100 | L64: =IF(TDPrimas!F62="","",TDPrimas!F62) -> 0.08510566887
B65: =IF(TDPrimas!A63="","",TDPrimas!A63) -> 55 | C65: =IF(TDPrimas!B63="","",TDPrimas!B63) -> General de Salud | D65: =IF(TDPrimas!C63="","",TDPrimas!C63) -> 513902.8165 | E65: =IF(TDPrimas!D63="","",TDPrimas!D63) -> 466606.4007 | F65: 0.08113438763 | G65: 0.08111898051 | H65: 47296.41584 | I65: 10.13625526 | J65: =IF(D65="","",IFERROR((D65/VLOOKUP(C65&"|"&VLOOKUP(TDPrimas!$B$4,Cat!R:T,2,0),'TD Operación'!A:D,4,0))*100,"ND")) -> 100 | K65: =IF(TDPrimas!E63="","",TDPrimas!E63) -> 100 | L65: =IF(TDPrimas!F63="","",TDPrimas!F63) -> 0.08113438763
B66: =IF(TDPrimas!A64="","",TDPrimas!A64) -> 56 | C66: =IF(TDPrimas!B64="","",TDPrimas!B64) -> PREVEM Seguros | D66: =IF(TDPrimas!C64="","",TDPrimas!C64) -> 495857.3322 | E66: =IF(TDPrimas!D64="","",TDPrimas!D64) -> 427838.6913 | F66: 0.07828538725 | G66: 0.07437925929 | H66: 68018.64092 | I66: 15.89819769 | J66: =IF(D66="","",IFERROR((D66/VLOOKUP(C66&"|"&VLOOKUP(TDPrimas!$B$4,Cat!R:T,2,0),'TD Operación'!A:D,4,0))*100,"ND")) -> 100 | K66: =IF(TDPrimas!E64="","",TDPrimas!E64) -> 100 | L66: =IF(TDPrimas!F64="","",TDPrimas!F64) -> 0.07828538725
B67: =IF(TDPrimas!A65="","",TDPrimas!A65) -> 57 | C67: =IF(TDPrimas!B65="","",TDPrimas!B65) -> Berkley Seguros | D67: =IF(TDPrimas!C65="","",TDPrimas!C65) -> 465002.4395 | E67: =IF(TDPrimas!D65="","",TDPrimas!D65) -> 352853.8234 | F67: 0.07341405214 | G67: 0.06134322714 | H67: 112148.6161 | I67: 31.7833076 | J67: =IF(D67="","",IFERROR((D67/VLOOKUP(C67&"|"&VLOOKUP(TDPrimas!$B$4,Cat!R:T,2,0),'TD Operación'!A:D,4,0))*100,"ND")) -> 100 | K67: =IF(TDPrimas!E65="","",TDPrimas!E65) -> 100 | L67: =IF(TDPrimas!F65="","",TDPrimas!F65) -> 0.07341405214
B68: =IF(TDPrimas!A66="","",TDPrimas!A66) -> 58 | C68: =IF(TDPrimas!B66="","",TDPrimas!B66) -> Dentegra | D68: =IF(TDPrimas!C66="","",TDPrimas!C66) -> 449909.7433 | E68: =IF(TDPrimas!D66="","",TDPrimas!D66) -> 432140.631 | F68: 0.07103123458 | G68: 0.0751271465 | H68: 17769.1123 | I68: 4.111881879 | J68: =IF(D68="","",IFERROR((D68/VLOOKUP(C68&"|"&VLOOKUP(TDPrimas!$B$4,Cat!R:T,2,0),'TD Operación'!A:D,4,0))*100,"ND")) -> 100 | K68: =IF(TDPrimas!E66="","",TDPrimas!E66) -> 100 | L68: =IF(TDPrimas!F66="","",TDPrimas!F66) -> 0.07103123458
B69: =IF(TDPrimas!A67="","",TDPrimas!A67) -> 59 | C69: =IF(TDPrimas!B67="","",TDPrimas!B67) -> Skandia Life | D69: =IF(TDPrimas!C67="","",TDPrimas!C67) -> 426948.5898 | E69: =IF(TDPrimas!D67="","",TDPrimas!D67) -> 558075.8231 | F69: 0.06740615398 | G69: 0.0970208333 | H69: -131127.2333 | I69: -23.49631141 | J69: =IF(D69="","",IFERROR((D69/VLOOKUP(C69&"|"&VLOOKUP(TDPrimas!$B$4,Cat!R:T,2,0),'TD Operación'!A:D,4,0))*100,"ND")) -> 100 | K69: =IF(TDPrimas!E67="","",TDPrimas!E67) -> 100 | L69: =IF(TDPrimas!F67="","",TDPrimas!F67) -> 0.06740615398
B70: =IF(TDPrimas!A68="","",TDPrimas!A68) -> 60 | C70: =IF(TDPrimas!B68="","",TDPrimas!B68) -> SHF Cred Vivienda | D70: =IF(TDPrimas!C68="","",TDPrimas!C68) -> 419514.9486 | E70: =IF(TDPrimas!D68="","",TDPrimas!D68) -> 450455.368 | F70: 0.06623253922 | G70: 0.07831114224 | H70: -30940.41941 | I70: -6.868698124 | J70: =IF(D70="","",IFERROR((D70/VLOOKUP(C70&"|"&VLOOKUP(TDPrimas!$B$4,Cat!R:T,2,0),'TD Operación'!A:D,4,0))*100,"ND")) -> 100 | K70: =IF(TDPrimas!E68="","",TDPrimas!E68) -> 100 | L70: =IF(TDPrimas!F68="","",TDPrimas!F68) -> 0.06623253922
B71: =IF(TDPrimas!A69="","",TDPrimas!A69) -> 61 | C71: =IF(TDPrimas!B69="","",TDPrimas!B69) -> Coface | D71: =IF(TDPrimas!C69="","",TDPrimas!C69) -> 330415.1544 | E71: =IF(TDPrimas!D69="","",TDPrimas!D69) -> 306787.2333 | F71: 0.05216556584 | G71: 0.05333460399 | H71: 23627.92109 | I71: 7.701728927 | J71: =IF(D71="","",IFERROR((D71/VLOOKUP(C71&"|"&VLOOKUP(TDPrimas!$B$4,Cat!R:T,2,0),'TD Operación'!A:D,4,0))*100,"ND")) -> 100 | K71: =IF(TDPrimas!E69="","",TDPrimas!E69) -> 100 | L71: =IF(TDPrimas!F69="","",TDPrimas!F69) -> 0.05216556584
B72: =IF(TDPrimas!A70="","",TDPrimas!A70) -> 62 | C72: =IF(TDPrimas!B70="","",TDPrimas!B70) -> Swiss Re Corporate Solutions | D72: =IF(TDPrimas!C70="","",TDPrimas!C70) -> 317503.7349 | E72: =IF(TDPrimas!D70="","",TDPrimas!D70) -> 157038.6157 | F72: 0.05012712573 | G72: 0.02730098084 | H72: 160465.1192 | I72: 102.1819496 | J72: =IF(D72="","",IFERROR((D72/VLOOKUP(C72&"|"&VLOOKUP(TDPrimas!$B$4,Cat!R:T,2,0),'TD Operación'!A:D,4,0))*100,"ND")) -> 100 | K72: =IF(TDPrimas!E70="","",TDPrimas!E70) -> 100 | L72: =IF(TDPrimas!F70="","",TDPrimas!F70) -> 0.05012712573
B73: =IF(TDPrimas!A71="","",TDPrimas!A71) -> 63 | C73: =IF(TDPrimas!B71="","",TDPrimas!B71) -> Zurich Aseguradora Mexicana | D73: =IF(TDPrimas!C71="","",TDPrimas!C71) -> 257596.1868 | E73: =IF(TDPrimas!D71="","",TDPrimas!D71) -> 121625.6849 | F73: 0.04066899071 | G73: 0.02114448398 | H73: 135970.5019 | I73: 111.7942333 | J73: =IF(D73="","",IFERROR((D73/VLOOKUP(C73&"|"&VLOOKUP(TDPrimas!$B$4,Cat!R:T,2,0),'TD Operación'!A:D,4,0))*100,"ND")) -> 100 | K73: =IF(TDPrimas!E71="","",TDPrimas!E71) -> 100 | L73: =IF(TDPrimas!F71="","",TDPrimas!F71) -> 0.04066899071
B74: =IF(TDPrimas!A72="","",TDPrimas!A72) -> 64 | C74: =IF(TDPrimas!B72="","",TDPrimas!B72) -> MediAccess | D74: =IF(TDPrimas!C72="","",TDPrimas!C72) -> 222274.3503 | E74: =IF(TDPrimas!D72="","",TDPrimas!D72) -> 236904.0442 | F74: =IFERROR(D74/VLOOKUP("TOTAL",$C$9:$D$125,2,0)*100,"") -> 0.03509241964 | G74: =IFERROR(E74/VLOOKUP("TOTAL",$C$9:$E$125,3,0)*100,"") -> 0.04118549277 | H74: =IFERROR(D74-E74,"") -> -14629.6939 | I74: =IFERROR((D74/E74-1)*100,"") -> -6.175366888 | J74: =IF(D74="","",IFERROR((D74/VLOOKUP(C74&"|"&VLOOKUP(TDPrimas!$B$4,Cat!R:T,2,0),'TD Operación'!A:D,4,0))*100,"ND")) -> 100 | K74: =IF(TDPrimas!E72="","",TDPrimas!E72) -> 100 | L74: =IF(TDPrimas!F72="","",TDPrimas!F72) -> 0.03509241964
B75: =IF(TDPrimas!A73="","",TDPrimas!A73) -> 65 | C75: =IF(TDPrimas!B73="","",TDPrimas!B73) -> Assurant Daños | D75: =IF(TDPrimas!C73="","",TDPrimas!C73) -> 175769.7389 | E75: =IF(TDPrimas!D73="","",TDPrimas!D73) -> 155898.3906 | F75: 0.0277503249 | G75: 0.02710275404 | H75: 19871.34824 | I75: 12.74634598 | J75: =IF(D75="","",IFERROR((D75/VLOOKUP(C75&"|"&VLOOKUP(TDPrimas!$B$4,Cat!R:T,2,0),'TD Operación'!A:D,4,0))*100,"ND")) -> 100 | K75: =IF(TDPrimas!E73="","",TDPrimas!E73) -> 100 | L75: =IF(TDPrimas!F73="","",TDPrimas!F73) -> 0.0277503249
B76: =IF(TDPrimas!A74="","",TDPrimas!A74) -> 66 | C76: =IF(TDPrimas!B74="","",TDPrimas!B74) -> Patrimonial Daños | D76: =IF(TDPrimas!C74="","",TDPrimas!C74) -> 172814.1554 | E76: =IF(TDPrimas!D74="","",TDPrimas!D74) -> 133543.8542 | F76: 0.02728370077 | G76: 0.02321644386 | H76: 39270.30117 | I76: 29.40629609 | J76: =IF(D76="","",IFERROR((D76/VLOOKUP(C76&"|"&VLOOKUP(TDPrimas!$B$4,Cat!R:T,2,0),'TD Operación'!A:D,4,0))*100,"ND")) -> 100 | K76: =IF(TDPrimas!E74="","",TDPrimas!E74) -> 100 | L76: =IF(TDPrimas!F74="","",TDPrimas!F74) -> 0.02728370077
B77: =IF(TDPrimas!A75="","",TDPrimas!A75) -> 67 | C77: =IF(TDPrimas!B75="","",TDPrimas!B75) -> Aserta Seguros de Vida | D77: =IF(TDPrimas!C75="","",TDPrimas!C75) -> 172554.4396 | E77: =IF(TDPrimas!D75="","",TDPrimas!D75) -> 526402.7176 | F77: 0.02724269714 | G77: 0.09151450071 | H77: -353848.2779 | I77: -67.22007051 | J77: =IF(D77="","",IFERROR((D77/VLOOKUP(C77&"|"&VLOOKUP(TDPrimas!$B$4,Cat!R:T,2,0),'TD Operación'!A:D,4,0))*100,"ND")) -> 100 | K77: =IF(TDPrimas!E75="","",TDPrimas!E75) -> 100 | L77: =IF(TDPrimas!F75="","",TDPrimas!F75) -> 0.02724269714
B78: =IF(TDPrimas!A76="","",TDPrimas!A76) -> 68 | C78: =IF(TDPrimas!B76="","",TDPrimas!B76) -> AXA Salud | D78: =IF(TDPrimas!C76="","",TDPrimas!C76) -> 163768.7374 | E78: =IF(TDPrimas!D76="","",TDPrimas!D76) -> 473531.8306 | F78: 0.02585562055 | G78: 0.08232295846 | H78: -309763.0932 | I78: -65.41547435 | J78: =IF(D78="","",IFERROR((D78/VLOOKUP(C78&"|"&VLOOKUP(TDPrimas!$B$4,Cat!R:T,2,0),'TD Operación'!A:D,4,0))*100,"ND")) -> 100 | K78: =IF(TDPrimas!E76="","",TDPrimas!E76) -> 100 | L78: =IF(TDPrimas!F76="","",TDPrimas!F76) -> 0.02585562055
B79: =IF(TDPrimas!A77="","",TDPrimas!A77) -> 69 | C79: =IF(TDPrimas!B77="","",TDPrimas!B77) -> Centauro | D79: =IF(TDPrimas!C77="","",TDPrimas!C77) -> 161859.45 | E79: =IF(TDPrimas!D77="","",TDPrimas!D77) -> 145132.9218 | F79: 0.02555418444 | G79: 0.0252311898 | H79: 16726.52819 | I79: 11.52497171 | J79: =IF(D79="","",IFERROR((D79/VLOOKUP(C79&"|"&VLOOKUP(TDPrimas!$B$4,Cat!R:T,2,0),'TD Operación'!A:D,4,0))*100,"ND")) -> 100 | K79: =IF(TDPrimas!E77="","",TDPrimas!E77) -> 100 | L79: =IF(TDPrimas!F77="","",TDPrimas!F77) -> 0.02555418444
B80: =IF(TDPrimas!A78="","",TDPrimas!A78) -> 70 | C80: =IF(TDPrimas!B78="","",TDPrimas!B78) -> Tláloc Seguros | D80: =IF(TDPrimas!C78="","",TDPrimas!C78) -> 122691.3088 | E80: =IF(TDPrimas!D78="","",TDPrimas!D78) -> 223736.212 | F80: 0.01937036321 | G80: 0.03889628045 | H80: -101044.9032 | I80: -45.16251628 | J80: =IF(D80="","",IFERROR((D80/VLOOKUP(C80&"|"&VLOOKUP(TDPrimas!$B$4,Cat!R:T,2,0),'TD Operación'!A:D,4,0))*100,"ND")) -> 100 | K80: =IF(TDPrimas!E78="","",TDPrimas!E78) -> 100 | L80: =IF(TDPrimas!F78="","",TDPrimas!F78) -> 0.01937036321
B81: =IF(TDPrimas!A79="","",TDPrimas!A79) -> 71 | C81: =IF(TDPrimas!B79="","",TDPrimas!B79) -> Odontoprev | D81: =IF(TDPrimas!C79="","",TDPrimas!C79) -> 76993.93244 | E81: =IF(TDPrimas!D79="","",TDPrimas!D79) -> 47514.83956 | F81: 0.0121557138 | G81: 0.00826039964 | H81: 29479.09288 | I81: 62.04186556 | J81: =IF(D81="","",IFERROR((D81/VLOOKUP(C81&"|"&VLOOKUP(TDPrimas!$B$4,Cat!R:T,2,0),'TD Operación'!A:D,4,0))*100,"ND")) -> 100 | K81: =IF(TDPrimas!E79="","",TDPrimas!E79) -> 100 | L81: =IF(TDPrimas!F79="","",TDPrimas!F79) -> 0.0121557138
B82: =IF(TDPrimas!A80="","",TDPrimas!A80) -> 72 | C82: =IF(TDPrimas!B80="","",TDPrimas!B80) -> Virginia Surety | D82: =IF(TDPrimas!C80="","",TDPrimas!C80) -> 71210.53291 | E82: =IF(TDPrimas!D80="","",TDPrimas!D80) -> 23146.93078 | F82: 0.01124263731 | G82: 0.004024067017 | H82: 48063.60213 | I82: 207.6456814 | J82: =IF(D82="","",IFERROR((D82/VLOOKUP(C82&"|"&VLOOKUP(TDPrimas!$B$4,Cat!R:T,2,0),'TD Operación'!A:D,4,0))*100,"ND")) -> 100 | K82: =IF(TDPrimas!E80="","",TDPrimas!E80) -> 100 | L82: =IF(TDPrimas!F80="","",TDPrimas!F80) -> 0.01124263731
B83: =IF(TDPrimas!A81="","",TDPrimas!A81) -> 73 | C83: =IF(TDPrimas!B81="","",TDPrimas!B81) -> Genworth Seg. de Crédito | D83: =IF(TDPrimas!C81="","",TDPrimas!C81) -> 65916.11533 | E83: =IF(TDPrimas!D81="","",TDPrimas!D81) -> 67949.2039 | F83: 0.01040676073 | G83: 0.01181289013 | H83: -2033.08857 | I83: -2.992071214 | J83: =IF(D83="","",IFERROR((D83/VLOOKUP(C83&"|"&VLOOKUP(TDPrimas!$B$4,Cat!R:T,2,0),'TD Operación'!A:D,4,0))*100,"ND")) -> 100 | K83: =IF(TDPrimas!E81="","",TDPrimas!E81) -> 100 | L83: =IF(TDPrimas!F81="","",TDPrimas!F81) -> 0.01040676073
B84: =IF(TDPrimas!A82="","",TDPrimas!A82) -> 74 | C84: =IF(TDPrimas!B82="","",TDPrimas!B82) -> Crabi | D84: =IF(TDPrimas!C82="","",TDPrimas!C82) -> 40543.6393 | E84: =IF(TDPrimas!D82="","",TDPrimas!D82) -> 28166.7246 | F84: 0.0064009833 | G84: 0.004896752339 | H84: 12376.9147 | I84: 43.94161861 | J84: =IF(D84="","",IFERROR((D84/VLOOKUP(C84&"|"&VLOOKUP(TDPrimas!$B$4,Cat!R:T,2,0),'TD Operación'!A:D,4,0))*100,"ND")) -> 100 | K84: =IF(TDPrimas!E82="","",TDPrimas!E82) -> 100 | L84: =IF(TDPrimas!F82="","",TDPrimas!F82) -> 0.0064009833
B85: =IF(TDPrimas!A83="","",TDPrimas!A83) -> 75 | C85: =IF(TDPrimas!B83="","",TDPrimas!B83) -> Metlife Más | D85: =IF(TDPrimas!C83="","",TDPrimas!C83) -> 31095.04911 | E85: =IF(TDPrimas!D83="","",TDPrimas!D83) -> 35403.6928 | F85: 0.004909250712 | G85: 0.00615489085 | H85: -4308.64369 | I85: -12.17004032 | J85: =IF(D85="","",IFERROR((D85/VLOOKUP(C85&"|"&VLOOKUP(TDPrimas!$B$4,Cat!R:T,2,0),'TD Operación'!A:D,4,0))*100,"ND")) -> 100 | K85: =IF(TDPrimas!E83="","",TDPrimas!E83) -> 100 | L85: =IF(TDPrimas!F83="","",TDPrimas!F83) -> 0.004909250712
B86: =IF(TDPrimas!A84="","",TDPrimas!A84) -> 76 | C86: =IF(TDPrimas!B84="","",TDPrimas!B84) -> Metlife Pensiones | D86: =IF(TDPrimas!C84="","",TDPrimas!C84) -> 15995.85067 | E86: =IF(TDPrimas!D84="","",TDPrimas!D84) -> 7040.35645 | F86: 0.002525406569 | G86: 0.001223957787 | H86: 8955.49422 | I86: 127.2022842 | J86: =IF(D86="","",IFERROR((D86/VLOOKUP(C86&"|"&VLOOKUP(TDPrimas!$B$4,Cat!R:T,2,0),'TD Operación'!A:D,4,0))*100,"ND")) -> 100 | K86: =IF(TDPrimas!E84="","",TDPrimas!E84) -> 0 | L86: =IF(TDPrimas!F84="","",TDPrimas!F84) -> 0.002525406569
B87: =IF(TDPrimas!A85="","",TDPrimas!A85) -> 77 | C87: =IF(TDPrimas!B85="","",TDPrimas!B85) -> Citibanamex Pensiones | D87: =IF(TDPrimas!C85="","",TDPrimas!C85) -> 12102.12455 | E87: =IF(TDPrimas!D85="","",TDPrimas!D85) -> 10434.71648 | F87: 0.001910669552 | G87: 0.001814063334 | H87: 1667.40807 | I87: 15.9794286 | J87: =IF(D87="","",IFERROR((D87/VLOOKUP(C87&"|"&VLOOKUP(TDPrimas!$B$4,Cat!R:T,2,0),'TD Operación'!A:D,4,0))*100,"ND")) -> 100 | K87: =IF(TDPrimas!E85="","",TDPrimas!E85) -> 0 | L87: =IF(TDPrimas!F85="","",TDPrimas!F85) -> 0.001910669552
B88: =IF(TDPrimas!A86="","",TDPrimas!A86) -> 78 | C88: =IF(TDPrimas!B86="","",TDPrimas!B86) -> Pensiones Inbursa | D88: =IF(TDPrimas!C86="","",TDPrimas!C86) -> 533.28378 | E88: =IF(TDPrimas!D86="","",TDPrimas!D86) -> 3565.23812 | F88: 8.419423192e-05 | G88: 0.000619812504 | H88: -3031.95434 | I88: -85.04212728 | J88: =IF(D88="","",IFERROR((D88/VLOOKUP(C88&"|"&VLOOKUP(TDPrimas!$B$4,Cat!R:T,2,0),'TD Operación'!A:D,4,0))*100,"ND")) -> 100 | K88: =IF(TDPrimas!E86="","",TDPrimas!E86) -> 0 | L88: =IF(TDPrimas!F86="","",TDPrimas!F86) -> 8.419423192e-05
B89: =IF(TDPrimas!A87="","",TDPrimas!A87) -> 79 | C89: =IF(TDPrimas!B87="","",TDPrimas!B87) -> Principal México | D89: =IF(TDPrimas!C87="","",TDPrimas!C87) -> 192.54227 | E89: =IF(TDPrimas!D87="","",TDPrimas!D87) -> 212.01304 | F89: 3.039835289e-05 | G89: 3.685822062e-05 | H89: -19.47077 | I89: -9.183760584 | J89: =IF(D89="","",IFERROR((D89/VLOOKUP(C89&"|"&VLOOKUP(TDPrimas!$B$4,Cat!R:T,2,0),'TD Operación'!A:D,4,0))*100,"ND")) -> 100 | K89: =IF(TDPrimas!E87="","",TDPrimas!E87) -> 100 | L89: =IF(TDPrimas!F87="","",TDPrimas!F87) -> 3.039835289e-05
B90: =IF(TDPrimas!A88="","",TDPrimas!A88) -> 80 | C90: =IF(TDPrimas!B88="","",TDPrimas!B88) -> HSBC Pensiones | D90: =IF(TDPrimas!C88="","",TDPrimas!C88) -> 0 | E90: =IF(TDPrimas!D88="","",TDPrimas!D88) -> 10310.62031 | F90: 0 | G90: 0.001792489359 | H90: -10310.62031 | I90: -100 | J90: =IF(D90="","",IFERROR((D90/VLOOKUP(C90&"|"&VLOOKUP(TDPrimas!$B$4,Cat!R:T,2,0),'TD Operación'!A:D,4,0))*100,"ND")) -> ND | K90: =IF(TDPrimas!E88="","",TDPrimas!E88) -> 0 | L90: =IF(TDPrimas!F88="","",TDPrimas!F88) -> 0
B91: =IF(TDPrimas!A89="","",TDPrimas!A89) -> 150.1 | C91: =IF(TDPrimas!B89="","",TDPrimas!B89) -> TOTAL RESTO | D91: =IF(TDPrimas!C89="","",TDPrimas!C89) -> 138602826.1 | E91: =IF(TDPrimas!D89="","",TDPrimas!D89) -> 125187117.1 | F91: 21.88245532 | G91: 21.76363483 | H91: 13415709.01 | I91: 10.71652525 | J91: =IF(D91="","",IFERROR((D91/VLOOKUP(C91&"|"&VLOOKUP(TDPrimas!$B$4,Cat!R:T,2,0),'TD Operación'!A:D,4,0))*100,"ND")) -> 100 | K91: =IF(TDPrimas!E89="","",TDPrimas!E89) -> 107.65154 | L91: =IF(TDPrimas!F89="","",TDPrimas!F89) -> 21.88245532
B92: =IF(TDPrimas!A90="","",TDPrimas!A90) -> 151.1 | C92: =IF(TDPrimas!B90="","",TDPrimas!B90) -> TOTAL | D92: =IF(TDPrimas!C90="","",TDPrimas!C90) -> 633397048.5 | E92: =IF(TDPrimas!D90="","",TDPrimas!D90) -> 575212358.1 | F92: 100 | G92: 100 | H92: 58184690.36 | I92: 10.1153408 | J92: =IF(D92="","",IFERROR((D92/VLOOKUP(C92&"|"&VLOOKUP(TDPrimas!$B$4,Cat!R:T,2,0),'TD Operación'!A:D,4,0))*100,"ND")) -> 100 | K92: =IF(TDPrimas!E90="","",TDPrimas!E90) -> 108.0905154 | L92: =IF(TDPrimas!F90="","",TDPrimas!F90) -> 100
B93: =IF(TDPrimas!A91="","",TDPrimas!A91) ->  | C93: =IF(TDPrimas!B91="","",TDPrimas!B91) ->  | D93: =IF(TDPrimas!C91="","",TDPrimas!C91) ->  | E93: =IF(TDPrimas!D91="","",TDPrimas!D91) ->  | J93: =IF(D93="","",IFERROR((D93/VLOOKUP(C93&"|"&VLOOKUP(TDPrimas!$B$4,Cat!R:T,2,0),'TD Operación'!A:D,4,0))*100,"ND")) ->  | K93: =IF(TDPrimas!E91="","",TDPrimas!E91) ->  | L93: =IF(TDPrimas!F91="","",TDPrimas!F91) -> 
B94: =IF(TDPrimas!A92="","",TDPrimas!A92) ->  | C94: =IF(TDPrimas!B92="","",TDPrimas!B92) ->  | D94: =IF(TDPrimas!C92="","",TDPrimas!C92) ->  | E94: =IF(TDPrimas!D92="","",TDPrimas!D92) ->  | J94: =IF(D94="","",IFERROR((D94/VLOOKUP(C94&"|"&VLOOKUP(TDPrimas!$B$4,Cat!R:T,2,0),'TD Operación'!A:D,4,0))*100,"ND")) ->  | K94: =IF(TDPrimas!E92="","",TDPrimas!E92) ->  | L94: =IF(TDPrimas!F92="","",TDPrimas!F92) -> 
B95: =IF(TDPrimas!A93="","",TDPrimas!A93) ->  | C95: =IF(TDPrimas!B93="","",TDPrimas!B93) ->  | D95: =IF(TDPrimas!C93="","",TDPrimas!C93) ->  | E95: =IF(TDPrimas!D93="","",TDPrimas!D93) ->  | J95: =IF(D95="","",IFERROR((D95/VLOOKUP(C95&"|"&VLOOKUP(TDPrimas!$B$4,Cat!R:T,2,0),'TD Operación'!A:D,4,0))*100,"ND")) ->  | K95: =IF(TDPrimas!E93="","",TDPrimas!E93) ->  | L95: =IF(TDPrimas!F93="","",TDPrimas!F93) -> 
B96: =IF(TDPrimas!A94="","",TDPrimas!A94) ->  | C96: =IF(TDPrimas!B94="","",TDPrimas!B94) ->  | D96: =IF(TDPrimas!C94="","",TDPrimas!C94) ->  | E96: =IF(TDPrimas!D94="","",TDPrimas!D94) ->  | J96: =IF(D96="","",IFERROR((D96/VLOOKUP(C96&"|"&VLOOKUP(TDPrimas!$B$4,Cat!R:T,2,0),'TD Operación'!A:D,4,0))*100,"ND")) ->  | K96: =IF(TDPrimas!E94="","",TDPrimas!E94) ->  | L96: =IF(TDPrimas!F94="","",TDPrimas!F94) -> 
B97: =IF(TDPrimas!A95="","",TDPrimas!A95) ->  | C97: =IF(TDPrimas!B95="","",TDPrimas!B95) ->  | D97: =IF(TDPrimas!C95="","",TDPrimas!C95) ->  | E97: =IF(TDPrimas!D95="","",TDPrimas!D95) ->  | J97: =IF(D97="","",IFERROR((D97/VLOOKUP(C97&"|"&VLOOKUP(TDPrimas!$B$4,Cat!R:T,2,0),'TD Operación'!A:D,4,0))*100,"ND")) ->  | K97: =IF(TDPrimas!E95="","",TDPrimas!E95) ->  | L97: =IF(TDPrimas!F95="","",TDPrimas!F95) -> 
B98: =IF(TDPrimas!A96="","",TDPrimas!A96) ->  | C98: =IF(TDPrimas!B96="","",TDPrimas!B96) ->  | D98: =IF(TDPrimas!C96="","",TDPrimas!C96) ->  | E98: =IF(TDPrimas!D96="","",TDPrimas!D96) ->  | J98: =IF(D98="","",IFERROR((D98/VLOOKUP(C98&"|"&VLOOKUP(TDPrimas!$B$4,Cat!R:T,2,0),'TD Operación'!A:D,4,0))*100,"ND")) ->  | K98: =IF(TDPrimas!E96="","",TDPrimas!E96) ->  | L98: =IF(TDPrimas!F96="","",TDPrimas!F96) -> 
B99: =IF(TDPrimas!A97="","",TDPrimas!A97) ->  | C99: =IF(TDPrimas!B97="","",TDPrimas!B97) ->  | D99: =IF(TDPrimas!C97="","",TDPrimas!C97) ->  | E99: =IF(TDPrimas!D97="","",TDPrimas!D97) ->  | J99: =IF(D99="","",IFERROR((D99/VLOOKUP(C99&"|"&VLOOKUP(TDPrimas!$B$4,Cat!R:T,2,0),'TD Operación'!A:D,4,0))*100,"ND")) ->  | K99: =IF(TDPrimas!E97="","",TDPrimas!E97) ->  | L99: =IF(TDPrimas!F97="","",TDPrimas!F97) -> 
B100: =IF(TDPrimas!A98="","",TDPrimas!A98) ->  | C100: =IF(TDPrimas!B98="","",TDPrimas!B98) ->  | D100: =IF(TDPrimas!C98="","",TDPrimas!C98) ->  | E100: =IF(TDPrimas!D98="","",TDPrimas!D98) ->  | J100: =IF(D100="","",IFERROR((D100/VLOOKUP(C100&"|"&VLOOKUP(TDPrimas!$B$4,Cat!R:T,2,0),'TD Operación'!A:D,4,0))*100,"ND")) ->  | K100: =IF(TDPrimas!E98="","",TDPrimas!E98) ->  | L100: =IF(TDPrimas!F98="","",TDPrimas!F98) -> 
B101: =IF(TDPrimas!A99="","",TDPrimas!A99) ->  | C101: =IF(TDPrimas!B99="","",TDPrimas!B99) ->  | D101: =IF(TDPrimas!C99="","",TDPrimas!C99) ->  | E101: =IF(TDPrimas!D99="","",TDPrimas!D99) ->  | J101: =IF(D101="","",IFERROR((D101/VLOOKUP(C101&"|"&VLOOKUP(TDPrimas!$B$4,Cat!R:T,2,0),'TD Operación'!A:D,4,0))*100,"ND")) ->  | K101: =IF(TDPrimas!E99="","",TDPrimas!E99) ->  | L101: =IF(TDPrimas!F99="","",TDPrimas!F99) -> 
B102: =IF(TDPrimas!A100="","",TDPrimas!A100) ->  | C102: =IF(TDPrimas!B100="","",TDPrimas!B100) ->  | D102: =IF(TDPrimas!C100="","",TDPrimas!C100) ->  | E102: =IF(TDPrimas!D100="","",TDPrimas!D100) ->  | J102: =IF(D102="","",IFERROR((D102/VLOOKUP(C102&"|"&VLOOKUP(TDPrimas!$B$4,Cat!R:T,2,0),'TD Operación'!A:D,4,0))*100,"ND")) ->  | K102: =IF(TDPrimas!E100="","",TDPrimas!E100) ->  | L102: =IF(TDPrimas!F100="","",TDPrimas!F100) -> 
B103: =IF(TDPrimas!A101="","",TDPrimas!A101) ->  | C103: =IF(TDPrimas!B101="","",TDPrimas!B101) ->  | D103: =IF(TDPrimas!C101="","",TDPrimas!C101) ->  | E103: =IF(TDPrimas!D101="","",TDPrimas!D101) ->  | J103: =IF(D103="","",IFERROR((D103/VLOOKUP(C103&"|"&VLOOKUP(TDPrimas!$B$4,Cat!R:T,2,0),'TD Operación'!A:D,4,0))*100,"ND")) ->  | K103: =IF(TDPrimas!E101="","",TDPrimas!E101) ->  | L103: =IF(TDPrimas!F101="","",TDPrimas!F101) -> 
B104: =IF(TDPrimas!A102="","",TDPrimas!A102) ->  | C104: =IF(TDPrimas!B102="","",TDPrimas!B102) ->  | D104: =IF(TDPrimas!C102="","",TDPrimas!C102) ->  | E104: =IF(TDPrimas!D102="","",TDPrimas!D102) ->  | J104: =IF(D104="","",IFERROR((D104/VLOOKUP(C104&"|"&VLOOKUP(TDPrimas!$B$4,Cat!R:T,2,0),'TD Operación'!A:D,4,0))*100,"ND")) ->  | K104: =IF(TDPrimas!E102="","",TDPrimas!E102) ->  | L104: =IF(TDPrimas!F102="","",TDPrimas!F102) -> 
B105: =IF(TDPrimas!A103="","",TDPrimas!A103) ->  | C105: =IF(TDPrimas!B103="","",TDPrimas!B103) ->  | D105: =IF(TDPrimas!C103="","",TDPrimas!C103) ->  | E105: =IF(TDPrimas!D103="","",TDPrimas!D103) ->  | J105: =IF(D105="","",IFERROR((D105/VLOOKUP(C105&"|"&VLOOKUP(TDPrimas!$B$4,Cat!R:T,2,0),'TD Operación'!A:D,4,0))*100,"ND")) ->  | K105: =IF(TDPrimas!E103="","",TDPrimas!E103) ->  | L105: =IF(TDPrimas!F103="","",TDPrimas!F103) -> 
B106: =IF(TDPrimas!A104="","",TDPrimas!A104) ->  | C106: =IF(TDPrimas!B104="","",TDPrimas!B104) ->  | D106: =IF(TDPrimas!C104="","",TDPrimas!C104) ->  | E106: =IF(TDPrimas!D104="","",TDPrimas!D104) ->  | J106: =IF(D106="","",IFERROR((D106/VLOOKUP(C106&"|"&VLOOKUP(TDPrimas!$B$4,Cat!R:T,2,0),'TD Operación'!A:D,4,0))*100,"ND")) ->  | K106: =IF(TDPrimas!E104="","",TDPrimas!E104) ->  | L106: =IF(TDPrimas!F104="","",TDPrimas!F104) -> 
B107: =IF(TDPrimas!A105="","",TDPrimas!A105) ->  | C107: =IF(TDPrimas!B105="","",TDPrimas!B105) ->  | D107: =IF(TDPrimas!C105="","",TDPrimas!C105) ->  | E107: =IF(TDPrimas!D105="","",TDPrimas!D105) ->  | J107: =IF(D107="","",IFERROR((D107/VLOOKUP(C107&"|"&VLOOKUP(TDPrimas!$B$4,Cat!R:T,2,0),'TD Operación'!A:D,4,0))*100,"ND")) ->  | K107: =IF(TDPrimas!E105="","",TDPrimas!E105) ->  | L107: =IF(TDPrimas!F105="","",TDPrimas!F105) -> 
B108: =IF(TDPrimas!A106="","",TDPrimas!A106) ->  | C108: =IF(TDPrimas!B106="","",TDPrimas!B106) ->  | D108: =IF(TDPrimas!C106="","",TDPrimas!C106) ->  | E108: =IF(TDPrimas!D106="","",TDPrimas!D106) ->  | J108: =IF(D108="","",IFERROR((D108/VLOOKUP(C108&"|"&VLOOKUP(TDPrimas!$B$4,Cat!R:T,2,0),'TD Operación'!A:D,4,0))*100,"ND")) ->  | K108: =IF(TDPrimas!E106="","",TDPrimas!E106) ->  | L108: =IF(TDPrimas!F106="","",TDPrimas!F106) -> 
B109: =IF(TDPrimas!A107="","",TDPrimas!A107) ->  | C109: =IF(TDPrimas!B107="","",TDPrimas!B107) ->  | D109: =IF(TDPrimas!C107="","",TDPrimas!C107) ->  | E109: =IF(TDPrimas!D107="","",TDPrimas!D107) ->  | J109: =IF(D109="","",IFERROR((D109/VLOOKUP(C109&"|"&VLOOKUP(TDPrimas!$B$4,Cat!R:T,2,0),'TD Operación'!A:D,4,0))*100,"ND")) ->  | K109: =IF(TDPrimas!E107="","",TDPrimas!E107) ->  | L109: =IF(TDPrimas!F107="","",TDPrimas!F107) -> 
B110: =IF(TDPrimas!A108="","",TDPrimas!A108) ->  | C110: =IF(TDPrimas!B108="","",TDPrimas!B108) ->  | D110: =IF(TDPrimas!C108="","",TDPrimas!C108) ->  | E110: =IF(TDPrimas!D108="","",TDPrimas!D108) ->  | J110: =IF(D110="","",IFERROR((D110/VLOOKUP(C110&"|"&VLOOKUP(TDPrimas!$B$4,Cat!R:T,2,0),'TD Operación'!A:D,4,0))*100,"ND")) ->  | K110: =IF(TDPrimas!E108="","",TDPrimas!E108) ->  | L110: =IF(TDPrimas!F108="","",TDPrimas!F108) -> 
B111: =IF(TDPrimas!A109="","",TDPrimas!A109) ->  | C111: =IF(TDPrimas!B109="","",TDPrimas!B109) ->  | D111: =IF(TDPrimas!C109="","",TDPrimas!C109) ->  | E111: =IF(TDPrimas!D109="","",TDPrimas!D109) ->  | J111: =IF(D111="","",IFERROR((D111/VLOOKUP(C111&"|"&VLOOKUP(TDPrimas!$B$4,Cat!R:T,2,0),'TD Operación'!A:D,4,0))*100,"ND")) ->  | K111: =IF(TDPrimas!E109="","",TDPrimas!E109) ->  | L111: =IF(TDPrimas!F109="","",TDPrimas!F109) -> 
B112: =IF(TDPrimas!A110="","",TDPrimas!A110) ->  | C112: =IF(TDPrimas!B110="","",TDPrimas!B110) ->  | D112: =IF(TDPrimas!C110="","",TDPrimas!C110) ->  | E112: =IF(TDPrimas!D110="","",TDPrimas!D110) ->  | J112: =IF(D112="","",IFERROR((D112/VLOOKUP(C112&"|"&VLOOKUP(TDPrimas!$B$4,Cat!R:T,2,0),'TD Operación'!A:D,4,0))*100,"ND")) ->  | K112: =IF(TDPrimas!E110="","",TDPrimas!E110) ->  | L112: =IF(TDPrimas!F110="","",TDPrimas!F110) -> 
B113: =IF(TDPrimas!A111="","",TDPrimas!A111) ->  | C113: =IF(TDPrimas!B111="","",TDPrimas!B111) ->  | D113: =IF(TDPrimas!C111="","",TDPrimas!C111) ->  | E113: =IF(TDPrimas!D111="","",TDPrimas!D111) ->  | J113: =IF(D113="","",IFERROR((D113/VLOOKUP(C113&"|"&VLOOKUP(TDPrimas!$B$4,Cat!R:T,2,0),'TD Operación'!A:D,4,0))*100,"ND")) ->  | K113: =IF(TDPrimas!E111="","",TDPrimas!E111) ->  | L113: =IF(TDPrimas!F111="","",TDPrimas!F111) -> 
B114: =IF(TDPrimas!A112="","",TDPrimas!A112) ->  | C114: =IF(TDPrimas!B112="","",TDPrimas!B112) ->  | D114: =IF(TDPrimas!C112="","",TDPrimas!C112) ->  | E114: =IF(TDPrimas!D112="","",TDPrimas!D112) ->  | J114: =IF(D114="","",IFERROR((D114/VLOOKUP(C114&"|"&VLOOKUP(TDPrimas!$B$4,Cat!R:T,2,0),'TD Operación'!A:D,4,0))*100,"ND")) ->  | K114: =IF(TDPrimas!E112="","",TDPrimas!E112) ->  | L114: =IF(TDPrimas!F112="","",TDPrimas!F112) -> 
B115: =IF(TDPrimas!A113="","",TDPrimas!A113) ->  | C115: =IF(TDPrimas!B113="","",TDPrimas!B113) ->  | D115: =IF(TDPrimas!C113="","",TDPrimas!C113) ->  | E115: =IF(TDPrimas!D113="","",TDPrimas!D113) ->  | J115: =IF(D115="","",IFERROR((D115/VLOOKUP(C115&"|"&VLOOKUP(TDPrimas!$B$4,Cat!R:T,2,0),'TD Operación'!A:D,4,0))*100,"ND")) ->  | K115: =IF(TDPrimas!E113="","",TDPrimas!E113) ->  | L115: =IF(TDPrimas!F113="","",TDPrimas!F113) -> 
B116: =IF(TDPrimas!A114="","",TDPrimas!A114) ->  | C116: =IF(TDPrimas!B114="","",TDPrimas!B114) ->  | D116: =IF(TDPrimas!C114="","",TDPrimas!C114) ->  | E116: =IF(TDPrimas!D114="","",TDPrimas!D114) ->  | J116: =IF(D116="","",IFERROR((D116/VLOOKUP(C116&"|"&VLOOKUP(TDPrimas!$B$4,Cat!R:T,2,0),'TD Operación'!A:D,4,0))*100,"ND")) ->  | K116: =IF(TDPrimas!E114="","",TDPrimas!E114) ->  | L116: =IF(TDPrimas!F114="","",TDPrimas!F114) -> 
B117: =IF(TDPrimas!A115="","",TDPrimas!A115) ->  | C117: =IF(TDPrimas!B115="","",TDPrimas!B115) ->  | D117: =IF(TDPrimas!C115="","",TDPrimas!C115) ->  | E117: =IF(TDPrimas!D115="","",TDPrimas!D115) ->  | J117: =IF(D117="","",IFERROR((D117/VLOOKUP(C117&"|"&VLOOKUP(TDPrimas!$B$4,Cat!R:T,2,0),'TD Operación'!A:D,4,0))*100,"ND")) ->  | K117: =IF(TDPrimas!E115="","",TDPrimas!E115) ->  | L117: =IF(TDPrimas!F115="","",TDPrimas!F115) -> 
B118: =IF(TDPrimas!A116="","",TDPrimas!A116) ->  | C118: =IF(TDPrimas!B116="","",TDPrimas!B116) ->  | D118: =IF(TDPrimas!C116="","",TDPrimas!C116) ->  | E118: =IF(TDPrimas!D116="","",TDPrimas!D116) ->  | J118: =IF(D118="","",IFERROR((D118/VLOOKUP(C118&"|"&VLOOKUP(TDPrimas!$B$4,Cat!R:T,2,0),'TD Operación'!A:D,4,0))*100,"ND")) ->  | K118: =IF(TDPrimas!E116="","",TDPrimas!E116) ->  | L118: =IF(TDPrimas!F116="","",TDPrimas!F116) -> 
B119: =IF(TDPrimas!A117="","",TDPrimas!A117) ->  | C119: =IF(TDPrimas!B117="","",TDPrimas!B117) ->  | D119: =IF(TDPrimas!C117="","",TDPrimas!C117) ->  | E119: =IF(TDPrimas!D117="","",TDPrimas!D117) ->  | J119: =IF(D119="","",IFERROR((D119/VLOOKUP(C119&"|"&VLOOKUP(TDPrimas!$B$4,Cat!R:T,2,0),'TD Operación'!A:D,4,0))*100,"ND")) ->  | K119: =IF(TDPrimas!E117="","",TDPrimas!E117) ->  | L119: =IF(TDPrimas!F117="","",TDPrimas!F117) -> 
B120: =IF(TDPrimas!A118="","",TDPrimas!A118) ->  | C120: =IF(TDPrimas!B118="","",TDPrimas!B118) ->  | D120: =IF(TDPrimas!C118="","",TDPrimas!C118) ->  | E120: =IF(TDPrimas!D118="","",TDPrimas!D118) ->  | J120: =IF(D120="","",IFERROR((D120/VLOOKUP(C120&"|"&VLOOKUP(TDPrimas!$B$4,Cat!R:T,2,0),'TD Operación'!A:D,4,0))*100,"ND")) ->  | K120: =IF(TDPrimas!E118="","",TDPrimas!E118) ->  | L120: =IF(TDPrimas!F118="","",TDPrimas!F118) -> 
B121: =IF(TDPrimas!A119="","",TDPrimas!A119) ->  | C121: =IF(TDPrimas!B119="","",TDPrimas!B119) ->  | D121: =IF(TDPrimas!C119="","",TDPrimas!C119) ->  | E121: =IF(TDPrimas!D119="","",TDPrimas!D119) ->  | J121: =IF(D121="","",IFERROR((D121/VLOOKUP(C121&"|"&VLOOKUP(TDPrimas!$B$4,Cat!R:T,2,0),'TD Operación'!A:D,4,0))*100,"ND")) ->  | K121: =IF(TDPrimas!E119="","",TDPrimas!E119) ->  | L121: =IF(TDPrimas!F119="","",TDPrimas!F119) -> 
B122: =IF(TDPrimas!A120="","",TDPrimas!A120) ->  | C122: =IF(TDPrimas!B120="","",TDPrimas!B120) ->  | D122: =IF(TDPrimas!C120="","",TDPrimas!C120) ->  | E122: =IF(TDPrimas!D120="","",TDPrimas!D120) ->  | J122: =IF(D122="","",IFERROR((D122/VLOOKUP(C122&"|"&VLOOKUP(TDPrimas!$B$4,Cat!R:T,2,0),'TD Operación'!A:D,4,0))*100,"ND")) ->  | K122: =IF(TDPrimas!E120="","",TDPrimas!E120) ->  | L122: =IF(TDPrimas!F120="","",TDPrimas!F120) -> 
B123: =IF(TDPrimas!A121="","",TDPrimas!A121) ->  | C123: =IF(TDPrimas!B121="","",TDPrimas!B121) ->  | D123: =IF(TDPrimas!C121="","",TDPrimas!C121) ->  | E123: =IF(TDPrimas!D121="","",TDPrimas!D121) ->  | J123: =IF(D123="","",IFERROR((D123/VLOOKUP(C123&"|"&VLOOKUP(TDPrimas!$B$4,Cat!R:T,2,0),'TD Operación'!A:D,4,0))*100,"ND")) ->  | K123: =IF(TDPrimas!E121="","",TDPrimas!E121) ->  | L123: =IF(TDPrimas!F121="","",TDPrimas!F121) -> 
B124: =IF(TDPrimas!A122="","",TDPrimas!A122) ->  | C124: =IF(TDPrimas!B122="","",TDPrimas!B122) ->  | D124: =IF(TDPrimas!C122="","",TDPrimas!C122) ->  | E124: =IF(TDPrimas!D122="","",TDPrimas!D122) ->  | J124: =IF(D124="","",IFERROR((D124/VLOOKUP(C124&"|"&VLOOKUP(TDPrimas!$B$4,Cat!R:T,2,0),'TD Operación'!A:D,4,0))*100,"ND")) ->  | K124: =IF(TDPrimas!E122="","",TDPrimas!E122) ->  | L124: =IF(TDPrimas!F122="","",TDPrimas!F122) -> 
B125: =IF(TDPrimas!A123="","",TDPrimas!A123) ->  | C125: =IF(TDPrimas!B123="","",TDPrimas!B123) ->  | D125: =IF(TDPrimas!C123="","",TDPrimas!C123) ->  | E125: =IF(TDPrimas!D123="","",TDPrimas!D123) ->  | J125: =IF(D125="","",IFERROR((D125/VLOOKUP(C125&"|"&VLOOKUP(TDPrimas!$B$4,Cat!R:T,2,0),'TD Operación'!A:D,4,0))*100,"ND")) ->  | K125: =IF(TDPrimas!E123="","",TDPrimas!E123) ->  | L125: =IF(TDPrimas!F123="","",TDPrimas!F123) -> 
B128: NE = No Existe
B129: * % Extraordinario mayor de 1000%

Sheet Siniestros
B1: SINIESTROS DIRECTOS | I1: ='Primas Directas'!L1 -> Cuarto Trimestre 2021
B2: =UPPER(RIGHT(TDPrimas!$B$4,LEN(TDPrimas!$B$4)-3)) -> TOTAL GENERAL
D4: Siniestros Directos
B5: Compañías | D5: Importe | E5: Incr. % | F5: Inc. Rva. Dividendos | G5: % vs. Prima Directa | I5: % Participac de Mercado
D6: ='Primas Directas'!D6 -> 2021 | G6: ='Primas Directas'!D6 -> 2021 | H6: ='Primas Directas'!E6 -> 2020
C7: TOTAL | D7: =VLOOKUP(C7,'TD Siniestros'!$B$7:$M$154,2,0) -> 401698665.7 | E7: =VLOOKUP(C7,'TD Siniestros'!$B$7:$M$154,3,0) -> 15.41716601 | F7: =VLOOKUP(C7,'TD Siniestros'!$B$7:$M$154,4,0) -> 1136149.942 | G7: =VLOOKUP(C7,'TD Siniestros'!$B$7:$M$154,5,0) -> 63.41972491 | H7: =VLOOKUP(C7,'TD Siniestros'!$B$7:$M$154,6,0) -> 60.50646419 | I7: =IFERROR(D7/VLOOKUP("TOTAL",$C$8:$D$124,2,0)*100,"") -> 100
B8: =IF('TD Siniestros'!A7="","",'TD Siniestros'!A7) -> 1 | C8: =IF('TD Siniestros'!B7="","",'TD Siniestros'!B7) -> G.N.P. | D8: =IF('TD Siniestros'!C7="","",'TD Siniestros'!C7) -> 54196824.78 | E8: =IF('TD Siniestros'!D7="","",'TD Siniestros'!D7) -> 18.31993531 | F8: =IF('TD Siniestros'!E7="","",'TD Siniestros'!E7) -> -39024.72558 | G8: =IF('TD Siniestros'!F7="","",'TD Siniestros'!F7) -> 68.69560593 | H8: =IF('TD Siniestros'!G7="","",'TD Siniestros'!G7) -> 62.77486362 | I8: =IFERROR(D8/VLOOKUP("TOTAL",$C$8:$D$124,2,0)*100,"") -> 13.49191058
B9: =IF('TD Siniestros'!A8="","",'TD Siniestros'!A8) -> 2 | C9: =IF('TD Siniestros'!B8="","",'TD Siniestros'!B8) -> Metlife México | D9: =IF('TD Siniestros'!C8="","",'TD Siniestros'!C8) -> 51171404.81 | E9: =IF('TD Siniestros'!D8="","",'TD Siniestros'!D8) -> 14.75304561 | F9: =IF('TD Siniestros'!E8="","",'TD Siniestros'!E8) -> 32233.61516 | G9: =IF('TD Siniestros'!F8="","",'TD Siniestros'!F8) -> 81.95156351 | H9: =IF('TD Siniestros'!G8="","",'TD Siniestros'!G8) -> 78.39879084 | I9: =IFERROR(D9/VLOOKUP("TOTAL",$C$8:$D$124,2,0)*100,"") -> 12.73875399
B10: =IF('TD Siniestros'!A9="","",'TD Siniestros'!A9) -> 3 | C10: =IF('TD Siniestros'!B9="","",'TD Siniestros'!B9) -> BBVA Bancomer | D10: =IF('TD Siniestros'!C9="","",'TD Siniestros'!C9) -> 27242302.51 | E10: =IF('TD Siniestros'!D9="","",'TD Siniestros'!D9) -> 15.68161141 | F10: =IF('TD Siniestros'!E9="","",'TD Siniestros'!E9) -> 0 | G10: =IF('TD Siniestros'!F9="","",'TD Siniestros'!F9) -> 58.35522983 | H10: =IF('TD Siniestros'!G9="","",'TD Siniestros'!G9) -> 50.87549724 | I10: 6.781775702
B11: =IF('TD Siniestros'!A10="","",'TD Siniestros'!A10) -> 4 | C11: =IF('TD Siniestros'!B10="","",'TD Siniestros'!B10) -> AXA Seguros | D11: =IF('TD Siniestros'!C10="","",'TD Siniestros'!C10) -> 31487642.28 | E11: =IF('TD Siniestros'!D10="","",'TD Siniestros'!D10) -> 8.920513006 | F11: =IF('TD Siniestros'!E10="","",'TD Siniestros'!E10) -> 320836.8324 | G11: =IF('TD Siniestros'!F10="","",'TD Siniestros'!F10) -> 70.47211473 | H11: =IF('TD Siniestros'!G10="","",'TD Siniestros'!G10) -> 71.9035363 | I11: 7.838622572
B12: =IF('TD Siniestros'!A11="","",'TD Siniestros'!A11) -> 5 | C12: =IF('TD Siniestros'!B11="","",'TD Siniestros'!B11) -> Quálitas | D12: =IF('TD Siniestros'!C11="","",'TD Siniestros'!C11) -> 21146831.76 | E12: =IF('TD Siniestros'!D11="","",'TD Siniestros'!D11) -> 18.31540333 | F12: =IF('TD Siniestros'!E11="","",'TD Siniestros'!E11) -> 215157.3132 | G12: =IF('TD Siniestros'!F11="","",'TD Siniestros'!F11) -> 60.44550693 | H12: =IF('TD Siniestros'!G11="","",'TD Siniestros'!G11) -> 53.67064666 | I12: 5.264352005
B13: =IF('TD Siniestros'!A12="","",'TD Siniestros'!A12) -> 5.1 | C13: =IF('TD Siniestros'!B12="","",'TD Siniestros'!B12) -> TOTAL GRANDES | D13: =IF('TD Siniestros'!C12="","",'TD Siniestros'!C12) -> 185245006.1 | E13: =IF('TD Siniestros'!D12="","",'TD Siniestros'!D12) -> 15.25269885 | F13: =IF('TD Siniestros'!E12="","",'TD Siniestros'!E12) -> 529203.0351 | G13: =IF('TD Siniestros'!F12="","",'TD Siniestros'!F12) -> 69.2026836 | H13: =IF('TD Siniestros'!G12="","",'TD Siniestros'!G12) -> 64.38400103 | I13: 46.11541485
B14: =IF('TD Siniestros'!A13="","",'TD Siniestros'!A13) -> 6 | C14: =IF('TD Siniestros'!B13="","",'TD Siniestros'!B13) -> Monterrey New York Life | D14: =IF('TD Siniestros'!C13="","",'TD Siniestros'!C13) -> 25152594.87 | E14: =IF('TD Siniestros'!D13="","",'TD Siniestros'!D13) -> 6.562849351 | F14: =IF('TD Siniestros'!E13="","",'TD Siniestros'!E13) -> -15022.28688 | G14: =IF('TD Siniestros'!F13="","",'TD Siniestros'!F13) -> 72.8396592 | H14: =IF('TD Siniestros'!G13="","",'TD Siniestros'!G13) -> 71.93694595 | I14: 6.261557982
B15: =IF('TD Siniestros'!A14="","",'TD Siniestros'!A14) -> 7 | C15: =IF('TD Siniestros'!B14="","",'TD Siniestros'!B14) -> Mapfre México | D15: =IF('TD Siniestros'!C14="","",'TD Siniestros'!C14) -> 17482395.02 | E15: =IF('TD Siniestros'!D14="","",'TD Siniestros'!D14) -> 68.75815431 | F15: =IF('TD Siniestros'!E14="","",'TD Siniestros'!E14) -> 306528.0967 | G15: =IF('TD Siniestros'!F14="","",'TD Siniestros'!F14) -> 56.44367049 | H15: =IF('TD Siniestros'!G14="","",'TD Siniestros'!G14) -> 56.68674906 | I15: 4.352116776
B16: =IF('TD Siniestros'!A15="","",'TD Siniestros'!A15) -> 8 | C16: =IF('TD Siniestros'!B15="","",'TD Siniestros'!B15) -> Banorte | D16: =IF('TD Siniestros'!C15="","",'TD Siniestros'!C15) -> 19646394.99 | E16: =IF('TD Siniestros'!D15="","",'TD Siniestros'!D15) -> 22.48344576 | F16: =IF('TD Siniestros'!E15="","",'TD Siniestros'!E15) -> 9592.22948 | G16: =IF('TD Siniestros'!F15="","",'TD Siniestros'!F15) -> 70.70322035 | H16: =IF('TD Siniestros'!G15="","",'TD Siniestros'!G15) -> 59.6029268 | I16: 4.890829039
B17: =IF('TD Siniestros'!A16="","",'TD Siniestros'!A16) -> 9 | C17: =IF('TD Siniestros'!B16="","",'TD Siniestros'!B16) -> Citibanamex Seguros | D17: =IF('TD Siniestros'!C16="","",'TD Siniestros'!C16) -> 24172371.4 | E17: =IF('TD Siniestros'!D16="","",'TD Siniestros'!D16) -> 8.40569428 | F17: =IF('TD Siniestros'!E16="","",'TD Siniestros'!E16) -> 0 | G17: =IF('TD Siniestros'!F16="","",'TD Siniestros'!F16) -> 99.45489104 | H17: =IF('TD Siniestros'!G16="","",'TD Siniestros'!G16) -> 72.87344045 | I17: 6.017538385
B18: =IF('TD Siniestros'!A17="","",'TD Siniestros'!A17) -> 10 | C18: =IF('TD Siniestros'!B17="","",'TD Siniestros'!B17) -> Pensiones Banorte | D18: =IF('TD Siniestros'!C17="","",'TD Siniestros'!C17) -> 9941017.319 | E18: =IF('TD Siniestros'!D17="","",'TD Siniestros'!D17) -> 23.65545834 | F18: =IF('TD Siniestros'!E17="","",'TD Siniestros'!E17) -> 0 | G18: =IF('TD Siniestros'!F17="","",'TD Siniestros'!F17) -> 43.89074213 | H18: =IF('TD Siniestros'!G17="","",'TD Siniestros'!G17) -> 56.08425238 | I18: 2.474744919
B19: =IF('TD Siniestros'!A18="","",'TD Siniestros'!A18) -> 11 | C19: =IF('TD Siniestros'!B18="","",'TD Siniestros'!B18) -> Inbursa | D19: =IF('TD Siniestros'!C18="","",'TD Siniestros'!C18) -> 10778448.47 | E19: =IF('TD Siniestros'!D18="","",'TD Siniestros'!D18) -> -10.82271769 | F19: =IF('TD Siniestros'!E18="","",'TD Siniestros'!E18) -> 93973.83314 | G19: =IF('TD Siniestros'!F18="","",'TD Siniestros'!F18) -> 52.02979998 | H19: =IF('TD Siniestros'!G18="","",'TD Siniestros'!G18) -> 64.37206439 | I19: 2.683217394
B20: =IF('TD Siniestros'!A19="","",'TD Siniestros'!A19) -> 12 | C20: =IF('TD Siniestros'!B19="","",'TD Siniestros'!B19) -> Chubb Seguros México | D20: =IF('TD Siniestros'!C19="","",'TD Siniestros'!C19) -> 10399013.64 | E20: =IF('TD Siniestros'!D19="","",'TD Siniestros'!D19) -> 20.99944696 | F20: =IF('TD Siniestros'!E19="","",'TD Siniestros'!E19) -> 58332.11807 | G20: =IF('TD Siniestros'!F19="","",'TD Siniestros'!F19) -> 55.77488857 | H20: =IF('TD Siniestros'!G19="","",'TD Siniestros'!G19) -> 48.55117521 | I20: 2.588759817
B21: =IF('TD Siniestros'!A20="","",'TD Siniestros'!A20) -> 13 | C21: =IF('TD Siniestros'!B20="","",'TD Siniestros'!B20) -> Allianz México | D21: =IF('TD Siniestros'!C20="","",'TD Siniestros'!C20) -> 9667149.555 | E21: =IF('TD Siniestros'!D20="","",'TD Siniestros'!D20) -> -9.409597418 | F21: =IF('TD Siniestros'!E20="","",'TD Siniestros'!E20) -> 15790.18429 | G21: =IF('TD Siniestros'!F20="","",'TD Siniestros'!F20) -> 58.3733423 | H21: =IF('TD Siniestros'!G20="","",'TD Siniestros'!G20) -> 59.26257206 | I21: 2.406567504
B22: =IF('TD Siniestros'!A21="","",'TD Siniestros'!A21) -> 14 | C22: =IF('TD Siniestros'!B21="","",'TD Siniestros'!B21) -> Atlas | D22: =IF('TD Siniestros'!C21="","",'TD Siniestros'!C21) -> 9459950.649 | E22: =IF('TD Siniestros'!D21="","",'TD Siniestros'!D21) -> 31.69939327 | F22: =IF('TD Siniestros'!E21="","",'TD Siniestros'!E21) -> 18868.60054 | G22: =IF('TD Siniestros'!F21="","",'TD Siniestros'!F21) -> 59.00113274 | H22: =IF('TD Siniestros'!G21="","",'TD Siniestros'!G21) -> 48.35799913 | I22: 2.354986824
B23: =IF('TD Siniestros'!A22="","",'TD Siniestros'!A22) -> 15 | C23: =IF('TD Siniestros'!B22="","",'TD Siniestros'!B22) -> ProFuturo G.N.P. | D23: =IF('TD Siniestros'!C22="","",'TD Siniestros'!C22) -> 4046920.218 | E23: =IF('TD Siniestros'!D22="","",'TD Siniestros'!D22) -> 22.37490923 | F23: =IF('TD Siniestros'!E22="","",'TD Siniestros'!E22) -> 0 | G23: =IF('TD Siniestros'!F22="","",'TD Siniestros'!F22) -> 27.14506251 | H23: =IF('TD Siniestros'!G22="","",'TD Siniestros'!G22) -> 40.75223688 | I23: 1.007451745
B24: =IF('TD Siniestros'!A23="","",'TD Siniestros'!A23) -> 15.1 | C24: =IF('TD Siniestros'!B23="","",'TD Siniestros'!B23) -> TOTAL MEDIANAS | D24: =IF('TD Siniestros'!C23="","",'TD Siniestros'!C23) -> 140746256.1 | E24: =IF('TD Siniestros'!D23="","",'TD Siniestros'!D23) -> 15.19354822 | F24: =IF('TD Siniestros'!E23="","",'TD Siniestros'!E23) -> 488062.7754 | G24: =IF('TD Siniestros'!F23="","",'TD Siniestros'!F23) -> 61.97285951 | H24: =IF('TD Siniestros'!G23="","",'TD Siniestros'!G23) -> 60.9743301 | I24: 35.03777039
B25: =IF('TD Siniestros'!A24="","",'TD Siniestros'!A24) -> 16 | C25: =IF('TD Siniestros'!B24="","",'TD Siniestros'!B24) -> Zurich Santander | D25: =IF('TD Siniestros'!C24="","",'TD Siniestros'!C24) -> 3867497.09 | E25: =IF('TD Siniestros'!D24="","",'TD Siniestros'!D24) -> 69.44316794 | F25: =IF('TD Siniestros'!E24="","",'TD Siniestros'!E24) -> 0 | G25: =IF('TD Siniestros'!F24="","",'TD Siniestros'!F24) -> 26.23346538 | H25: =IF('TD Siniestros'!G24="","",'TD Siniestros'!G24) -> 19.71909258 | I25: 0.9627856452
B26: =IF('TD Siniestros'!A25="","",'TD Siniestros'!A25) -> 17 | C26: =IF('TD Siniestros'!B25="","",'TD Siniestros'!B25) -> GMX Seguros | D26: =IF('TD Siniestros'!C25="","",'TD Siniestros'!C25) -> 5005367.125 | E26: =IF('TD Siniestros'!D25="","",'TD Siniestros'!D25) -> 77.39943513 | F26: =IF('TD Siniestros'!E25="","",'TD Siniestros'!E25) -> 0 | G26: =IF('TD Siniestros'!F25="","",'TD Siniestros'!F25) -> 46.17210127 | H26: =IF('TD Siniestros'!G25="","",'TD Siniestros'!G25) -> 32.23305156 | I26: 1.246050224
B27: =IF('TD Siniestros'!A26="","",'TD Siniestros'!A26) -> 18 | C27: =IF('TD Siniestros'!B26="","",'TD Siniestros'!B26) -> Afirme | D27: =IF('TD Siniestros'!C26="","",'TD Siniestros'!C26) -> 5364726.368 | E27: =IF('TD Siniestros'!D26="","",'TD Siniestros'!D26) -> 32.99093797 | F27: =IF('TD Siniestros'!E26="","",'TD Siniestros'!E26) -> 10644.20622 | G27: =IF('TD Siniestros'!F26="","",'TD Siniestros'!F26) -> 52.59907175 | H27: =IF('TD Siniestros'!G26="","",'TD Siniestros'!G26) -> 36.61787112 | I27: 1.335510129
B28: =IF('TD Siniestros'!A27="","",'TD Siniestros'!A27) -> 19 | C28: =IF('TD Siniestros'!B27="","",'TD Siniestros'!B27) -> Pensiones BBVA Bancomer | D28: =IF('TD Siniestros'!C27="","",'TD Siniestros'!C27) -> 6719990.966 | E28: =IF('TD Siniestros'!D27="","",'TD Siniestros'!D27) -> 9.743548169 | F28: =IF('TD Siniestros'!E27="","",'TD Siniestros'!E27) -> 0 | G28: =IF('TD Siniestros'!F27="","",'TD Siniestros'!F27) -> 68.41195885 | H28: =IF('TD Siniestros'!G27="","",'TD Siniestros'!G27) -> 91.36163648 | I28: 1.672893524
B29: =IF('TD Siniestros'!A28="","",'TD Siniestros'!A28) -> 20 | C29: =IF('TD Siniestros'!B28="","",'TD Siniestros'!B28) -> HDI Seguros | D29: =IF('TD Siniestros'!C28="","",'TD Siniestros'!C28) -> 5401246.25 | E29: =IF('TD Siniestros'!D28="","",'TD Siniestros'!D28) -> -0.7005488001 | F29: =IF('TD Siniestros'!E28="","",'TD Siniestros'!E28) -> 0 | G29: =IF('TD Siniestros'!F28="","",'TD Siniestros'!F28) -> 62.22052592 | H29: =IF('TD Siniestros'!G28="","",'TD Siniestros'!G28) -> 67.27117125 | I29: 1.344601491
B30: =IF('TD Siniestros'!A29="","",'TD Siniestros'!A29) -> 21 | C30: =IF('TD Siniestros'!B29="","",'TD Siniestros'!B29) -> Zurich Daños | D30: =IF('TD Siniestros'!C29="","",'TD Siniestros'!C29) -> 4736871.427 | E30: =IF('TD Siniestros'!D29="","",'TD Siniestros'!D29) -> -9.548045919 | F30: =IF('TD Siniestros'!E29="","",'TD Siniestros'!E29) -> 20081.16806 | G30: =IF('TD Siniestros'!F29="","",'TD Siniestros'!F29) -> 65.93723781 | H30: =IF('TD Siniestros'!G29="","",'TD Siniestros'!G29) -> 76.95851592 | I30: 1.179210147
B31: =IF('TD Siniestros'!A30="","",'TD Siniestros'!A30) -> 22 | C31: =IF('TD Siniestros'!B30="","",'TD Siniestros'!B30) -> HSBC Seguros | D31: =IF('TD Siniestros'!C30="","",'TD Siniestros'!C30) -> 2270564.2 | E31: =IF('TD Siniestros'!D30="","",'TD Siniestros'!D30) -> 6.395670639 | F31: =IF('TD Siniestros'!E30="","",'TD Siniestros'!E30) -> 0 | G31: =IF('TD Siniestros'!F30="","",'TD Siniestros'!F30) -> 35.10249434 | H31: =IF('TD Siniestros'!G30="","",'TD Siniestros'!G30) -> 59.16982825 | I31: 0.5652406625
B32: =IF('TD Siniestros'!A31="","",'TD Siniestros'!A31) -> 23 | C32: =IF('TD Siniestros'!B31="","",'TD Siniestros'!B31) -> Seguros SURA | D32: =IF('TD Siniestros'!C31="","",'TD Siniestros'!C31) -> 3509289.612 | E32: =IF('TD Siniestros'!D31="","",'TD Siniestros'!D31) -> 24.98724095 | F32: =IF('TD Siniestros'!E31="","",'TD Siniestros'!E31) -> -11145.66388 | G32: =IF('TD Siniestros'!F31="","",'TD Siniestros'!F31) -> 59.47885237 | H32: =IF('TD Siniestros'!G31="","",'TD Siniestros'!G31) -> 52.92576015 | I32: 0.8736124643
B33: =IF('TD Siniestros'!A32="","",'TD Siniestros'!A32) -> 24 | C33: =IF('TD Siniestros'!B32="","",'TD Siniestros'!B32) -> AIG Seguros | D33: =IF('TD Siniestros'!C32="","",'TD Siniestros'!C32) -> 924188.5786 | E33: =IF('TD Siniestros'!D32="","",'TD Siniestros'!D32) -> -46.24157231 | F33: =IF('TD Siniestros'!E32="","",'TD Siniestros'!E32) -> 3691.70912 | G33: =IF('TD Siniestros'!F32="","",'TD Siniestros'!F32) -> 17.47271346 | H33: =IF('TD Siniestros'!G32="","",'TD Siniestros'!G32) -> 31.71465475 | I33: 0.2300701141
B34: =IF('TD Siniestros'!A33="","",'TD Siniestros'!A33) -> 25 | C34: =IF('TD Siniestros'!B33="","",'TD Siniestros'!B33) -> Seguros Azteca | D34: =IF('TD Siniestros'!C33="","",'TD Siniestros'!C33) -> 4493918.4 | E34: =IF('TD Siniestros'!D33="","",'TD Siniestros'!D33) -> 65.11899258 | F34: =IF('TD Siniestros'!E33="","",'TD Siniestros'!E33) -> 0 | G34: =IF('TD Siniestros'!F33="","",'TD Siniestros'!F33) -> 90.18359267 | H34: =IF('TD Siniestros'!G33="","",'TD Siniestros'!G33) -> 57.41832801 | I34: 1.118728735
B35: =IF('TD Siniestros'!A34="","",'TD Siniestros'!A34) -> 26 | C35: =IF('TD Siniestros'!B34="","",'TD Siniestros'!B34) -> BUPA México | D35: =IF('TD Siniestros'!C34="","",'TD Siniestros'!C34) -> 2552497.556 | E35: =IF('TD Siniestros'!D34="","",'TD Siniestros'!D34) -> 33.31952503 | F35: =IF('TD Siniestros'!E34="","",'TD Siniestros'!E34) -> 0 | G35: =IF('TD Siniestros'!F34="","",'TD Siniestros'!F34) -> 71.01707795 | H35: =IF('TD Siniestros'!G34="","",'TD Siniestros'!G34) -> 56.64667793 | I35: 0.6354259483
B36: =IF('TD Siniestros'!A35="","",'TD Siniestros'!A35) -> 27 | C36: =IF('TD Siniestros'!B35="","",'TD Siniestros'!B35) -> FM Global | D36: =IF('TD Siniestros'!C35="","",'TD Siniestros'!C35) -> 221258.0665 | E36: =IF('TD Siniestros'!D35="","",'TD Siniestros'!D35) -> -65.04777514 | F36: =IF('TD Siniestros'!E35="","",'TD Siniestros'!E35) -> 0 | G36: =IF('TD Siniestros'!F35="","",'TD Siniestros'!F35) -> 7.013813598 | H36: =IF('TD Siniestros'!G35="","",'TD Siniestros'!G35) -> 19.13848223 | I36: 0.05508060778
B37: =IF('TD Siniestros'!A36="","",'TD Siniestros'!A36) -> 28 | C37: =IF('TD Siniestros'!B36="","",'TD Siniestros'!B36) -> Ve Por Más | D37: =IF('TD Siniestros'!C36="","",'TD Siniestros'!C36) -> 2198329.795 | E37: =IF('TD Siniestros'!D36="","",'TD Siniestros'!D36) -> 58.38974708 | F37: =IF('TD Siniestros'!E36="","",'TD Siniestros'!E36) -> 6977.52865 | G37: =IF('TD Siniestros'!F36="","",'TD Siniestros'!F36) -> 70.03340567 | H37: =IF('TD Siniestros'!G36="","",'TD Siniestros'!G36) -> 48.45729085 | I37: 0.5472584258
B38: =IF('TD Siniestros'!A37="","",'TD Siniestros'!A37) -> 29 | C38: =IF('TD Siniestros'!B37="","",'TD Siniestros'!B37) -> Seguros Argos | D38: =IF('TD Siniestros'!C37="","",'TD Siniestros'!C37) -> 3269306.226 | E38: =IF('TD Siniestros'!D37="","",'TD Siniestros'!D37) -> 32.9086437 | F38: =IF('TD Siniestros'!E37="","",'TD Siniestros'!E37) -> -7835.62359 | G38: =IF('TD Siniestros'!F37="","",'TD Siniestros'!F37) -> 106.5912286 | H38: =IF('TD Siniestros'!G37="","",'TD Siniestros'!G37) -> 82.02342884 | I38: 0.8138703224
B39: =IF('TD Siniestros'!A38="","",'TD Siniestros'!A38) -> 30 | C39: =IF('TD Siniestros'!B38="","",'TD Siniestros'!B38) -> ANA | D39: =IF('TD Siniestros'!C38="","",'TD Siniestros'!C38) -> 1471671.364 | E39: =IF('TD Siniestros'!D38="","",'TD Siniestros'!D38) -> 40.71411924 | F39: =IF('TD Siniestros'!E38="","",'TD Siniestros'!E38) -> 26770.93025 | G39: =IF('TD Siniestros'!F38="","",'TD Siniestros'!F38) -> 51.70606169 | H39: =IF('TD Siniestros'!G38="","",'TD Siniestros'!G38) -> 42.90863838 | I39: 0.3663620245
B40: =IF('TD Siniestros'!A39="","",'TD Siniestros'!A39) -> 31 | C40: =IF('TD Siniestros'!B39="","",'TD Siniestros'!B39) -> Cardif Vida | D40: =IF('TD Siniestros'!C39="","",'TD Siniestros'!C39) -> 1757023.221 | E40: =IF('TD Siniestros'!D39="","",'TD Siniestros'!D39) -> 9.454080225 | F40: =IF('TD Siniestros'!E39="","",'TD Siniestros'!E39) -> -10761.83165 | G40: =IF('TD Siniestros'!F39="","",'TD Siniestros'!F39) -> 62.09891007 | H40: =IF('TD Siniestros'!G39="","",'TD Siniestros'!G39) -> 61.64929011 | I40: 0.4373983214
B41: =IF('TD Siniestros'!A40="","",'TD Siniestros'!A40) -> 32 | C41: =IF('TD Siniestros'!B40="","",'TD Siniestros'!B40) -> Plan Seguro | D41: =IF('TD Siniestros'!C40="","",'TD Siniestros'!C40) -> 1743118.786 | E41: =IF('TD Siniestros'!D40="","",'TD Siniestros'!D40) -> 31.13103558 | F41: =IF('TD Siniestros'!E40="","",'TD Siniestros'!E40) -> 0 | G41: =IF('TD Siniestros'!F40="","",'TD Siniestros'!F40) -> 67.14197453 | H41: =IF('TD Siniestros'!G40="","",'TD Siniestros'!G40) -> 58.49025881 | I41: 0.433936912
B42: =IF('TD Siniestros'!A41="","",'TD Siniestros'!A41) -> 33 | C42: =IF('TD Siniestros'!B41="","",'TD Siniestros'!B41) -> General de Seguros | D42: =IF('TD Siniestros'!C41="","",'TD Siniestros'!C41) -> 1485506.776 | E42: =IF('TD Siniestros'!D41="","",'TD Siniestros'!D41) -> 11.30229471 | F42: =IF('TD Siniestros'!E41="","",'TD Siniestros'!E41) -> 5953.53232 | G42: =IF('TD Siniestros'!F41="","",'TD Siniestros'!F41) -> 59.0402733 | H42: =IF('TD Siniestros'!G41="","",'TD Siniestros'!G41) -> 64.54019313 | I42: 0.3698062509
B43: =IF('TD Siniestros'!A42="","",'TD Siniestros'!A42) -> 34 | C43: =IF('TD Siniestros'!B42="","",'TD Siniestros'!B42) -> Hir Seguros | D43: =IF('TD Siniestros'!C42="","",'TD Siniestros'!C42) -> 1708961.996 | E43: =IF('TD Siniestros'!D42="","",'TD Siniestros'!D42) -> -22.07053782 | F43: =IF('TD Siniestros'!E42="","",'TD Siniestros'!E42) -> 6030.10851 | G43: =IF('TD Siniestros'!F42="","",'TD Siniestros'!F42) -> 87.64563062 | H43: =IF('TD Siniestros'!G42="","",'TD Siniestros'!G42) -> 148.1654815 | I43: 0.4254338244
B44: =IF('TD Siniestros'!A43="","",'TD Siniestros'!A43) -> 35 | C44: =IF('TD Siniestros'!B43="","",'TD Siniestros'!B43) -> El Potosí | D44: =IF('TD Siniestros'!C43="","",'TD Siniestros'!C43) -> 1054462.122 | E44: =IF('TD Siniestros'!D43="","",'TD Siniestros'!D43) -> -3.259699015 | F44: =IF('TD Siniestros'!E43="","",'TD Siniestros'!E43) -> -3495.99692 | G44: =IF('TD Siniestros'!F43="","",'TD Siniestros'!F43) -> 54.40998001 | H44: =IF('TD Siniestros'!G43="","",'TD Siniestros'!G43) -> 61.98077178 | I44: 0.2625007779
B45: =IF('TD Siniestros'!A44="","",'TD Siniestros'!A44) -> 36 | C45: =IF('TD Siniestros'!B44="","",'TD Siniestros'!B44) -> Seguros Azteca Daños | D45: =IF('TD Siniestros'!C44="","",'TD Siniestros'!C44) -> 789448.7934 | E45: =IF('TD Siniestros'!D44="","",'TD Siniestros'!D44) -> 42.21205385 | F45: =IF('TD Siniestros'!E44="","",'TD Siniestros'!E44) -> 33532.37215 | G45: =IF('TD Siniestros'!F44="","",'TD Siniestros'!F44) -> 42.80490663 | H45: =IF('TD Siniestros'!G44="","",'TD Siniestros'!G44) -> 22.30220796 | I45: 0.1965276116
B46: =IF('TD Siniestros'!A45="","",'TD Siniestros'!A45) -> 37 | C46: =IF('TD Siniestros'!B45="","",'TD Siniestros'!B45) -> Zurich Vida | D46: =IF('TD Siniestros'!C45="","",'TD Siniestros'!C45) -> 1863960.206 | E46: =IF('TD Siniestros'!D45="","",'TD Siniestros'!D45) -> -10.0597742 | F46: =IF('TD Siniestros'!E45="","",'TD Siniestros'!E45) -> -13950.43408 | G46: =IF('TD Siniestros'!F45="","",'TD Siniestros'!F45) -> 101.587293 | H46: =IF('TD Siniestros'!G45="","",'TD Siniestros'!G45) -> 112.9937572 | I46: 0.4640195164
B47: =IF('TD Siniestros'!A46="","",'TD Siniestros'!A46) -> 38 | C47: =IF('TD Siniestros'!B46="","",'TD Siniestros'!B46) -> Insignia Life | D47: =IF('TD Siniestros'!C46="","",'TD Siniestros'!C46) -> 1287631.01 | E47: =IF('TD Siniestros'!D46="","",'TD Siniestros'!D46) -> 38.85010831 | F47: =IF('TD Siniestros'!E46="","",'TD Siniestros'!E46) -> 6147.40293 | G47: =IF('TD Siniestros'!F46="","",'TD Siniestros'!F46) -> 74.04697497 | H47: =IF('TD Siniestros'!G46="","",'TD Siniestros'!G46) -> 51.80257194 | I47: 0.320546499
B48: =IF('TD Siniestros'!A47="","",'TD Siniestros'!A47) -> 39 | C48: =IF('TD Siniestros'!B47="","",'TD Siniestros'!B47) -> Cardif Seguros Generales | D48: =IF('TD Siniestros'!C47="","",'TD Siniestros'!C47) -> 229604.2634 | E48: =IF('TD Siniestros'!D47="","",'TD Siniestros'!D47) -> -33.0176731 | F48: =IF('TD Siniestros'!E47="","",'TD Siniestros'!E47) -> 15473.35862 | G48: =IF('TD Siniestros'!F47="","",'TD Siniestros'!F47) -> 14.71181637 | H48: =IF('TD Siniestros'!G47="","",'TD Siniestros'!G47) -> 22.43914936 | I48: 0.05715833361
B49: =IF('TD Siniestros'!A48="","",'TD Siniestros'!A48) -> 40 | C49: =IF('TD Siniestros'!B48="","",'TD Siniestros'!B48) -> Patrimonial Vida | D49: =IF('TD Siniestros'!C48="","",'TD Siniestros'!C48) -> 1593988.23 | E49: =IF('TD Siniestros'!D48="","",'TD Siniestros'!D48) -> 161.8373863 | F49: =IF('TD Siniestros'!E48="","",'TD Siniestros'!E48) -> -744.55477 | G49: =IF('TD Siniestros'!F48="","",'TD Siniestros'!F48) -> 109.5610774 | H49: =IF('TD Siniestros'!G48="","",'TD Siniestros'!G48) -> 20.25951692 | I49: 0.3968119304
B50: =IF('TD Siniestros'!A49="","",'TD Siniestros'!A49) -> 41 | C50: =IF('TD Siniestros'!B49="","",'TD Siniestros'!B49) -> Tokio Marine | D50: =IF('TD Siniestros'!C49="","",'TD Siniestros'!C49) -> 757072.7153 | E50: =IF('TD Siniestros'!D49="","",'TD Siniestros'!D49) -> 35.96216681 | F50: =IF('TD Siniestros'!E49="","",'TD Siniestros'!E49) -> 197.43156 | G50: =IF('TD Siniestros'!F49="","",'TD Siniestros'!F49) -> 55.0829104 | H50: =IF('TD Siniestros'!G49="","",'TD Siniestros'!G49) -> 45.5813427 | I50: 0.1884678193
B51: =IF('TD Siniestros'!A50="","",'TD Siniestros'!A50) -> 42 | C51: =IF('TD Siniestros'!B50="","",'TD Siniestros'!B50) -> La Latinoamericana | D51: =IF('TD Siniestros'!C50="","",'TD Siniestros'!C50) -> 797331.4195 | E51: =IF('TD Siniestros'!D50="","",'TD Siniestros'!D50) -> 22.3469638 | F51: =IF('TD Siniestros'!E50="","",'TD Siniestros'!E50) -> 3038.57587 | G51: =IF('TD Siniestros'!F50="","",'TD Siniestros'!F50) -> 60.3072299 | H51: =IF('TD Siniestros'!G50="","",'TD Siniestros'!G50) -> 62.97940191 | I51: 0.1984899348
B52: =IF('TD Siniestros'!A51="","",'TD Siniestros'!A51) -> 43 | C52: =IF('TD Siniestros'!B51="","",'TD Siniestros'!B51) -> El Águila | D52: =IF('TD Siniestros'!C51="","",'TD Siniestros'!C51) -> 651828.9812 | E52: =IF('TD Siniestros'!D51="","",'TD Siniestros'!D51) -> 59.31726102 | F52: =IF('TD Siniestros'!E51="","",'TD Siniestros'!E51) -> 0 | G52: =IF('TD Siniestros'!F51="","",'TD Siniestros'!F51) -> 52.1178089 | H52: =IF('TD Siniestros'!G51="","",'TD Siniestros'!G51) -> 36.57235035 | I52: 0.162268147
B53: =IF('TD Siniestros'!A52="","",'TD Siniestros'!A52) -> 44 | C53: =IF('TD Siniestros'!B52="","",'TD Siniestros'!B52) -> BBVA Bancomer Salud | D53: =IF('TD Siniestros'!C52="","",'TD Siniestros'!C52) -> 725328.5516 | E53: =IF('TD Siniestros'!D52="","",'TD Siniestros'!D52) -> 101.0613538 | F53: =IF('TD Siniestros'!E52="","",'TD Siniestros'!E52) -> 0 | G53: =IF('TD Siniestros'!F52="","",'TD Siniestros'!F52) -> 60.89743696 | H53: =IF('TD Siniestros'!G52="","",'TD Siniestros'!G52) -> 94.05556517 | I53: 0.1805653375
B54: =IF('TD Siniestros'!A53="","",'TD Siniestros'!A53) -> 45 | C54: =IF('TD Siniestros'!B53="","",'TD Siniestros'!B53) -> Prudential | D54: =IF('TD Siniestros'!C53="","",'TD Siniestros'!C53) -> 172324.1722 | E54: =IF('TD Siniestros'!D53="","",'TD Siniestros'!D53) -> 105.396699 | F54: =IF('TD Siniestros'!E53="","",'TD Siniestros'!E53) -> 0 | G54: =IF('TD Siniestros'!F53="","",'TD Siniestros'!F53) -> 14.64150856 | H54: =IF('TD Siniestros'!G53="","",'TD Siniestros'!G53) -> 8.828098398 | I54: 0.04289886597
B55: =IF('TD Siniestros'!A54="","",'TD Siniestros'!A54) -> 46 | C55: =IF('TD Siniestros'!B54="","",'TD Siniestros'!B54) -> HDI Global Seguros | D55: =IF('TD Siniestros'!C54="","",'TD Siniestros'!C54) -> 244685.7703 | E55: =IF('TD Siniestros'!D54="","",'TD Siniestros'!D54) -> -23.69006059 | F55: =IF('TD Siniestros'!E54="","",'TD Siniestros'!E54) -> 0 | G55: =IF('TD Siniestros'!F54="","",'TD Siniestros'!F54) -> 23.45106532 | H55: =IF('TD Siniestros'!G54="","",'TD Siniestros'!G54) -> 40.13195122 | I55: 0.0609127665
B56: =IF('TD Siniestros'!A55="","",'TD Siniestros'!A55) -> 47 | C56: =IF('TD Siniestros'!B55="","",'TD Siniestros'!B55) -> Assurant Vida | D56: =IF('TD Siniestros'!C55="","",'TD Siniestros'!C55) -> 504145.2594 | E56: =IF('TD Siniestros'!D55="","",'TD Siniestros'!D55) -> 1.9419478 | F56: =IF('TD Siniestros'!E55="","",'TD Siniestros'!E55) -> 5083.11568 | G56: =IF('TD Siniestros'!F55="","",'TD Siniestros'!F55) -> 49.2039163 | H56: =IF('TD Siniestros'!G55="","",'TD Siniestros'!G55) -> 44.62798307 | I56: 0.1255033443
B57: =IF('TD Siniestros'!A56="","",'TD Siniestros'!A56) -> 48 | C57: =IF('TD Siniestros'!B56="","",'TD Siniestros'!B56) -> SIS NOVA | D57: =IF('TD Siniestros'!C56="","",'TD Siniestros'!C56) -> 853768.253 | E57: =IF('TD Siniestros'!D56="","",'TD Siniestros'!D56) -> 12.5668656 | F57: =IF('TD Siniestros'!E56="","",'TD Siniestros'!E56) -> 0 | G57: =IF('TD Siniestros'!F56="","",'TD Siniestros'!F56) -> 90.90870398 | H57: =IF('TD Siniestros'!G56="","",'TD Siniestros'!G56) -> 87.5213279 | I57: 0.2125394794
B58: =IF('TD Siniestros'!A57="","",'TD Siniestros'!A57) -> 49 | C58: =IF('TD Siniestros'!B57="","",'TD Siniestros'!B57) -> Pan-American México | D58: =IF('TD Siniestros'!C57="","",'TD Siniestros'!C57) -> 605510.1346 | E58: =IF('TD Siniestros'!D57="","",'TD Siniestros'!D57) -> -2.008915227 | F58: =IF('TD Siniestros'!E57="","",'TD Siniestros'!E57) -> 4159.20988 | G58: =IF('TD Siniestros'!F57="","",'TD Siniestros'!F57) -> 78.69047057 | H58: =IF('TD Siniestros'!G57="","",'TD Siniestros'!G57) -> 50.68497702 | I58: 0.1507374025
B59: =IF('TD Siniestros'!A58="","",'TD Siniestros'!A58) -> 50 | C59: =IF('TD Siniestros'!B58="","",'TD Siniestros'!B58) -> Primero Seguros | D59: =IF('TD Siniestros'!C58="","",'TD Siniestros'!C58) -> 525951.2039 | E59: =IF('TD Siniestros'!D58="","",'TD Siniestros'!D58) -> 4.680109077 | F59: =IF('TD Siniestros'!E58="","",'TD Siniestros'!E58) -> 0 | G59: =IF('TD Siniestros'!F58="","",'TD Siniestros'!F58) -> 69.86847091 | H59: =IF('TD Siniestros'!G58="","",'TD Siniestros'!G58) -> 62.27152273 | I59: 0.1309317777
B60: =IF('TD Siniestros'!A59="","",'TD Siniestros'!A59) -> 51 | C60: =IF('TD Siniestros'!B59="","",'TD Siniestros'!B59) -> Patrimonial Inbursa | D60: =IF('TD Siniestros'!C59="","",'TD Siniestros'!C59) -> 193172.9891 | E60: =IF('TD Siniestros'!D59="","",'TD Siniestros'!D59) -> 19.46751521 | F60: =IF('TD Siniestros'!E59="","",'TD Siniestros'!E59) -> 0 | G60: =IF('TD Siniestros'!F59="","",'TD Siniestros'!F59) -> 30.50713462 | H60: =IF('TD Siniestros'!G59="","",'TD Siniestros'!G59) -> 21.566184 | I60: 0.04808902931
B61: =IF('TD Siniestros'!A60="","",'TD Siniestros'!A60) -> 52 | C61: =IF('TD Siniestros'!B60="","",'TD Siniestros'!B60) -> Atradius | D61: =IF('TD Siniestros'!C60="","",'TD Siniestros'!C60) -> 11534.61589 | E61: =IF('TD Siniestros'!D60="","",'TD Siniestros'!D60) -> -96.02688995 | F61: =IF('TD Siniestros'!E60="","",'TD Siniestros'!E60) -> 6947.97733 | G61: =IF('TD Siniestros'!F60="","",'TD Siniestros'!F60) -> 1.85491421 | H61: =IF('TD Siniestros'!G60="","",'TD Siniestros'!G60) -> 50.11848613 | I61: 0.002871459846
B62: =IF('TD Siniestros'!A61="","",'TD Siniestros'!A61) -> 53 | C62: =IF('TD Siniestros'!B61="","",'TD Siniestros'!B61) -> Sompo Japan | D62: =IF('TD Siniestros'!C61="","",'TD Siniestros'!C61) -> 223020.7767 | E62: =IF('TD Siniestros'!D61="","",'TD Siniestros'!D61) -> 70.75853816 | F62: =IF('TD Siniestros'!E61="","",'TD Siniestros'!E61) -> 0 | G62: =IF('TD Siniestros'!F61="","",'TD Siniestros'!F61) -> 36.81038693 | H62: =IF('TD Siniestros'!G61="","",'TD Siniestros'!G61) -> 21.50110037 | I62: 0.05551942182
B63: =IF('TD Siniestros'!A62="","",'TD Siniestros'!A62) -> 54 | C63: =IF('TD Siniestros'!B62="","",'TD Siniestros'!B62) -> Solunion Crédito | D63: =IF('TD Siniestros'!C62="","",'TD Siniestros'!C62) -> 233431.5432 | E63: =IF('TD Siniestros'!D62="","",'TD Siniestros'!D62) -> -25.45136496 | F63: =IF('TD Siniestros'!E62="","",'TD Siniestros'!E62) -> 1751.41485 | G63: =IF('TD Siniestros'!F62="","",'TD Siniestros'!F62) -> 43.30370111 | H63: =IF('TD Siniestros'!G62="","",'TD Siniestros'!G62) -> 61.07799206 | I63: 0.05811110744
B64: =IF('TD Siniestros'!A63="","",'TD Siniestros'!A63) -> 55 | C64: =IF('TD Siniestros'!B63="","",'TD Siniestros'!B63) -> General de Salud | D64: =IF('TD Siniestros'!C63="","",'TD Siniestros'!C63) -> 405203.9273 | E64: =IF('TD Siniestros'!D63="","",'TD Siniestros'!D63) -> 62.69158847 | F64: =IF('TD Siniestros'!E63="","",'TD Siniestros'!E63) -> 0 | G64: =IF('TD Siniestros'!F63="","",'TD Siniestros'!F63) -> 78.84835697 | H64: =IF('TD Siniestros'!G63="","",'TD Siniestros'!G63) -> 53.37745394 | I64: 0.1008726097
B65: =IF('TD Siniestros'!A64="","",'TD Siniestros'!A64) -> 56 | C65: =IF('TD Siniestros'!B64="","",'TD Siniestros'!B64) -> PREVEM Seguros | D65: =IF('TD Siniestros'!C64="","",'TD Siniestros'!C64) -> 254508.8604 | E65: =IF('TD Siniestros'!D64="","",'TD Siniestros'!D64) -> 13.93949261 | F65: =IF('TD Siniestros'!E64="","",'TD Siniestros'!E64) -> 0 | G65: =IF('TD Siniestros'!F64="","",'TD Siniestros'!F64) -> 51.32703378 | H65: =IF('TD Siniestros'!G64="","",'TD Siniestros'!G64) -> 52.20938387 | I65: 0.06335815429
B66: =IF('TD Siniestros'!A65="","",'TD Siniestros'!A65) -> 57 | C66: =IF('TD Siniestros'!B65="","",'TD Siniestros'!B65) -> Berkley Seguros | D66: =IF('TD Siniestros'!C65="","",'TD Siniestros'!C65) -> 167514.9464 | E66: =IF('TD Siniestros'!D65="","",'TD Siniestros'!D65) -> 12.97778041 | F66: =IF('TD Siniestros'!E65="","",'TD Siniestros'!E65) -> 2157.20326 | G66: =IF('TD Siniestros'!F65="","",'TD Siniestros'!F65) -> 36.02453067 | H66: =IF('TD Siniestros'!G65="","",'TD Siniestros'!G65) -> 42.02093358 | I66: 0.04170164372
B67: =IF('TD Siniestros'!A66="","",'TD Siniestros'!A66) -> 58 | C67: =IF('TD Siniestros'!B66="","",'TD Siniestros'!B66) -> Dentegra | D67: =IF('TD Siniestros'!C66="","",'TD Siniestros'!C66) -> 138353.5453 | E67: =IF('TD Siniestros'!D66="","",'TD Siniestros'!D66) -> 20.03703935 | F67: =IF('TD Siniestros'!E66="","",'TD Siniestros'!E66) -> 22.52233 | G67: =IF('TD Siniestros'!F66="","",'TD Siniestros'!F66) -> 30.75140012 | H67: =IF('TD Siniestros'!G66="","",'TD Siniestros'!G66) -> 26.67165197 | I67: 0.0344421222
B68: =IF('TD Siniestros'!A67="","",'TD Siniestros'!A67) -> 59 | C68: =IF('TD Siniestros'!B67="","",'TD Siniestros'!B67) -> Skandia Life | D68: =IF('TD Siniestros'!C67="","",'TD Siniestros'!C67) -> 66600.80313 | E68: =IF('TD Siniestros'!D67="","",'TD Siniestros'!D67) -> 87.33473756 | F68: =IF('TD Siniestros'!E67="","",'TD Siniestros'!E67) -> 0 | G68: =IF('TD Siniestros'!F67="","",'TD Siniestros'!F67) -> 15.59925591 | H68: =IF('TD Siniestros'!G67="","",'TD Siniestros'!G67) -> 6.370418172 | I68: 0.01657979197
B69: =IF('TD Siniestros'!A68="","",'TD Siniestros'!A68) -> 60 | C69: =IF('TD Siniestros'!B68="","",'TD Siniestros'!B68) -> SHF Cred Vivienda | D69: =IF('TD Siniestros'!C68="","",'TD Siniestros'!C68) -> -108937.2457 | E69: =IF('TD Siniestros'!D68="","",'TD Siniestros'!D68) -> -142.2135225 | F69: =IF('TD Siniestros'!E68="","",'TD Siniestros'!E68) -> 0 | G69: =IF('TD Siniestros'!F68="","",'TD Siniestros'!F68) -> -25.96742882 | H69: =IF('TD Siniestros'!G68="","",'TD Siniestros'!G68) -> 57.28923597 | I69: -0.02711914551
B70: =IF('TD Siniestros'!A69="","",'TD Siniestros'!A69) -> 61 | C70: =IF('TD Siniestros'!B69="","",'TD Siniestros'!B69) -> Coface | D70: =IF('TD Siniestros'!C69="","",'TD Siniestros'!C69) -> 13594.28188 | E70: =IF('TD Siniestros'!D69="","",'TD Siniestros'!D69) -> -94.08217749 | F70: =IF('TD Siniestros'!E69="","",'TD Siniestros'!E69) -> 7795.72307 | G70: =IF('TD Siniestros'!F69="","",'TD Siniestros'!F69) -> 4.114303385 | H70: =IF('TD Siniestros'!G69="","",'TD Siniestros'!G69) -> 74.87848569 | I70: 0.003384198913
B71: =IF('TD Siniestros'!A70="","",'TD Siniestros'!A70) -> 62 | C71: =IF('TD Siniestros'!B70="","",'TD Siniestros'!B70) -> Swiss Re Corporate Solutions | D71: =IF('TD Siniestros'!C70="","",'TD Siniestros'!C70) -> -23468.35254 | E71: =IF('TD Siniestros'!D70="","",'TD Siniestros'!D70) -> -120.2127707 | F71: =IF('TD Siniestros'!E70="","",'TD Siniestros'!E70) -> 18.61229 | G71: =IF('TD Siniestros'!F70="","",'TD Siniestros'!F70) -> -7.39152015 | H71: =IF('TD Siniestros'!G70="","",'TD Siniestros'!G70) -> 73.93503714 | I71: -0.005842277942
B72: =IF('TD Siniestros'!A71="","",'TD Siniestros'!A71) -> 63 | C72: =IF('TD Siniestros'!B71="","",'TD Siniestros'!B71) -> Zurich Aseguradora Mexicana | D72: =IF('TD Siniestros'!C71="","",'TD Siniestros'!C71) -> 235872.112 | E72: =IF('TD Siniestros'!D71="","",'TD Siniestros'!D71) -> -390.8584056 | F72: =IF('TD Siniestros'!E71="","",'TD Siniestros'!E71) -> 0 | G72: =IF('TD Siniestros'!F71="","",'TD Siniestros'!F71) -> 91.56661632 | H72: =IF('TD Siniestros'!G71="","",'TD Siniestros'!G71) -> -66.67602148 | I72: 0.05871866953
B73: =IF('TD Siniestros'!A72="","",'TD Siniestros'!A72) -> 64 | C73: =IF('TD Siniestros'!B72="","",'TD Siniestros'!B72) -> MediAccess | D73: =IF('TD Siniestros'!C72="","",'TD Siniestros'!C72) -> 136748.4083 | E73: =IF('TD Siniestros'!D72="","",'TD Siniestros'!D72) -> 15.94704504 | F73: =IF('TD Siniestros'!E72="","",'TD Siniestros'!E72) -> 0 | G73: =IF('TD Siniestros'!F72="","",'TD Siniestros'!F72) -> 61.52235207 | H73: =IF('TD Siniestros'!G72="","",'TD Siniestros'!G72) -> 49.78403813 | I73: =IFERROR(D73/VLOOKUP("TOTAL",$C$8:$D$124,2,0)*100,"") -> 0.03404253487
B74: =IF('TD Siniestros'!A73="","",'TD Siniestros'!A73) -> 65 | C74: =IF('TD Siniestros'!B73="","",'TD Siniestros'!B73) -> Assurant Daños | D74: =IF('TD Siniestros'!C73="","",'TD Siniestros'!C73) -> 55641.10117 | E74: =IF('TD Siniestros'!D73="","",'TD Siniestros'!D73) -> 0.7318691504 | F74: =IF('TD Siniestros'!E73="","",'TD Siniestros'!E73) -> 226.48005 | G74: =IF('TD Siniestros'!F73="","",'TD Siniestros'!F73) -> 31.65567721 | H74: =IF('TD Siniestros'!G73="","",'TD Siniestros'!G73) -> 35.43130853 | I74: 0.01385145282
B75: =IF('TD Siniestros'!A74="","",'TD Siniestros'!A74) -> 66 | C75: =IF('TD Siniestros'!B74="","",'TD Siniestros'!B74) -> Patrimonial Daños | D75: =IF('TD Siniestros'!C74="","",'TD Siniestros'!C74) -> 52142.59519 | E75: =IF('TD Siniestros'!D74="","",'TD Siniestros'!D74) -> 19.09450815 | F75: =IF('TD Siniestros'!E74="","",'TD Siniestros'!E74) -> 0 | G75: =IF('TD Siniestros'!F74="","",'TD Siniestros'!F74) -> 30.17264129 | H75: =IF('TD Siniestros'!G74="","",'TD Siniestros'!G74) -> 32.78513688 | I75: 0.01298052487
B76: =IF('TD Siniestros'!A75="","",'TD Siniestros'!A75) -> 67 | C76: =IF('TD Siniestros'!B75="","",'TD Siniestros'!B75) -> Aserta Seguros de Vida | D76: =IF('TD Siniestros'!C75="","",'TD Siniestros'!C75) -> 393587.931 | E76: =IF('TD Siniestros'!D75="","",'TD Siniestros'!D75) -> -24.0512139 | F76: =IF('TD Siniestros'!E75="","",'TD Siniestros'!E75) -> -1e-05 | G76: =IF('TD Siniestros'!F75="","",'TD Siniestros'!F75) -> 228.0949316 | H76: =IF('TD Siniestros'!G75="","",'TD Siniestros'!G75) -> 98.44707411 | I76: 0.09798089081
B77: =IF('TD Siniestros'!A76="","",'TD Siniestros'!A76) -> 68 | C77: =IF('TD Siniestros'!B76="","",'TD Siniestros'!B76) -> AXA Salud | D77: =IF('TD Siniestros'!C76="","",'TD Siniestros'!C76) -> 455507.683 | E77: =IF('TD Siniestros'!D76="","",'TD Siniestros'!D76) -> -12.24440458 | F77: =IF('TD Siniestros'!E76="","",'TD Siniestros'!E76) -> 0 | G77: =IF('TD Siniestros'!F76="","",'TD Siniestros'!F76) -> 278.140804 | H77: =IF('TD Siniestros'!G76="","",'TD Siniestros'!G76) -> 109.6154351 | I77: 0.1133953687
B78: =IF('TD Siniestros'!A77="","",'TD Siniestros'!A77) -> 69 | C78: =IF('TD Siniestros'!B77="","",'TD Siniestros'!B77) -> Centauro | D78: =IF('TD Siniestros'!C77="","",'TD Siniestros'!C77) -> 74949.21509 | E78: =IF('TD Siniestros'!D77="","",'TD Siniestros'!D77) -> 29.26186583 | F78: =IF('TD Siniestros'!E77="","",'TD Siniestros'!E77) -> 117.65355 | G78: =IF('TD Siniestros'!F77="","",'TD Siniestros'!F77) -> 46.30512156 | H78: =IF('TD Siniestros'!G77="","",'TD Siniestros'!G77) -> 39.95128292 | I78: 0.01865806922
B79: =IF('TD Siniestros'!A78="","",'TD Siniestros'!A78) -> 70 | C79: =IF('TD Siniestros'!B78="","",'TD Siniestros'!B78) -> Tláloc Seguros | D79: =IF('TD Siniestros'!C78="","",'TD Siniestros'!C78) -> 94894.93844 | E79: =IF('TD Siniestros'!D78="","",'TD Siniestros'!D78) -> -44.81282519 | F79: =IF('TD Siniestros'!E78="","",'TD Siniestros'!E78) -> 0 | G79: =IF('TD Siniestros'!F78="","",'TD Siniestros'!F78) -> 77.34446665 | H79: =IF('TD Siniestros'!G78="","",'TD Siniestros'!G78) -> 76.85437686 | I79: 0.0236234139
B80: =IF('TD Siniestros'!A79="","",'TD Siniestros'!A79) -> 71 | C80: =IF('TD Siniestros'!B79="","",'TD Siniestros'!B79) -> Odontoprev | D80: =IF('TD Siniestros'!C79="","",'TD Siniestros'!C79) -> 17887.8551 | E80: =IF('TD Siniestros'!D79="","",'TD Siniestros'!D79) -> 75.22916378 | F80: =IF('TD Siniestros'!E79="","",'TD Siniestros'!E79) -> 0 | G80: =IF('TD Siniestros'!F79="","",'TD Siniestros'!F79) -> 23.23281138 | H80: =IF('TD Siniestros'!G79="","",'TD Siniestros'!G79) -> 21.48436948 | I80: 0.004453053153
B81: =IF('TD Siniestros'!A80="","",'TD Siniestros'!A80) -> 72 | C81: =IF('TD Siniestros'!B80="","",'TD Siniestros'!B80) -> Virginia Surety | D81: =IF('TD Siniestros'!C80="","",'TD Siniestros'!C80) -> 14185.59391 | E81: =IF('TD Siniestros'!D80="","",'TD Siniestros'!D80) -> 23.0447287 | F81: =IF('TD Siniestros'!E80="","",'TD Siniestros'!E80) -> 0 | G81: =IF('TD Siniestros'!F80="","",'TD Siniestros'!F80) -> 19.92064001 | H81: =IF('TD Siniestros'!G80="","",'TD Siniestros'!G80) -> 49.80708181 | I81: 0.0035314018
B82: =IF('TD Siniestros'!A81="","",'TD Siniestros'!A81) -> 73 | C82: =IF('TD Siniestros'!B81="","",'TD Siniestros'!B81) -> Genworth Seg. de Crédito | D82: =IF('TD Siniestros'!C81="","",'TD Siniestros'!C81) -> -8196.23868 | E82: =IF('TD Siniestros'!D81="","",'TD Siniestros'!D81) -> -124.7187981 | F82: =IF('TD Siniestros'!E81="","",'TD Siniestros'!E81) -> 0 | G82: =IF('TD Siniestros'!F81="","",'TD Siniestros'!F81) -> -12.43434726 | H82: =IF('TD Siniestros'!G81="","",'TD Siniestros'!G81) -> 48.79809566 | I82: -0.002040394798
B83: =IF('TD Siniestros'!A82="","",'TD Siniestros'!A82) -> 74 | C83: =IF('TD Siniestros'!B82="","",'TD Siniestros'!B82) -> Crabi | D83: =IF('TD Siniestros'!C82="","",'TD Siniestros'!C82) -> 41995.45934 | E83: =IF('TD Siniestros'!D82="","",'TD Siniestros'!D82) -> 233.5450141 | F83: =IF('TD Siniestros'!E82="","",'TD Siniestros'!E82) -> 0 | G83: =IF('TD Siniestros'!F82="","",'TD Siniestros'!F82) -> 103.5808824 | H83: =IF('TD Siniestros'!G82="","",'TD Siniestros'!G82) -> 44.70041295 | I83: 0.01045446822
B84: =IF('TD Siniestros'!A83="","",'TD Siniestros'!A83) -> 75 | C84: =IF('TD Siniestros'!B83="","",'TD Siniestros'!B83) -> Metlife Más | D84: =IF('TD Siniestros'!C83="","",'TD Siniestros'!C83) -> 853.53335 | E84: =IF('TD Siniestros'!D83="","",'TD Siniestros'!D83) -> 4.239805202 | F84: =IF('TD Siniestros'!E83="","",'TD Siniestros'!E83) -> 0 | G84: =IF('TD Siniestros'!F83="","",'TD Siniestros'!F83) -> 2.744917196 | H84: =IF('TD Siniestros'!G83="","",'TD Siniestros'!G83) -> 2.312801392 | I84: 0.000212481002
B85: =IF('TD Siniestros'!A84="","",'TD Siniestros'!A84) -> 76 | C85: =IF('TD Siniestros'!B84="","",'TD Siniestros'!B84) -> Metlife Pensiones | D85: =IF('TD Siniestros'!C84="","",'TD Siniestros'!C84) -> 331956.7475 | E85: =IF('TD Siniestros'!D84="","",'TD Siniestros'!D84) -> 0.8813847579 | F85: =IF('TD Siniestros'!E84="","",'TD Siniestros'!E84) -> 0 | G85: =IF('TD Siniestros'!F84="","",'TD Siniestros'!F84) -> 2075.267857 | H85: =IF('TD Siniestros'!G84="","",'TD Siniestros'!G84) -> 4673.861274 | I85: 0.08263824996
B86: =IF('TD Siniestros'!A85="","",'TD Siniestros'!A85) -> 77 | C86: =IF('TD Siniestros'!B85="","",'TD Siniestros'!B85) -> Citibanamex Pensiones | D86: =IF('TD Siniestros'!C85="","",'TD Siniestros'!C85) -> 729128.1577 | E86: =IF('TD Siniestros'!D85="","",'TD Siniestros'!D85) -> 1.443205872 | F86: =IF('TD Siniestros'!E85="","",'TD Siniestros'!E85) -> 0 | G86: =IF('TD Siniestros'!F85="","",'TD Siniestros'!F85) -> 6024.794693 | H86: =IF('TD Siniestros'!G85="","",'TD Siniestros'!G85) -> 6888.112811 | I86: 0.1815112222
B87: =IF('TD Siniestros'!A86="","",'TD Siniestros'!A86) -> 78 | C87: =IF('TD Siniestros'!B86="","",'TD Siniestros'!B86) -> Pensiones Inbursa | D87: =IF('TD Siniestros'!C86="","",'TD Siniestros'!C86) -> 23224.3796 | E87: =IF('TD Siniestros'!D86="","",'TD Siniestros'!D86) -> -0.2948210854 | F87: =IF('TD Siniestros'!E86="","",'TD Siniestros'!E86) -> 0 | G87: =IF('TD Siniestros'!F86="","",'TD Siniestros'!F86) -> 4354.975807 | H87: =IF('TD Siniestros'!G86="","",'TD Siniestros'!G86) -> 653.3379159 | I87: 0.005781542629
B88: =IF('TD Siniestros'!A87="","",'TD Siniestros'!A87) -> 79 | C88: =IF('TD Siniestros'!B87="","",'TD Siniestros'!B87) -> Principal México | D88: =IF('TD Siniestros'!C87="","",'TD Siniestros'!C87) -> 124118.3905 | E88: =IF('TD Siniestros'!D87="","",'TD Siniestros'!D87) -> -11.15778183 | F88: =IF('TD Siniestros'!E87="","",'TD Siniestros'!E87) -> 0 | G88: =IF('TD Siniestros'!F87="","",'TD Siniestros'!F87) -> 64462.93093 | H88: =IF('TD Siniestros'!G87="","",'TD Siniestros'!G87) -> 65895.25892 | I88: 0.03089838257
B89: =IF('TD Siniestros'!A88="","",'TD Siniestros'!A88) -> 80 | C89: =IF('TD Siniestros'!B88="","",'TD Siniestros'!B88) -> HSBC Pensiones | D89: =IF('TD Siniestros'!C88="","",'TD Siniestros'!C88) -> 0 | E89: =IF('TD Siniestros'!D88="","",'TD Siniestros'!D88) -> -100 | F89: =IF('TD Siniestros'!E88="","",'TD Siniestros'!E88) -> 0 | G89: =IF('TD Siniestros'!F88="","",'TD Siniestros'!F88) -> 0 | H89: =IF('TD Siniestros'!G88="","",'TD Siniestros'!G88) -> 5811.835816 | I89: 0
B90: =IF('TD Siniestros'!A89="","",'TD Siniestros'!A89) -> 150.1 | C90: =IF('TD Siniestros'!B89="","",'TD Siniestros'!B89) -> TOTAL RESTO | D90: =IF('TD Siniestros'!C89="","",'TD Siniestros'!C89) -> 75707403.44 | E90: =IF('TD Siniestros'!D89="","",'TD Siniestros'!D89) -> 16.24255907 | F90: =IF('TD Siniestros'!E89="","",'TD Siniestros'!E89) -> 118884.1316 | G90: =IF('TD Siniestros'!F89="","",'TD Siniestros'!F89) -> 54.62183244 | H90: =IF('TD Siniestros'!G89="","",'TD Siniestros'!G89) -> 52.0251751 | I90: 18.84681476
B91: =IF('TD Siniestros'!A90="","",'TD Siniestros'!A90) -> 151.1 | C91: =IF('TD Siniestros'!B90="","",'TD Siniestros'!B90) -> TOTAL | D91: =IF('TD Siniestros'!C90="","",'TD Siniestros'!C90) -> 401698665.7 | E91: =IF('TD Siniestros'!D90="","",'TD Siniestros'!D90) -> 15.41716601 | F91: =IF('TD Siniestros'!E90="","",'TD Siniestros'!E90) -> 1136149.942 | G91: =IF('TD Siniestros'!F90="","",'TD Siniestros'!F90) -> 63.41972491 | H91: =IF('TD Siniestros'!G90="","",'TD Siniestros'!G90) -> 60.50646419 | I91: 100
B92: =IF('TD Siniestros'!A91="","",'TD Siniestros'!A91) -> 200 | C92: =IF('TD Siniestros'!B91="","",'TD Siniestros'!B91) -> Patria | D92: =IF('TD Siniestros'!C91="","",'TD Siniestros'!C91) -> 0 | E92: =IF('TD Siniestros'!D91="","",'TD Siniestros'!D91) -> 0 | F92: =IF('TD Siniestros'!E91="","",'TD Siniestros'!E91) -> 0 | G92: =IF('TD Siniestros'!F91="","",'TD Siniestros'!F91) -> 0 | H92: =IF('TD Siniestros'!G91="","",'TD Siniestros'!G91) -> 0 | I92: 0
B93: =IF('TD Siniestros'!A92="","",'TD Siniestros'!A92) ->  | C93: =IF('TD Siniestros'!B92="","",'TD Siniestros'!B92) ->  | D93: =IF('TD Siniestros'!C92="","",'TD Siniestros'!C92) ->  | E93: =IF('TD Siniestros'!D92="","",'TD Siniestros'!D92) ->  | F93: =IF('TD Siniestros'!E92="","",'TD Siniestros'!E92) ->  | G93: =IF('TD Siniestros'!F92="","",'TD Siniestros'!F92) ->  | H93: =IF('TD Siniestros'!G92="","",'TD Siniestros'!G92) -> 
B94: =IF('TD Siniestros'!A93="","",'TD Siniestros'!A93) ->  | C94: =IF('TD Siniestros'!B93="","",'TD Siniestros'!B93) ->  | D94: =IF('TD Siniestros'!C93="","",'TD Siniestros'!C93) ->  | E94: =IF('TD Siniestros'!D93="","",'TD Siniestros'!D93) ->  | F94: =IF('TD Siniestros'!E93="","",'TD Siniestros'!E93) ->  | G94: =IF('TD Siniestros'!F93="","",'TD Siniestros'!F93) ->  | H94: =IF('TD Siniestros'!G93="","",'TD Siniestros'!G93) -> 
B95: =IF('TD Siniestros'!A94="","",'TD Siniestros'!A94) ->  | C95: =IF('TD Siniestros'!B94="","",'TD Siniestros'!B94) ->  | D95: =IF('TD Siniestros'!C94="","",'TD Siniestros'!C94) ->  | E95: =IF('TD Siniestros'!D94="","",'TD Siniestros'!D94) ->  | F95: =IF('TD Siniestros'!E94="","",'TD Siniestros'!E94) ->  | G95: =IF('TD Siniestros'!F94="","",'TD Siniestros'!F94) ->  | H95: =IF('TD Siniestros'!G94="","",'TD Siniestros'!G94) -> 
B96: =IF('TD Siniestros'!A95="","",'TD Siniestros'!A95) ->  | C96: =IF('TD Siniestros'!B95="","",'TD Siniestros'!B95) ->  | D96: =IF('TD Siniestros'!C95="","",'TD Siniestros'!C95) ->  | E96: =IF('TD Siniestros'!D95="","",'TD Siniestros'!D95) ->  | F96: =IF('TD Siniestros'!E95="","",'TD Siniestros'!E95) ->  | G96: =IF('TD Siniestros'!F95="","",'TD Siniestros'!F95) ->  | H96: =IF('TD Siniestros'!G95="","",'TD Siniestros'!G95) -> 
B97: =IF('TD Siniestros'!A96="","",'TD Siniestros'!A96) ->  | C97: =IF('TD Siniestros'!B96="","",'TD Siniestros'!B96) ->  | D97: =IF('TD Siniestros'!C96="","",'TD Siniestros'!C96) ->  | E97: =IF('TD Siniestros'!D96="","",'TD Siniestros'!D96) ->  | F97: =IF('TD Siniestros'!E96="","",'TD Siniestros'!E96) ->  | G97: =IF('TD Siniestros'!F96="","",'TD Siniestros'!F96) ->  | H97: =IF('TD Siniestros'!G96="","",'TD Siniestros'!G96) -> 
B98: =IF('TD Siniestros'!A97="","",'TD Siniestros'!A97) ->  | C98: =IF('TD Siniestros'!B97="","",'TD Siniestros'!B97) ->  | D98: =IF('TD Siniestros'!C97="","",'TD Siniestros'!C97) ->  | E98: =IF('TD Siniestros'!D97="","",'TD Siniestros'!D97) ->  | F98: =IF('TD Siniestros'!E97="","",'TD Siniestros'!E97) ->  | G98: =IF('TD Siniestros'!F97="","",'TD Siniestros'!F97) ->  | H98: =IF('TD Siniestros'!G97="","",'TD Siniestros'!G97) -> 
B99: =IF('TD Siniestros'!A98="","",'TD Siniestros'!A98) ->  | C99: =IF('TD Siniestros'!B98="","",'TD Siniestros'!B98) ->  | D99: =IF('TD Siniestros'!C98="","",'TD Siniestros'!C98) ->  | E99: =IF('TD Siniestros'!D98="","",'TD Siniestros'!D98) ->  | F99: =IF('TD Siniestros'!E98="","",'TD Siniestros'!E98) ->  | G99: =IF('TD Siniestros'!F98="","",'TD Siniestros'!F98) ->  | H99: =IF('TD Siniestros'!G98="","",'TD Siniestros'!G98) -> 
B100: =IF('TD Siniestros'!A99="","",'TD Siniestros'!A99) ->  | C100: =IF('TD Siniestros'!B99="","",'TD Siniestros'!B99) ->  | D100: =IF('TD Siniestros'!C99="","",'TD Siniestros'!C99) ->  | E100: =IF('TD Siniestros'!D99="","",'TD Siniestros'!D99) ->  | F100: =IF('TD Siniestros'!E99="","",'TD Siniestros'!E99) ->  | G100: =IF('TD Siniestros'!F99="","",'TD Siniestros'!F99) ->  | H100: =IF('TD Siniestros'!G99="","",'TD Siniestros'!G99) -> 
B101: =IF('TD Siniestros'!A100="","",'TD Siniestros'!A100) ->  | C101: =IF('TD Siniestros'!B100="","",'TD Siniestros'!B100) ->  | D101: =IF('TD Siniestros'!C100="","",'TD Siniestros'!C100) ->  | E101: =IF('TD Siniestros'!D100="","",'TD Siniestros'!D100) ->  | F101: =IF('TD Siniestros'!E100="","",'TD Siniestros'!E100) ->  | G101: =IF('TD Siniestros'!F100="","",'TD Siniestros'!F100) ->  | H101: =IF('TD Siniestros'!G100="","",'TD Siniestros'!G100) -> 
B102: =IF('TD Siniestros'!A101="","",'TD Siniestros'!A101) ->  | C102: =IF('TD Siniestros'!B101="","",'TD Siniestros'!B101) ->  | D102: =IF('TD Siniestros'!C101="","",'TD Siniestros'!C101) ->  | E102: =IF('TD Siniestros'!D101="","",'TD Siniestros'!D101) ->  | F102: =IF('TD Siniestros'!E101="","",'TD Siniestros'!E101) ->  | G102: =IF('TD Siniestros'!F101="","",'TD Siniestros'!F101) ->  | H102: =IF('TD Siniestros'!G101="","",'TD Siniestros'!G101) -> 
B103: =IF('TD Siniestros'!A102="","",'TD Siniestros'!A102) ->  | C103: =IF('TD Siniestros'!B102="","",'TD Siniestros'!B102) ->  | D103: =IF('TD Siniestros'!C102="","",'TD Siniestros'!C102) ->  | E103: =IF('TD Siniestros'!D102="","",'TD Siniestros'!D102) ->  | F103: =IF('TD Siniestros'!E102="","",'TD Siniestros'!E102) ->  | G103: =IF('TD Siniestros'!F102="","",'TD Siniestros'!F102) ->  | H103: =IF('TD Siniestros'!G102="","",'TD Siniestros'!G102) -> 
B104: =IF('TD Siniestros'!A103="","",'TD Siniestros'!A103) ->  | C104: =IF('TD Siniestros'!B103="","",'TD Siniestros'!B103) ->  | D104: =IF('TD Siniestros'!C103="","",'TD Siniestros'!C103) ->  | E104: =IF('TD Siniestros'!D103="","",'TD Siniestros'!D103) ->  | F104: =IF('TD Siniestros'!E103="","",'TD Siniestros'!E103) ->  | G104: =IF('TD Siniestros'!F103="","",'TD Siniestros'!F103) ->  | H104: =IF('TD Siniestros'!G103="","",'TD Siniestros'!G103) -> 
B105: =IF('TD Siniestros'!A104="","",'TD Siniestros'!A104) ->  | C105: =IF('TD Siniestros'!B104="","",'TD Siniestros'!B104) ->  | D105: =IF('TD Siniestros'!C104="","",'TD Siniestros'!C104) ->  | E105: =IF('TD Siniestros'!D104="","",'TD Siniestros'!D104) ->  | F105: =IF('TD Siniestros'!E104="","",'TD Siniestros'!E104) ->  | G105: =IF('TD Siniestros'!F104="","",'TD Siniestros'!F104) ->  | H105: =IF('TD Siniestros'!G104="","",'TD Siniestros'!G104) -> 
B106: =IF('TD Siniestros'!A105="","",'TD Siniestros'!A105) ->  | C106: =IF('TD Siniestros'!B105="","",'TD Siniestros'!B105) ->  | D106: =IF('TD Siniestros'!C105="","",'TD Siniestros'!C105) ->  | E106: =IF('TD Siniestros'!D105="","",'TD Siniestros'!D105) ->  | F106: =IF('TD Siniestros'!E105="","",'TD Siniestros'!E105) ->  | G106: =IF('TD Siniestros'!F105="","",'TD Siniestros'!F105) ->  | H106: =IF('TD Siniestros'!G105="","",'TD Siniestros'!G105) -> 
B107: =IF('TD Siniestros'!A106="","",'TD Siniestros'!A106) ->  | C107: =IF('TD Siniestros'!B106="","",'TD Siniestros'!B106) ->  | D107: =IF('TD Siniestros'!C106="","",'TD Siniestros'!C106) ->  | E107: =IF('TD Siniestros'!D106="","",'TD Siniestros'!D106) ->  | F107: =IF('TD Siniestros'!E106="","",'TD Siniestros'!E106) ->  | G107: =IF('TD Siniestros'!F106="","",'TD Siniestros'!F106) ->  | H107: =IF('TD Siniestros'!G106="","",'TD Siniestros'!G106) -> 
B108: =IF('TD Siniestros'!A107="","",'TD Siniestros'!A107) ->  | C108: =IF('TD Siniestros'!B107="","",'TD Siniestros'!B107) ->  | D108: =IF('TD Siniestros'!C107="","",'TD Siniestros'!C107) ->  | E108: =IF('TD Siniestros'!D107="","",'TD Siniestros'!D107) ->  | F108: =IF('TD Siniestros'!E107="","",'TD Siniestros'!E107) ->  | G108: =IF('TD Siniestros'!F107="","",'TD Siniestros'!F107) ->  | H108: =IF('TD Siniestros'!G107="","",'TD Siniestros'!G107) -> 
B109: =IF('TD Siniestros'!A108="","",'TD Siniestros'!A108) ->  | C109: =IF('TD Siniestros'!B108="","",'TD Siniestros'!B108) ->  | D109: =IF('TD Siniestros'!C108="","",'TD Siniestros'!C108) ->  | E109: =IF('TD Siniestros'!D108="","",'TD Siniestros'!D108) ->  | F109: =IF('TD Siniestros'!E108="","",'TD Siniestros'!E108) ->  | G109: =IF('TD Siniestros'!F108="","",'TD Siniestros'!F108) ->  | H109: =IF('TD Siniestros'!G108="","",'TD Siniestros'!G108) -> 
B110: =IF('TD Siniestros'!A109="","",'TD Siniestros'!A109) ->  | C110: =IF('TD Siniestros'!B109="","",'TD Siniestros'!B109) ->  | D110: =IF('TD Siniestros'!C109="","",'TD Siniestros'!C109) ->  | E110: =IF('TD Siniestros'!D109="","",'TD Siniestros'!D109) ->  | F110: =IF('TD Siniestros'!E109="","",'TD Siniestros'!E109) ->  | G110: =IF('TD Siniestros'!F109="","",'TD Siniestros'!F109) ->  | H110: =IF('TD Siniestros'!G109="","",'TD Siniestros'!G109) -> 
B111: =IF('TD Siniestros'!A110="","",'TD Siniestros'!A110) ->  | C111: =IF('TD Siniestros'!B110="","",'TD Siniestros'!B110) ->  | D111: =IF('TD Siniestros'!C110="","",'TD Siniestros'!C110) ->  | E111: =IF('TD Siniestros'!D110="","",'TD Siniestros'!D110) ->  | F111: =IF('TD Siniestros'!E110="","",'TD Siniestros'!E110) ->  | G111: =IF('TD Siniestros'!F110="","",'TD Siniestros'!F110) ->  | H111: =IF('TD Siniestros'!G110="","",'TD Siniestros'!G110) -> 
B112: =IF('TD Siniestros'!A111="","",'TD Siniestros'!A111) ->  | C112: =IF('TD Siniestros'!B111="","",'TD Siniestros'!B111) ->  | D112: =IF('TD Siniestros'!C111="","",'TD Siniestros'!C111) ->  | E112: =IF('TD Siniestros'!D111="","",'TD Siniestros'!D111) ->  | F112: =IF('TD Siniestros'!E111="","",'TD Siniestros'!E111) ->  | G112: =IF('TD Siniestros'!F111="","",'TD Siniestros'!F111) ->  | H112: =IF('TD Siniestros'!G111="","",'TD Siniestros'!G111) -> 
B113: =IF('TD Siniestros'!A112="","",'TD Siniestros'!A112) ->  | C113: =IF('TD Siniestros'!B112="","",'TD Siniestros'!B112) ->  | D113: =IF('TD Siniestros'!C112="","",'TD Siniestros'!C112) ->  | E113: =IF('TD Siniestros'!D112="","",'TD Siniestros'!D112) ->  | F113: =IF('TD Siniestros'!E112="","",'TD Siniestros'!E112) ->  | G113: =IF('TD Siniestros'!F112="","",'TD Siniestros'!F112) ->  | H113: =IF('TD Siniestros'!G112="","",'TD Siniestros'!G112) -> 
B114: =IF('TD Siniestros'!A113="","",'TD Siniestros'!A113) ->  | C114: =IF('TD Siniestros'!B113="","",'TD Siniestros'!B113) ->  | D114: =IF('TD Siniestros'!C113="","",'TD Siniestros'!C113) ->  | E114: =IF('TD Siniestros'!D113="","",'TD Siniestros'!D113) ->  | F114: =IF('TD Siniestros'!E113="","",'TD Siniestros'!E113) ->  | G114: =IF('TD Siniestros'!F113="","",'TD Siniestros'!F113) ->  | H114: =IF('TD Siniestros'!G113="","",'TD Siniestros'!G113) -> 
B115: =IF('TD Siniestros'!A114="","",'TD Siniestros'!A114) ->  | C115: =IF('TD Siniestros'!B114="","",'TD Siniestros'!B114) ->  | D115: =IF('TD Siniestros'!C114="","",'TD Siniestros'!C114) ->  | E115: =IF('TD Siniestros'!D114="","",'TD Siniestros'!D114) ->  | F115: =IF('TD Siniestros'!E114="","",'TD Siniestros'!E114) ->  | G115: =IF('TD Siniestros'!F114="","",'TD Siniestros'!F114) ->  | H115: =IF('TD Siniestros'!G114="","",'TD Siniestros'!G114) -> 
B116: =IF('TD Siniestros'!A115="","",'TD Siniestros'!A115) ->  | C116: =IF('TD Siniestros'!B115="","",'TD Siniestros'!B115) ->  | D116: =IF('TD Siniestros'!C115="","",'TD Siniestros'!C115) ->  | E116: =IF('TD Siniestros'!D115="","",'TD Siniestros'!D115) ->  | F116: =IF('TD Siniestros'!E115="","",'TD Siniestros'!E115) ->  | G116: =IF('TD Siniestros'!F115="","",'TD Siniestros'!F115) ->  | H116: =IF('TD Siniestros'!G115="","",'TD Siniestros'!G115) -> 
B117: =IF('TD Siniestros'!A116="","",'TD Siniestros'!A116) ->  | C117: =IF('TD Siniestros'!B116="","",'TD Siniestros'!B116) ->  | D117: =IF('TD Siniestros'!C116="","",'TD Siniestros'!C116) ->  | E117: =IF('TD Siniestros'!D116="","",'TD Siniestros'!D116) ->  | F117: =IF('TD Siniestros'!E116="","",'TD Siniestros'!E116) ->  | G117: =IF('TD Siniestros'!F116="","",'TD Siniestros'!F116) ->  | H117: =IF('TD Siniestros'!G116="","",'TD Siniestros'!G116) -> 
B118: =IF('TD Siniestros'!A117="","",'TD Siniestros'!A117) ->  | C118: =IF('TD Siniestros'!B117="","",'TD Siniestros'!B117) ->  | D118: =IF('TD Siniestros'!C117="","",'TD Siniestros'!C117) ->  | E118: =IF('TD Siniestros'!D117="","",'TD Siniestros'!D117) ->  | F118: =IF('TD Siniestros'!E117="","",'TD Siniestros'!E117) ->  | G118: =IF('TD Siniestros'!F117="","",'TD Siniestros'!F117) ->  | H118: =IF('TD Siniestros'!G117="","",'TD Siniestros'!G117) -> 
B119: =IF('TD Siniestros'!A118="","",'TD Siniestros'!A118) ->  | C119: =IF('TD Siniestros'!B118="","",'TD Siniestros'!B118) ->  | D119: =IF('TD Siniestros'!C118="","",'TD Siniestros'!C118) ->  | E119: =IF('TD Siniestros'!D118="","",'TD Siniestros'!D118) ->  | F119: =IF('TD Siniestros'!E118="","",'TD Siniestros'!E118) ->  | G119: =IF('TD Siniestros'!F118="","",'TD Siniestros'!F118) ->  | H119: =IF('TD Siniestros'!G118="","",'TD Siniestros'!G118) -> 
B120: =IF('TD Siniestros'!A119="","",'TD Siniestros'!A119) ->  | C120: =IF('TD Siniestros'!B119="","",'TD Siniestros'!B119) ->  | D120: =IF('TD Siniestros'!C119="","",'TD Siniestros'!C119) ->  | E120: =IF('TD Siniestros'!D119="","",'TD Siniestros'!D119) ->  | F120: =IF('TD Siniestros'!E119="","",'TD Siniestros'!E119) ->  | G120: =IF('TD Siniestros'!F119="","",'TD Siniestros'!F119) ->  | H120: =IF('TD Siniestros'!G119="","",'TD Siniestros'!G119) -> 
B121: =IF('TD Siniestros'!A120="","",'TD Siniestros'!A120) ->  | C121: =IF('TD Siniestros'!B120="","",'TD Siniestros'!B120) ->  | D121: =IF('TD Siniestros'!C120="","",'TD Siniestros'!C120) ->  | E121: =IF('TD Siniestros'!D120="","",'TD Siniestros'!D120) ->  | F121: =IF('TD Siniestros'!E120="","",'TD Siniestros'!E120) ->  | G121: =IF('TD Siniestros'!F120="","",'TD Siniestros'!F120) ->  | H121: =IF('TD Siniestros'!G120="","",'TD Siniestros'!G120) -> 
B122: =IF('TD Siniestros'!A121="","",'TD Siniestros'!A121) ->  | C122: =IF('TD Siniestros'!B121="","",'TD Siniestros'!B121) ->  | D122: =IF('TD Siniestros'!C121="","",'TD Siniestros'!C121) ->  | E122: =IF('TD Siniestros'!D121="","",'TD Siniestros'!D121) ->  | F122: =IF('TD Siniestros'!E121="","",'TD Siniestros'!E121) ->  | G122: =IF('TD Siniestros'!F121="","",'TD Siniestros'!F121) ->  | H122: =IF('TD Siniestros'!G121="","",'TD Siniestros'!G121) -> 
B123: =IF('TD Siniestros'!A122="","",'TD Siniestros'!A122) ->  | C123: =IF('TD Siniestros'!B122="","",'TD Siniestros'!B122) ->  | D123: =IF('TD Siniestros'!C122="","",'TD Siniestros'!C122) ->  | E123: =IF('TD Siniestros'!D122="","",'TD Siniestros'!D122) ->  | F123: =IF('TD Siniestros'!E122="","",'TD Siniestros'!E122) ->  | G123: =IF('TD Siniestros'!F122="","",'TD Siniestros'!F122) ->  | H123: =IF('TD Siniestros'!G122="","",'TD Siniestros'!G122) -> 
B124: =IF('TD Siniestros'!A123="","",'TD Siniestros'!A123) ->  | C124: =IF('TD Siniestros'!B123="","",'TD Siniestros'!B123) ->  | D124: =IF('TD Siniestros'!C123="","",'TD Siniestros'!C123) ->  | E124: =IF('TD Siniestros'!D123="","",'TD Siniestros'!D123) ->  | F124: =IF('TD Siniestros'!E123="","",'TD Siniestros'!E123) ->  | G124: =IF('TD Siniestros'!F123="","",'TD Siniestros'!F123) ->  | H124: =IF('TD Siniestros'!G123="","",'TD Siniestros'!G123) -> 

Sheet Primas Directas (Vida)
C1: Análisis de Primas Directas | L1: ='Primas Directas'!L1 -> Cuarto Trimestre 2021
C2: =UPPER(RIGHT('TDPrimas Vida'!B3,LEN('TDPrimas Vida'!B3)-3)) -> VIDA TOTAL
L3: Cifras en miles
E4: 2 | F4: 3 | G4: 4 | H4: 5 | I4: 6 | J4: 7 | K4: 8 | L4: 9
E5: Primas Directas | G5: % Part. en Merc. | I5: Incremento | K5: % de Cartera
C6: Compañías | E6: ='Primas Directas'!$D$6 -> 2021 | F6: ='Primas Directas'!$E$6 -> 2020 | G6: =$E$6 -> 2021 | H6: =$F$6 -> 2020 | I6: Importe | J6: % | K6: Por | L6: Total
E7: Importe | F7: Importe | K7: Operación | L7: Cartera
B8: =IF(C8="",B2,D8) -> TOTAL | C8: 151.1 | D8: TOTAL | E8: =VLOOKUP($D8,$D$12:$L$211,E$4,0) -> 249438867.5 | F8: =VLOOKUP($D8,$D$12:$L$211,F$4,0) -> 243832467 | G8: 100 | H8: 102.2992838 | I8: 5606400.462 | J8: 2.29928382 | K8: 39.38112248 | L8: 49.80293647
B9: =IF(C9="",B8,D9) -> TOTAL | D9: =IF(D8="","","1er Año") -> 1er Año | E9: =IF(E8="","",(VLOOKUP(B9,'TDPrimas Vida'!$B:$N,5,0))) -> 111091871.9 | F9: =IF(E8="","",(VLOOKUP(B9,'TDPrimas Vida'!$B:$N,6,0))) -> 113874433.4 | G9: =IFERROR((E9/VLOOKUP("TOTAL",$D$12:$L$312,2,0))*100,"") -> 44.53671277 | H9: =IFERROR((E9/VLOOKUP("TOTAL",$D$12:$L$312,3,0))*100,"") -> 45.5607382 | I9: =IF(E8="","",E9-F9) -> -2782561.465 | J9: =IF(E8="","",IFERROR((E9/F9-1)*100,"ND")) -> -2.44353485 | K9: =IF(E8="","",IFERROR((E9/VLOOKUP(B9&"|"&VLOOKUP(TDPrimas!$B$4,Cat!R:T,2,0),'TD Operación'!A:D,4,0))*100,"ND")) -> 17.5390574 | L9: =IF(E8="","",(VLOOKUP(B9,'TDPrimas Vida'!$B:$N,7,0))) -> 22.18059077
B10: TOTAL | D10: =IF(D9="","","Renovación") -> Renovación | E10: =IF(E8="","",(VLOOKUP(B10,'TDPrimas Vida'!$B:$N,8,0))) -> 109550265.2 | F10: =IF(E8="","",(VLOOKUP(B10,'TDPrimas Vida'!$B:$N,9,0))) -> 104441771.3 | G10: =IFERROR((E10/VLOOKUP("TOTAL",$D$12:$L$312,2,0))*100,"") -> 43.91868288 | H10: =IFERROR((E10/VLOOKUP("TOTAL",$D$12:$L$312,3,0))*100,"") -> 44.92849805 | I10: =IF(E8="","",E10-F10) -> 5108493.867 | J10: =IF(E8="","",IFERROR((E10/F10-1)*100,"ND")) -> 4.891236335 | K10: =IF(E8="","",IFERROR((E10/VLOOKUP(B10&"|"&VLOOKUP(TDPrimas!$B$4,Cat!R:T,2,0),'TD Operación'!A:D,4,0))*100,"ND")) -> 17.2956703 | L10: =IF(E8="","",(VLOOKUP(B10,'TDPrimas Vida'!$B:$N,10,0))) -> 21.87279374
B11: TOTAL | D11: =IF(D10="","","Únicas") -> Únicas | E11: =IF(E9="","",(VLOOKUP(B11,'TDPrimas Vida'!$B:$N,11,0))) -> 28796730.34 | F11: =IF(E9="","",(VLOOKUP(B11,'TDPrimas Vida'!$B:$N,12,0))) -> 25516262.28 | G11: =IFERROR((E11/VLOOKUP("TOTAL",$D$12:$L$312,2,0))*100,"") -> 11.54460435 | H11: =IFERROR((E11/VLOOKUP("TOTAL",$D$12:$L$312,3,0))*100,"") -> 11.81004757 | I11: =IF(E8="","",E11-F11) -> 3280468.06 | J11: =IF(E8="","",IFERROR((E11/F11-1)*100,"ND")) -> 12.85638164 | K11: =IF(E8="","",IFERROR((E11/VLOOKUP(B11&"|"&VLOOKUP(TDPrimas!$B$4,Cat!R:T,2,0),'TD Operación'!A:D,4,0))*100,"ND")) -> 4.546394779 | L11: =IF(E8="","",(VLOOKUP(B11,'TDPrimas Vida'!$B:$N,13,0))) -> 5.74955197
B12: =IF(C12="",B7,D12) -> Metlife México | C12: =IF('TDPrimas Vida'!A7="","",'TDPrimas Vida'!A7) -> 1 | D12: =IF('TDPrimas Vida'!B7="","",'TDPrimas Vida'!B7) -> Metlife México | E12: =IF('TDPrimas Vida'!C7="","",'TDPrimas Vida'!C7) -> 45847773.85 | F12: =IF('TDPrimas Vida'!D7="","",'TDPrimas Vida'!D7) -> 42125139.99 | G12: =IF('TDPrimas Vida'!C7="","",IFERROR((E12/VLOOKUP("TOTAL",$D$12:$L$312,2,0))*100,"")) -> 18.38036482 | H12: =IF('TDPrimas Vida'!C7="","",IFERROR((E12/VLOOKUP("TOTAL",$D$12:$L$312,3,0))*100,"")) -> 18.80298158 | I12: =IF('TDPrimas Vida'!C7="","",E12-F12) -> 3722633.855 | J12: =IFERROR(IF('TDPrimas Vida'!C7="","",(E12/F12-1)*100),"ND") -> 8.83708364 | K12: =IFERROR((E12/VLOOKUP(B12&"|"&VLOOKUP(TDPrimas!$B$4,Cat!R:T,2,0),'TD Operación'!A:D,4,0))*100,"ND") -> 73.4257104 | L12: =IF('TDPrimas Vida'!E7="","",'TDPrimas Vida'!E7) -> 73.4257104
B13: =IF(C13="",B12,D13) -> Metlife México | D13: =IF(D12="","","1er Año") -> 1er Año | E13: =IF(E12="","",(VLOOKUP(B13,'TDPrimas Vida'!$B:$N,5,0))) -> 8748784.907 | F13: =IF(E12="","",(VLOOKUP(B13,'TDPrimas Vida'!$B:$N,6,0))) -> 9896163.294 | G13: =IFERROR((E13/VLOOKUP("TOTAL",$D$12:$L$312,2,0))*100,"") -> 3.507386397 | H13: =IFERROR((E13/VLOOKUP("TOTAL",$D$12:$L$312,3,0))*100,"") -> 3.588031165 | I13: =IF(E12="","",E13-F13) -> -1147378.387 | J13: =IF(E12="","",IFERROR((E13/F13-1)*100,"ND")) -> -11.59417395 | K13: =IF(E12="","",IFERROR((E13/VLOOKUP(B13&"|"&VLOOKUP(TDPrimas!$B$4,Cat!R:T,2,0),'TD Operación'!A:D,4,0))*100,"ND")) -> 14.01127455 | L13: =IF(E12="","",(VLOOKUP(B13,'TDPrimas Vida'!$B:$N,7,0))) -> 14.01127455
B14: Metlife México | D14: =IF(D13="","","Renovación") -> Renovación | E14: =IF(E12="","",(VLOOKUP(B14,'TDPrimas Vida'!$B:$N,8,0))) -> 30911024.16 | F14: =IF(E12="","",(VLOOKUP(B14,'TDPrimas Vida'!$B:$N,9,0))) -> 27196141.22 | G14: =IFERROR((E14/VLOOKUP("TOTAL",$D$12:$L$312,2,0))*100,"") -> 12.39222438 | H14: =IFERROR((E14/VLOOKUP("TOTAL",$D$12:$L$312,3,0))*100,"") -> 12.67715679 | I14: =IF(E12="","",E14-F14) -> 3714882.934 | J14: =IF(E12="","",IFERROR((E14/F14-1)*100,"ND")) -> 13.65959569 | K14: =IF(E12="","",IFERROR((E14/VLOOKUP(B14&"|"&VLOOKUP(TDPrimas!$B$4,Cat!R:T,2,0),'TD Operación'!A:D,4,0))*100,"ND")) -> 49.50434268 | L14: =IF(E12="","",(VLOOKUP(B14,'TDPrimas Vida'!$B:$N,10,0))) -> 49.50434268
B15: Metlife México | D15: =IF(D14="","","Únicas") -> Únicas | E15: =IF(E13="","",(VLOOKUP(B15,'TDPrimas Vida'!$B:$N,11,0))) -> 6187964.785 | F15: =IF(E13="","",(VLOOKUP(B15,'TDPrimas Vida'!$B:$N,12,0))) -> 5032835.477 | G15: =IFERROR((E15/VLOOKUP("TOTAL",$D$12:$L$312,2,0))*100,"") -> 2.480754041 | H15: =IFERROR((E15/VLOOKUP("TOTAL",$D$12:$L$312,3,0))*100,"") -> 2.537793618 | I15: =IF(E12="","",E15-F15) -> 1155129.308 | J15: =IF(E12="","",IFERROR((E15/F15-1)*100,"ND")) -> 22.9518591 | K15: =IF(E12="","",IFERROR((E15/VLOOKUP(B15&"|"&VLOOKUP(TDPrimas!$B$4,Cat!R:T,2,0),'TD Operación'!A:D,4,0))*100,"ND")) -> 9.910093166 | L15: =IF(E12="","",(VLOOKUP(B15,'TDPrimas Vida'!$B:$N,13,0))) -> 9.910093166
B16: BBVA Bancomer | C16: =IF('TDPrimas Vida'!A8="","",'TDPrimas Vida'!A8) -> 2 | D16: =IF('TDPrimas Vida'!B8="","",'TDPrimas Vida'!B8) -> BBVA Bancomer | E16: =IF('TDPrimas Vida'!C8="","",'TDPrimas Vida'!C8) -> 37325851.61 | F16: =IF('TDPrimas Vida'!D8="","",'TDPrimas Vida'!D8) -> 37957892.4 | G16: =IF('TDPrimas Vida'!C8="","",IFERROR((E16/VLOOKUP("TOTAL",$D$12:$L$312,2,0))*100,"")) -> 14.96392763 | H16: =IF('TDPrimas Vida'!C8="","",IFERROR((E16/VLOOKUP("TOTAL",$D$12:$L$312,3,0))*100,"")) -> 15.3079908 | I16: =IF('TDPrimas Vida'!C8="","",E16-F16) -> -632040.793 | J16: =IFERROR(IF('TDPrimas Vida'!C8="","",(E16/F16-1)*100),"ND") -> -1.665110345 | K16: =IF(E16="","",IFERROR((E16/VLOOKUP(D16&"|"&VLOOKUP(TDPrimas!$B$4,Cat!R:T,2,0),'TD Operación'!A:D,4,0))*100,"ND")) -> 79.95501292 | L16: =IF('TDPrimas Vida'!E8="","",'TDPrimas Vida'!E8) -> 79.95501292
B17: BBVA Bancomer | D17: =IF(D16="","","1er Año") -> 1er Año | E17: =IF(E16="","",(VLOOKUP(B17,'TDPrimas Vida'!$B:$N,5,0))) -> 31939704.63 | F17: =IF(E16="","",(VLOOKUP(B17,'TDPrimas Vida'!$B:$N,6,0))) -> 32611842.77 | G17: =IFERROR((E17/VLOOKUP("TOTAL",$D$12:$L$312,2,0))*100,"") -> 12.80462221 | H17: =IFERROR((E17/VLOOKUP("TOTAL",$D$12:$L$312,3,0))*100,"") -> 13.09903682 | I17: =IF(E16="","",E17-F17) -> -672138.1407 | J17: =IF(E16="","",IFERROR((E17/F17-1)*100,"ND")) -> -2.061024719 | K17: =IF(E16="","",IFERROR((E17/VLOOKUP(B17&"|"&VLOOKUP(TDPrimas!$B$4,Cat!R:T,2,0),'TD Operación'!A:D,4,0))*100,"ND")) -> 68.41744759 | L17: =IF(E16="","",(VLOOKUP(B17,'TDPrimas Vida'!$B:$N,7,0))) -> 68.41744759
B18: BBVA Bancomer | D18: =IF(D17="","","Renovación") -> Renovación | E18: =IF(E16="","",(VLOOKUP(B18,'TDPrimas Vida'!$B:$N,8,0))) -> 4119155.011 | F18: =IF(E16="","",(VLOOKUP(B18,'TDPrimas Vida'!$B:$N,9,0))) -> 4049234.939 | G18: =IFERROR((E18/VLOOKUP("TOTAL",$D$12:$L$312,2,0))*100,"") -> 1.651368551 | H18: =IFERROR((E18/VLOOKUP("TOTAL",$D$12:$L$312,3,0))*100,"") -> 1.689338201 | I18: =IF(E16="","",E18-F18) -> 69920.07214 | J18: =IF(E16="","",IFERROR((E18/F18-1)*100,"ND")) -> 1.726747724 | K18: =IF(E16="","",IFERROR((E18/VLOOKUP(B18&"|"&VLOOKUP(TDPrimas!$B$4,Cat!R:T,2,0),'TD Operación'!A:D,4,0))*100,"ND")) -> 8.823565383 | L18: =IF(E16="","",(VLOOKUP(B18,'TDPrimas Vida'!$B:$N,10,0))) -> 8.823565383
B19: BBVA Bancomer | D19: =IF(D18="","","Únicas") -> Únicas | E19: =IF(E17="","",(VLOOKUP(B19,'TDPrimas Vida'!$B:$N,11,0))) -> 1266991.97 | F19: =IF(E17="","",(VLOOKUP(B19,'TDPrimas Vida'!$B:$N,12,0))) -> 1296814.694 | G19: =IFERROR((E19/VLOOKUP("TOTAL",$D$12:$L$312,2,0))*100,"") -> 0.5079368674 | H19: =IFERROR((E19/VLOOKUP("TOTAL",$D$12:$L$312,3,0))*100,"") -> 0.5196157776 | I19: =IF(E16="","",E19-F19) -> -29822.72443 | J19: =IF(E16="","",IFERROR((E19/F19-1)*100,"ND")) -> -2.299690509 | K19: =IF(E16="","",IFERROR((E19/VLOOKUP(B19&"|"&VLOOKUP(TDPrimas!$B$4,Cat!R:T,2,0),'TD Operación'!A:D,4,0))*100,"ND")) -> 2.713999947 | L19: =IF(E16="","",(VLOOKUP(B19,'TDPrimas Vida'!$B:$N,13,0))) -> 2.713999947
B20: =IF(C20="",B16,D20) -> G.N.P. | C20: =IF('TDPrimas Vida'!A9="","",'TDPrimas Vida'!A9) -> 3 | D20: =IF('TDPrimas Vida'!B9="","",'TDPrimas Vida'!B9) -> G.N.P. | E20: =IF('TDPrimas Vida'!C9="","",'TDPrimas Vida'!C9) -> 32138338.2 | F20: =IF('TDPrimas Vida'!D9="","",'TDPrimas Vida'!D9) -> 29629963.6 | G20: =IF('TDPrimas Vida'!C9="","",IFERROR((E20/VLOOKUP("TOTAL",$D$12:$L$312,2,0))*100,"")) -> 12.88425438 | H20: =IF('TDPrimas Vida'!C9="","",IFERROR((E20/VLOOKUP("TOTAL",$D$12:$L$312,3,0))*100,"")) -> 13.18049996 | I20: =IF('TDPrimas Vida'!C9="","",E20-F20) -> 2508374.608 | J20: =IFERROR(IF('TDPrimas Vida'!C9="","",(E20/F20-1)*100),"ND") -> 8.465668882 | K20: =IF(E20="","",IFERROR((E20/VLOOKUP(D20&"|"&VLOOKUP(TDPrimas!$B$4,Cat!R:T,2,0),'TD Operación'!A:D,4,0))*100,"ND")) -> 40.73601406 | L20: =IF('TDPrimas Vida'!E9="","",'TDPrimas Vida'!E9) -> 40.73601406
B21: =IF(C21="",B20,D21) -> G.N.P. | D21: =IF(D20="","","1er Año") -> 1er Año | E21: =IF(E20="","",(VLOOKUP(B21,'TDPrimas Vida'!$B:$N,5,0))) -> 7791578.782 | F21: =IF(E20="","",(VLOOKUP(B21,'TDPrimas Vida'!$B:$N,6,0))) -> 7686617.805 | G21: =IFERROR((E21/VLOOKUP("TOTAL",$D$12:$L$312,2,0))*100,"") -> 3.123642623 | H21: =IFERROR((E21/VLOOKUP("TOTAL",$D$12:$L$312,3,0))*100,"") -> 3.195464032 | I21: =IF(E20="","",E21-F21) -> 104960.9775 | J21: =IF(E20="","",IFERROR((E21/F21-1)*100,"ND")) -> 1.36550275 | K21: =IF(E20="","",IFERROR((E21/VLOOKUP(B21&"|"&VLOOKUP(TDPrimas!$B$4,Cat!R:T,2,0),'TD Operación'!A:D,4,0))*100,"ND")) -> 9.875988635 | L21: =IF(E20="","",(VLOOKUP(B21,'TDPrimas Vida'!$B:$N,7,0))) -> 9.875988635
B22: =IF(C22="",B21,D22) -> G.N.P. | D22: =IF(D21="","","Renovación") -> Renovación | E22: =IF(E20="","",(VLOOKUP(B22,'TDPrimas Vida'!$B:$N,8,0))) -> 17995644.97 | F22: =IF(E20="","",(VLOOKUP(B22,'TDPrimas Vida'!$B:$N,9,0))) -> 17191708.19 | G22: =IFERROR((E22/VLOOKUP("TOTAL",$D$12:$L$312,2,0))*100,"") -> 7.214451039 | H22: =IFERROR((E22/VLOOKUP("TOTAL",$D$12:$L$312,3,0))*100,"") -> 7.380331745 | I22: =IF(E20="","",E22-F22) -> 803936.7729 | J22: =IF(E20="","",IFERROR((E22/F22-1)*100,"ND")) -> 4.676305367 | K22: =IF(E20="","",IFERROR((E22/VLOOKUP(B22&"|"&VLOOKUP(TDPrimas!$B$4,Cat!R:T,2,0),'TD Operación'!A:D,4,0))*100,"ND")) -> 22.80985537 | L22: =IF(E20="","",(VLOOKUP(B22,'TDPrimas Vida'!$B:$N,10,0))) -> 22.80985537
B23: =IF(C23="",B22,D23) -> G.N.P. | D23: =IF(D22="","","Únicas") -> Únicas | E23: =IF(E21="","",(VLOOKUP(B23,'TDPrimas Vida'!$B:$N,11,0))) -> 6351114.456 | F23: =IF(E21="","",(VLOOKUP(B23,'TDPrimas Vida'!$B:$N,12,0))) -> 4751637.598 | G23: =IFERROR((E23/VLOOKUP("TOTAL",$D$12:$L$312,2,0))*100,"") -> 2.546160717 | H23: =IFERROR((E23/VLOOKUP("TOTAL",$D$12:$L$312,3,0))*100,"") -> 2.604704178 | I23: =IF(E20="","",E23-F23) -> 1599476.857 | J23: =IF(E20="","",IFERROR((E23/F23-1)*100,"ND")) -> 33.66159191 | K23: =IF(E20="","",IFERROR((E23/VLOOKUP(B23&"|"&VLOOKUP(TDPrimas!$B$4,Cat!R:T,2,0),'TD Operación'!A:D,4,0))*100,"ND")) -> 8.050170054 | L23: =IF(E20="","",(VLOOKUP(B23,'TDPrimas Vida'!$B:$N,13,0))) -> 8.050170054
B24: =IF(C24="",B20,D24) -> Monterrey New York Life | C24: =IF('TDPrimas Vida'!A10="","",'TDPrimas Vida'!A10) -> 4 | D24: =IF('TDPrimas Vida'!B10="","",'TDPrimas Vida'!B10) -> Monterrey New York Life | E24: =IF('TDPrimas Vida'!C10="","",'TDPrimas Vida'!C10) -> 23548993.2 | F24: =IF('TDPrimas Vida'!D10="","",'TDPrimas Vida'!D10) -> 22788854.28 | G24: =IF('TDPrimas Vida'!C10="","",IFERROR((E24/VLOOKUP("TOTAL",$D$12:$L$312,2,0))*100,"")) -> 9.440787411 | H24: =IF('TDPrimas Vida'!C10="","",IFERROR((E24/VLOOKUP("TOTAL",$D$12:$L$312,3,0))*100,"")) -> 9.657857908 | I24: =IF('TDPrimas Vida'!C10="","",E24-F24) -> 760138.9212 | J24: =IFERROR(IF('TDPrimas Vida'!C10="","",(E24/F24-1)*100),"ND") -> 3.335573224 | K24: =IF(E24="","",IFERROR((E24/VLOOKUP(D24&"|"&VLOOKUP(TDPrimas!$B$4,Cat!R:T,2,0),'TD Operación'!A:D,4,0))*100,"ND")) -> 68.19577256 | L24: =IF('TDPrimas Vida'!E10="","",'TDPrimas Vida'!E10) -> 68.19577256
B25: =IF(C25="",B24,D25) -> Monterrey New York Life | D25: =IF(D24="","","1er Año") -> 1er Año | E25: =IF(E24="","",(VLOOKUP(B25,'TDPrimas Vida'!$B:$N,5,0))) -> 2200084.573 | F25: =IF(E24="","",(VLOOKUP(B25,'TDPrimas Vida'!$B:$N,6,0))) -> 2123174.935 | G25: =IFERROR((E25/VLOOKUP("TOTAL",$D$12:$L$312,2,0))*100,"") -> 0.8820135351 | H25: =IFERROR((E25/VLOOKUP("TOTAL",$D$12:$L$312,3,0))*100,"") -> 0.9022935296 | I25: =IF(E24="","",E25-F25) -> 76909.63755 | J25: =IF(E24="","",IFERROR((E25/F25-1)*100,"ND")) -> 3.622388164 | K25: =IF(E24="","",IFERROR((E25/VLOOKUP(B25&"|"&VLOOKUP(TDPrimas!$B$4,Cat!R:T,2,0),'TD Operación'!A:D,4,0))*100,"ND")) -> 6.371247632 | L25: =IF(E24="","",(VLOOKUP(B25,'TDPrimas Vida'!$B:$N,7,0))) -> 6.371247632
B26: =IF(C26="",B25,D26) -> Monterrey New York Life | D26: =IF(D25="","","Renovación") -> Renovación | E26: =IF(E24="","",(VLOOKUP(B26,'TDPrimas Vida'!$B:$N,8,0))) -> 15411250.56 | F26: =IF(E24="","",(VLOOKUP(B26,'TDPrimas Vida'!$B:$N,9,0))) -> 14790867.16 | G26: =IFERROR((E26/VLOOKUP("TOTAL",$D$12:$L$312,2,0))*100,"") -> 6.178367758 | H26: =IFERROR((E26/VLOOKUP("TOTAL",$D$12:$L$312,3,0))*100,"") -> 6.320425968 | I26: =IF(E24="","",E26-F26) -> 620383.4019 | J26: =IF(E24="","",IFERROR((E26/F26-1)*100,"ND")) -> 4.194368018 | K26: =IF(E24="","",IFERROR((E26/VLOOKUP(B26&"|"&VLOOKUP(TDPrimas!$B$4,Cat!R:T,2,0),'TD Operación'!A:D,4,0))*100,"ND")) -> 44.62959964 | L26: =IF(E24="","",(VLOOKUP(B26,'TDPrimas Vida'!$B:$N,10,0))) -> 44.62959964
B27: =IF(C27="",B26,D27) -> Monterrey New York Life | D27: =IF(D26="","","Únicas") -> Únicas | E27: =IF(E25="","",(VLOOKUP(B27,'TDPrimas Vida'!$B:$N,11,0))) -> 5937658.061 | F27: =IF(E25="","",(VLOOKUP(B27,'TDPrimas Vida'!$B:$N,12,0))) -> 5874812.179 | G27: =IFERROR((E27/VLOOKUP("TOTAL",$D$12:$L$312,2,0))*100,"") -> 2.380406118 | H27: =IFERROR((E27/VLOOKUP("TOTAL",$D$12:$L$312,3,0))*100,"") -> 2.43513841 | I27: =IF(E24="","",E27-F27) -> 62845.88182 | J27: =IF(E24="","",IFERROR((E27/F27-1)*100,"ND")) -> 1.069751337 | K27: =IF(E24="","",IFERROR((E27/VLOOKUP(B27&"|"&VLOOKUP(TDPrimas!$B$4,Cat!R:T,2,0),'TD Operación'!A:D,4,0))*100,"ND")) -> 17.19492529 | L27: =IF(E24="","",(VLOOKUP(B27,'TDPrimas Vida'!$B:$N,13,0))) -> 17.19492529
B28: =IF(C28="",B24,D28) -> Citibanamex Seguros | C28: =IF('TDPrimas Vida'!A11="","",'TDPrimas Vida'!A11) -> 5 | D28: =IF('TDPrimas Vida'!B11="","",'TDPrimas Vida'!B11) -> Citibanamex Seguros | E28: =IF('TDPrimas Vida'!C11="","",'TDPrimas Vida'!C11) -> 23397154.32 | F28: =IF('TDPrimas Vida'!D11="","",'TDPrimas Vida'!D11) -> 29537600.09 | G28: =IF('TDPrimas Vida'!C11="","",IFERROR((E28/VLOOKUP("TOTAL",$D$12:$L$312,2,0))*100,"")) -> 9.379915233 | H28: =IF('TDPrimas Vida'!C11="","",IFERROR((E28/VLOOKUP("TOTAL",$D$12:$L$312,3,0))*100,"")) -> 9.595586106 | I28: =IF('TDPrimas Vida'!C11="","",E28-F28) -> -6140445.765 | J28: =IFERROR(IF('TDPrimas Vida'!C11="","",(E28/F28-1)*100),"ND") -> -20.7885737 | K28: =IF(E28="","",IFERROR((E28/VLOOKUP(D28&"|"&VLOOKUP(TDPrimas!$B$4,Cat!R:T,2,0),'TD Operación'!A:D,4,0))*100,"ND")) -> 96.26533514 | L28: =IF('TDPrimas Vida'!E11="","",'TDPrimas Vida'!E11) -> 96.26533514
B29: =IF(C29="",B28,D29) -> Citibanamex Seguros | D29: =IF(D28="","","1er Año") -> 1er Año | E29: =IF(E28="","",(VLOOKUP(B29,'TDPrimas Vida'!$B:$N,5,0))) -> 14333370.96 | F29: =IF(E28="","",(VLOOKUP(B29,'TDPrimas Vida'!$B:$N,6,0))) -> 19659624.06 | G29: =IFERROR((E29/VLOOKUP("TOTAL",$D$12:$L$312,2,0))*100,"") -> 5.746246008 | H29: =IFERROR((E29/VLOOKUP("TOTAL",$D$12:$L$312,3,0))*100,"") -> 5.878368513 | I29: =IF(E28="","",E29-F29) -> -5326253.095 | J29: =IF(E28="","",IFERROR((E29/F29-1)*100,"ND")) -> -27.09234459 | K29: =IF(E28="","",IFERROR((E29/VLOOKUP(B29&"|"&VLOOKUP(TDPrimas!$B$4,Cat!R:T,2,0),'TD Operación'!A:D,4,0))*100,"ND")) -> 58.97327258 | L29: =IF(E28="","",(VLOOKUP(B29,'TDPrimas Vida'!$B:$N,7,0))) -> 58.97327258
B30: =IF(C30="",B29,D30) -> Citibanamex Seguros | D30: =IF(D29="","","Renovación") -> Renovación | E30: =IF(E28="","",(VLOOKUP(B30,'TDPrimas Vida'!$B:$N,8,0))) -> 9063783.361 | F30: =IF(E28="","",(VLOOKUP(B30,'TDPrimas Vida'!$B:$N,9,0))) -> 9877976.031 | G30: =IFERROR((E30/VLOOKUP("TOTAL",$D$12:$L$312,2,0))*100,"") -> 3.633669225 | H30: =IFERROR((E30/VLOOKUP("TOTAL",$D$12:$L$312,3,0))*100,"") -> 3.717217593 | I30: =IF(E28="","",E30-F30) -> -814192.6702 | J30: =IF(E28="","",IFERROR((E30/F30-1)*100,"ND")) -> -8.24250502 | K30: =IF(E28="","",IFERROR((E30/VLOOKUP(B30&"|"&VLOOKUP(TDPrimas!$B$4,Cat!R:T,2,0),'TD Operación'!A:D,4,0))*100,"ND")) -> 37.29206256 | L30: =IF(E28="","",(VLOOKUP(B30,'TDPrimas Vida'!$B:$N,10,0))) -> 37.29206256
B31: =IF(C31="",B30,D31) -> Citibanamex Seguros | D31: =IF(D30="","","Únicas") -> Únicas | E31: =IF(E29="","",(VLOOKUP(B31,'TDPrimas Vida'!$B:$N,11,0))) -> 0 | F31: =IF(E29="","",(VLOOKUP(B31,'TDPrimas Vida'!$B:$N,12,0))) -> 0 | G31: =IFERROR((E31/VLOOKUP("TOTAL",$D$12:$L$312,2,0))*100,"") -> 0 | H31: =IFERROR((E31/VLOOKUP("TOTAL",$D$12:$L$312,3,0))*100,"") -> 0 | I31: =IF(E28="","",E31-F31) -> 0 | J31: =IF(E28="","",IFERROR((E31/F31-1)*100,"ND")) -> ND | K31: =IF(E28="","",IFERROR((E31/VLOOKUP(B31&"|"&VLOOKUP(TDPrimas!$B$4,Cat!R:T,2,0),'TD Operación'!A:D,4,0))*100,"ND")) -> 0 | L31: =IF(E28="","",(VLOOKUP(B31,'TDPrimas Vida'!$B:$N,13,0))) -> 0
B32: =IF(C32="",B28,D32) -> TOTAL GRANDES | C32: =IF('TDPrimas Vida'!A12="","",'TDPrimas Vida'!A12) -> 5.1 | D32: =IF('TDPrimas Vida'!B12="","",'TDPrimas Vida'!B12) -> TOTAL GRANDES | E32: =IF('TDPrimas Vida'!C12="","",'TDPrimas Vida'!C12) -> 162258111.2 | F32: =IF('TDPrimas Vida'!D12="","",'TDPrimas Vida'!D12) -> 162039450.4 | G32: =IF('TDPrimas Vida'!C12="","",IFERROR((E32/VLOOKUP("TOTAL",$D$12:$L$312,2,0))*100,"")) -> 65.04924948 | H32: =IF('TDPrimas Vida'!C12="","",IFERROR((E32/VLOOKUP("TOTAL",$D$12:$L$312,3,0))*100,"")) -> 66.54491634 | I32: =IF('TDPrimas Vida'!C12="","",E32-F32) -> 218660.8253 | J32: =IFERROR(IF('TDPrimas Vida'!C12="","",(E32/F32-1)*100),"ND") -> 0.1349429567 | K32: =IF(E32="","",IFERROR((E32/VLOOKUP(D32&"|"&VLOOKUP(TDPrimas!$B$4,Cat!R:T,2,0),'TD Operación'!A:D,4,0))*100,"ND")) -> 60.61538156 | L32: =IF('TDPrimas Vida'!E12="","",'TDPrimas Vida'!E12) -> 65.73010756
B33: =IF(C33="",B32,D33) -> TOTAL GRANDES | D33: =IF(D32="","","1er Año") -> 1er Año | E33: =IF(E32="","",(VLOOKUP(B33,'TDPrimas Vida'!$B:$N,5,0))) -> 65013523.85 | F33: =IF(E32="","",(VLOOKUP(B33,'TDPrimas Vida'!$B:$N,6,0))) -> 71977422.86 | G33: =IFERROR((E33/VLOOKUP("TOTAL",$D$12:$L$312,2,0))*100,"") -> 26.06391078 | H33: =IFERROR((E33/VLOOKUP("TOTAL",$D$12:$L$312,3,0))*100,"") -> 26.66319406 | I33: =IF(E32="","",E33-F33) -> -6963899.008 | J33: =IF(E32="","",IFERROR((E33/F33-1)*100,"ND")) -> -9.675115794 | K33: =IF(E32="","",IFERROR((E33/VLOOKUP(B33&"|"&VLOOKUP(TDPrimas!$B$4,Cat!R:T,2,0),'TD Operación'!A:D,4,0))*100,"ND")) -> 24.28735011 | L33: =IF(E32="","",(VLOOKUP(B33,'TDPrimas Vida'!$B:$N,7,0))) -> 26.33671676
B34: =IF(C34="",B33,D34) -> TOTAL GRANDES | D34: =IF(D33="","","Renovación") -> Renovación | E34: =IF(E32="","",(VLOOKUP(B34,'TDPrimas Vida'!$B:$N,8,0))) -> 77500858.06 | F34: =IF(E32="","",(VLOOKUP(B34,'TDPrimas Vida'!$B:$N,9,0))) -> 73105927.55 | G34: =IFERROR((E34/VLOOKUP("TOTAL",$D$12:$L$312,2,0))*100,"") -> 31.07008096 | H34: =IFERROR((E34/VLOOKUP("TOTAL",$D$12:$L$312,3,0))*100,"") -> 31.7844703 | I34: =IF(E32="","",E34-F34) -> 4394930.51 | J34: =IF(E32="","",IFERROR((E34/F34-1)*100,"ND")) -> 6.01172936 | K34: =IF(E32="","",IFERROR((E34/VLOOKUP(B34&"|"&VLOOKUP(TDPrimas!$B$4,Cat!R:T,2,0),'TD Operación'!A:D,4,0))*100,"ND")) -> 28.95229119 | L34: =IF(E32="","",(VLOOKUP(B34,'TDPrimas Vida'!$B:$N,10,0))) -> 31.39528557
B35: =IF(C35="",B34,D35) -> TOTAL GRANDES | D35: =IF(D34="","","Únicas") -> Únicas | E35: =IF(E33="","",(VLOOKUP(B35,'TDPrimas Vida'!$B:$N,11,0))) -> 19743729.27 | F35: =IF(E33="","",(VLOOKUP(B35,'TDPrimas Vida'!$B:$N,12,0))) -> 16956099.95 | G35: =IFERROR((E35/VLOOKUP("TOTAL",$D$12:$L$312,2,0))*100,"") -> 7.915257743 | H35: =IFERROR((E35/VLOOKUP("TOTAL",$D$12:$L$312,3,0))*100,"") -> 8.097251984 | I35: =IF(E32="","",E35-F35) -> 2787629.323 | J35: =IF(E32="","",IFERROR((E35/F35-1)*100,"ND")) -> 16.44027418 | K35: =IF(E32="","",IFERROR((E35/VLOOKUP(B35&"|"&VLOOKUP(TDPrimas!$B$4,Cat!R:T,2,0),'TD Operación'!A:D,4,0))*100,"ND")) -> 7.375740261 | L35: =IF(E32="","",(VLOOKUP(B35,'TDPrimas Vida'!$B:$N,13,0))) -> 7.998105236
B36: =IF(C36="",B32,D36) -> Banorte | C36: =IF('TDPrimas Vida'!A13="","",'TDPrimas Vida'!A13) -> 6 | D36: =IF('TDPrimas Vida'!B13="","",'TDPrimas Vida'!B13) -> Banorte | E36: =IF('TDPrimas Vida'!C13="","",'TDPrimas Vida'!C13) -> 15171410.45 | F36: =IF('TDPrimas Vida'!D13="","",'TDPrimas Vida'!D13) -> 14550597.4 | G36: =IF('TDPrimas Vida'!C13="","",IFERROR((E36/VLOOKUP("TOTAL",$D$12:$L$312,2,0))*100,"")) -> 6.082215897 | H36: =IF('TDPrimas Vida'!C13="","",IFERROR((E36/VLOOKUP("TOTAL",$D$12:$L$312,3,0))*100,"")) -> 6.222063303 | I36: =IF('TDPrimas Vida'!C13="","",E36-F36) -> 620813.0493 | J36: =IFERROR(IF('TDPrimas Vida'!C13="","",(E36/F36-1)*100),"ND") -> 4.266581173 | K36: =IF(E36="","",IFERROR((E36/VLOOKUP(D36&"|"&VLOOKUP(TDPrimas!$B$4,Cat!R:T,2,0),'TD Operación'!A:D,4,0))*100,"ND")) -> 54.59869744 | L36: =IF('TDPrimas Vida'!E13="","",'TDPrimas Vida'!E13) -> 54.59869744
B37: =IF(C37="",B36,D37) -> Banorte | D37: =IF(D36="","","1er Año") -> 1er Año | E37: =IF(E36="","",(VLOOKUP(B37,'TDPrimas Vida'!$B:$N,5,0))) -> 3838669.01 | F37: =IF(E36="","",(VLOOKUP(B37,'TDPrimas Vida'!$B:$N,6,0))) -> 3071975.018 | G37: =IFERROR((E37/VLOOKUP("TOTAL",$D$12:$L$312,2,0))*100,"") -> 1.53892176 | H37: =IFERROR((E37/VLOOKUP("TOTAL",$D$12:$L$312,3,0))*100,"") -> 1.57430594 | I37: =IF(E36="","",E37-F37) -> 766693.9923 | J37: =IF(E36="","",IFERROR((E37/F37-1)*100,"ND")) -> 24.95768969 | K37: =IF(E36="","",IFERROR((E37/VLOOKUP(B37&"|"&VLOOKUP(TDPrimas!$B$4,Cat!R:T,2,0),'TD Operación'!A:D,4,0))*100,"ND")) -> 13.81455789 | L37: =IF(E36="","",(VLOOKUP(B37,'TDPrimas Vida'!$B:$N,7,0))) -> 13.81455789
B38: =IF(C38="",B37,D38) -> Banorte | D38: =IF(D37="","","Renovación") -> Renovación | E38: =IF(E36="","",(VLOOKUP(B38,'TDPrimas Vida'!$B:$N,8,0))) -> 7476991.336 | F38: =IF(E36="","",(VLOOKUP(B38,'TDPrimas Vida'!$B:$N,9,0))) -> 7756025.757 | G38: =IFERROR((E38/VLOOKUP("TOTAL",$D$12:$L$312,2,0))*100,"") -> 2.997524569 | H38: =IFERROR((E38/VLOOKUP("TOTAL",$D$12:$L$312,3,0))*100,"") -> 3.066446166 | I38: =IF(E36="","",E38-F38) -> -279034.4208 | J38: =IF(E36="","",IFERROR((E38/F38-1)*100,"ND")) -> -3.597646907 | K38: =IF(E36="","",IFERROR((E38/VLOOKUP(B38&"|"&VLOOKUP(TDPrimas!$B$4,Cat!R:T,2,0),'TD Operación'!A:D,4,0))*100,"ND")) -> 26.90811043 | L38: =IF(E36="","",(VLOOKUP(B38,'TDPrimas Vida'!$B:$N,10,0))) -> 26.90811043
B39: =IF(C39="",B38,D39) -> Banorte | D39: =IF(D38="","","Únicas") -> Únicas | E39: =IF(E37="","",(VLOOKUP(B39,'TDPrimas Vida'!$B:$N,11,0))) -> 3855750.103 | F39: =IF(E37="","",(VLOOKUP(B39,'TDPrimas Vida'!$B:$N,12,0))) -> 3722596.625 | G39: =IFERROR((E39/VLOOKUP("TOTAL",$D$12:$L$312,2,0))*100,"") -> 1.545769567 | H39: =IFERROR((E39/VLOOKUP("TOTAL",$D$12:$L$312,3,0))*100,"") -> 1.581311197 | I39: =IF(E36="","",E39-F39) -> 133153.4778 | J39: =IF(E36="","",IFERROR((E39/F39-1)*100,"ND")) -> 3.576897826 | K39: =IF(E36="","",IFERROR((E39/VLOOKUP(B39&"|"&VLOOKUP(TDPrimas!$B$4,Cat!R:T,2,0),'TD Operación'!A:D,4,0))*100,"ND")) -> 13.87602912 | L39: =IF(E36="","",(VLOOKUP(B39,'TDPrimas Vida'!$B:$N,13,0))) -> 13.87602912
B40: =IF(C40="",B36,D40) -> Zurich Santander | C40: =IF('TDPrimas Vida'!A14="","",'TDPrimas Vida'!A14) -> 7 | D40: =IF('TDPrimas Vida'!B14="","",'TDPrimas Vida'!B14) -> Zurich Santander | E40: =IF('TDPrimas Vida'!C14="","",'TDPrimas Vida'!C14) -> 10872638.54 | F40: =IF('TDPrimas Vida'!D14="","",'TDPrimas Vida'!D14) -> 7850148.34 | G40: =IF('TDPrimas Vida'!C14="","",IFERROR((E40/VLOOKUP("TOTAL",$D$12:$L$312,2,0))*100,"")) -> 4.358838962 | H40: =IF('TDPrimas Vida'!C14="","",IFERROR((E40/VLOOKUP("TOTAL",$D$12:$L$312,3,0))*100,"")) -> 4.459061041 | I40: =IF('TDPrimas Vida'!C14="","",E40-F40) -> 3022490.201 | J40: =IFERROR(IF('TDPrimas Vida'!C14="","",(E40/F40-1)*100),"ND") -> 38.50233231 | K40: =IF(E40="","",IFERROR((E40/VLOOKUP(D40&"|"&VLOOKUP(TDPrimas!$B$4,Cat!R:T,2,0),'TD Operación'!A:D,4,0))*100,"ND")) -> 73.74976117 | L40: =IF('TDPrimas Vida'!E14="","",'TDPrimas Vida'!E14) -> 73.74976117
B41: =IF(C41="",B40,D41) -> Zurich Santander | D41: =IF(D40="","","1er Año") -> 1er Año | E41: =IF(E40="","",(VLOOKUP(B41,'TDPrimas Vida'!$B:$N,5,0))) -> 6128239.404 | F41: =IF(E40="","",(VLOOKUP(B41,'TDPrimas Vida'!$B:$N,6,0))) -> 3786931.6 | G41: =IFERROR((E41/VLOOKUP("TOTAL",$D$12:$L$312,2,0))*100,"") -> 2.456810146 | H41: =IFERROR((E41/VLOOKUP("TOTAL",$D$12:$L$312,3,0))*100,"") -> 2.513299184 | I41: =IF(E40="","",E41-F41) -> 2341307.803 | J41: =IF(E40="","",IFERROR((E41/F41-1)*100,"ND")) -> 61.82598606 | K41: =IF(E40="","",IFERROR((E41/VLOOKUP(B41&"|"&VLOOKUP(TDPrimas!$B$4,Cat!R:T,2,0),'TD Operación'!A:D,4,0))*100,"ND")) -> 41.56821646 | L41: =IF(E40="","",(VLOOKUP(B41,'TDPrimas Vida'!$B:$N,7,0))) -> 41.56821646
B42: =IF(C42="",B41,D42) -> Zurich Santander | D42: =IF(D41="","","Renovación") -> Renovación | E42: =IF(E40="","",(VLOOKUP(B42,'TDPrimas Vida'!$B:$N,8,0))) -> 1224789.944 | F42: =IF(E40="","",(VLOOKUP(B42,'TDPrimas Vida'!$B:$N,9,0))) -> 1060535.328 | G42: =IFERROR((E42/VLOOKUP("TOTAL",$D$12:$L$312,2,0))*100,"") -> 0.4910180825 | H42: =IFERROR((E42/VLOOKUP("TOTAL",$D$12:$L$312,3,0))*100,"") -> 0.5023079818 | I42: =IF(E40="","",E42-F42) -> 164254.6158 | J42: =IF(E40="","",IFERROR((E42/F42-1)*100,"ND")) -> 15.48789668 | K42: =IF(E40="","",IFERROR((E42/VLOOKUP(B42&"|"&VLOOKUP(TDPrimas!$B$4,Cat!R:T,2,0),'TD Operación'!A:D,4,0))*100,"ND")) -> 8.307823857 | L42: =IF(E40="","",(VLOOKUP(B42,'TDPrimas Vida'!$B:$N,10,0))) -> 8.307823857
B43: =IF(C43="",B42,D43) -> Zurich Santander | D43: =IF(D42="","","Únicas") -> Únicas | E43: =IF(E41="","",(VLOOKUP(B43,'TDPrimas Vida'!$B:$N,11,0))) -> 3519609.193 | F43: =IF(E41="","",(VLOOKUP(B43,'TDPrimas Vida'!$B:$N,12,0))) -> 3002681.411 | G43: =IFERROR((E43/VLOOKUP("TOTAL",$D$12:$L$312,2,0))*100,"") -> 1.411010733 | H43: =IFERROR((E43/VLOOKUP("TOTAL",$D$12:$L$312,3,0))*100,"") -> 1.443453875 | I43: =IF(E40="","",E43-F43) -> 516927.7818 | J43: =IF(E40="","",IFERROR((E43/F43-1)*100,"ND")) -> 17.21553875 | K43: =IF(E40="","",IFERROR((E43/VLOOKUP(B43&"|"&VLOOKUP(TDPrimas!$B$4,Cat!R:T,2,0),'TD Operación'!A:D,4,0))*100,"ND")) -> 23.87372085 | L43: =IF(E40="","",(VLOOKUP(B43,'TDPrimas Vida'!$B:$N,13,0))) -> 23.87372085
B44: =IF(C44="",B40,D44) -> Allianz México | C44: =IF('TDPrimas Vida'!A15="","",'TDPrimas Vida'!A15) -> 8 | D44: =IF('TDPrimas Vida'!B15="","",'TDPrimas Vida'!B15) -> Allianz México | E44: =IF('TDPrimas Vida'!C15="","",'TDPrimas Vida'!C15) -> 9080227.052 | F44: =IF('TDPrimas Vida'!D15="","",'TDPrimas Vida'!D15) -> 9673129.512 | G44: =IF('TDPrimas Vida'!C15="","",IFERROR((E44/VLOOKUP("TOTAL",$D$12:$L$312,2,0))*100,"")) -> 3.640261498 | H44: =IF('TDPrimas Vida'!C15="","",IFERROR((E44/VLOOKUP("TOTAL",$D$12:$L$312,3,0))*100,"")) -> 3.723961441 | I44: =IF('TDPrimas Vida'!C15="","",E44-F44) -> -592902.4597 | J44: =IFERROR(IF('TDPrimas Vida'!C15="","",(E44/F44-1)*100),"ND") -> -6.129375803 | K44: =IF(E44="","",IFERROR((E44/VLOOKUP(D44&"|"&VLOOKUP(TDPrimas!$B$4,Cat!R:T,2,0),'TD Operación'!A:D,4,0))*100,"ND")) -> 54.82931642 | L44: =IF('TDPrimas Vida'!E15="","",'TDPrimas Vida'!E15) -> 54.82931642
B45: =IF(C45="",B44,D45) -> Allianz México | D45: =IF(D44="","","1er Año") -> 1er Año | E45: =IF(E44="","",(VLOOKUP(B45,'TDPrimas Vida'!$B:$N,5,0))) -> 4859120.954 | F45: =IF(E44="","",(VLOOKUP(B45,'TDPrimas Vida'!$B:$N,6,0))) -> 5402828.017 | G45: =IFERROR((E45/VLOOKUP("TOTAL",$D$12:$L$312,2,0))*100,"") -> 1.948020773 | H45: =IFERROR((E45/VLOOKUP("TOTAL",$D$12:$L$312,3,0))*100,"") -> 1.992811299 | I45: =IF(E44="","",E45-F45) -> -543707.0629 | J45: =IF(E44="","",IFERROR((E45/F45-1)*100,"ND")) -> -10.06337905 | K45: =IF(E44="","",IFERROR((E45/VLOOKUP(B45&"|"&VLOOKUP(TDPrimas!$B$4,Cat!R:T,2,0),'TD Operación'!A:D,4,0))*100,"ND")) -> 29.34092714 | L45: =IF(E44="","",(VLOOKUP(B45,'TDPrimas Vida'!$B:$N,7,0))) -> 29.34092714
B46: =IF(C46="",B45,D46) -> Allianz México | D46: =IF(D45="","","Renovación") -> Renovación | E46: =IF(E44="","",(VLOOKUP(B46,'TDPrimas Vida'!$B:$N,8,0))) -> 4221106.098 | F46: =IF(E44="","",(VLOOKUP(B46,'TDPrimas Vida'!$B:$N,9,0))) -> 4270301.495 | G46: =IFERROR((E46/VLOOKUP("TOTAL",$D$12:$L$312,2,0))*100,"") -> 1.692240725 | H46: =IFERROR((E46/VLOOKUP("TOTAL",$D$12:$L$312,3,0))*100,"") -> 1.731150142 | I46: =IF(E44="","",E46-F46) -> -49195.39677 | J46: =IF(E44="","",IFERROR((E46/F46-1)*100,"ND")) -> -1.152035678 | K46: =IF(E44="","",IFERROR((E46/VLOOKUP(B46&"|"&VLOOKUP(TDPrimas!$B$4,Cat!R:T,2,0),'TD Operación'!A:D,4,0))*100,"ND")) -> 25.48838929 | L46: =IF(E44="","",(VLOOKUP(B46,'TDPrimas Vida'!$B:$N,10,0))) -> 25.48838929
B47: =IF(C47="",B46,D47) -> Allianz México | D47: =IF(D46="","","Únicas") -> Únicas | E47: =IF(E45="","",(VLOOKUP(B47,'TDPrimas Vida'!$B:$N,11,0))) -> 0 | F47: =IF(E45="","",(VLOOKUP(B47,'TDPrimas Vida'!$B:$N,12,0))) -> 0 | G47: =IFERROR((E47/VLOOKUP("TOTAL",$D$12:$L$312,2,0))*100,"") -> 0 | H47: =IFERROR((E47/VLOOKUP("TOTAL",$D$12:$L$312,3,0))*100,"") -> 0 | I47: =IF(E44="","",E47-F47) -> 0 | J47: =IF(E44="","",IFERROR((E47/F47-1)*100,"ND")) -> ND | K47: =IF(E44="","",IFERROR((E47/VLOOKUP(B47&"|"&VLOOKUP(TDPrimas!$B$4,Cat!R:T,2,0),'TD Operación'!A:D,4,0))*100,"ND")) -> 0 | L47: =IF(E44="","",(VLOOKUP(B47,'TDPrimas Vida'!$B:$N,13,0))) -> 0
B48: =IF(C48="",B44,D48) -> HSBC Seguros | C48: =IF('TDPrimas Vida'!A16="","",'TDPrimas Vida'!A16) -> 9 | D48: =IF('TDPrimas Vida'!B16="","",'TDPrimas Vida'!B16) -> HSBC Seguros | E48: =IF('TDPrimas Vida'!C16="","",'TDPrimas Vida'!C16) -> 6118480.682 | F48: =IF('TDPrimas Vida'!D16="","",'TDPrimas Vida'!D16) -> 3267798.644 | G48: =IF('TDPrimas Vida'!C16="","",IFERROR((E48/VLOOKUP("TOTAL",$D$12:$L$312,2,0))*100,"")) -> 2.452897876 | H48: =IF('TDPrimas Vida'!C16="","",IFERROR((E48/VLOOKUP("TOTAL",$D$12:$L$312,3,0))*100,"")) -> 2.50929696 | I48: =IF('TDPrimas Vida'!C16="","",E48-F48) -> 2850682.038 | J48: =IFERROR(IF('TDPrimas Vida'!C16="","",(E48/F48-1)*100),"ND") -> 87.2355475 | K48: =IF(E48="","",IFERROR((E48/VLOOKUP(D48&"|"&VLOOKUP(TDPrimas!$B$4,Cat!R:T,2,0),'TD Operación'!A:D,4,0))*100,"ND")) -> 94.59055751 | L48: =IF('TDPrimas Vida'!E16="","",'TDPrimas Vida'!E16) -> 94.59055751
B49: =IF(C49="",B48,D49) -> HSBC Seguros | D49: =IF(D48="","","1er Año") -> 1er Año | E49: =IF(E48="","",(VLOOKUP(B49,'TDPrimas Vida'!$B:$N,5,0))) -> 4219031.923 | F49: =IF(E48="","",(VLOOKUP(B49,'TDPrimas Vida'!$B:$N,6,0))) -> 1477453.913 | G49: =IFERROR((E49/VLOOKUP("TOTAL",$D$12:$L$312,2,0))*100,"") -> 1.691409188 | H49: =IFERROR((E49/VLOOKUP("TOTAL",$D$12:$L$312,3,0))*100,"") -> 1.730299486 | I49: =IF(E48="","",E49-F49) -> 2741578.01 | J49: =IF(E48="","",IFERROR((E49/F49-1)*100,"ND")) -> 185.5609834 | K49: =IF(E48="","",IFERROR((E49/VLOOKUP(B49&"|"&VLOOKUP(TDPrimas!$B$4,Cat!R:T,2,0),'TD Operación'!A:D,4,0))*100,"ND")) -> 65.2254379 | L49: =IF(E48="","",(VLOOKUP(B49,'TDPrimas Vida'!$B:$N,7,0))) -> 65.2254379
B50: =IF(C50="",B49,D50) -> HSBC Seguros | D50: =IF(D49="","","Renovación") -> Renovación | E50: =IF(E48="","",(VLOOKUP(B50,'TDPrimas Vida'!$B:$N,8,0))) -> 1899448.759 | F50: =IF(E48="","",(VLOOKUP(B50,'TDPrimas Vida'!$B:$N,9,0))) -> 1790344.731 | G50: =IFERROR((E50/VLOOKUP("TOTAL",$D$12:$L$312,2,0))*100,"") -> 0.761488688 | H50: =IFERROR((E50/VLOOKUP("TOTAL",$D$12:$L$312,3,0))*100,"") -> 0.7789974742 | I50: =IF(E48="","",E50-F50) -> 109104.028 | J50: =IF(E48="","",IFERROR((E50/F50-1)*100,"ND")) -> 6.094023463 | K50: =IF(E48="","",IFERROR((E50/VLOOKUP(B50&"|"&VLOOKUP(TDPrimas!$B$4,Cat!R:T,2,0),'TD Operación'!A:D,4,0))*100,"ND")) -> 29.36511961 | L50: =IF(E48="","",(VLOOKUP(B50,'TDPrimas Vida'!$B:$N,10,0))) -> 29.36511961
B51: =IF(C51="",B50,D51) -> HSBC Seguros | D51: =IF(D50="","","Únicas") -> Únicas | E51: =IF(E49="","",(VLOOKUP(B51,'TDPrimas Vida'!$B:$N,11,0))) -> 0 | F51: =IF(E49="","",(VLOOKUP(B51,'TDPrimas Vida'!$B:$N,12,0))) -> 0 | G51: =IFERROR((E51/VLOOKUP("TOTAL",$D$12:$L$312,2,0))*100,"") -> 0 | H51: =IFERROR((E51/VLOOKUP("TOTAL",$D$12:$L$312,3,0))*100,"") -> 0 | I51: =IF(E48="","",E51-F51) -> 0 | J51: =IF(E48="","",IFERROR((E51/F51-1)*100,"ND")) -> ND | K51: =IF(E48="","",IFERROR((E51/VLOOKUP(B51&"|"&VLOOKUP(TDPrimas!$B$4,Cat!R:T,2,0),'TD Operación'!A:D,4,0))*100,"ND")) -> 0 | L51: =IF(E48="","",(VLOOKUP(B51,'TDPrimas Vida'!$B:$N,13,0))) -> 0
B52: =IF(C52="",B48,D52) -> AXA Seguros | C52: =IF('TDPrimas Vida'!A17="","",'TDPrimas Vida'!A17) -> 10 | D52: =IF('TDPrimas Vida'!B17="","",'TDPrimas Vida'!B17) -> AXA Seguros | E52: =IF('TDPrimas Vida'!C17="","",'TDPrimas Vida'!C17) -> 5769071.136 | F52: =IF('TDPrimas Vida'!D17="","",'TDPrimas Vida'!D17) -> 6089813.345 | G52: =IF('TDPrimas Vida'!C17="","",IFERROR((E52/VLOOKUP("TOTAL",$D$12:$L$312,2,0))*100,"")) -> 2.312819648 | H52: =IF('TDPrimas Vida'!C17="","",IFERROR((E52/VLOOKUP("TOTAL",$D$12:$L$312,3,0))*100,"")) -> 2.365997936 | I52: =IF('TDPrimas Vida'!C17="","",E52-F52) -> -320742.2087 | J52: =IFERROR(IF('TDPrimas Vida'!C17="","",(E52/F52-1)*100),"ND") -> -5.266864362 | K52: =IF(E52="","",IFERROR((E52/VLOOKUP(D52&"|"&VLOOKUP(TDPrimas!$B$4,Cat!R:T,2,0),'TD Operación'!A:D,4,0))*100,"ND")) -> 12.91168895 | L52: =IF('TDPrimas Vida'!E17="","",'TDPrimas Vida'!E17) -> 12.91168895
B53: =IF(C53="",B52,D53) -> AXA Seguros | D53: =IF(D52="","","1er Año") -> 1er Año | E53: =IF(E52="","",(VLOOKUP(B53,'TDPrimas Vida'!$B:$N,5,0))) -> 1329927.921 | F53: =IF(E52="","",(VLOOKUP(B53,'TDPrimas Vida'!$B:$N,6,0))) -> 1527484.181 | G53: =IFERROR((E53/VLOOKUP("TOTAL",$D$12:$L$312,2,0))*100,"") -> 0.5331678798 | H53: =IFERROR((E53/VLOOKUP("TOTAL",$D$12:$L$312,3,0))*100,"") -> 0.5454269226 | I53: =IF(E52="","",E53-F53) -> -197556.2595 | J53: =IF(E52="","",IFERROR((E53/F53-1)*100,"ND")) -> -12.93344062 | K53: =IF(E52="","",IFERROR((E53/VLOOKUP(B53&"|"&VLOOKUP(TDPrimas!$B$4,Cat!R:T,2,0),'TD Operación'!A:D,4,0))*100,"ND")) -> 2.976495737 | L53: =IF(E52="","",(VLOOKUP(B53,'TDPrimas Vida'!$B:$N,7,0))) -> 2.976495737
B54: =IF(C54="",B53,D54) -> AXA Seguros | D54: =IF(D53="","","Renovación") -> Renovación | E54: =IF(E52="","",(VLOOKUP(B54,'TDPrimas Vida'!$B:$N,8,0))) -> 4433822.948 | F54: =IF(E52="","",(VLOOKUP(B54,'TDPrimas Vida'!$B:$N,9,0))) -> 4556204.977 | G54: =IFERROR((E54/VLOOKUP("TOTAL",$D$12:$L$312,2,0))*100,"") -> 1.777518874 | H54: =IFERROR((E54/VLOOKUP("TOTAL",$D$12:$L$312,3,0))*100,"") -> 1.818389078 | I54: =IF(E52="","",E54-F54) -> -122382.0292 | J54: =IF(E52="","",IFERROR((E54/F54-1)*100,"ND")) -> -2.686051874 | K54: =IF(E52="","",IFERROR((E54/VLOOKUP(B54&"|"&VLOOKUP(TDPrimas!$B$4,Cat!R:T,2,0),'TD Operación'!A:D,4,0))*100,"ND")) -> 9.923285988 | L54: =IF(E52="","",(VLOOKUP(B54,'TDPrimas Vida'!$B:$N,10,0))) -> 9.923285988
B55: =IF(C55="",B54,D55) -> AXA Seguros | D55: =IF(D54="","","Únicas") -> Únicas | E55: =IF(E53="","",(VLOOKUP(B55,'TDPrimas Vida'!$B:$N,11,0))) -> 5320.26688 | F55: =IF(E53="","",(VLOOKUP(B55,'TDPrimas Vida'!$B:$N,12,0))) -> 6124.18692 | G55: =IFERROR((E55/VLOOKUP("TOTAL",$D$12:$L$312,2,0))*100,"") -> 0.002132894097 | H55: =IFERROR((E55/VLOOKUP("TOTAL",$D$12:$L$312,3,0))*100,"") -> 0.002181935386 | I55: =IF(E52="","",E55-F55) -> -803.92004 | J55: =IF(E52="","",IFERROR((E55/F55-1)*100,"ND")) -> -13.12696772 | K55: =IF(E52="","",IFERROR((E55/VLOOKUP(B55&"|"&VLOOKUP(TDPrimas!$B$4,Cat!R:T,2,0),'TD Operación'!A:D,4,0))*100,"ND")) -> 0.01190722553 | L55: =IF(E52="","",(VLOOKUP(B55,'TDPrimas Vida'!$B:$N,13,0))) -> 0.01190722553
B56: =IF(C56="",B52,D56) -> Mapfre México | C56: =IF('TDPrimas Vida'!A18="","",'TDPrimas Vida'!A18) -> 11 | D56: =IF('TDPrimas Vida'!B18="","",'TDPrimas Vida'!B18) -> Mapfre México | E56: =IF('TDPrimas Vida'!C18="","",'TDPrimas Vida'!C18) -> 5405617.678 | F56: =IF('TDPrimas Vida'!D18="","",'TDPrimas Vida'!D18) -> 5882561.114 | G56: =IF('TDPrimas Vida'!C18="","",IFERROR((E56/VLOOKUP("TOTAL",$D$12:$L$312,2,0))*100,"")) -> 2.167111218 | H56: =IF('TDPrimas Vida'!C18="","",IFERROR((E56/VLOOKUP("TOTAL",$D$12:$L$312,3,0))*100,"")) -> 2.216939255 | I56: =IF('TDPrimas Vida'!C18="","",E56-F56) -> -476943.4356 | J56: =IFERROR(IF('TDPrimas Vida'!C18="","",(E56/F56-1)*100),"ND") -> -8.107751477 | K56: =IF(E56="","",IFERROR((E56/VLOOKUP(D56&"|"&VLOOKUP(TDPrimas!$B$4,Cat!R:T,2,0),'TD Operación'!A:D,4,0))*100,"ND")) -> 17.45258031 | L56: =IF('TDPrimas Vida'!E18="","",'TDPrimas Vida'!E18) -> 17.45258031
B57: =IF(C57="",B56,D57) -> Mapfre México | D57: =IF(D56="","","1er Año") -> 1er Año | E57: =IF(E56="","",(VLOOKUP(B57,'TDPrimas Vida'!$B:$N,5,0))) -> 4596064.591 | F57: =IF(E56="","",(VLOOKUP(B57,'TDPrimas Vida'!$B:$N,6,0))) -> 5105986.086 | G57: =IFERROR((E57/VLOOKUP("TOTAL",$D$12:$L$312,2,0))*100,"") -> 1.842561521 | H57: =IFERROR((E57/VLOOKUP("TOTAL",$D$12:$L$312,3,0))*100,"") -> 1.88492724 | I57: =IF(E56="","",E57-F57) -> -509921.4952 | J57: =IF(E56="","",IFERROR((E57/F57-1)*100,"ND")) -> -9.986738832 | K57: =IF(E56="","",IFERROR((E57/VLOOKUP(B57&"|"&VLOOKUP(TDPrimas!$B$4,Cat!R:T,2,0),'TD Operación'!A:D,4,0))*100,"ND")) -> 14.83885675 | L57: =IF(E56="","",(VLOOKUP(B57,'TDPrimas Vida'!$B:$N,7,0))) -> 14.83885675
B58: =IF(C58="",B57,D58) -> Mapfre México | D58: =IF(D57="","","Renovación") -> Renovación | E58: =IF(E56="","",(VLOOKUP(B58,'TDPrimas Vida'!$B:$N,8,0))) -> 808465.8015 | F58: =IF(E56="","",(VLOOKUP(B58,'TDPrimas Vida'!$B:$N,9,0))) -> 775034.1894 | G58: =IFERROR((E58/VLOOKUP("TOTAL",$D$12:$L$312,2,0))*100,"") -> 0.3241138038 | H58: =IFERROR((E58/VLOOKUP("TOTAL",$D$12:$L$312,3,0))*100,"") -> 0.3315661001 | I58: =IF(E56="","",E58-F58) -> 33431.6121 | J58: =IF(E56="","",IFERROR((E58/F58-1)*100,"ND")) -> 4.313566105 | K58: =IF(E56="","",IFERROR((E58/VLOOKUP(B58&"|"&VLOOKUP(TDPrimas!$B$4,Cat!R:T,2,0),'TD Operación'!A:D,4,0))*100,"ND")) -> 2.610213146 | L58: =IF(E56="","",(VLOOKUP(B58,'TDPrimas Vida'!$B:$N,10,0))) -> 2.610213146
B59: =IF(C59="",B58,D59) -> Mapfre México | D59: =IF(D58="","","Únicas") -> Únicas | E59: =IF(E57="","",(VLOOKUP(B59,'TDPrimas Vida'!$B:$N,11,0))) -> 1087.28627 | F59: =IF(E57="","",(VLOOKUP(B59,'TDPrimas Vida'!$B:$N,12,0))) -> 1540.8388 | G59: =IFERROR((E59/VLOOKUP("TOTAL",$D$12:$L$312,2,0))*100,"") -> 0.0004358928827 | H59: =IFERROR((E59/VLOOKUP("TOTAL",$D$12:$L$312,3,0))*100,"") -> 0.0004459152973 | I59: =IF(E56="","",E59-F59) -> -453.55253 | J59: =IF(E56="","",IFERROR((E59/F59-1)*100,"ND")) -> -29.43543023 | K59: =IF(E56="","",IFERROR((E59/VLOOKUP(B59&"|"&VLOOKUP(TDPrimas!$B$4,Cat!R:T,2,0),'TD Operación'!A:D,4,0))*100,"ND")) -> 0.003510413069 | L59: =IF(E56="","",(VLOOKUP(B59,'TDPrimas Vida'!$B:$N,13,0))) -> 0.003510413069
B60: =IF(C60="",B56,D60) -> Inbursa | C60: =IF('TDPrimas Vida'!A19="","",'TDPrimas Vida'!A19) -> 12 | D60: =IF('TDPrimas Vida'!B19="","",'TDPrimas Vida'!B19) -> Inbursa | E60: =IF('TDPrimas Vida'!C19="","",'TDPrimas Vida'!C19) -> 5013331.068 | F60: =IF('TDPrimas Vida'!D19="","",'TDPrimas Vida'!D19) -> 4819998.348 | G60: =IF('TDPrimas Vida'!C19="","",IFERROR((E60/VLOOKUP("TOTAL",$D$12:$L$312,2,0))*100,"")) -> 2.009843582 | H60: =IF('TDPrimas Vida'!C19="","",IFERROR((E60/VLOOKUP("TOTAL",$D$12:$L$312,3,0))*100,"")) -> 2.05605559 | I60: =IF('TDPrimas Vida'!C19="","",E60-F60) -> 193332.7198 | J60: =IFERROR(IF('TDPrimas Vida'!C19="","",(E60/F60-1)*100),"ND") -> 4.011053653 | K60: =IF(E60="","",IFERROR((E60/VLOOKUP(D60&"|"&VLOOKUP(TDPrimas!$B$4,Cat!R:T,2,0),'TD Operación'!A:D,4,0))*100,"ND")) -> 24.20038593 | L60: =IF('TDPrimas Vida'!E19="","",'TDPrimas Vida'!E19) -> 24.20038593
B61: =IF(C61="",B60,D61) -> Inbursa | D61: =IF(D60="","","1er Año") -> 1er Año | E61: =IF(E60="","",(VLOOKUP(B61,'TDPrimas Vida'!$B:$N,5,0))) -> 2847270.967 | F61: =IF(E60="","",(VLOOKUP(B61,'TDPrimas Vida'!$B:$N,6,0))) -> 2629116.425 | G61: =IFERROR((E61/VLOOKUP("TOTAL",$D$12:$L$312,2,0))*100,"") -> 1.141470452 | H61: =IFERROR((E61/VLOOKUP("TOTAL",$D$12:$L$312,3,0))*100,"") -> 1.167716097 | I61: =IF(E60="","",E61-F61) -> 218154.542 | J61: =IF(E60="","",IFERROR((E61/F61-1)*100,"ND")) -> 8.297637181 | K61: =IF(E60="","",IFERROR((E61/VLOOKUP(B61&"|"&VLOOKUP(TDPrimas!$B$4,Cat!R:T,2,0),'TD Operación'!A:D,4,0))*100,"ND")) -> 13.74436583 | L61: =IF(E60="","",(VLOOKUP(B61,'TDPrimas Vida'!$B:$N,7,0))) -> 13.74436583
B62: =IF(C62="",B61,D62) -> Inbursa | D62: =IF(D61="","","Renovación") -> Renovación | E62: =IF(E60="","",(VLOOKUP(B62,'TDPrimas Vida'!$B:$N,8,0))) -> 2166060.101 | F62: =IF(E60="","",(VLOOKUP(B62,'TDPrimas Vida'!$B:$N,9,0))) -> 2190881.923 | G62: =IFERROR((E62/VLOOKUP("TOTAL",$D$12:$L$312,2,0))*100,"") -> 0.8683731301 | H62: =IFERROR((E62/VLOOKUP("TOTAL",$D$12:$L$312,3,0))*100,"") -> 0.888339493 | I62: =IF(E60="","",E62-F62) -> -24821.82221 | J62: =IF(E60="","",IFERROR((E62/F62-1)*100,"ND")) -> -1.132960291 | K62: =IF(E60="","",IFERROR((E62/VLOOKUP(B62&"|"&VLOOKUP(TDPrimas!$B$4,Cat!R:T,2,0),'TD Operación'!A:D,4,0))*100,"ND")) -> 10.45602009 | L62: =IF(E60="","",(VLOOKUP(B62,'TDPrimas Vida'!$B:$N,10,0))) -> 10.45602009
B63: =IF(C63="",B62,D63) -> Inbursa | D63: =IF(D62="","","Únicas") -> Únicas | E63: =IF(E61="","",(VLOOKUP(B63,'TDPrimas Vida'!$B:$N,11,0))) -> 0 | F63: =IF(E61="","",(VLOOKUP(B63,'TDPrimas Vida'!$B:$N,12,0))) -> 0 | G63: =IFERROR((E63/VLOOKUP("TOTAL",$D$12:$L$312,2,0))*100,"") -> 0 | H63: =IFERROR((E63/VLOOKUP("TOTAL",$D$12:$L$312,3,0))*100,"") -> 0 | I63: =IF(E60="","",E63-F63) -> 0 | J63: =IF(E60="","",IFERROR((E63/F63-1)*100,"ND")) -> ND | K63: =IF(E60="","",IFERROR((E63/VLOOKUP(B63&"|"&VLOOKUP(TDPrimas!$B$4,Cat!R:T,2,0),'TD Operación'!A:D,4,0))*100,"ND")) -> 0 | L63: =IF(E60="","",(VLOOKUP(B63,'TDPrimas Vida'!$B:$N,13,0))) -> 0
B64: =IF(C64="",B60,D64) -> Seguros Azteca | C64: =IF('TDPrimas Vida'!A20="","",'TDPrimas Vida'!A20) -> 13 | D64: =IF('TDPrimas Vida'!B20="","",'TDPrimas Vida'!B20) -> Seguros Azteca | E64: =IF('TDPrimas Vida'!C20="","",'TDPrimas Vida'!C20) -> 4867012.418 | F64: =IF('TDPrimas Vida'!D20="","",'TDPrimas Vida'!D20) -> 4542185.712 | G64: =IF('TDPrimas Vida'!C20="","",IFERROR((E64/VLOOKUP("TOTAL",$D$12:$L$312,2,0))*100,"")) -> 1.951184459 | H64: =IF('TDPrimas Vida'!C20="","",IFERROR((E64/VLOOKUP("TOTAL",$D$12:$L$312,3,0))*100,"")) -> 1.996047728 | I64: =IF('TDPrimas Vida'!C20="","",E64-F64) -> 324826.7057 | J64: =IFERROR(IF('TDPrimas Vida'!C20="","",(E64/F64-1)*100),"ND") -> 7.151330358 | K64: =IF(E64="","",IFERROR((E64/VLOOKUP(D64&"|"&VLOOKUP(TDPrimas!$B$4,Cat!R:T,2,0),'TD Operación'!A:D,4,0))*100,"ND")) -> 97.67081339 | L64: =IF('TDPrimas Vida'!E20="","",'TDPrimas Vida'!E20) -> 97.67081339
B65: =IF(C65="",B64,D65) -> Seguros Azteca | D65: =IF(D64="","","1er Año") -> 1er Año | E65: =IF(E64="","",(VLOOKUP(B65,'TDPrimas Vida'!$B:$N,5,0))) -> 4782784.052 | F65: =IF(E64="","",(VLOOKUP(B65,'TDPrimas Vida'!$B:$N,6,0))) -> 4300296.644 | G65: =IFERROR((E65/VLOOKUP("TOTAL",$D$12:$L$312,2,0))*100,"") -> 1.917417322 | H65: =IFERROR((E65/VLOOKUP("TOTAL",$D$12:$L$312,3,0))*100,"") -> 1.961504188 | I65: =IF(E64="","",E65-F65) -> 482487.4082 | J65: =IF(E64="","",IFERROR((E65/F65-1)*100,"ND")) -> 11.21986338 | K65: =IF(E64="","",IFERROR((E65/VLOOKUP(B65&"|"&VLOOKUP(TDPrimas!$B$4,Cat!R:T,2,0),'TD Operación'!A:D,4,0))*100,"ND")) -> 95.98052534 | L65: =IF(E64="","",(VLOOKUP(B65,'TDPrimas Vida'!$B:$N,7,0))) -> 95.98052534
B66: =IF(C66="",B65,D66) -> Seguros Azteca | D66: =IF(D65="","","Renovación") -> Renovación | E66: =IF(E64="","",(VLOOKUP(B66,'TDPrimas Vida'!$B:$N,8,0))) -> 9354.4844 | F66: =IF(E64="","",(VLOOKUP(B66,'TDPrimas Vida'!$B:$N,9,0))) -> 3741.27278 | G66: =IFERROR((E66/VLOOKUP("TOTAL",$D$12:$L$312,2,0))*100,"") -> 0.003750211222 | H66: =IFERROR((E66/VLOOKUP("TOTAL",$D$12:$L$312,3,0))*100,"") -> 0.003836439222 | I66: =IF(E64="","",E66-F66) -> 5613.21162 | J66: =IF(E64="","",IFERROR((E66/F66-1)*100,"ND")) -> 150.034813 | K66: =IF(E64="","",IFERROR((E66/VLOOKUP(B66&"|"&VLOOKUP(TDPrimas!$B$4,Cat!R:T,2,0),'TD Operación'!A:D,4,0))*100,"ND")) -> 0.1877250399 | L66: =IF(E64="","",(VLOOKUP(B66,'TDPrimas Vida'!$B:$N,10,0))) -> 0.1877250399
B67: =IF(C67="",B66,D67) -> Seguros Azteca | D67: =IF(D66="","","Únicas") -> Únicas | E67: =IF(E65="","",(VLOOKUP(B67,'TDPrimas Vida'!$B:$N,11,0))) -> 74873.88082 | F67: =IF(E65="","",(VLOOKUP(B67,'TDPrimas Vida'!$B:$N,12,0))) -> 238147.7949 | G67: =IFERROR((E67/VLOOKUP("TOTAL",$D$12:$L$312,2,0))*100,"") -> 0.03001692622 | H67: =IFERROR((E67/VLOOKUP("TOTAL",$D$12:$L$312,3,0))*100,"") -> 0.03070710055 | I67: =IF(E64="","",E67-F67) -> -163273.9141 | J67: =IF(E64="","",IFERROR((E67/F67-1)*100,"ND")) -> -68.5599101 | K67: =IF(E64="","",IFERROR((E67/VLOOKUP(B67&"|"&VLOOKUP(TDPrimas!$B$4,Cat!R:T,2,0),'TD Operación'!A:D,4,0))*100,"ND")) -> 1.502563013 | L67: =IF(E64="","",(VLOOKUP(B67,'TDPrimas Vida'!$B:$N,13,0))) -> 1.502563013
B68: =IF(C68="",B64,D68) -> Seguros Argos | C68: =IF('TDPrimas Vida'!A21="","",'TDPrimas Vida'!A21) -> 14 | D68: =IF('TDPrimas Vida'!B21="","",'TDPrimas Vida'!B21) -> Seguros Argos | E68: =IF('TDPrimas Vida'!C21="","",'TDPrimas Vida'!C21) -> 3067143.767 | F68: =IF('TDPrimas Vida'!D21="","",'TDPrimas Vida'!D21) -> 2998917.062 | G68: =IF('TDPrimas Vida'!C21="","",IFERROR((E68/VLOOKUP("TOTAL",$D$12:$L$312,2,0))*100,"")) -> 1.22961742 | H68: =IF('TDPrimas Vida'!C21="","",IFERROR((E68/VLOOKUP("TOTAL",$D$12:$L$312,3,0))*100,"")) -> 1.257889815 | I68: =IF('TDPrimas Vida'!C21="","",E68-F68) -> 68226.70506 | J68: =IFERROR(IF('TDPrimas Vida'!C21="","",(E68/F68-1)*100),"ND") -> 2.275044746 | K68: =IF(E68="","",IFERROR((E68/VLOOKUP(D68&"|"&VLOOKUP(TDPrimas!$B$4,Cat!R:T,2,0),'TD Operación'!A:D,4,0))*100,"ND")) -> 100 | L68: =IF('TDPrimas Vida'!E21="","",'TDPrimas Vida'!E21) -> 100
B69: =IF(C69="",B68,D69) -> Seguros Argos | D69: =IF(D68="","","1er Año") -> 1er Año | E69: =IF(E68="","",(VLOOKUP(B69,'TDPrimas Vida'!$B:$N,5,0))) -> 745728.4944 | F69: =IF(E68="","",(VLOOKUP(B69,'TDPrimas Vida'!$B:$N,6,0))) -> 581435.5194 | G69: =IFERROR((E69/VLOOKUP("TOTAL",$D$12:$L$312,2,0))*100,"") -> 0.2989624279 | H69: =IFERROR((E69/VLOOKUP("TOTAL",$D$12:$L$312,3,0))*100,"") -> 0.3058364227 | I69: =IF(E68="","",E69-F69) -> 164292.9749 | J69: =IF(E68="","",IFERROR((E69/F69-1)*100,"ND")) -> 28.25643935 | K69: =IF(E68="","",IFERROR((E69/VLOOKUP(B69&"|"&VLOOKUP(TDPrimas!$B$4,Cat!R:T,2,0),'TD Operación'!A:D,4,0))*100,"ND")) -> 24.31345092 | L69: =IF(E68="","",(VLOOKUP(B69,'TDPrimas Vida'!$B:$N,7,0))) -> 24.31345092
B70: =IF(C70="",B69,D70) -> Seguros Argos | D70: =IF(D69="","","Renovación") -> Renovación | E70: =IF(E68="","",(VLOOKUP(B70,'TDPrimas Vida'!$B:$N,8,0))) -> 1910456.997 | F70: =IF(E68="","",(VLOOKUP(B70,'TDPrimas Vida'!$B:$N,9,0))) -> 2067203.064 | G70: =IFERROR((E70/VLOOKUP("TOTAL",$D$12:$L$312,2,0))*100,"") -> 0.7659018887 | H70: =IFERROR((E70/VLOOKUP("TOTAL",$D$12:$L$312,3,0))*100,"") -> 0.7835121469 | I70: =IF(E68="","",E70-F70) -> -156746.0673 | J70: =IF(E68="","",IFERROR((E70/F70-1)*100,"ND")) -> -7.582519105 | K70: =IF(E68="","",IFERROR((E70/VLOOKUP(B70&"|"&VLOOKUP(TDPrimas!$B$4,Cat!R:T,2,0),'TD Operación'!A:D,4,0))*100,"ND")) -> 62.28782027 | L70: =IF(E68="","",(VLOOKUP(B70,'TDPrimas Vida'!$B:$N,10,0))) -> 62.28782027
B71: =IF(C71="",B70,D71) -> Seguros Argos | D71: =IF(D70="","","Únicas") -> Únicas | E71: =IF(E69="","",(VLOOKUP(B71,'TDPrimas Vida'!$B:$N,11,0))) -> 410958.2757 | F71: =IF(E69="","",(VLOOKUP(B71,'TDPrimas Vida'!$B:$N,12,0))) -> 350278.4783 | G71: =IFERROR((E71/VLOOKUP("TOTAL",$D$12:$L$312,2,0))*100,"") -> 0.1647531036 | H71: =IFERROR((E71/VLOOKUP("TOTAL",$D$12:$L$312,3,0))*100,"") -> 0.1685412451 | I71: =IF(E68="","",E71-F71) -> 60679.79744 | J71: =IF(E68="","",IFERROR((E71/F71-1)*100,"ND")) -> 17.32330166 | K71: =IF(E68="","",IFERROR((E71/VLOOKUP(B71&"|"&VLOOKUP(TDPrimas!$B$4,Cat!R:T,2,0),'TD Operación'!A:D,4,0))*100,"ND")) -> 13.39872882 | L71: =IF(E68="","",(VLOOKUP(B71,'TDPrimas Vida'!$B:$N,13,0))) -> 13.39872882
B72: =IF(C72="",B68,D72) -> Afirme | C72: =IF('TDPrimas Vida'!A22="","",'TDPrimas Vida'!A22) -> 15 | D72: =IF('TDPrimas Vida'!B22="","",'TDPrimas Vida'!B22) -> Afirme | E72: =IF('TDPrimas Vida'!C22="","",'TDPrimas Vida'!C22) -> 2880992.41 | F72: =IF('TDPrimas Vida'!D22="","",'TDPrimas Vida'!D22) -> 2211964.454 | G72: =IF('TDPrimas Vida'!C22="","",IFERROR((E72/VLOOKUP("TOTAL",$D$12:$L$312,2,0))*100,"")) -> 1.154989373 | H72: =IF('TDPrimas Vida'!C22="","",IFERROR((E72/VLOOKUP("TOTAL",$D$12:$L$312,3,0))*100,"")) -> 1.181545856 | I72: =IF('TDPrimas Vida'!C22="","",E72-F72) -> 669027.9565 | J72: =IFERROR(IF('TDPrimas Vida'!C22="","",(E72/F72-1)*100),"ND") -> 30.24587287 | K72: =IF(E72="","",IFERROR((E72/VLOOKUP(D72&"|"&VLOOKUP(TDPrimas!$B$4,Cat!R:T,2,0),'TD Operación'!A:D,4,0))*100,"ND")) -> 28.24701879 | L72: =IF('TDPrimas Vida'!E22="","",'TDPrimas Vida'!E22) -> 28.24701879
B73: =IF(C73="",B72,D73) -> Afirme | D73: =IF(D72="","","1er Año") -> 1er Año | E73: =IF(E72="","",(VLOOKUP(B73,'TDPrimas Vida'!$B:$N,5,0))) -> 2880992.41 | F73: =IF(E72="","",(VLOOKUP(B73,'TDPrimas Vida'!$B:$N,6,0))) -> 2211964.454 | G73: =IFERROR((E73/VLOOKUP("TOTAL",$D$12:$L$312,2,0))*100,"") -> 1.154989373 | H73: =IFERROR((E73/VLOOKUP("TOTAL",$D$12:$L$312,3,0))*100,"") -> 1.181545856 | I73: =IF(E72="","",E73-F73) -> 669027.9565 | J73: =IF(E72="","",IFERROR((E73/F73-1)*100,"ND")) -> 30.24587287 | K73: =IF(E72="","",IFERROR((E73/VLOOKUP(B73&"|"&VLOOKUP(TDPrimas!$B$4,Cat!R:T,2,0),'TD Operación'!A:D,4,0))*100,"ND")) -> 28.24701879 | L73: =IF(E72="","",(VLOOKUP(B73,'TDPrimas Vida'!$B:$N,7,0))) -> 28.24701879
B74: =IF(C74="",B73,D74) -> Afirme | D74: =IF(D73="","","Renovación") -> Renovación | E74: =IF(E72="","",(VLOOKUP(B74,'TDPrimas Vida'!$B:$N,8,0))) -> 0 | F74: =IF(E72="","",(VLOOKUP(B74,'TDPrimas Vida'!$B:$N,9,0))) -> 0 | G74: =IFERROR((E74/VLOOKUP("TOTAL",$D$12:$L$312,2,0))*100,"") -> 0 | H74: =IFERROR((E74/VLOOKUP("TOTAL",$D$12:$L$312,3,0))*100,"") -> 0 | I74: =IF(E72="","",E74-F74) -> 0 | J74: =IF(E72="","",IFERROR((E74/F74-1)*100,"ND")) -> ND | K74: =IF(E72="","",IFERROR((E74/VLOOKUP(B74&"|"&VLOOKUP(TDPrimas!$B$4,Cat!R:T,2,0),'TD Operación'!A:D,4,0))*100,"ND")) -> 0 | L74: =IF(E72="","",(VLOOKUP(B74,'TDPrimas Vida'!$B:$N,10,0))) -> 0
B75: =IF(C75="",B74,D75) -> Afirme | D75: =IF(D74="","","Únicas") -> Únicas | E75: =IF(E73="","",(VLOOKUP(B75,'TDPrimas Vida'!$B:$N,11,0))) -> 0 | F75: =IF(E73="","",(VLOOKUP(B75,'TDPrimas Vida'!$B:$N,12,0))) -> 0 | G75: =IFERROR((E75/VLOOKUP("TOTAL",$D$12:$L$312,2,0))*100,"") -> 0 | H75: =IFERROR((E75/VLOOKUP("TOTAL",$D$12:$L$312,3,0))*100,"") -> 0 | I75: =IF(E72="","",E75-F75) -> 0 | J75: =IF(E72="","",IFERROR((E75/F75-1)*100,"ND")) -> ND | K75: =IF(E72="","",IFERROR((E75/VLOOKUP(B75&"|"&VLOOKUP(TDPrimas!$B$4,Cat!R:T,2,0),'TD Operación'!A:D,4,0))*100,"ND")) -> 0 | L75: =IF(E72="","",(VLOOKUP(B75,'TDPrimas Vida'!$B:$N,13,0))) -> 0
B76: =IF(C76="",B72,D76) -> TOTAL MEDIANAS | C76: =IF('TDPrimas Vida'!A23="","",'TDPrimas Vida'!A23) -> 15.1 | D76: =IF('TDPrimas Vida'!B23="","",'TDPrimas Vida'!B23) -> TOTAL MEDIANAS | E76: =IF('TDPrimas Vida'!C23="","",'TDPrimas Vida'!C23) -> 68245925.2 | F76: =IF('TDPrimas Vida'!D23="","",'TDPrimas Vida'!D23) -> 61887113.93 | G76: =IF('TDPrimas Vida'!C23="","",IFERROR((E76/VLOOKUP("TOTAL",$D$12:$L$312,2,0))*100,"")) -> 27.35977993 | H76: =IF('TDPrimas Vida'!C23="","",IFERROR((E76/VLOOKUP("TOTAL",$D$12:$L$312,3,0))*100,"")) -> 27.98885893 | I76: =IF('TDPrimas Vida'!C23="","",E76-F76) -> 6358811.272 | J76: =IFERROR(IF('TDPrimas Vida'!C23="","",(E76/F76-1)*100),"ND") -> 10.27485508 | K76: =IF(E76="","",IFERROR((E76/VLOOKUP(D76&"|"&VLOOKUP(TDPrimas!$B$4,Cat!R:T,2,0),'TD Operación'!A:D,4,0))*100,"ND")) -> 30.04978783 | L76: =IF('TDPrimas Vida'!E23="","",'TDPrimas Vida'!E23) -> 37.87682043
B77: =IF(C77="",B76,D77) -> TOTAL MEDIANAS | D77: =IF(D76="","","1er Año") -> 1er Año | E77: =IF(E76="","",(VLOOKUP(B77,'TDPrimas Vida'!$B:$N,5,0))) -> 36227829.73 | F77: =IF(E76="","",(VLOOKUP(B77,'TDPrimas Vida'!$B:$N,6,0))) -> 30095471.86 | G77: =IFERROR((E77/VLOOKUP("TOTAL",$D$12:$L$312,2,0))*100,"") -> 14.52373084 | H77: =IFERROR((E77/VLOOKUP("TOTAL",$D$12:$L$312,3,0))*100,"") -> 14.85767264 | I77: =IF(E76="","",E77-F77) -> 6132357.87 | J77: =IF(E76="","",IFERROR((E77/F77-1)*100,"ND")) -> 20.37634731 | K77: =IF(E76="","",IFERROR((E77/VLOOKUP(B77&"|"&VLOOKUP(TDPrimas!$B$4,Cat!R:T,2,0),'TD Operación'!A:D,4,0))*100,"ND")) -> 15.95170105 | L77: =IF(E76="","",(VLOOKUP(B77,'TDPrimas Vida'!$B:$N,7,0))) -> 20.10662171
B78: =IF(C78="",B77,D78) -> TOTAL MEDIANAS | D78: =IF(D77="","","Renovación") -> Renovación | E78: =IF(E76="","",(VLOOKUP(B78,'TDPrimas Vida'!$B:$N,8,0))) -> 24150496.47 | F78: =IF(E76="","",(VLOOKUP(B78,'TDPrimas Vida'!$B:$N,9,0))) -> 24470272.74 | G78: =IFERROR((E78/VLOOKUP("TOTAL",$D$12:$L$312,2,0))*100,"") -> 9.681929972 | H78: =IFERROR((E78/VLOOKUP("TOTAL",$D$12:$L$312,3,0))*100,"") -> 9.904545021 | I78: =IF(E76="","",E78-F78) -> -319776.2687 | J78: =IF(E76="","",IFERROR((E78/F78-1)*100,"ND")) -> -1.306794869 | K78: =IF(E76="","",IFERROR((E78/VLOOKUP(B78&"|"&VLOOKUP(TDPrimas!$B$4,Cat!R:T,2,0),'TD Operación'!A:D,4,0))*100,"ND")) -> 10.63385532 | L78: =IF(E76="","",(VLOOKUP(B78,'TDPrimas Vida'!$B:$N,10,0))) -> 13.40364301
B79: =IF(C79="",B78,D79) -> TOTAL MEDIANAS | D79: =IF(D78="","","Únicas") -> Únicas | E79: =IF(E77="","",(VLOOKUP(B79,'TDPrimas Vida'!$B:$N,11,0))) -> 7867599.005 | F79: =IF(E77="","",(VLOOKUP(B79,'TDPrimas Vida'!$B:$N,12,0))) -> 7321369.335 | G79: =IFERROR((E79/VLOOKUP("TOTAL",$D$12:$L$312,2,0))*100,"") -> 3.154119118 | H79: =IFERROR((E79/VLOOKUP("TOTAL",$D$12:$L$312,3,0))*100,"") -> 3.226641268 | I79: =IF(E76="","",E79-F79) -> 546229.6703 | J79: =IF(E76="","",IFERROR((E79/F79-1)*100,"ND")) -> 7.4607583 | K79: =IF(E76="","",IFERROR((E79/VLOOKUP(B79&"|"&VLOOKUP(TDPrimas!$B$4,Cat!R:T,2,0),'TD Operación'!A:D,4,0))*100,"ND")) -> 3.464231456 | L79: =IF(E76="","",(VLOOKUP(B79,'TDPrimas Vida'!$B:$N,13,0))) -> 4.366555715
B80: =IF(C80="",B76,D80) -> Cardif Vida | C80: =IF('TDPrimas Vida'!A24="","",'TDPrimas Vida'!A24) -> 16 | D80: =IF('TDPrimas Vida'!B24="","",'TDPrimas Vida'!B24) -> Cardif Vida | E80: =IF('TDPrimas Vida'!C24="","",'TDPrimas Vida'!C24) -> 2596506.437 | F80: =IF('TDPrimas Vida'!D24="","",'TDPrimas Vida'!D24) -> 2564174.646 | G80: =IF('TDPrimas Vida'!C24="","",IFERROR((E80/VLOOKUP("TOTAL",$D$12:$L$312,2,0))*100,"")) -> 1.040938994 | H80: =IF('TDPrimas Vida'!C24="","",IFERROR((E80/VLOOKUP("TOTAL",$D$12:$L$312,3,0))*100,"")) -> 1.064873136 | I80: =IF('TDPrimas Vida'!C24="","",E80-F80) -> 32331.79068 | J80: =IFERROR(IF('TDPrimas Vida'!C24="","",(E80/F80-1)*100),"ND") -> 1.26090439 | K80: =IF(E80="","",IFERROR((E80/VLOOKUP(D80&"|"&VLOOKUP(TDPrimas!$B$4,Cat!R:T,2,0),'TD Operación'!A:D,4,0))*100,"ND")) -> 91.76897482 | L80: =IF('TDPrimas Vida'!E24="","",'TDPrimas Vida'!E24) -> 91.76897482
B81: =IF(C81="",B80,D81) -> Cardif Vida | D81: =IF(D80="","","1er Año") -> 1er Año | E81: =IF(E80="","",(VLOOKUP(B81,'TDPrimas Vida'!$B:$N,5,0))) -> 149862.9352 | F81: =IF(E80="","",(VLOOKUP(B81,'TDPrimas Vida'!$B:$N,6,0))) -> 1228936.157 | G81: =IFERROR((E81/VLOOKUP("TOTAL",$D$12:$L$312,2,0))*100,"") -> 0.06008002553 | H81: =IFERROR((E81/VLOOKUP("TOTAL",$D$12:$L$312,3,0))*100,"") -> 0.06146143583 | I81: =IF(E80="","",E81-F81) -> -1079073.222 | J81: =IF(E80="","",IFERROR((E81/F81-1)*100,"ND")) -> -87.80547432 | K81: =IF(E80="","",IFERROR((E81/VLOOKUP(B81&"|"&VLOOKUP(TDPrimas!$B$4,Cat!R:T,2,0),'TD Operación'!A:D,4,0))*100,"ND")) -> 5.29664311 | L81: =IF(E80="","",(VLOOKUP(B81,'TDPrimas Vida'!$B:$N,7,0))) -> 5.29664311
B82: =IF(C82="",B81,D82) -> Cardif Vida | D82: =IF(D81="","","Renovación") -> Renovación | E82: =IF(E80="","",(VLOOKUP(B82,'TDPrimas Vida'!$B:$N,8,0))) -> 1893173.154 | F82: =IF(E80="","",(VLOOKUP(B82,'TDPrimas Vida'!$B:$N,9,0))) -> 1045071.387 | G82: =IFERROR((E82/VLOOKUP("TOTAL",$D$12:$L$312,2,0))*100,"") -> 0.7589727991 | H82: =IFERROR((E82/VLOOKUP("TOTAL",$D$12:$L$312,3,0))*100,"") -> 0.7764237379 | I82: =IF(E80="","",E82-F82) -> 848101.7676 | J82: =IF(E80="","",IFERROR((E82/F82-1)*100,"ND")) -> 81.15252013 | K82: =IF(E80="","",IFERROR((E82/VLOOKUP(B82&"|"&VLOOKUP(TDPrimas!$B$4,Cat!R:T,2,0),'TD Operación'!A:D,4,0))*100,"ND")) -> 66.91089113 | L82: =IF(E80="","",(VLOOKUP(B82,'TDPrimas Vida'!$B:$N,10,0))) -> 66.91089113
B83: =IF(C83="",B82,D83) -> Cardif Vida | D83: =IF(D82="","","Únicas") -> Únicas | E83: =IF(E81="","",(VLOOKUP(B83,'TDPrimas Vida'!$B:$N,11,0))) -> 553470.3474 | F83: =IF(E81="","",(VLOOKUP(B83,'TDPrimas Vida'!$B:$N,12,0))) -> 290167.1024 | G83: =IFERROR((E83/VLOOKUP("TOTAL",$D$12:$L$312,2,0))*100,"") -> 0.2218861691 | H83: =IFERROR((E83/VLOOKUP("TOTAL",$D$12:$L$312,3,0))*100,"") -> 0.2269879619 | I83: =IF(E80="","",E83-F83) -> 263303.245 | J83: =IF(E80="","",IFERROR((E83/F83-1)*100,"ND")) -> 90.74193554 | K83: =IF(E80="","",IFERROR((E83/VLOOKUP(B83&"|"&VLOOKUP(TDPrimas!$B$4,Cat!R:T,2,0),'TD Operación'!A:D,4,0))*100,"ND")) -> 19.56144057 | L83: =IF(E80="","",(VLOOKUP(B83,'TDPrimas Vida'!$B:$N,13,0))) -> 19.56144057
B84: =IF(C84="",B80,D84) -> Atlas | C84: =IF('TDPrimas Vida'!A25="","",'TDPrimas Vida'!A25) -> 17 | D84: =IF('TDPrimas Vida'!B25="","",'TDPrimas Vida'!B25) -> Atlas | E84: =IF('TDPrimas Vida'!C25="","",'TDPrimas Vida'!C25) -> 2388659.077 | F84: =IF('TDPrimas Vida'!D25="","",'TDPrimas Vida'!D25) -> 2074821.583 | G84: =IF('TDPrimas Vida'!C25="","",IFERROR((E84/VLOOKUP("TOTAL",$D$12:$L$312,2,0))*100,"")) -> 0.9576130222 | H84: =IF('TDPrimas Vida'!C25="","",IFERROR((E84/VLOOKUP("TOTAL",$D$12:$L$312,3,0))*100,"")) -> 0.9796312635 | I84: =IF('TDPrimas Vida'!C25="","",E84-F84) -> 313837.494 | J84: =IFERROR(IF('TDPrimas Vida'!C25="","",(E84/F84-1)*100),"ND") -> 15.1259991 | K84: =IF(E84="","",IFERROR((E84/VLOOKUP(D84&"|"&VLOOKUP(TDPrimas!$B$4,Cat!R:T,2,0),'TD Operación'!A:D,4,0))*100,"ND")) -> 14.89792035 | L84: =IF('TDPrimas Vida'!E25="","",'TDPrimas Vida'!E25) -> 14.89792035
B85: =IF(C85="",B84,D85) -> Atlas | D85: =IF(D84="","","1er Año") -> 1er Año | E85: =IF(E84="","",(VLOOKUP(B85,'TDPrimas Vida'!$B:$N,5,0))) -> 1602285.869 | F85: =IF(E84="","",(VLOOKUP(B85,'TDPrimas Vida'!$B:$N,6,0))) -> 1345268.586 | G85: =IFERROR((E85/VLOOKUP("TOTAL",$D$12:$L$312,2,0))*100,"") -> 0.6423561353 | H85: =IFERROR((E85/VLOOKUP("TOTAL",$D$12:$L$312,3,0))*100,"") -> 0.657125726 | I85: =IF(E84="","",E85-F85) -> 257017.2826 | J85: =IF(E84="","",IFERROR((E85/F85-1)*100,"ND")) -> 19.10527647 | K85: =IF(E84="","",IFERROR((E85/VLOOKUP(B85&"|"&VLOOKUP(TDPrimas!$B$4,Cat!R:T,2,0),'TD Operación'!A:D,4,0))*100,"ND")) -> 9.993358819 | L85: =IF(E84="","",(VLOOKUP(B85,'TDPrimas Vida'!$B:$N,7,0))) -> 9.993358819
B86: =IF(C86="",B85,D86) -> Atlas | D86: =IF(D85="","","Renovación") -> Renovación | E86: =IF(E84="","",(VLOOKUP(B86,'TDPrimas Vida'!$B:$N,8,0))) -> 646101.1058 | F86: =IF(E84="","",(VLOOKUP(B86,'TDPrimas Vida'!$B:$N,9,0))) -> 641386.6989 | G86: =IFERROR((E86/VLOOKUP("TOTAL",$D$12:$L$312,2,0))*100,"") -> 0.2590218246 | H86: =IFERROR((E86/VLOOKUP("TOTAL",$D$12:$L$312,3,0))*100,"") -> 0.2649774715 | I86: =IF(E84="","",E86-F86) -> 4714.40697 | J86: =IF(E84="","",IFERROR((E86/F86-1)*100,"ND")) -> 0.7350334795 | K86: =IF(E84="","",IFERROR((E86/VLOOKUP(B86&"|"&VLOOKUP(TDPrimas!$B$4,Cat!R:T,2,0),'TD Operación'!A:D,4,0))*100,"ND")) -> 4.029693021 | L86: =IF(E84="","",(VLOOKUP(B86,'TDPrimas Vida'!$B:$N,10,0))) -> 4.029693021
B87: =IF(C87="",B86,D87) -> Atlas | D87: =IF(D86="","","Únicas") -> Únicas | E87: =IF(E85="","",(VLOOKUP(B87,'TDPrimas Vida'!$B:$N,11,0))) -> 140272.1024 | F87: =IF(E85="","",(VLOOKUP(B87,'TDPrimas Vida'!$B:$N,12,0))) -> 88166.29804 | G87: =IFERROR((E87/VLOOKUP("TOTAL",$D$12:$L$312,2,0))*100,"") -> 0.05623506225 | H87: =IFERROR((E87/VLOOKUP("TOTAL",$D$12:$L$312,3,0))*100,"") -> 0.05752806594 | I87: =IF(E84="","",E87-F87) -> 52105.80435 | J87: =IF(E84="","",IFERROR((E87/F87-1)*100,"ND")) -> 59.09945808 | K87: =IF(E84="","",IFERROR((E87/VLOOKUP(B87&"|"&VLOOKUP(TDPrimas!$B$4,Cat!R:T,2,0),'TD Operación'!A:D,4,0))*100,"ND")) -> 0.8748685104 | L87: =IF(E84="","",(VLOOKUP(B87,'TDPrimas Vida'!$B:$N,13,0))) -> 0.8748685104
B88: =IF(C88="",B84,D88) -> Hir Seguros | C88: =IF('TDPrimas Vida'!A26="","",'TDPrimas Vida'!A26) -> 18 | D88: =IF('TDPrimas Vida'!B26="","",'TDPrimas Vida'!B26) -> Hir Seguros | E88: =IF('TDPrimas Vida'!C26="","",'TDPrimas Vida'!C26) -> 1927562.535 | F88: =IF('TDPrimas Vida'!D26="","",'TDPrimas Vida'!D26) -> 1462704.422 | G88: =IF('TDPrimas Vida'!C26="","",IFERROR((E88/VLOOKUP("TOTAL",$D$12:$L$312,2,0))*100,"")) -> 0.7727594959 | H88: =IF('TDPrimas Vida'!C26="","",IFERROR((E88/VLOOKUP("TOTAL",$D$12:$L$312,3,0))*100,"")) -> 0.79052743 | I88: =IF('TDPrimas Vida'!C26="","",E88-F88) -> 464858.1131 | J88: =IFERROR(IF('TDPrimas Vida'!C26="","",(E88/F88-1)*100),"ND") -> 31.78072796 | K88: =IF(E88="","",IFERROR((E88/VLOOKUP(D88&"|"&VLOOKUP(TDPrimas!$B$4,Cat!R:T,2,0),'TD Operación'!A:D,4,0))*100,"ND")) -> 98.856753 | L88: =IF('TDPrimas Vida'!E26="","",'TDPrimas Vida'!E26) -> 98.856753
B89: =IF(C89="",B88,D89) -> Hir Seguros | D89: =IF(D88="","","1er Año") -> 1er Año | E89: =IF(E88="","",(VLOOKUP(B89,'TDPrimas Vida'!$B:$N,5,0))) -> 547658.7619 | F89: =IF(E88="","",(VLOOKUP(B89,'TDPrimas Vida'!$B:$N,6,0))) -> 113275.9307 | G89: =IFERROR((E89/VLOOKUP("TOTAL",$D$12:$L$312,2,0))*100,"") -> 0.2195563055 | H89: =IFERROR((E89/VLOOKUP("TOTAL",$D$12:$L$312,3,0))*100,"") -> 0.2246045281 | I89: =IF(E88="","",E89-F89) -> 434382.8312 | J89: =IF(E88="","",IFERROR((E89/F89-1)*100,"ND")) -> 383.4731955 | K89: =IF(E88="","",IFERROR((E89/VLOOKUP(B89&"|"&VLOOKUP(TDPrimas!$B$4,Cat!R:T,2,0),'TD Operación'!A:D,4,0))*100,"ND")) -> 28.08716499 | L89: =IF(E88="","",(VLOOKUP(B89,'TDPrimas Vida'!$B:$N,7,0))) -> 28.08716499
B90: =IF(C90="",B89,D90) -> Hir Seguros | D90: =IF(D89="","","Renovación") -> Renovación | E90: =IF(E88="","",(VLOOKUP(B90,'TDPrimas Vida'!$B:$N,8,0))) -> 1379903.773 | F90: =IF(E88="","",(VLOOKUP(B90,'TDPrimas Vida'!$B:$N,9,0))) -> 1349428.491 | G90: =IFERROR((E90/VLOOKUP("TOTAL",$D$12:$L$312,2,0))*100,"") -> 0.5532031904 | H90: =IFERROR((E90/VLOOKUP("TOTAL",$D$12:$L$312,3,0))*100,"") -> 0.5659229019 | I90: =IF(E88="","",E90-F90) -> 30475.28193 | J90: =IF(E88="","",IFERROR((E90/F90-1)*100,"ND")) -> 2.258384355 | K90: =IF(E88="","",IFERROR((E90/VLOOKUP(B90&"|"&VLOOKUP(TDPrimas!$B$4,Cat!R:T,2,0),'TD Operación'!A:D,4,0))*100,"ND")) -> 70.76958801 | L90: =IF(E88="","",(VLOOKUP(B90,'TDPrimas Vida'!$B:$N,10,0))) -> 70.76958801
B91: =IF(C91="",B90,D91) -> Hir Seguros | D91: =IF(D90="","","Únicas") -> Únicas | E91: =IF(E89="","",(VLOOKUP(B91,'TDPrimas Vida'!$B:$N,11,0))) -> 0 | F91: =IF(E89="","",(VLOOKUP(B91,'TDPrimas Vida'!$B:$N,12,0))) -> 0 | G91: =IFERROR((E91/VLOOKUP("TOTAL",$D$12:$L$312,2,0))*100,"") -> 0 | H91: =IFERROR((E91/VLOOKUP("TOTAL",$D$12:$L$312,3,0))*100,"") -> 0 | I91: =IF(E88="","",E91-F91) -> 0 | J91: =IF(E88="","",IFERROR((E91/F91-1)*100,"ND")) -> ND | K91: =IF(E88="","",IFERROR((E91/VLOOKUP(B91&"|"&VLOOKUP(TDPrimas!$B$4,Cat!R:T,2,0),'TD Operación'!A:D,4,0))*100,"ND")) -> 0 | L91: =IF(E88="","",(VLOOKUP(B91,'TDPrimas Vida'!$B:$N,13,0))) -> 0
B92: =IF(C92="",B88,D92) -> Insignia Life | C92: =IF('TDPrimas Vida'!A27="","",'TDPrimas Vida'!A27) -> 19 | D92: =IF('TDPrimas Vida'!B27="","",'TDPrimas Vida'!B27) -> Insignia Life | E92: =IF('TDPrimas Vida'!C27="","",'TDPrimas Vida'!C27) -> 1738938.033 | F92: =IF('TDPrimas Vida'!D27="","",'TDPrimas Vida'!D27) -> 1790168.38 | G92: =IF('TDPrimas Vida'!C27="","",IFERROR((E92/VLOOKUP("TOTAL",$D$12:$L$312,2,0))*100,"")) -> 0.6971399647 | H92: =IF('TDPrimas Vida'!C27="","",IFERROR((E92/VLOOKUP("TOTAL",$D$12:$L$312,3,0))*100,"")) -> 0.7131691911 | I92: =IF('TDPrimas Vida'!C27="","",E92-F92) -> -51230.34717 | J92: =IFERROR(IF('TDPrimas Vida'!C27="","",(E92/F92-1)*100),"ND") -> -2.861761371 | K92: =IF(E92="","",IFERROR((E92/VLOOKUP(D92&"|"&VLOOKUP(TDPrimas!$B$4,Cat!R:T,2,0),'TD Operación'!A:D,4,0))*100,"ND")) -> 100 | L92: =IF('TDPrimas Vida'!E27="","",'TDPrimas Vida'!E27) -> 100
B93: =IF(C93="",B92,D93) -> Insignia Life | D93: =IF(D92="","","1er Año") -> 1er Año | E93: =IF(E92="","",(VLOOKUP(B93,'TDPrimas Vida'!$B:$N,5,0))) -> 489251.2496 | F93: =IF(E92="","",(VLOOKUP(B93,'TDPrimas Vida'!$B:$N,6,0))) -> 749554.9894 | G93: =IFERROR((E93/VLOOKUP("TOTAL",$D$12:$L$312,2,0))*100,"") -> 0.1961407436 | H93: =IFERROR((E93/VLOOKUP("TOTAL",$D$12:$L$312,3,0))*100,"") -> 0.200650576 | I93: =IF(E92="","",E93-F93) -> -260303.7398 | J93: =IF(E92="","",IFERROR((E93/F93-1)*100,"ND")) -> -34.72777094 | K93: =IF(E92="","",IFERROR((E93/VLOOKUP(B93&"|"&VLOOKUP(TDPrimas!$B$4,Cat!R:T,2,0),'TD Operación'!A:D,4,0))*100,"ND")) -> 28.13505947 | L93: =IF(E92="","",(VLOOKUP(B93,'TDPrimas Vida'!$B:$N,7,0))) -> 28.13505947
B94: =IF(C94="",B93,D94) -> Insignia Life | D94: =IF(D93="","","Renovación") -> Renovación | E94: =IF(E92="","",(VLOOKUP(B94,'TDPrimas Vida'!$B:$N,8,0))) -> 1255059.761 | F94: =IF(E92="","",(VLOOKUP(B94,'TDPrimas Vida'!$B:$N,9,0))) -> 1039560.211 | G94: =IFERROR((E94/VLOOKUP("TOTAL",$D$12:$L$312,2,0))*100,"") -> 0.5031532471 | H94: =IFERROR((E94/VLOOKUP("TOTAL",$D$12:$L$312,3,0))*100,"") -> 0.5147221683 | I94: =IF(E92="","",E94-F94) -> 215499.5501 | J94: =IF(E92="","",IFERROR((E94/F94-1)*100,"ND")) -> 20.72987671 | K94: =IF(E92="","",IFERROR((E94/VLOOKUP(B94&"|"&VLOOKUP(TDPrimas!$B$4,Cat!R:T,2,0),'TD Operación'!A:D,4,0))*100,"ND")) -> 72.17392096 | L94: =IF(E92="","",(VLOOKUP(B94,'TDPrimas Vida'!$B:$N,10,0))) -> 72.17392096
B95: =IF(C95="",B94,D95) -> Insignia Life | D95: =IF(D94="","","Únicas") -> Únicas | E95: =IF(E93="","",(VLOOKUP(B95,'TDPrimas Vida'!$B:$N,11,0))) -> -5372.97824 | F95: =IF(E93="","",(VLOOKUP(B95,'TDPrimas Vida'!$B:$N,12,0))) -> 1053.17923 | G95: =IFERROR((E95/VLOOKUP("TOTAL",$D$12:$L$312,2,0))*100,"") -> -0.002154026073 | H95: =IFERROR((E95/VLOOKUP("TOTAL",$D$12:$L$312,3,0))*100,"") -> -0.002203553245 | I95: =IF(E92="","",E95-F95) -> -6426.15747 | J95: =IF(E92="","",IFERROR((E95/F95-1)*100,"ND")) -> -610.1675087 | K95: =IF(E92="","",IFERROR((E95/VLOOKUP(B95&"|"&VLOOKUP(TDPrimas!$B$4,Cat!R:T,2,0),'TD Operación'!A:D,4,0))*100,"ND")) -> -0.3089804317 | L95: =IF(E92="","",(VLOOKUP(B95,'TDPrimas Vida'!$B:$N,13,0))) -> -0.3089804317
B96: =IF(C96="",B92,D96) -> Seguros SURA | C96: =IF('TDPrimas Vida'!A28="","",'TDPrimas Vida'!A28) -> 20 | D96: =IF('TDPrimas Vida'!B28="","",'TDPrimas Vida'!B28) -> Seguros SURA | E96: =IF('TDPrimas Vida'!C28="","",'TDPrimas Vida'!C28) -> 1457579.496 | F96: =IF('TDPrimas Vida'!D28="","",'TDPrimas Vida'!D28) -> 1244239.693 | G96: =IF('TDPrimas Vida'!C28="","",IFERROR((E96/VLOOKUP("TOTAL",$D$12:$L$312,2,0))*100,"")) -> 0.5843433749 | H96: =IF('TDPrimas Vida'!C28="","",IFERROR((E96/VLOOKUP("TOTAL",$D$12:$L$312,3,0))*100,"")) -> 0.5977790876 | I96: =IF('TDPrimas Vida'!C28="","",E96-F96) -> 213339.8035 | J96: =IFERROR(IF('TDPrimas Vida'!C28="","",(E96/F96-1)*100),"ND") -> 17.14619817 | K96: =IF(E96="","",IFERROR((E96/VLOOKUP(D96&"|"&VLOOKUP(TDPrimas!$B$4,Cat!R:T,2,0),'TD Operación'!A:D,4,0))*100,"ND")) -> 24.70447448 | L96: =IF('TDPrimas Vida'!E28="","",'TDPrimas Vida'!E28) -> 24.70447448
B97: =IF(C97="",B96,D97) -> Seguros SURA | D97: =IF(D96="","","1er Año") -> 1er Año | E97: =IF(E96="","",(VLOOKUP(B97,'TDPrimas Vida'!$B:$N,5,0))) -> 1190642.442 | F97: =IF(E96="","",(VLOOKUP(B97,'TDPrimas Vida'!$B:$N,6,0))) -> 876387.5867 | G97: =IFERROR((E97/VLOOKUP("TOTAL",$D$12:$L$312,2,0))*100,"") -> 0.4773283549 | H97: =IFERROR((E97/VLOOKUP("TOTAL",$D$12:$L$312,3,0))*100,"") -> 0.4883034885 | I97: =IF(E96="","",E97-F97) -> 314254.8557 | J97: =IF(E96="","",IFERROR((E97/F97-1)*100,"ND")) -> 35.8579766 | K97: =IF(E96="","",IFERROR((E97/VLOOKUP(B97&"|"&VLOOKUP(TDPrimas!$B$4,Cat!R:T,2,0),'TD Operación'!A:D,4,0))*100,"ND")) -> 20.18016576 | L97: =IF(E96="","",(VLOOKUP(B97,'TDPrimas Vida'!$B:$N,7,0))) -> 20.18016576
B98: =IF(C98="",B97,D98) -> Seguros SURA | D98: =IF(D97="","","Renovación") -> Renovación | E98: =IF(E96="","",(VLOOKUP(B98,'TDPrimas Vida'!$B:$N,8,0))) -> 261495.0305 | F98: =IF(E96="","",(VLOOKUP(B98,'TDPrimas Vida'!$B:$N,9,0))) -> 338922.2201 | G98: =IFERROR((E98/VLOOKUP("TOTAL",$D$12:$L$312,2,0))*100,"") -> 0.1048333137 | H98: =IFERROR((E98/VLOOKUP("TOTAL",$D$12:$L$312,3,0))*100,"") -> 0.1072437292 | I98: =IF(E96="","",E98-F98) -> -77427.18954 | J98: =IF(E96="","",IFERROR((E98/F98-1)*100,"ND")) -> -22.84512049 | K98: =IF(E96="","",IFERROR((E98/VLOOKUP(B98&"|"&VLOOKUP(TDPrimas!$B$4,Cat!R:T,2,0),'TD Operación'!A:D,4,0))*100,"ND")) -> 4.432072025 | L98: =IF(E96="","",(VLOOKUP(B98,'TDPrimas Vida'!$B:$N,10,0))) -> 4.432072025
B99: =IF(C99="",B98,D99) -> Seguros SURA | D99: =IF(D98="","","Únicas") -> Únicas | E99: =IF(E97="","",(VLOOKUP(B99,'TDPrimas Vida'!$B:$N,11,0))) -> 5442.02343 | F99: =IF(E97="","",(VLOOKUP(B99,'TDPrimas Vida'!$B:$N,12,0))) -> 28929.88617 | G99: =IFERROR((E99/VLOOKUP("TOTAL",$D$12:$L$312,2,0))*100,"") -> 0.002181706278 | H99: =IFERROR((E99/VLOOKUP("TOTAL",$D$12:$L$312,3,0))*100,"") -> 0.002231869897 | I99: =IF(E96="","",E99-F99) -> -23487.86274 | J99: =IF(E96="","",IFERROR((E99/F99-1)*100,"ND")) -> -81.18892208 | K99: =IF(E96="","",IFERROR((E99/VLOOKUP(B99&"|"&VLOOKUP(TDPrimas!$B$4,Cat!R:T,2,0),'TD Operación'!A:D,4,0))*100,"ND")) -> 0.09223670428 | L99: =IF(E96="","",(VLOOKUP(B99,'TDPrimas Vida'!$B:$N,13,0))) -> 0.09223670428
B100: =IF(C100="",B96,D100) -> Patrimonial Vida | C100: =IF('TDPrimas Vida'!A29="","",'TDPrimas Vida'!A29) -> 21 | D100: =IF('TDPrimas Vida'!B29="","",'TDPrimas Vida'!B29) -> Patrimonial Vida | E100: =IF('TDPrimas Vida'!C29="","",'TDPrimas Vida'!C29) -> 1454885.501 | F100: =IF('TDPrimas Vida'!D29="","",'TDPrimas Vida'!D29) -> 3004860.865 | G100: =IF('TDPrimas Vida'!C29="","",IFERROR((E100/VLOOKUP("TOTAL",$D$12:$L$312,2,0))*100,"")) -> 0.5832633526 | H100: =IF('TDPrimas Vida'!C29="","",IFERROR((E100/VLOOKUP("TOTAL",$D$12:$L$312,3,0))*100,"")) -> 0.5966742325 | I100: =IF('TDPrimas Vida'!C29="","",E100-F100) -> -1549975.364 | J100: =IFERROR(IF('TDPrimas Vida'!C29="","",(E100/F100-1)*100),"ND") -> -51.58226732 | K100: =IF(E100="","",IFERROR((E100/VLOOKUP(D100&"|"&VLOOKUP(TDPrimas!$B$4,Cat!R:T,2,0),'TD Operación'!A:D,4,0))*100,"ND")) -> 100 | L100: =IF('TDPrimas Vida'!E29="","",'TDPrimas Vida'!E29) -> 100
B101: =IF(C101="",B100,D101) -> Patrimonial Vida | D101: =IF(D100="","","1er Año") -> 1er Año | E101: =IF(E100="","",(VLOOKUP(B101,'TDPrimas Vida'!$B:$N,5,0))) -> 1454885.501 | F101: =IF(E100="","",(VLOOKUP(B101,'TDPrimas Vida'!$B:$N,6,0))) -> 3004860.865 | G101: =IFERROR((E101/VLOOKUP("TOTAL",$D$12:$L$312,2,0))*100,"") -> 0.5832633526 | H101: =IFERROR((E101/VLOOKUP("TOTAL",$D$12:$L$312,3,0))*100,"") -> 0.5966742325 | I101: =IF(E100="","",E101-F101) -> -1549975.364 | J101: =IF(E100="","",IFERROR((E101/F101-1)*100,"ND")) -> -51.58226732 | K101: =IF(E100="","",IFERROR((E101/VLOOKUP(B101&"|"&VLOOKUP(TDPrimas!$B$4,Cat!R:T,2,0),'TD Operación'!A:D,4,0))*100,"ND")) -> 100 | L101: =IF(E100="","",(VLOOKUP(B101,'TDPrimas Vida'!$B:$N,7,0))) -> 100
B102: =IF(C102="",B101,D102) -> Patrimonial Vida | D102: =IF(D101="","","Renovación") -> Renovación | E102: =IF(E100="","",(VLOOKUP(B102,'TDPrimas Vida'!$B:$N,8,0))) -> 0 | F102: =IF(E100="","",(VLOOKUP(B102,'TDPrimas Vida'!$B:$N,9,0))) -> 0 | G102: =IFERROR((E102/VLOOKUP("TOTAL",$D$12:$L$312,2,0))*100,"") -> 0 | H102: =IFERROR((E102/VLOOKUP("TOTAL",$D$12:$L$312,3,0))*100,"") -> 0 | I102: =IF(E100="","",E102-F102) -> 0 | J102: =IF(E100="","",IFERROR((E102/F102-1)*100,"ND")) -> ND | K102: =IF(E100="","",IFERROR((E102/VLOOKUP(B102&"|"&VLOOKUP(TDPrimas!$B$4,Cat!R:T,2,0),'TD Operación'!A:D,4,0))*100,"ND")) -> 0 | L102: =IF(E100="","",(VLOOKUP(B102,'TDPrimas Vida'!$B:$N,10,0))) -> 0
B103: =IF(C103="",B102,D103) -> Patrimonial Vida | D103: =IF(D102="","","Únicas") -> Únicas | E103: =IF(E101="","",(VLOOKUP(B103,'TDPrimas Vida'!$B:$N,11,0))) -> 0 | F103: =IF(E101="","",(VLOOKUP(B103,'TDPrimas Vida'!$B:$N,12,0))) -> 0 | G103: =IFERROR((E103/VLOOKUP("TOTAL",$D$12:$L$312,2,0))*100,"") -> 0 | H103: =IFERROR((E103/VLOOKUP("TOTAL",$D$12:$L$312,3,0))*100,"") -> 0 | I103: =IF(E100="","",E103-F103) -> 0 | J103: =IF(E100="","",IFERROR((E103/F103-1)*100,"ND")) -> ND | K103: =IF(E100="","",IFERROR((E103/VLOOKUP(B103&"|"&VLOOKUP(TDPrimas!$B$4,Cat!R:T,2,0),'TD Operación'!A:D,4,0))*100,"ND")) -> 0 | L103: =IF(E100="","",(VLOOKUP(B103,'TDPrimas Vida'!$B:$N,13,0))) -> 0
B104: =IF(C104="",B100,D104) -> Prudential | C104: =IF('TDPrimas Vida'!A30="","",'TDPrimas Vida'!A30) -> 22 | D104: =IF('TDPrimas Vida'!B30="","",'TDPrimas Vida'!B30) -> Prudential | E104: =IF('TDPrimas Vida'!C30="","",'TDPrimas Vida'!C30) -> 1176956.401 | F104: =IF('TDPrimas Vida'!D30="","",'TDPrimas Vida'!D30) -> 950354.3703 | G104: =IF('TDPrimas Vida'!C30="","",IFERROR((E104/VLOOKUP("TOTAL",$D$12:$L$312,2,0))*100,"")) -> 0.4718416231 | H104: =IF('TDPrimas Vida'!C30="","",IFERROR((E104/VLOOKUP("TOTAL",$D$12:$L$312,3,0))*100,"")) -> 0.4826906012 | I104: =IF('TDPrimas Vida'!C30="","",E104-F104) -> 226602.0306 | J104: =IFERROR(IF('TDPrimas Vida'!C30="","",(E104/F104-1)*100),"ND") -> 23.84395103 | K104: =IF(E104="","",IFERROR((E104/VLOOKUP(D104&"|"&VLOOKUP(TDPrimas!$B$4,Cat!R:T,2,0),'TD Operación'!A:D,4,0))*100,"ND")) -> 100 | L104: =IF('TDPrimas Vida'!E30="","",'TDPrimas Vida'!E30) -> 100
B105: =IF(C105="",B104,D105) -> Prudential | D105: =IF(D104="","","1er Año") -> 1er Año | E105: =IF(E104="","",(VLOOKUP(B105,'TDPrimas Vida'!$B:$N,5,0))) -> 445529.6856 | F105: =IF(E104="","",(VLOOKUP(B105,'TDPrimas Vida'!$B:$N,6,0))) -> 307806.6479 | G105: =IFERROR((E105/VLOOKUP("TOTAL",$D$12:$L$312,2,0))*100,"") -> 0.178612776 | H105: =IFERROR((E105/VLOOKUP("TOTAL",$D$12:$L$312,3,0))*100,"") -> 0.1827195907 | I105: =IF(E104="","",E105-F105) -> 137723.0378 | J105: =IF(E104="","",IFERROR((E105/F105-1)*100,"ND")) -> 44.74336038 | K105: =IF(E104="","",IFERROR((E105/VLOOKUP(B105&"|"&VLOOKUP(TDPrimas!$B$4,Cat!R:T,2,0),'TD Operación'!A:D,4,0))*100,"ND")) -> 37.85439166 | L105: =IF(E104="","",(VLOOKUP(B105,'TDPrimas Vida'!$B:$N,7,0))) -> 37.85439166
B106: =IF(C106="",B105,D106) -> Prudential | D106: =IF(D105="","","Renovación") -> Renovación | E106: =IF(E104="","",(VLOOKUP(B106,'TDPrimas Vida'!$B:$N,8,0))) -> 695859.7244 | F106: =IF(E104="","",(VLOOKUP(B106,'TDPrimas Vida'!$B:$N,9,0))) -> 480839.1472 | G106: =IFERROR((E106/VLOOKUP("TOTAL",$D$12:$L$312,2,0))*100,"") -> 0.2789700464 | H106: =IFERROR((E106/VLOOKUP("TOTAL",$D$12:$L$312,3,0))*100,"") -> 0.2853843596 | I106: =IF(E104="","",E106-F106) -> 215020.5772 | J106: =IF(E104="","",IFERROR((E106/F106-1)*100,"ND")) -> 44.71777691 | K106: =IF(E104="","",IFERROR((E106/VLOOKUP(B106&"|"&VLOOKUP(TDPrimas!$B$4,Cat!R:T,2,0),'TD Operación'!A:D,4,0))*100,"ND")) -> 59.123662 | L106: =IF(E104="","",(VLOOKUP(B106,'TDPrimas Vida'!$B:$N,10,0))) -> 59.123662
B107: =IF(C107="",B106,D107) -> Prudential | D107: =IF(D106="","","Únicas") -> Únicas | E107: =IF(E105="","",(VLOOKUP(B107,'TDPrimas Vida'!$B:$N,11,0))) -> 35566.99092 | F107: =IF(E105="","",(VLOOKUP(B107,'TDPrimas Vida'!$B:$N,12,0))) -> 161708.5752 | G107: =IFERROR((E107/VLOOKUP("TOTAL",$D$12:$L$312,2,0))*100,"") -> 0.01425880068 | H107: =IFERROR((E107/VLOOKUP("TOTAL",$D$12:$L$312,3,0))*100,"") -> 0.01458665097 | I107: =IF(E104="","",E107-F107) -> -126141.5843 | J107: =IF(E104="","",IFERROR((E107/F107-1)*100,"ND")) -> -78.00550102 | K107: =IF(E104="","",IFERROR((E107/VLOOKUP(B107&"|"&VLOOKUP(TDPrimas!$B$4,Cat!R:T,2,0),'TD Operación'!A:D,4,0))*100,"ND")) -> 3.021946343 | L107: =IF(E104="","",(VLOOKUP(B107,'TDPrimas Vida'!$B:$N,13,0))) -> 3.021946343
B108: =IF(C108="",B104,D108) -> Chubb Seguros México | C108: =IF('TDPrimas Vida'!A31="","",'TDPrimas Vida'!A31) -> 23 | D108: =IF('TDPrimas Vida'!B31="","",'TDPrimas Vida'!B31) -> Chubb Seguros México | E108: =IF('TDPrimas Vida'!C31="","",'TDPrimas Vida'!C31) -> 1024740.448 | F108: =IF('TDPrimas Vida'!D31="","",'TDPrimas Vida'!D31) -> 1092111.716 | G108: =IF('TDPrimas Vida'!C31="","",IFERROR((E108/VLOOKUP("TOTAL",$D$12:$L$312,2,0))*100,"")) -> 0.4108182734 | H108: =IF('TDPrimas Vida'!C31="","",IFERROR((E108/VLOOKUP("TOTAL",$D$12:$L$312,3,0))*100,"")) -> 0.4202641515 | I108: =IF('TDPrimas Vida'!C31="","",E108-F108) -> -67371.26728 | J108: =IFERROR(IF('TDPrimas Vida'!C31="","",(E108/F108-1)*100),"ND") -> -6.168898869 | K108: =IF(E108="","",IFERROR((E108/VLOOKUP(D108&"|"&VLOOKUP(TDPrimas!$B$4,Cat!R:T,2,0),'TD Operación'!A:D,4,0))*100,"ND")) -> 5.496173606 | L108: =IF('TDPrimas Vida'!E31="","",'TDPrimas Vida'!E31) -> 5.496173606
B109: =IF(C109="",B108,D109) -> Chubb Seguros México | D109: =IF(D108="","","1er Año") -> 1er Año | E109: =IF(E108="","",(VLOOKUP(B109,'TDPrimas Vida'!$B:$N,5,0))) -> 1024740.448 | F109: =IF(E108="","",(VLOOKUP(B109,'TDPrimas Vida'!$B:$N,6,0))) -> 1092111.716 | G109: =IFERROR((E109/VLOOKUP("TOTAL",$D$12:$L$312,2,0))*100,"") -> 0.4108182734 | H109: =IFERROR((E109/VLOOKUP("TOTAL",$D$12:$L$312,3,0))*100,"") -> 0.4202641515 | I109: =IF(E108="","",E109-F109) -> -67371.26728 | J109: =IF(E108="","",IFERROR((E109/F109-1)*100,"ND")) -> -6.168898869 | K109: =IF(E108="","",IFERROR((E109/VLOOKUP(B109&"|"&VLOOKUP(TDPrimas!$B$4,Cat!R:T,2,0),'TD Operación'!A:D,4,0))*100,"ND")) -> 5.496173606 | L109: =IF(E108="","",(VLOOKUP(B109,'TDPrimas Vida'!$B:$N,7,0))) -> 5.496173606
B110: =IF(C110="",B109,D110) -> Chubb Seguros México | D110: =IF(D109="","","Renovación") -> Renovación | E110: =IF(E108="","",(VLOOKUP(B110,'TDPrimas Vida'!$B:$N,8,0))) -> 0 | F110: =IF(E108="","",(VLOOKUP(B110,'TDPrimas Vida'!$B:$N,9,0))) -> 0 | G110: =IFERROR((E110/VLOOKUP("TOTAL",$D$12:$L$312,2,0))*100,"") -> 0 | H110: =IFERROR((E110/VLOOKUP("TOTAL",$D$12:$L$312,3,0))*100,"") -> 0 | I110: =IF(E108="","",E110-F110) -> 0 | J110: =IF(E108="","",IFERROR((E110/F110-1)*100,"ND")) -> ND | K110: =IF(E108="","",IFERROR((E110/VLOOKUP(B110&"|"&VLOOKUP(TDPrimas!$B$4,Cat!R:T,2,0),'TD Operación'!A:D,4,0))*100,"ND")) -> 0 | L110: =IF(E108="","",(VLOOKUP(B110,'TDPrimas Vida'!$B:$N,10,0))) -> 0
B111: =IF(C111="",B110,D111) -> Chubb Seguros México | D111: =IF(D110="","","Únicas") -> Únicas | E111: =IF(E109="","",(VLOOKUP(B111,'TDPrimas Vida'!$B:$N,11,0))) -> 0 | F111: =IF(E109="","",(VLOOKUP(B111,'TDPrimas Vida'!$B:$N,12,0))) -> 0 | G111: =IFERROR((E111/VLOOKUP("TOTAL",$D$12:$L$312,2,0))*100,"") -> 0 | H111: =IFERROR((E111/VLOOKUP("TOTAL",$D$12:$L$312,3,0))*100,"") -> 0 | I111: =IF(E108="","",E111-F111) -> 0 | J111: =IF(E108="","",IFERROR((E111/F111-1)*100,"ND")) -> ND | K111: =IF(E108="","",IFERROR((E111/VLOOKUP(B111&"|"&VLOOKUP(TDPrimas!$B$4,Cat!R:T,2,0),'TD Operación'!A:D,4,0))*100,"ND")) -> 0 | L111: =IF(E108="","",(VLOOKUP(B111,'TDPrimas Vida'!$B:$N,13,0))) -> 0
B112: =IF(C112="",B108,D112) -> Assurant Vida | C112: =IF('TDPrimas Vida'!A32="","",'TDPrimas Vida'!A32) -> 24 | D112: =IF('TDPrimas Vida'!B32="","",'TDPrimas Vida'!B32) -> Assurant Vida | E112: =IF('TDPrimas Vida'!C32="","",'TDPrimas Vida'!C32) -> 1024603.929 | F112: =IF('TDPrimas Vida'!D32="","",'TDPrimas Vida'!D32) -> 1108142.217 | G112: =IF('TDPrimas Vida'!C32="","",IFERROR((E112/VLOOKUP("TOTAL",$D$12:$L$312,2,0))*100,"")) -> 0.4107635426 | H112: =IF('TDPrimas Vida'!C32="","",IFERROR((E112/VLOOKUP("TOTAL",$D$12:$L$312,3,0))*100,"")) -> 0.4202081623 | I112: =IF('TDPrimas Vida'!C32="","",E112-F112) -> -83538.28882 | J112: =IFERROR(IF('TDPrimas Vida'!C32="","",(E112/F112-1)*100),"ND") -> -7.538589136 | K112: =IF(E112="","",IFERROR((E112/VLOOKUP(D112&"|"&VLOOKUP(TDPrimas!$B$4,Cat!R:T,2,0),'TD Operación'!A:D,4,0))*100,"ND")) -> 100 | L112: =IF('TDPrimas Vida'!E32="","",'TDPrimas Vida'!E32) -> 100
B113: =IF(C113="",B112,D113) -> Assurant Vida | D113: =IF(D112="","","1er Año") -> 1er Año | E113: =IF(E112="","",(VLOOKUP(B113,'TDPrimas Vida'!$B:$N,5,0))) -> 1013361.026 | F113: =IF(E112="","",(VLOOKUP(B113,'TDPrimas Vida'!$B:$N,6,0))) -> 1095420.962 | G113: =IFERROR((E113/VLOOKUP("TOTAL",$D$12:$L$312,2,0))*100,"") -> 0.406256265 | H113: =IFERROR((E113/VLOOKUP("TOTAL",$D$12:$L$312,3,0))*100,"") -> 0.4155972496 | I113: =IF(E112="","",E113-F113) -> -82059.93565 | J113: =IF(E112="","",IFERROR((E113/F113-1)*100,"ND")) -> -7.49117814 | K113: =IF(E112="","",IFERROR((E113/VLOOKUP(B113&"|"&VLOOKUP(TDPrimas!$B$4,Cat!R:T,2,0),'TD Operación'!A:D,4,0))*100,"ND")) -> 98.90270749 | L113: =IF(E112="","",(VLOOKUP(B113,'TDPrimas Vida'!$B:$N,7,0))) -> 98.90270749
B114: =IF(C114="",B113,D114) -> Assurant Vida | D114: =IF(D113="","","Renovación") -> Renovación | E114: =IF(E112="","",(VLOOKUP(B114,'TDPrimas Vida'!$B:$N,8,0))) -> 11242.90221 | F114: =IF(E112="","",(VLOOKUP(B114,'TDPrimas Vida'!$B:$N,9,0))) -> 12721.25538 | G114: =IFERROR((E114/VLOOKUP("TOTAL",$D$12:$L$312,2,0))*100,"") -> 0.004507277605 | H114: =IFERROR((E114/VLOOKUP("TOTAL",$D$12:$L$312,3,0))*100,"") -> 0.004610912709 | I114: =IF(E112="","",E114-F114) -> -1478.35317 | J114: =IF(E112="","",IFERROR((E114/F114-1)*100,"ND")) -> -11.62112642 | K114: =IF(E112="","",IFERROR((E114/VLOOKUP(B114&"|"&VLOOKUP(TDPrimas!$B$4,Cat!R:T,2,0),'TD Operación'!A:D,4,0))*100,"ND")) -> 1.097292514 | L114: =IF(E112="","",(VLOOKUP(B114,'TDPrimas Vida'!$B:$N,10,0))) -> 1.097292514
B115: =IF(C115="",B114,D115) -> Assurant Vida | D115: =IF(D114="","","Únicas") -> Únicas | E115: =IF(E113="","",(VLOOKUP(B115,'TDPrimas Vida'!$B:$N,11,0))) -> 0 | F115: =IF(E113="","",(VLOOKUP(B115,'TDPrimas Vida'!$B:$N,12,0))) -> 0 | G115: =IFERROR((E115/VLOOKUP("TOTAL",$D$12:$L$312,2,0))*100,"") -> 0 | H115: =IFERROR((E115/VLOOKUP("TOTAL",$D$12:$L$312,3,0))*100,"") -> 0 | I115: =IF(E112="","",E115-F115) -> 0 | J115: =IF(E112="","",IFERROR((E115/F115-1)*100,"ND")) -> ND | K115: =IF(E112="","",IFERROR((E115/VLOOKUP(B115&"|"&VLOOKUP(TDPrimas!$B$4,Cat!R:T,2,0),'TD Operación'!A:D,4,0))*100,"ND")) -> 0 | L115: =IF(E112="","",(VLOOKUP(B115,'TDPrimas Vida'!$B:$N,13,0))) -> 0
B116: =IF(C116="",B112,D116) -> General de Seguros | C116: =IF('TDPrimas Vida'!A33="","",'TDPrimas Vida'!A33) -> 25 | D116: =IF('TDPrimas Vida'!B33="","",'TDPrimas Vida'!B33) -> General de Seguros | E116: =IF('TDPrimas Vida'!C33="","",'TDPrimas Vida'!C33) -> 706075.5755 | F116: =IF('TDPrimas Vida'!D33="","",'TDPrimas Vida'!D33) -> 323194.9632 | G116: =IF('TDPrimas Vida'!C33="","",IFERROR((E116/VLOOKUP("TOTAL",$D$12:$L$312,2,0))*100,"")) -> 0.2830655795 | H116: =IF('TDPrimas Vida'!C33="","",IFERROR((E116/VLOOKUP("TOTAL",$D$12:$L$312,3,0))*100,"")) -> 0.2895740605 | I116: =IF('TDPrimas Vida'!C33="","",E116-F116) -> 382880.6124 | J116: =IFERROR(IF('TDPrimas Vida'!C33="","",(E116/F116-1)*100),"ND") -> 118.4673822 | K116: =IF(E116="","",IFERROR((E116/VLOOKUP(D116&"|"&VLOOKUP(TDPrimas!$B$4,Cat!R:T,2,0),'TD Operación'!A:D,4,0))*100,"ND")) -> 28.06240647 | L116: =IF('TDPrimas Vida'!E33="","",'TDPrimas Vida'!E33) -> 28.06240647
B117: =IF(C117="",B116,D117) -> General de Seguros | D117: =IF(D116="","","1er Año") -> 1er Año | E117: =IF(E116="","",(VLOOKUP(B117,'TDPrimas Vida'!$B:$N,5,0))) -> 445757.1978 | F117: =IF(E116="","",(VLOOKUP(B117,'TDPrimas Vida'!$B:$N,6,0))) -> 149186.8039 | G117: =IFERROR((E117/VLOOKUP("TOTAL",$D$12:$L$312,2,0))*100,"") -> 0.1787039856 | H117: =IFERROR((E117/VLOOKUP("TOTAL",$D$12:$L$312,3,0))*100,"") -> 0.1828128975 | I117: =IF(E116="","",E117-F117) -> 296570.394 | J117: =IF(E116="","",IFERROR((E117/F117-1)*100,"ND")) -> 198.7913048 | K117: =IF(E116="","",IFERROR((E117/VLOOKUP(B117&"|"&VLOOKUP(TDPrimas!$B$4,Cat!R:T,2,0),'TD Operación'!A:D,4,0))*100,"ND")) -> 17.71626169 | L117: =IF(E116="","",(VLOOKUP(B117,'TDPrimas Vida'!$B:$N,7,0))) -> 17.71626169
B118: =IF(C118="",B117,D118) -> General de Seguros | D118: =IF(D117="","","Renovación") -> Renovación | E118: =IF(E116="","",(VLOOKUP(B118,'TDPrimas Vida'!$B:$N,8,0))) -> 260318.3777 | F118: =IF(E116="","",(VLOOKUP(B118,'TDPrimas Vida'!$B:$N,9,0))) -> 174008.1593 | G118: =IFERROR((E118/VLOOKUP("TOTAL",$D$12:$L$312,2,0))*100,"") -> 0.1043615938 | H118: =IFERROR((E118/VLOOKUP("TOTAL",$D$12:$L$312,3,0))*100,"") -> 0.1067611631 | I118: =IF(E116="","",E118-F118) -> 86310.21838 | J118: =IF(E116="","",IFERROR((E118/F118-1)*100,"ND")) -> 49.60124785 | K118: =IF(E116="","",IFERROR((E118/VLOOKUP(B118&"|"&VLOOKUP(TDPrimas!$B$4,Cat!R:T,2,0),'TD Operación'!A:D,4,0))*100,"ND")) -> 10.34614478 | L118: =IF(E116="","",(VLOOKUP(B118,'TDPrimas Vida'!$B:$N,10,0))) -> 10.34614478
B119: =IF(C119="",B118,D119) -> General de Seguros | D119: =IF(D118="","","Únicas") -> Únicas | E119: =IF(E117="","",(VLOOKUP(B119,'TDPrimas Vida'!$B:$N,11,0))) -> 0 | F119: =IF(E117="","",(VLOOKUP(B119,'TDPrimas Vida'!$B:$N,12,0))) -> 0 | G119: =IFERROR((E119/VLOOKUP("TOTAL",$D$12:$L$312,2,0))*100,"") -> 0 | H119: =IFERROR((E119/VLOOKUP("TOTAL",$D$12:$L$312,3,0))*100,"") -> 0 | I119: =IF(E116="","",E119-F119) -> 0 | J119: =IF(E116="","",IFERROR((E119/F119-1)*100,"ND")) -> ND | K119: =IF(E116="","",IFERROR((E119/VLOOKUP(B119&"|"&VLOOKUP(TDPrimas!$B$4,Cat!R:T,2,0),'TD Operación'!A:D,4,0))*100,"ND")) -> 0 | L119: =IF(E116="","",(VLOOKUP(B119,'TDPrimas Vida'!$B:$N,13,0))) -> 0
B120: =IF(C120="",B116,D120) -> Ve Por Más | C120: =IF('TDPrimas Vida'!A34="","",'TDPrimas Vida'!A34) -> 26 | D120: =IF('TDPrimas Vida'!B34="","",'TDPrimas Vida'!B34) -> Ve Por Más | E120: =IF('TDPrimas Vida'!C34="","",'TDPrimas Vida'!C34) -> 674385.0961 | F120: =IF('TDPrimas Vida'!D34="","",'TDPrimas Vida'!D34) -> 652683.2622 | G120: =IF('TDPrimas Vida'!C34="","",IFERROR((E120/VLOOKUP("TOTAL",$D$12:$L$312,2,0))*100,"")) -> 0.2703608716 | H120: =IF('TDPrimas Vida'!C34="","",IFERROR((E120/VLOOKUP("TOTAL",$D$12:$L$312,3,0))*100,"")) -> 0.2765772354 | I120: =IF('TDPrimas Vida'!C34="","",E120-F120) -> 21701.8339 | J120: =IFERROR(IF('TDPrimas Vida'!C34="","",(E120/F120-1)*100),"ND") -> 3.325017686 | K120: =IF(E120="","",IFERROR((E120/VLOOKUP(D120&"|"&VLOOKUP(TDPrimas!$B$4,Cat!R:T,2,0),'TD Operación'!A:D,4,0))*100,"ND")) -> 21.48425824 | L120: =IF('TDPrimas Vida'!E34="","",'TDPrimas Vida'!E34) -> 21.48425824
B121: =IF(C121="",B120,D121) -> Ve Por Más | D121: =IF(D120="","","1er Año") -> 1er Año | E121: =IF(E120="","",(VLOOKUP(B121,'TDPrimas Vida'!$B:$N,5,0))) -> 89826.77494 | F121: =IF(E120="","",(VLOOKUP(B121,'TDPrimas Vida'!$B:$N,6,0))) -> 132025.3632 | G121: =IFERROR((E121/VLOOKUP("TOTAL",$D$12:$L$312,2,0))*100,"") -> 0.03601153896 | H121: =IFERROR((E121/VLOOKUP("TOTAL",$D$12:$L$312,3,0))*100,"") -> 0.03683954645 | I121: =IF(E120="","",E121-F121) -> -42198.5883 | J121: =IF(E120="","",IFERROR((E121/F121-1)*100,"ND")) -> -31.96248604 | K121: =IF(E120="","",IFERROR((E121/VLOOKUP(B121&"|"&VLOOKUP(TDPrimas!$B$4,Cat!R:T,2,0),'TD Operación'!A:D,4,0))*100,"ND")) -> 2.86166115 | L121: =IF(E120="","",(VLOOKUP(B121,'TDPrimas Vida'!$B:$N,7,0))) -> 2.86166115
B122: =IF(C122="",B121,D122) -> Ve Por Más | D122: =IF(D121="","","Renovación") -> Renovación | E122: =IF(E120="","",(VLOOKUP(B122,'TDPrimas Vida'!$B:$N,8,0))) -> 430576.45 | F122: =IF(E120="","",(VLOOKUP(B122,'TDPrimas Vida'!$B:$N,9,0))) -> 354794.9863 | G122: =IFERROR((E122/VLOOKUP("TOTAL",$D$12:$L$312,2,0))*100,"") -> 0.1726180264 | H122: =IFERROR((E122/VLOOKUP("TOTAL",$D$12:$L$312,3,0))*100,"") -> 0.1765870047 | I122: =IF(E120="","",E122-F122) -> 75781.46374 | J122: =IF(E120="","",IFERROR((E122/F122-1)*100,"ND")) -> 21.35922622 | K122: =IF(E120="","",IFERROR((E122/VLOOKUP(B122&"|"&VLOOKUP(TDPrimas!$B$4,Cat!R:T,2,0),'TD Operación'!A:D,4,0))*100,"ND")) -> 13.71711163 | L122: =IF(E120="","",(VLOOKUP(B122,'TDPrimas Vida'!$B:$N,10,0))) -> 13.71711163
B123: =IF(C123="",B122,D123) -> Ve Por Más | D123: =IF(D122="","","Únicas") -> Únicas | E123: =IF(E121="","",(VLOOKUP(B123,'TDPrimas Vida'!$B:$N,11,0))) -> 153981.8712 | F123: =IF(E121="","",(VLOOKUP(B123,'TDPrimas Vida'!$B:$N,12,0))) -> 165862.9127 | G123: =IFERROR((E123/VLOOKUP("TOTAL",$D$12:$L$312,2,0))*100,"") -> 0.06173130625 | H123: =IFERROR((E123/VLOOKUP("TOTAL",$D$12:$L$312,3,0))*100,"") -> 0.06315068418 | I123: =IF(E120="","",E123-F123) -> -11881.04154 | J123: =IF(E120="","",IFERROR((E123/F123-1)*100,"ND")) -> -7.163169479 | K123: =IF(E120="","",IFERROR((E123/VLOOKUP(B123&"|"&VLOOKUP(TDPrimas!$B$4,Cat!R:T,2,0),'TD Operación'!A:D,4,0))*100,"ND")) -> 4.905485462 | L123: =IF(E120="","",(VLOOKUP(B123,'TDPrimas Vida'!$B:$N,13,0))) -> 4.905485462
B124: =IF(C124="",B120,D124) -> Zurich Vida | C124: =IF('TDPrimas Vida'!A35="","",'TDPrimas Vida'!A35) -> 27 | D124: =IF('TDPrimas Vida'!B35="","",'TDPrimas Vida'!B35) -> Zurich Vida | E124: =IF('TDPrimas Vida'!C35="","",'TDPrimas Vida'!C35) -> 502882.7278 | F124: =IF('TDPrimas Vida'!D35="","",'TDPrimas Vida'!D35) -> 630223.7471 | G124: =IF('TDPrimas Vida'!C35="","",IFERROR((E124/VLOOKUP("TOTAL",$D$12:$L$312,2,0))*100,"")) -> 0.201605601 | H124: =IF('TDPrimas Vida'!C35="","",IFERROR((E124/VLOOKUP("TOTAL",$D$12:$L$312,3,0))*100,"")) -> 0.2062410859 | I124: =IF('TDPrimas Vida'!C35="","",E124-F124) -> -127341.0193 | J124: =IFERROR(IF('TDPrimas Vida'!C35="","",(E124/F124-1)*100),"ND") -> -20.20568408 | K124: =IF(E124="","",IFERROR((E124/VLOOKUP(D124&"|"&VLOOKUP(TDPrimas!$B$4,Cat!R:T,2,0),'TD Operación'!A:D,4,0))*100,"ND")) -> 27.40750303 | L124: =IF('TDPrimas Vida'!E35="","",'TDPrimas Vida'!E35) -> 27.40750303
B125: =IF(C125="",B124,D125) -> Zurich Vida | D125: =IF(D124="","","1er Año") -> 1er Año | E125: =IF(E124="","",(VLOOKUP(B125,'TDPrimas Vida'!$B:$N,5,0))) -> 97260.81148 | F125: =IF(E124="","",(VLOOKUP(B125,'TDPrimas Vida'!$B:$N,6,0))) -> 54579.04222 | G125: =IFERROR((E125/VLOOKUP("TOTAL",$D$12:$L$312,2,0))*100,"") -> 0.03899184296 | H125: =IFERROR((E125/VLOOKUP("TOTAL",$D$12:$L$312,3,0))*100,"") -> 0.0398883761 | I125: =IF(E124="","",E125-F125) -> 42681.76926 | J125: =IF(E124="","",IFERROR((E125/F125-1)*100,"ND")) -> 78.2017557 | K125: =IF(E124="","",IFERROR((E125/VLOOKUP(B125&"|"&VLOOKUP(TDPrimas!$B$4,Cat!R:T,2,0),'TD Operación'!A:D,4,0))*100,"ND")) -> 5.300790498 | L125: =IF(E124="","",(VLOOKUP(B125,'TDPrimas Vida'!$B:$N,7,0))) -> 5.300790498
B126: =IF(C126="",B125,D126) -> Zurich Vida | D126: =IF(D125="","","Renovación") -> Renovación | E126: =IF(E124="","",(VLOOKUP(B126,'TDPrimas Vida'!$B:$N,8,0))) -> 239483.3476 | F126: =IF(E124="","",(VLOOKUP(B126,'TDPrimas Vida'!$B:$N,9,0))) -> 334931.2864 | G126: =IFERROR((E126/VLOOKUP("TOTAL",$D$12:$L$312,2,0))*100,"") -> 0.09600883374 | H126: =IFERROR((E126/VLOOKUP("TOTAL",$D$12:$L$312,3,0))*100,"") -> 0.09821634932 | I126: =IF(E124="","",E126-F126) -> -95447.93881 | J126: =IF(E124="","",IFERROR((E126/F126-1)*100,"ND")) -> -28.49776736 | K126: =IF(E124="","",IFERROR((E126/VLOOKUP(B126&"|"&VLOOKUP(TDPrimas!$B$4,Cat!R:T,2,0),'TD Operación'!A:D,4,0))*100,"ND")) -> 13.05203025 | L126: =IF(E124="","",(VLOOKUP(B126,'TDPrimas Vida'!$B:$N,10,0))) -> 13.05203025
B127: =IF(C127="",B126,D127) -> Zurich Vida | D127: =IF(D126="","","Únicas") -> Únicas | E127: =IF(E125="","",(VLOOKUP(B127,'TDPrimas Vida'!$B:$N,11,0))) -> 166138.5687 | F127: =IF(E125="","",(VLOOKUP(B127,'TDPrimas Vida'!$B:$N,12,0))) -> 240713.4185 | G127: =IFERROR((E127/VLOOKUP("TOTAL",$D$12:$L$312,2,0))*100,"") -> 0.06660492426 | H127: =IFERROR((E127/VLOOKUP("TOTAL",$D$12:$L$312,3,0))*100,"") -> 0.0681363605 | I127: =IF(E124="","",E127-F127) -> -74574.84977 | J127: =IF(E124="","",IFERROR((E127/F127-1)*100,"ND")) -> -30.98076137 | K127: =IF(E124="","",IFERROR((E127/VLOOKUP(B127&"|"&VLOOKUP(TDPrimas!$B$4,Cat!R:T,2,0),'TD Operación'!A:D,4,0))*100,"ND")) -> 9.054682283 | L127: =IF(E124="","",(VLOOKUP(B127,'TDPrimas Vida'!$B:$N,13,0))) -> 9.054682283
B128: =IF(C128="",B124,D128) -> Patrimonial Inbursa | C128: =IF('TDPrimas Vida'!A36="","",'TDPrimas Vida'!A36) -> 28 | D128: =IF('TDPrimas Vida'!B36="","",'TDPrimas Vida'!B36) -> Patrimonial Inbursa | E128: =IF('TDPrimas Vida'!C36="","",'TDPrimas Vida'!C36) -> 455803.1574 | F128: =IF('TDPrimas Vida'!D36="","",'TDPrimas Vida'!D36) -> 523955.4007 | G128: =IF('TDPrimas Vida'!C36="","",IFERROR((E128/VLOOKUP("TOTAL",$D$12:$L$312,2,0))*100,"")) -> 0.1827314091 | H128: =IF('TDPrimas Vida'!C36="","",IFERROR((E128/VLOOKUP("TOTAL",$D$12:$L$312,3,0))*100,"")) -> 0.1869329228 | I128: =IF('TDPrimas Vida'!C36="","",E128-F128) -> -68152.24327 | J128: =IFERROR(IF('TDPrimas Vida'!C36="","",(E128/F128-1)*100),"ND") -> -13.00726039 | K128: =IF(E128="","",IFERROR((E128/VLOOKUP(D128&"|"&VLOOKUP(TDPrimas!$B$4,Cat!R:T,2,0),'TD Operación'!A:D,4,0))*100,"ND")) -> 71.98339867 | L128: =IF('TDPrimas Vida'!E36="","",'TDPrimas Vida'!E36) -> 71.98339867
B129: =IF(C129="",B128,D129) -> Patrimonial Inbursa | D129: =IF(D128="","","1er Año") -> 1er Año | E129: =IF(E128="","",(VLOOKUP(B129,'TDPrimas Vida'!$B:$N,5,0))) -> 455803.1574 | F129: =IF(E128="","",(VLOOKUP(B129,'TDPrimas Vida'!$B:$N,6,0))) -> 523955.4007 | G129: =IFERROR((E129/VLOOKUP("TOTAL",$D$12:$L$312,2,0))*100,"") -> 0.1827314091 | H129: =IFERROR((E129/VLOOKUP("TOTAL",$D$12:$L$312,3,0))*100,"") -> 0.1869329228 | I129: =IF(E128="","",E129-F129) -> -68152.24327 | J129: =IF(E128="","",IFERROR((E129/F129-1)*100,"ND")) -> -13.00726039 | K129: =IF(E128="","",IFERROR((E129/VLOOKUP(B129&"|"&VLOOKUP(TDPrimas!$B$4,Cat!R:T,2,0),'TD Operación'!A:D,4,0))*100,"ND")) -> 71.98339867 | L129: =IF(E128="","",(VLOOKUP(B129,'TDPrimas Vida'!$B:$N,7,0))) -> 71.98339867
B130: =IF(C130="",B129,D130) -> Patrimonial Inbursa | D130: =IF(D129="","","Renovación") -> Renovación | E130: =IF(E128="","",(VLOOKUP(B130,'TDPrimas Vida'!$B:$N,8,0))) -> 0 | F130: =IF(E128="","",(VLOOKUP(B130,'TDPrimas Vida'!$B:$N,9,0))) -> 0 | G130: =IFERROR((E130/VLOOKUP("TOTAL",$D$12:$L$312,2,0))*100,"") -> 0 | H130: =IFERROR((E130/VLOOKUP("TOTAL",$D$12:$L$312,3,0))*100,"") -> 0 | I130: =IF(E128="","",E130-F130) -> 0 | J130: =IF(E128="","",IFERROR((E130/F130-1)*100,"ND")) -> ND | K130: =IF(E128="","",IFERROR((E130/VLOOKUP(B130&"|"&VLOOKUP(TDPrimas!$B$4,Cat!R:T,2,0),'TD Operación'!A:D,4,0))*100,"ND")) -> 0 | L130: =IF(E128="","",(VLOOKUP(B130,'TDPrimas Vida'!$B:$N,10,0))) -> 0
B131: =IF(C131="",B130,D131) -> Patrimonial Inbursa | D131: =IF(D130="","","Únicas") -> Únicas | E131: =IF(E129="","",(VLOOKUP(B131,'TDPrimas Vida'!$B:$N,11,0))) -> 0 | F131: =IF(E129="","",(VLOOKUP(B131,'TDPrimas Vida'!$B:$N,12,0))) -> 0 | G131: =IFERROR((E131/VLOOKUP("TOTAL",$D$12:$L$312,2,0))*100,"") -> 0 | H131: =IFERROR((E131/VLOOKUP("TOTAL",$D$12:$L$312,3,0))*100,"") -> 0 | I131: =IF(E128="","",E131-F131) -> 0 | J131: =IF(E128="","",IFERROR((E131/F131-1)*100,"ND")) -> ND | K131: =IF(E128="","",IFERROR((E131/VLOOKUP(B131&"|"&VLOOKUP(TDPrimas!$B$4,Cat!R:T,2,0),'TD Operación'!A:D,4,0))*100,"ND")) -> 0 | L131: =IF(E128="","",(VLOOKUP(B131,'TDPrimas Vida'!$B:$N,13,0))) -> 0
B132: =IF(C132="",B128,D132) -> Skandia Life | C132: =IF('TDPrimas Vida'!A37="","",'TDPrimas Vida'!A37) -> 29 | D132: =IF('TDPrimas Vida'!B37="","",'TDPrimas Vida'!B37) -> Skandia Life | E132: =IF('TDPrimas Vida'!C37="","",'TDPrimas Vida'!C37) -> 426948.5898 | F132: =IF('TDPrimas Vida'!D37="","",'TDPrimas Vida'!D37) -> 558075.8231 | G132: =IF('TDPrimas Vida'!C37="","",IFERROR((E132/VLOOKUP("TOTAL",$D$12:$L$312,2,0))*100,"")) -> 0.1711636178 | H132: =IF('TDPrimas Vida'!C37="","",IFERROR((E132/VLOOKUP("TOTAL",$D$12:$L$312,3,0))*100,"")) -> 0.1750991552 | I132: =IF('TDPrimas Vida'!C37="","",E132-F132) -> -131127.2333 | J132: =IFERROR(IF('TDPrimas Vida'!C37="","",(E132/F132-1)*100),"ND") -> -23.49631141 | K132: =IF(E132="","",IFERROR((E132/VLOOKUP(D132&"|"&VLOOKUP(TDPrimas!$B$4,Cat!R:T,2,0),'TD Operación'!A:D,4,0))*100,"ND")) -> 100 | L132: =IF('TDPrimas Vida'!E37="","",'TDPrimas Vida'!E37) -> 100
B133: =IF(C133="",B132,D133) -> Skandia Life | D133: =IF(D132="","","1er Año") -> 1er Año | E133: =IF(E132="","",(VLOOKUP(B133,'TDPrimas Vida'!$B:$N,5,0))) -> 215625.4647 | F133: =IF(E132="","",(VLOOKUP(B133,'TDPrimas Vida'!$B:$N,6,0))) -> 363619.332 | G133: =IFERROR((E133/VLOOKUP("TOTAL",$D$12:$L$312,2,0))*100,"") -> 0.0864442125 | H133: =IFERROR((E133/VLOOKUP("TOTAL",$D$12:$L$312,3,0))*100,"") -> 0.08843181029 | I133: =IF(E132="","",E133-F133) -> -147993.8673 | J133: =IF(E132="","",IFERROR((E133/F133-1)*100,"ND")) -> -40.70021979 | K133: =IF(E132="","",IFERROR((E133/VLOOKUP(B133&"|"&VLOOKUP(TDPrimas!$B$4,Cat!R:T,2,0),'TD Operación'!A:D,4,0))*100,"ND")) -> 50.50384749 | L133: =IF(E132="","",(VLOOKUP(B133,'TDPrimas Vida'!$B:$N,7,0))) -> 50.50384749
B134: =IF(C134="",B133,D134) -> Skandia Life | D134: =IF(D133="","","Renovación") -> Renovación | E134: =IF(E132="","",(VLOOKUP(B134,'TDPrimas Vida'!$B:$N,8,0))) -> 211323.1252 | F134: =IF(E132="","",(VLOOKUP(B134,'TDPrimas Vida'!$B:$N,9,0))) -> 194456.4912 | G134: =IFERROR((E134/VLOOKUP("TOTAL",$D$12:$L$312,2,0))*100,"") -> 0.08471940533 | H134: =IFERROR((E134/VLOOKUP("TOTAL",$D$12:$L$312,3,0))*100,"") -> 0.08666734491 | I134: =IF(E132="","",E134-F134) -> 16866.63399 | J134: =IF(E132="","",IFERROR((E134/F134-1)*100,"ND")) -> 8.673731531 | K134: =IF(E132="","",IFERROR((E134/VLOOKUP(B134&"|"&VLOOKUP(TDPrimas!$B$4,Cat!R:T,2,0),'TD Operación'!A:D,4,0))*100,"ND")) -> 49.49615251 | L134: =IF(E132="","",(VLOOKUP(B134,'TDPrimas Vida'!$B:$N,10,0))) -> 49.49615251
B135: =IF(C135="",B134,D135) -> Skandia Life | D135: =IF(D134="","","Únicas") -> Únicas | E135: =IF(E133="","",(VLOOKUP(B135,'TDPrimas Vida'!$B:$N,11,0))) -> 0 | F135: =IF(E133="","",(VLOOKUP(B135,'TDPrimas Vida'!$B:$N,12,0))) -> 0 | G135: =IFERROR((E135/VLOOKUP("TOTAL",$D$12:$L$312,2,0))*100,"") -> 0 | H135: =IFERROR((E135/VLOOKUP("TOTAL",$D$12:$L$312,3,0))*100,"") -> 0 | I135: =IF(E132="","",E135-F135) -> 0 | J135: =IF(E132="","",IFERROR((E135/F135-1)*100,"ND")) -> ND | K135: =IF(E132="","",IFERROR((E135/VLOOKUP(B135&"|"&VLOOKUP(TDPrimas!$B$4,Cat!R:T,2,0),'TD Operación'!A:D,4,0))*100,"ND")) -> 0 | L135: =IF(E132="","",(VLOOKUP(B135,'TDPrimas Vida'!$B:$N,13,0))) -> 0
B136: =IF(C136="",B132,D136) -> Pan-American México | C136: =IF('TDPrimas Vida'!A38="","",'TDPrimas Vida'!A38) -> 30 | D136: =IF('TDPrimas Vida'!B38="","",'TDPrimas Vida'!B38) -> Pan-American México | E136: =IF('TDPrimas Vida'!C38="","",'TDPrimas Vida'!C38) -> 343072.039 | F136: =IF('TDPrimas Vida'!D38="","",'TDPrimas Vida'!D38) -> 800503.997 | G136: =IF('TDPrimas Vida'!C38="","",IFERROR((E136/VLOOKUP("TOTAL",$D$12:$L$312,2,0))*100,"")) -> 0.1375375227 | H136: =IF('TDPrimas Vida'!C38="","",IFERROR((E136/VLOOKUP("TOTAL",$D$12:$L$312,3,0))*100,"")) -> 0.1406999007 | I136: =IF('TDPrimas Vida'!C38="","",E136-F136) -> -457431.9581 | J136: =IFERROR(IF('TDPrimas Vida'!C38="","",(E136/F136-1)*100),"ND") -> -57.14299488 | K136: =IF(E136="","",IFERROR((E136/VLOOKUP(D136&"|"&VLOOKUP(TDPrimas!$B$4,Cat!R:T,2,0),'TD Operación'!A:D,4,0))*100,"ND")) -> 44.58472062 | L136: =IF('TDPrimas Vida'!E38="","",'TDPrimas Vida'!E38) -> 44.58472062
B137: =IF(C137="",B136,D137) -> Pan-American México | D137: =IF(D136="","","1er Año") -> 1er Año | E137: =IF(E136="","",(VLOOKUP(B137,'TDPrimas Vida'!$B:$N,5,0))) -> 59914.64648 | F137: =IF(E136="","",(VLOOKUP(B137,'TDPrimas Vida'!$B:$N,6,0))) -> 177676.5399 | G137: =IFERROR((E137/VLOOKUP("TOTAL",$D$12:$L$312,2,0))*100,"") -> 0.02401977169 | H137: =IFERROR((E137/VLOOKUP("TOTAL",$D$12:$L$312,3,0))*100,"") -> 0.02457205442 | I137: =IF(E136="","",E137-F137) -> -117761.8935 | J137: =IF(E136="","",IFERROR((E137/F137-1)*100,"ND")) -> -66.27880839 | K137: =IF(E136="","",IFERROR((E137/VLOOKUP(B137&"|"&VLOOKUP(TDPrimas!$B$4,Cat!R:T,2,0),'TD Operación'!A:D,4,0))*100,"ND")) -> 7.786346514 | L137: =IF(E136="","",(VLOOKUP(B137,'TDPrimas Vida'!$B:$N,7,0))) -> 7.786346514
B138: =IF(C138="",B137,D138) -> Pan-American México | D138: =IF(D137="","","Renovación") -> Renovación | E138: =IF(E136="","",(VLOOKUP(B138,'TDPrimas Vida'!$B:$N,8,0))) -> 195470.3371 | F138: =IF(E136="","",(VLOOKUP(B138,'TDPrimas Vida'!$B:$N,9,0))) -> 409616.8003 | G138: =IFERROR((E138/VLOOKUP("TOTAL",$D$12:$L$312,2,0))*100,"") -> 0.07836402524 | H138: =IFERROR((E138/VLOOKUP("TOTAL",$D$12:$L$312,3,0))*100,"") -> 0.08016583659 | I138: =IF(E136="","",E138-F138) -> -214146.4633 | J138: =IF(E136="","",IFERROR((E138/F138-1)*100,"ND")) -> -52.27970706 | K138: =IF(E136="","",IFERROR((E138/VLOOKUP(B138&"|"&VLOOKUP(TDPrimas!$B$4,Cat!R:T,2,0),'TD Operación'!A:D,4,0))*100,"ND")) -> 25.40279993 | L138: =IF(E136="","",(VLOOKUP(B138,'TDPrimas Vida'!$B:$N,10,0))) -> 25.40279993
B139: =IF(C139="",B138,D139) -> Pan-American México | D139: =IF(D138="","","Únicas") -> Únicas | E139: =IF(E137="","",(VLOOKUP(B139,'TDPrimas Vida'!$B:$N,11,0))) -> 87687.05542 | F139: =IF(E137="","",(VLOOKUP(B139,'TDPrimas Vida'!$B:$N,12,0))) -> 213210.6567 | G139: =IFERROR((E139/VLOOKUP("TOTAL",$D$12:$L$312,2,0))*100,"") -> 0.03515372577 | H139: =IFERROR((E139/VLOOKUP("TOTAL",$D$12:$L$312,3,0))*100,"") -> 0.03596200969 | I139: =IF(E136="","",E139-F139) -> -125523.6013 | J139: =IF(E136="","",IFERROR((E139/F139-1)*100,"ND")) -> -58.87304286 | K139: =IF(E136="","",IFERROR((E139/VLOOKUP(B139&"|"&VLOOKUP(TDPrimas!$B$4,Cat!R:T,2,0),'TD Operación'!A:D,4,0))*100,"ND")) -> 11.39557418 | L139: =IF(E136="","",(VLOOKUP(B139,'TDPrimas Vida'!$B:$N,13,0))) -> 11.39557418
B140: =IF(C140="",B136,D140) -> La Latinoamericana | C140: =IF('TDPrimas Vida'!A39="","",'TDPrimas Vida'!A39) -> 31 | D140: =IF('TDPrimas Vida'!B39="","",'TDPrimas Vida'!B39) -> La Latinoamericana | E140: =IF('TDPrimas Vida'!C39="","",'TDPrimas Vida'!C39) -> 289231.4033 | F140: =IF('TDPrimas Vida'!D39="","",'TDPrimas Vida'!D39) -> 222547.2184 | G140: =IF('TDPrimas Vida'!C39="","",IFERROR((E140/VLOOKUP("TOTAL",$D$12:$L$312,2,0))*100,"")) -> 0.1159528209 | H140: =IF('TDPrimas Vida'!C39="","",IFERROR((E140/VLOOKUP("TOTAL",$D$12:$L$312,3,0))*100,"")) -> 0.1186189054 | I140: =IF('TDPrimas Vida'!C39="","",E140-F140) -> 66684.18482 | J140: =IFERROR(IF('TDPrimas Vida'!C39="","",(E140/F140-1)*100),"ND") -> 29.96406124 | K140: =IF(E140="","",IFERROR((E140/VLOOKUP(D140&"|"&VLOOKUP(TDPrimas!$B$4,Cat!R:T,2,0),'TD Operación'!A:D,4,0))*100,"ND")) -> 21.8764046 | L140: =IF('TDPrimas Vida'!E39="","",'TDPrimas Vida'!E39) -> 21.8764046
B141: =IF(C141="",B140,D141) -> La Latinoamericana | D141: =IF(D140="","","1er Año") -> 1er Año | E141: =IF(E140="","",(VLOOKUP(B141,'TDPrimas Vida'!$B:$N,5,0))) -> 105684.6005 | F141: =IF(E140="","",(VLOOKUP(B141,'TDPrimas Vida'!$B:$N,6,0))) -> 66060.3883 | G141: =IFERROR((E141/VLOOKUP("TOTAL",$D$12:$L$312,2,0))*100,"") -> 0.04236893855 | H141: =IFERROR((E141/VLOOKUP("TOTAL",$D$12:$L$312,3,0))*100,"") -> 0.0433431207 | I141: =IF(E140="","",E141-F141) -> 39624.21217 | J141: =IF(E140="","",IFERROR((E141/F141-1)*100,"ND")) -> 59.9818033 | K141: =IF(E140="","",IFERROR((E141/VLOOKUP(B141&"|"&VLOOKUP(TDPrimas!$B$4,Cat!R:T,2,0),'TD Operación'!A:D,4,0))*100,"ND")) -> 7.993596316 | L141: =IF(E140="","",(VLOOKUP(B141,'TDPrimas Vida'!$B:$N,7,0))) -> 7.993596316
B142: =IF(C142="",B141,D142) -> La Latinoamericana | D142: =IF(D141="","","Renovación") -> Renovación | E142: =IF(E140="","",(VLOOKUP(B142,'TDPrimas Vida'!$B:$N,8,0))) -> 183546.8028 | F142: =IF(E140="","",(VLOOKUP(B142,'TDPrimas Vida'!$B:$N,9,0))) -> 156486.8301 | G142: =IFERROR((E142/VLOOKUP("TOTAL",$D$12:$L$312,2,0))*100,"") -> 0.07358388236 | H142: =IFERROR((E142/VLOOKUP("TOTAL",$D$12:$L$312,3,0))*100,"") -> 0.07527578467 | I142: =IF(E140="","",E142-F142) -> 27059.97265 | J142: =IF(E140="","",IFERROR((E142/F142-1)*100,"ND")) -> 17.29217253 | K142: =IF(E140="","",IFERROR((E142/VLOOKUP(B142&"|"&VLOOKUP(TDPrimas!$B$4,Cat!R:T,2,0),'TD Operación'!A:D,4,0))*100,"ND")) -> 13.88280828 | L142: =IF(E140="","",(VLOOKUP(B142,'TDPrimas Vida'!$B:$N,10,0))) -> 13.88280828
B143: =IF(C143="",B142,D143) -> La Latinoamericana | D143: =IF(D142="","","Únicas") -> Únicas | E143: =IF(E141="","",(VLOOKUP(B143,'TDPrimas Vida'!$B:$N,11,0))) -> 0 | F143: =IF(E141="","",(VLOOKUP(B143,'TDPrimas Vida'!$B:$N,12,0))) -> 0 | G143: =IFERROR((E143/VLOOKUP("TOTAL",$D$12:$L$312,2,0))*100,"") -> 0 | H143: =IFERROR((E143/VLOOKUP("TOTAL",$D$12:$L$312,3,0))*100,"") -> 0 | I143: =IF(E140="","",E143-F143) -> 0 | J143: =IF(E140="","",IFERROR((E143/F143-1)*100,"ND")) -> ND | K143: =IF(E140="","",IFERROR((E143/VLOOKUP(B143&"|"&VLOOKUP(TDPrimas!$B$4,Cat!R:T,2,0),'TD Operación'!A:D,4,0))*100,"ND")) -> 0 | L143: =IF(E140="","",(VLOOKUP(B143,'TDPrimas Vida'!$B:$N,13,0))) -> 0
B144: =IF(C144="",B140,D144) -> Zurich Aseguradora Mexicana | C144: =IF('TDPrimas Vida'!A40="","",'TDPrimas Vida'!A40) -> 32 | D144: =IF('TDPrimas Vida'!B40="","",'TDPrimas Vida'!B40) -> Zurich Aseguradora Mexicana | E144: =IF('TDPrimas Vida'!C40="","",'TDPrimas Vida'!C40) -> 251614.9732 | F144: =IF('TDPrimas Vida'!D40="","",'TDPrimas Vida'!D40) -> 111306.8638 | G144: =IF('TDPrimas Vida'!C40="","",IFERROR((E144/VLOOKUP("TOTAL",$D$12:$L$312,2,0))*100,"")) -> 0.1008724004 | H144: =IF('TDPrimas Vida'!C40="","",IFERROR((E144/VLOOKUP("TOTAL",$D$12:$L$312,3,0))*100,"")) -> 0.1031917432 | I144: =IF('TDPrimas Vida'!C40="","",E144-F144) -> 140308.1095 | J144: =IFERROR(IF('TDPrimas Vida'!C40="","",(E144/F144-1)*100),"ND") -> 126.0552177 | K144: =IF(E144="","",IFERROR((E144/VLOOKUP(D144&"|"&VLOOKUP(TDPrimas!$B$4,Cat!R:T,2,0),'TD Operación'!A:D,4,0))*100,"ND")) -> 97.67806595 | L144: =IF('TDPrimas Vida'!E40="","",'TDPrimas Vida'!E40) -> 97.67806595
B145: =IF(C145="",B144,D145) -> Zurich Aseguradora Mexicana | D145: =IF(D144="","","1er Año") -> 1er Año | E145: =IF(E144="","",(VLOOKUP(B145,'TDPrimas Vida'!$B:$N,5,0))) -> 251614.9732 | F145: =IF(E144="","",(VLOOKUP(B145,'TDPrimas Vida'!$B:$N,6,0))) -> 111306.8638 | G145: =IFERROR((E145/VLOOKUP("TOTAL",$D$12:$L$312,2,0))*100,"") -> 0.1008724004 | H145: =IFERROR((E145/VLOOKUP("TOTAL",$D$12:$L$312,3,0))*100,"") -> 0.1031917432 | I145: =IF(E144="","",E145-F145) -> 140308.1095 | J145: =IF(E144="","",IFERROR((E145/F145-1)*100,"ND")) -> 126.0552177 | K145: =IF(E144="","",IFERROR((E145/VLOOKUP(B145&"|"&VLOOKUP(TDPrimas!$B$4,Cat!R:T,2,0),'TD Operación'!A:D,4,0))*100,"ND")) -> 97.67806595 | L145: =IF(E144="","",(VLOOKUP(B145,'TDPrimas Vida'!$B:$N,7,0))) -> 97.67806595
